Workbook

Sheet Stavba
C2: Položkový rozpočet stavby | H2: Datum:
C5: Stavba : | D5: 3232 | E5: Horní Slivno - Splašková kanalizace
C7: Objednatel : | D7: Obec Horní Slivno | H7: IČO :
D8: Horní Slivno 107 | H8: DIČ :
C9: 29479 | D9: Horní Slivno
C11: Zhotovitel : | D11: . | H11: IČO :
H12: DIČ :
C14: Za zhotovitele : | H14: Za objednatele :
C16: _______________ | H16: _______________
J18: Rozpočtové náklady
B19: Základ pro DPH | D19: 15 | E19: % | I19: =ROUND(G38,0) -> 0
B20: DPH | D20: =SazbaDPH1 -> 15 | E20: % | I20: =ROUND(I19*D20/100,0) -> 0
B21: Základ pro DPH | D21: 21 | E21: % | I21: =ROUND(H38,0) -> 0
B22: DPH | D22: =SazbaDPH2 -> 21 | E22: % | I22: =ROUND(I21*D21/100,0) -> 0
B23: Cena celkem za stavbu | I23: =SUM(I19:I22) -> 0
B26: Rekapitulace stavebních objektů a provozních souborů
B28: Číslo a název objektu / provozního souboru | F28: Cena celkem | G28: =CONCATENATE("Základ DPH ",SazbaDPH1," %") -> Základ DPH 15 % | H28: =CONCATENATE("Základ DPH ",SazbaDPH2," %") -> Základ DPH 21 % | I28: DPH celkem | J28: %
B29: 301 | C29: Splašková kanalizace | F29: =G29+H29+I29 -> 0 | G29: 0 | H29: =SUM(H43:H44) -> 0 | I29: =(G29*SazbaDPH1)/100+(H29*SazbaDPH2)/100 -> 0 | J29: =IF(CelkemObjekty=0,"",F29/CelkemObjekty*100) -> 
B30: 302 | C30: Kanalizační výtlaky | F30: =G30+H30+I30 -> 0 | G30: 0 | H30: =SUM(H45:H46) -> 0 | I30: 0
B31: 303 | C31: Kanalizační přípojky | F31: 0 | G31: 0 | H31: =SUM(H47:H48) -> 0 | I31: 0
B32: 304 | C32: Čerpací stanice | F32: 0 | G32: 0 | H32: =SUM(H49) -> 0 | I32: 0
B33: 305 | C33: Kabelové přípojky NN | F33: 0 | G33: 0 | H33: =SUM(H50) -> 0 | I33: 0
B34: 306 | C34: Přeložky vodovodu | F34: 0 | G34: 0 | H34: =SUM(H51) -> 0 | I34: 0
B35: 307 | C35: Přeložky sdělovacích vedení | F35: 0 | G35: 0 | H35: =SUM(H52) -> 0 | I35: 0
B36: 308 | C36: Opravy povrchů | F36: 0 | G36: 0 | H36: =SUM(H53:H54) -> 0 | I36: 0
B37: ONS | C37: Ostatní náklady stavby | F37: 0 | G37: 0 | H37: =SUM(ONS!G28) -> 0 | I37: 0
B38: Celkem za stavbu | F38: =SUM(F29:F37) -> 0 | G38: =SUM(G29:G37) -> 0 | H38: =SUM(H29:H37) -> 0 | I38: =SUM(I29:I37) -> 0 | J38: =IF(CelkemObjekty=0,"",F38/CelkemObjekty*100) -> 
B40: Rekapitulace stavebních rozpočtů
B42: Číslo objektu | C42: Číslo a název rozpočtu | F42: Cena celkem | G42: =CONCATENATE("Základ DPH ",SazbaDPH1," %") -> Základ DPH 15 % | H42: =CONCATENATE("Základ DPH ",SazbaDPH2," %") -> Základ DPH 21 % | I42: DPH celkem | J42: %
B43: 301 | C43: 301.1RD Splašková kanalizace | F43: =G43+H43+I43 -> 0 | G43: 0 | H43: =SUM('301 301.1RD KL'!C23) -> 0 | I43: =(G43*SazbaDPH1)/100+(H43*SazbaDPH2)/100 -> 0 | J43: =IF(CelkemObjekty=0,"",F43/CelkemObjekty*100) -> 
B44: 301 | C44: 301.2RD Splašková kanalizace - neuznatelné náklady | F44: =G44+H44+I44 -> 0 | G44: 0 | H44: =SUM('301 301.2RD KL'!C23) -> 0 | I44: 0
B45: 302 | C45: 302.1RD Kanalizační výtlaky - km 0,000-1,618.79 | F45: 0 | G45: 0 | H45: =SUM('302 302.1RD KL'!C23) -> 0 | I45: 0
B46: 302 | C46: 302.2RD Kanalizační výtlaky - km 1,618.79 - 4,197.00 | F46: 0 | G46: 0 | H46: =SUM('302 302.2RD KL'!C23) -> 0 | I46: 0
B47: 303 | C47: 303.1RD Kanalizační přípojky | F47: 0 | G47: 0 | H47: =SUM('303 303.1RD KL'!C23) -> 0 | I47: 0
B48: 303 | C48: 303.2RD Kanalizační přípojky - neuznatelné náklady | F48: 0 | G48: 0 | H48: =SUM('303 303.2RD KL'!C23) -> 0 | I48: 0
B49: 304 | C49: 304RD Čerpací stanice | F49: 0 | G49: 0 | H49: =SUM('304 304RD KL'!C23) -> 0 | I49: 0
B50: 305 | C50: 305RD Kabelové přípojky NN | F50: 0 | G50: 0 | H50: =SUM('305 305RD KL'!C23) -> 0 | I50: 0
B51: 306 | C51: 306RD Přeložky vodovodu | F51: 0 | G51: 0 | H51: =SUM('306 306RD KL'!C23) -> 0 | I51: 0
B52: 307 | C52: 307RD Přeložky sdělovacích vedení | F52: 0 | G52: 0 | H52: =SUM('307 307RD KL'!C23) -> 0 | I52: 0
B53: 308 | C53: 308.1RD Opravy povrchů | F53: 0 | G53: 0 | H53: =SUM('308 308.1RD KL'!C23) -> 0 | I53: 0
B54: 308 | C54: 308.2RD Příjezdové komunikace k ČSOV "A" a "C" | F54: 0 | G54: 0 | H54: =SUM('308 308.2RD KL'!C23) -> 0 | I54: 0
B55: Celkem za stavbu | F55: =SUM(F43:F54) -> 0 | G55: =SUM(G43:G54) -> 0 | H55: =SUM(H43:H54) -> 0 | I55: =SUM(I43:I54) -> 0 | J55: =IF(CelkemObjekty=0,"",F55/CelkemObjekty*100) -> 

Sheet 301 301.1RD KL
A1: POLOŽKOVÝ ROZPOČET
A2: Rozpočet | C2: 301.1RD | D2: Splašková kanalizace | F2: JKSO | G2: 827.21.A5
A4: Objekt | F4: SKP
A5: 301 | C5: Splašková kanalizace | F5: Měrná jednotka | G5: m
A6: Stavba | F6: Počet jednotek | G6: 0
A7: 3232 | C7: Horní Slivno - Splašková kanalizace | F7: Náklady na m.j. | G7: =IF(G6=0,,ROUND((F30+F32)/G6,1)) -> 0
A8: Projektant | C8: Radek Hnát - VAK PROJEKT | F8: Typ rozpočtu
A9: Zpracovatel projektu
A10: Objednatel | C10: Obec Horní Slivno
A11: Dodavatel | C11: . | F11: Zakázkové číslo
A12: Rozpočtoval | F12: Počet listů
A13: ROZPOČTOVÉ NÁKLADY
A14: Základní rozpočtové náklady
B15: HSV celkem | C15: ='301 301.1RD Rek'!E12 -> 0
A16: Z | B16: PSV celkem | C16: ='301 301.1RD Rek'!F12 -> 0
A17: R | B17: M práce celkem | C17: ='301 301.1RD Rek'!H12 -> 0
A18: N | B18: M dodávky celkem | C18: ='301 301.1RD Rek'!G12 -> 0
A19: ZRN celkem | C19: =SUM(C15:C18) -> 0
A21: HZS | C21: ='301 301.1RD Rek'!I12 -> 0
A22: ZRN+HZS | C22: =C19+C21 -> 0
A23: ZRN+ost.náklady+HZS | C23: =C22+G23 -> 0
A24: Vypracoval | D24: Za zhotovitele | F24: Za objednatele
A25: Jméno : | D25: Jméno : | F25: Jméno :
A26: Datum : | D26: Datum : | F26: Datum :
A28: Podpis : | D28: Podpis: | F28: Podpis:
A30: Základ pro DPH | C30: 21 | D30: % | F30: =C23-F32 -> 0
A31: DPH | C31: =C30 -> 21 | D31: % | F31: =ROUND(PRODUCT(F30,C31/100),0) -> 0
A32: Základ pro DPH | C32: 0 | D32: % | F32: 0
A33: DPH | C33: =C32 -> 0 | D33: % | F33: =ROUND(PRODUCT(F32,C33/100),0) -> 0
A34: CENA ZA OBJEKT CELKEM | F34: =ROUND(SUM(F30:F33),0) -> 0
A36: Poznámka :

Sheet 301 301.1RD Rek
A1: Stavba : | C1: 3232 Horní Slivno - Splašková kanalizace | G1: Rozpočet : | H1: 301.1RD
A2: Objekt : | C2: 301 Splašková kanalizace | G2: Splašková kanalizace
A4: REKAPITULACE STAVEBNÍCH DÍLŮ
B6: Stavební díl | E6: HSV | F6: PSV | G6: Dodávka | H6: Montáž | I6: HZS
A7: ='301 301.1RD Pol'!B7 -> 1 | B7: ='301 301.1RD Pol'!C7 -> Zemní práce | E7: ='301 301.1RD Pol'!BA306 -> 0 | F7: ='301 301.1RD Pol'!BB306 -> 0 | G7: ='301 301.1RD Pol'!BC306 -> 0 | H7: ='301 301.1RD Pol'!BD306 -> 0 | I7: ='301 301.1RD Pol'!BE306 -> 0
A8: ='301 301.1RD Pol'!B307 -> 2 | B8: ='301 301.1RD Pol'!C307 -> Základy a zvláštní zakládání | E8: ='301 301.1RD Pol'!BA328 -> 0 | F8: ='301 301.1RD Pol'!BB328 -> 0 | G8: ='301 301.1RD Pol'!BC328 -> 0 | H8: ='301 301.1RD Pol'!BD328 -> 0 | I8: ='301 301.1RD Pol'!BE328 -> 0
A9: ='301 301.1RD Pol'!B329 -> 45 | B9: ='301 301.1RD Pol'!C329 -> Podkladní a vedlejší konstrukce | E9: ='301 301.1RD Pol'!BA373 -> 0 | F9: ='301 301.1RD Pol'!BB373 -> 0 | G9: ='301 301.1RD Pol'!BC373 -> 0 | H9: ='301 301.1RD Pol'!BD373 -> 0 | I9: ='301 301.1RD Pol'!BE373 -> 0
A10: ='301 301.1RD Pol'!B374 -> 8 | B10: ='301 301.1RD Pol'!C374 -> Trubní vedení | E10: ='301 301.1RD Pol'!BA665 -> 0 | F10: ='301 301.1RD Pol'!BB665 -> 0 | G10: ='301 301.1RD Pol'!BC665 -> 0 | H10: ='301 301.1RD Pol'!BD665 -> 0 | I10: ='301 301.1RD Pol'!BE665 -> 0
A11: ='301 301.1RD Pol'!B666 -> 99 | B11: ='301 301.1RD Pol'!C666 -> Staveništní přesun hmot | E11: ='301 301.1RD Pol'!BA668 -> 0 | F11: ='301 301.1RD Pol'!BB668 -> 0 | G11: ='301 301.1RD Pol'!BC668 -> 0 | H11: ='301 301.1RD Pol'!BD668 -> 0 | I11: ='301 301.1RD Pol'!BE668 -> 0
B12: CELKEM OBJEKT | E12: =SUM(E7:E11) -> 0 | F12: =SUM(F7:F11) -> 0 | G12: =SUM(G7:G11) -> 0 | H12: =SUM(H7:H11) -> 0 | I12: =SUM(I7:I11) -> 0

Sheet 301 301.1RD Pol
A1: Položkový rozpočet
A3: Stavba : | C3: 3232 Horní Slivno - Splašková kanalizace | E3: Rozpočet: | F3: ='301 301.1RD Rek'!H1 -> 301.1RD
A4: Objekt : | C4: 301 Splašková kanalizace | E4: ='301 301.1RD Rek'!G2 -> Splašková kanalizace
A6: P.č. | B6: Číslo položky | C6: Název položky | D6: MJ | E6: množství | F6: cena / MJ | G6: celkem (Kč) | H6: Jednotková hmotnost | I6: Celková hmotnost | J6: Jednotková dem.hmot. | K6: Celková dem.hmot.
A7: Díl: | B7: 1 | C7: Zemní práce | O7: 1
A8: 1 | B8: 130001101RRX | C8: Příplatek za ztížené hloubení v blízkosti vedení | D8: m3 | E8: 2912.9176 | G8: =E8*F8 -> 0 | H8: 0 | I8: =E8*H8 -> 0 | J8: 0 | K8: =E8*J8 -> 0 | O8: 2 | AA8: 1 | AB8: 1 | AC8: 1 | AZ8: 1 | BA8: =IF(AZ8=1,G8,0) -> 0 | BB8: =IF(AZ8=2,G8,0) -> 0 | BC8: =IF(AZ8=3,G8,0) -> 0 | BD8: =IF(AZ8=4,G8,0) -> 0 | BE8: =IF(AZ8=5,G8,0) -> 0 | CA8: 1 | CB8: 1
C9: Včetně ruční dokopávky a ručního výkopu. | L9: Včetně ruční dokopávky a ručního výkopu. | O9: 3
C10: Součástí položky je i případná potřeba dočasnéhon zajištění potrubí a kabelových vedení ve výkopu. | L10: Součástí položky je i případná potřeba dočasnéhon zajištění potrubí a kabelových vedení ve výkopu. | O10: 3
C11: Začátek provozního součtu | E11: 0 | M11: Začátek provozního součtu
C12: Kmenová stoka A KT DN250:843,2424 | E12: 843.2424 | M12: Kmenová stoka A KT DN250:843,2424
C13: Kmenová stoka A KT DN300:4649,5350 | E13: 4649.535 | M13: Kmenová stoka A KT DN300:4649,5350
C14: Kmenová stoka A KT DN500:555,0277 | E14: 555.0277 | M14: Kmenová stoka A KT DN500:555,0277
C15: Stoka AA KT DN250:592,8530 | E15: 592.853 | M15: Stoka AA KT DN250:592,8530
C16: Stoka AB KT DN250:111,7935 | E16: 111.7935 | M16: Stoka AB KT DN250:111,7935
C17: Stoka AC KT DN250:494,3531 | E17: 494.3531 | M17: Stoka AC KT DN250:494,3531
C18: Stoka AD KT DN250:209,8512-52,4628 | E18: 157.3884 | M18: Stoka AD KT DN250:209,8512-52,4628
C19: Stoka AE KT DN250:654,6992 | E19: 654.6992 | M19: Stoka AE KT DN250:654,6992
C20: Stoka AE-1 KT DN250:374,4468 | E20: 374.4468 | M20: Stoka AE-1 KT DN250:374,4468
C21: Stoka AF KT DN250:485,7840-50,5440 | E21: 435.24 | M21: Stoka AF KT DN250:485,7840-50,5440
C22: Stoka AG KT DN250:191,7232 | E22: 191.7232 | M22: Stoka AG KT DN250:191,7232
C23: Stoka AH KT DN250:255,3525 | E23: 255.3525 | M23: Stoka AH KT DN250:255,3525
C24: Sběrač B KT DN250:2317,1148 | E24: 2317.1148 | M24: Sběrač B KT DN250:2317,1148
C25: Stoka BA KT DN250:322,8498 | E25: 322.8498 | M25: Stoka BA KT DN250:322,8498
C26: Sběrač C KT DN250:851,5471 | E26: 851.5471 | M26: Sběrač C KT DN250:851,5471
C27: Stoka CA KT DN250:495,6647-62,2966 | E27: 433.3681 | M27: Stoka CA KT DN250:495,6647-62,2966
C28: Konec provozního součtu | E28: 13240.5346 | M28: Konec provozního součtu
C29: V hornině tř. 2 - 6 - 22%:13240,5346*0,22 | E29: 2912.9176 | M29: V hornině tř. 2 - 6 - 22%:13240,5346*0,22
A30: 2 | B30: 132101213RRX | C30: Hloubení rýh š.do 200 cm hor.2 do 10000 m3,STROJNĚ | D30: m3 | E30: 1545.578 | G30: =E30*F30 -> 0 | H30: 0 | I30: =E30*H30 -> 0 | J30: 0 | K30: =E30*J30 -> 0 | O30: 2 | AA30: 1 | AB30: 1 | AC30: 1 | AZ30: 1 | BA30: =IF(AZ30=1,G30,0) -> 0 | BB30: =IF(AZ30=2,G30,0) -> 0 | BC30: =IF(AZ30=3,G30,0) -> 0 | BD30: =IF(AZ30=4,G30,0) -> 0 | BE30: =IF(AZ30=5,G30,0) -> 0 | CA30: 1 | CB30: 1
C31: Položka obsahuje hloubení rýh traktorbagrem, naložení výkopku na dopravní prostředek pro svislé, nebo vodorovné přemístění, popř. přemístění výkopku do 3 m (po povrchu území), případné zajištění rypadel polštáři, udržování pracoviště a ochranu výkopiště proti stékání srážkové vody z okolního terénu i s jejím odvodněním, nebo odvedením, přesekání a odstranění kořenů ve výkopišti, odstranění napadávek, urovnání dna výkopu. | L31: Položka obsahuje hloubení rýh traktorbagrem, naložení výkopku na dopravní prostředek pro svislé, nebo vodorovné přemístění, popř. přemístění výkopku do 3 m (po povrchu území), případné zajištění rypadel polštáři, udržování pracoviště a ochranu výkopiště proti stékání srážkové vody z okolního terénu i s jejím odvodněním, nebo odvedením, přesekání a odstranění kořenů ve výkopišti, odstranění napadávek, urovnání dna výkopu. | O31: 3
C32: Součástí položky je i pažení výkopů dle zvolené technologie zhotovitelem a v souladu s předpisy BOZP. | L32: Součástí položky je i pažení výkopů dle zvolené technologie zhotovitelem a v souladu s předpisy BOZP. | O32: 3
C33: V hornině tř. 2: | E33: 0 | M33: V hornině tř. 2:
C34: Kmenová stoka A KT DN250:843,2424*0,11 | E34: 92.7567 | M34: Kmenová stoka A KT DN250:843,2424*0,11
C35: Kmenová stoka A KT DN300:4649,5350*0,11 | E35: 511.4488 | M35: Kmenová stoka A KT DN300:4649,5350*0,11
C36: Kmenová stoka A KT DN500:555,0277*0,11 | E36: 61.053 | M36: Kmenová stoka A KT DN500:555,0277*0,11
C37: Stoka AA KT DN250:592,8530*0,11 | E37: 65.2138 | M37: Stoka AA KT DN250:592,8530*0,11
C38: Stoka AB KT DN250:111,7935*0,15 | E38: 16.769 | M38: Stoka AB KT DN250:111,7935*0,15
C39: Stoka AC KT DN250:494,3531*0,12 | E39: 59.3224 | M39: Stoka AC KT DN250:494,3531*0,12
C40: Stoka AD KT DN250:(209,8512-52,4328)*0,12 | E40: 18.8902 | M40: Stoka AD KT DN250:(209,8512-52,4328)*0,12
C41: Stoka AE KT DN250:654,6992*0,10 | E41: 65.4699 | M41: Stoka AE KT DN250:654,6992*0,10
C42: Stoka AE-1 KT DN250:374,4468*0,13 | E42: 48.6781 | M42: Stoka AE-1 KT DN250:374,4468*0,13
C43: Stoka AF KT DN250:(485,7840-50,5440)*0,10 | E43: 43.524 | M43: Stoka AF KT DN250:(485,7840-50,5440)*0,10
C44: Stoka AG KT DN250:191,7232*0,12 | E44: 23.0068 | M44: Stoka AG KT DN250:191,7232*0,12
C45: Stoka AH KT DN250:255,3525*0,19 | E45: 48.517 | M45: Stoka AH KT DN250:255,3525*0,19
C46: Sběrač B KT DN250:2317,1148*0,13 | E46: 301.2249 | M46: Sběrač B KT DN250:2317,1148*0,13
C47: Stoka BA KT DN250:322,8498*0,11 | E47: 35.5135 | M47: Stoka BA KT DN250:322,8498*0,11
C48: Sběrač C KT DN250:851,5471*0,12 | E48: 102.1857 | M48: Sběrač C KT DN250:851,5471*0,12
C49: Stoka CA KT DN250:(495,6647-62,2966)*0,12 | E49: 52.0042 | M49: Stoka CA KT DN250:(495,6647-62,2966)*0,12
A50: 3 | B50: 132201213RRX | C50: Hloubení rýh š.do 200 cm hor.3 do 10000 m3,STROJNĚ | D50: m3 | E50: 3815.7399 | G50: =E50*F50 -> 0 | H50: 0 | I50: =E50*H50 -> 0 | J50: 0 | K50: =E50*J50 -> 0 | O50: 2 | AA50: 1 | AB50: 1 | AC50: 1 | AZ50: 1 | BA50: =IF(AZ50=1,G50,0) -> 0 | BB50: =IF(AZ50=2,G50,0) -> 0 | BC50: =IF(AZ50=3,G50,0) -> 0 | BD50: =IF(AZ50=4,G50,0) -> 0 | BE50: =IF(AZ50=5,G50,0) -> 0 | CA50: 1 | CB50: 1
C51: Položka obsahuje hloubení rýh traktorbagrem, naložení výkopku na dopravní prostředek pro svislé, nebo vodorovné přemístění, popř. přemístění výkopku do 3 m (po povrchu území), případné zajištění rypadel polštáři, udržování pracoviště a ochranu výkopiště proti stékání srážkové vody z okolního terénu i s jejím odvodněním, nebo odvedením, přesekání a odstranění kořenů ve výkopišti, odstranění napadávek, urovnání dna výkopu. | L51: Položka obsahuje hloubení rýh traktorbagrem, naložení výkopku na dopravní prostředek pro svislé, nebo vodorovné přemístění, popř. přemístění výkopku do 3 m (po povrchu území), případné zajištění rypadel polštáři, udržování pracoviště a ochranu výkopiště proti stékání srážkové vody z okolního terénu i s jejím odvodněním, nebo odvedením, přesekání a odstranění kořenů ve výkopišti, odstranění napadávek, urovnání dna výkopu. | O51: 3
C52: Součástí položky je i pažení výkopů dle zvolené technologie zhotovitelem a v souladu s předpisy BOZP. | L52: Součástí položky je i pažení výkopů dle zvolené technologie zhotovitelem a v souladu s předpisy BOZP. | O52: 3
C53: V hornině tř. 3: | E53: 0 | M53: V hornině tř. 3:
C54: Kmenová stoka A KT DN250:843,2424*0,26 | E54: 219.243 | M54: Kmenová stoka A KT DN250:843,2424*0,26
C55: Kmenová stoka A KT DN300:4649,5350*0,26 | E55: 1208.8791 | M55: Kmenová stoka A KT DN300:4649,5350*0,26
C56: Kmenová stoka A KT DN500:555,0277*0,26 | E56: 144.3072 | M56: Kmenová stoka A KT DN500:555,0277*0,26
C57: Stoka AA KT DN250:592,8530*0,28 | E57: 165.9988 | M57: Stoka AA KT DN250:592,8530*0,28
C58: Stoka AB KT DN250:111,7935*0,37 | E58: 41.3636 | M58: Stoka AB KT DN250:111,7935*0,37
C59: Stoka AC KT DN250:494,3531*0,31 | E59: 153.2495 | M59: Stoka AC KT DN250:494,3531*0,31
C60: Stoka AD KT DN250:(209,8512-52,4328)*0,31 | E60: 48.7997 | M60: Stoka AD KT DN250:(209,8512-52,4328)*0,31
C61: Stoka AE KT DN250:654,6992*0,25 | E61: 163.6748 | M61: Stoka AE KT DN250:654,6992*0,25
C62: Stoka AE-1 KT DN250:374,4468*0,33 | E62: 123.5674 | M62: Stoka AE-1 KT DN250:374,4468*0,33
C63: Stoka AF KT DN250:(485,7840-50,5440)*0,26 | E63: 113.1624 | M63: Stoka AF KT DN250:(485,7840-50,5440)*0,26
C64: Stoka AG KT DN250:191,7232*0,31 | E64: 59.4342 | M64: Stoka AG KT DN250:191,7232*0,31
C65: Stoka AH KT DN250:255,3525*0,46 | E65: 117.4622 | M65: Stoka AH KT DN250:255,3525*0,46
C66: Sběrač B KT DN250:2317,1148*0,33 | E66: 764.6479 | M66: Sběrač B KT DN250:2317,1148*0,33
C67: Stoka BA KT DN250:322,8498*0,29 | E67: 93.6264 | M67: Stoka BA KT DN250:322,8498*0,29
C68: Sběrač C KT DN250:851,5471*0,31 | E68: 263.9796 | M68: Sběrač C KT DN250:851,5471*0,31
C69: Stoka CA KT DN250:(495,6647-62,2966)*0,31 | E69: 134.3441 | M69: Stoka CA KT DN250:(495,6647-62,2966)*0,31
A70: 4 | B70: 132201219R00 | C70: Přípl.za lepivost,hloubení rýh 200cm,hor.3,STROJNĚ | D70: m3 | E70: 1907.87 | G70: =E70*F70 -> 0 | H70: 0 | I70: =E70*H70 -> 0 | J70: 0 | K70: =E70*J70 -> 0 | O70: 2 | AA70: 1 | AB70: 1 | AC70: 1 | AZ70: 1 | BA70: =IF(AZ70=1,G70,0) -> 0 | BB70: =IF(AZ70=2,G70,0) -> 0 | BC70: =IF(AZ70=3,G70,0) -> 0 | BD70: =IF(AZ70=4,G70,0) -> 0 | BE70: =IF(AZ70=5,G70,0) -> 0 | CA70: 1 | CB70: 1
C71: V hornině tř. 3: | E71: 0 | M71: V hornině tř. 3:
C72: Kmenová stoka A KT DN250:843,2424*0,26*0,5 | E72: 109.6215 | M72: Kmenová stoka A KT DN250:843,2424*0,26*0,5
C73: Kmenová stoka A KT DN300:4649,5350*0,26*0,5 | E73: 604.4396 | M73: Kmenová stoka A KT DN300:4649,5350*0,26*0,5
C74: Kmenová stoka A KT DN500:555,0277*0,26*0,5 | E74: 72.1536 | M74: Kmenová stoka A KT DN500:555,0277*0,26*0,5
C75: Stoka AA KT DN250:592,8530*0,28*0,5 | E75: 82.9994 | M75: Stoka AA KT DN250:592,8530*0,28*0,5
C76: Stoka AB KT DN250:111,7935*0,37*0,5 | E76: 20.6818 | M76: Stoka AB KT DN250:111,7935*0,37*0,5
C77: Stoka AC KT DN250:494,3531*0,31*0,5 | E77: 76.6247 | M77: Stoka AC KT DN250:494,3531*0,31*0,5
C78: Stoka AD KT DN250:(209,8512-52,4328)*0,31*0,5 | E78: 24.3999 | M78: Stoka AD KT DN250:(209,8512-52,4328)*0,31*0,5
C79: Stoka AE KT DN250:654,6992*0,25*0,5 | E79: 81.8374 | M79: Stoka AE KT DN250:654,6992*0,25*0,5
C80: Stoka AE-1 KT DN250:374,4468*0,33*0,5 | E80: 61.7837 | M80: Stoka AE-1 KT DN250:374,4468*0,33*0,5
C81: Stoka AF KT DN250:(485,7840-50,5440)*0,26*0,5 | E81: 56.5812 | M81: Stoka AF KT DN250:(485,7840-50,5440)*0,26*0,5
C82: Stoka AG KT DN250:191,7232*0,31*0,5 | E82: 29.7171 | M82: Stoka AG KT DN250:191,7232*0,31*0,5
C83: Stoka AH KT DN250:255,3525*0,46*0,5 | E83: 58.7311 | M83: Stoka AH KT DN250:255,3525*0,46*0,5
C84: Sběrač B KT DN250:2317,1148*0,33*0,5 | E84: 382.3239 | M84: Sběrač B KT DN250:2317,1148*0,33*0,5
C85: Stoka BA KT DN250:322,8498*0,29*0,5 | E85: 46.8132 | M85: Stoka BA KT DN250:322,8498*0,29*0,5
C86: Sběrač C KT DN250:851,5471*0,31*0,5 | E86: 131.9898 | M86: Sběrač C KT DN250:851,5471*0,31*0,5
C87: Stoka CA KT DN250:(495,6647-62,2966)*0,31*0,5 | E87: 67.1721 | M87: Stoka CA KT DN250:(495,6647-62,2966)*0,31*0,5
A88: 5 | B88: 132301213RRX | C88: Hloubení rýh š.do 200 cm hor.4 do 10000 m3,STROJNĚ | D88: m3 | E88: 4509.5629 | G88: =E88*F88 -> 0 | H88: 0 | I88: =E88*H88 -> 0 | J88: 0 | K88: =E88*J88 -> 0 | O88: 2 | AA88: 1 | AB88: 1 | AC88: 1 | AZ88: 1 | BA88: =IF(AZ88=1,G88,0) -> 0 | BB88: =IF(AZ88=2,G88,0) -> 0 | BC88: =IF(AZ88=3,G88,0) -> 0 | BD88: =IF(AZ88=4,G88,0) -> 0 | BE88: =IF(AZ88=5,G88,0) -> 0 | CA88: 1 | CB88: 1
C89: Položka obsahuje hloubení rýh traktorbagrem, naložení výkopku na dopravní prostředek pro svislé, nebo vodorovné přemístění, popř. přemístění výkopku do 3 m (po povrchu území), případné zajištění rypadel polštáři, udržování pracoviště a ochranu výkopiště proti stékání srážkové vody z okolního terénu i s jejím odvodněním, nebo odvedením, přesekání a odstranění kořenů ve výkopišti, odstranění napadávek, urovnání dna výkopu. | L89: Položka obsahuje hloubení rýh traktorbagrem, naložení výkopku na dopravní prostředek pro svislé, nebo vodorovné přemístění, popř. přemístění výkopku do 3 m (po povrchu území), případné zajištění rypadel polštáři, udržování pracoviště a ochranu výkopiště proti stékání srážkové vody z okolního terénu i s jejím odvodněním, nebo odvedením, přesekání a odstranění kořenů ve výkopišti, odstranění napadávek, urovnání dna výkopu. | O89: 3
C90: Součástí položky je i pažení výkopů dle zvolené technologie zhotovitelem a v souladu s předpisy BOZP. | L90: Součástí položky je i pažení výkopů dle zvolené technologie zhotovitelem a v souladu s předpisy BOZP. | O90: 3
C91: V hornině tř. 4: | E91: 0 | M91: V hornině tř. 4:
C92: Kmenová stoka A KT DN250:843,2424*0,33 | E92: 278.27 | M92: Kmenová stoka A KT DN250:843,2424*0,33
C93: Kmenová stoka A KT DN300:4649,5350*0,33 | E93: 1534.3465 | M93: Kmenová stoka A KT DN300:4649,5350*0,33
C94: Kmenová stoka A KT DN500:555,0277*0,33 | E94: 183.1591 | M94: Kmenová stoka A KT DN500:555,0277*0,33
C95: Stoka AA KT DN250:592,8530*0,26 | E95: 154.1418 | M95: Stoka AA KT DN250:592,8530*0,26
C96: Stoka AB KT DN250:111,7935*0,37 | E96: 41.3636 | M96: Stoka AB KT DN250:111,7935*0,37
C97: Stoka AC KT DN250:494,3531*0,26 | E97: 128.5318 | M97: Stoka AC KT DN250:494,3531*0,26
C98: Stoka AD KT DN250:(209,8512-52,4328)*0,29 | E98: 45.6513 | M98: Stoka AD KT DN250:(209,8512-52,4328)*0,29
C99: Stoka AE KT DN250:654,6992*0,44 | E99: 288.0676 | M99: Stoka AE KT DN250:654,6992*0,44
C100: Stoka AE-1 KT DN250:374,4468*0,38 | E100: 142.2898 | M100: Stoka AE-1 KT DN250:374,4468*0,38
C101: Stoka AF KT DN250:(485,7840-50,5440)*0,38 | E101: 165.3912 | M101: Stoka AF KT DN250:(485,7840-50,5440)*0,38
C102: Stoka AG KT DN250:191,7232*0,29 | E102: 55.5997 | M102: Stoka AG KT DN250:191,7232*0,29
C103: Stoka AH KT DN250:255,3525*0,26 | E103: 66.3916 | M103: Stoka AH KT DN250:255,3525*0,26
C104: Sběrač B KT DN250:2317,1148*0,32 | E104: 741.4767 | M104: Sběrač B KT DN250:2317,1148*0,32
C105: Stoka BA KT DN250:322,8498*0,41 | E105: 132.3684 | M105: Stoka BA KT DN250:322,8498*0,41
C106: Sběrač C KT DN250:851,5471*0,43 | E106: 366.1653 | M106: Sběrač C KT DN250:851,5471*0,43
C107: Stoka CA KT DN250:(495,6647-62,2966)*0,43 | E107: 186.3483 | M107: Stoka CA KT DN250:(495,6647-62,2966)*0,43
A108: 6 | B108: 132301219R00 | C108: Přípl.za lepivost,hloubení rýh 200cm,hor.4,STROJNĚ | D108: m3 | E108: 2254.7815 | G108: =E108*F108 -> 0 | H108: 0 | I108: =E108*H108 -> 0 | J108: 0 | K108: =E108*J108 -> 0 | O108: 2 | AA108: 1 | AB108: 1 | AC108: 1 | AZ108: 1 | BA108: =IF(AZ108=1,G108,0) -> 0 | BB108: =IF(AZ108=2,G108,0) -> 0 | BC108: =IF(AZ108=3,G108,0) -> 0 | BD108: =IF(AZ108=4,G108,0) -> 0 | BE108: =IF(AZ108=5,G108,0) -> 0 | CA108: 1 | CB108: 1
C109: V hornině tř. 4: | E109: 0 | M109: V hornině tř. 4:
C110: Kmenová stoka A KT DN250:843,2424*0,33*0,5 | E110: 139.135 | M110: Kmenová stoka A KT DN250:843,2424*0,33*0,5
C111: Kmenová stoka A KT DN300:4649,5350*0,33*0,5 | E111: 767.1733 | M111: Kmenová stoka A KT DN300:4649,5350*0,33*0,5
C112: Kmenová stoka A KT DN500:555,0277*0,33*0,5 | E112: 91.5796 | M112: Kmenová stoka A KT DN500:555,0277*0,33*0,5
C113: Stoka AA KT DN250:592,8530*0,26*0,5 | E113: 77.0709 | M113: Stoka AA KT DN250:592,8530*0,26*0,5
C114: Stoka AB KT DN250:111,7935*0,37*0,5 | E114: 20.6818 | M114: Stoka AB KT DN250:111,7935*0,37*0,5
C115: Stoka AC KT DN250:494,3531*0,26*0,5 | E115: 64.2659 | M115: Stoka AC KT DN250:494,3531*0,26*0,5
C116: Stoka AD KT DN250:(209,8512-52,4328)*0,29*0,5 | E116: 22.8257 | M116: Stoka AD KT DN250:(209,8512-52,4328)*0,29*0,5
C117: Stoka AE KT DN250:654,6992*0,44*0,5 | E117: 144.0338 | M117: Stoka AE KT DN250:654,6992*0,44*0,5
C118: Stoka AE-1 KT DN250:374,4468*0,38*0,5 | E118: 71.1449 | M118: Stoka AE-1 KT DN250:374,4468*0,38*0,5
C119: Stoka AF KT DN250:(485,7840-50,5440)*0,38*0,5 | E119: 82.6956 | M119: Stoka AF KT DN250:(485,7840-50,5440)*0,38*0,5
C120: Stoka AG KT DN250:191,7232*0,29*0,5 | E120: 27.7999 | M120: Stoka AG KT DN250:191,7232*0,29*0,5
C121: Stoka AH KT DN250:255,3525*0,26*0,5 | E121: 33.1958 | M121: Stoka AH KT DN250:255,3525*0,26*0,5
C122: Sběrač B KT DN250:2317,1148*0,32*0,5 | E122: 370.7384 | M122: Sběrač B KT DN250:2317,1148*0,32*0,5
C123: Stoka BA KT DN250:322,8498*0,41*0,5 | E123: 66.1842 | M123: Stoka BA KT DN250:322,8498*0,41*0,5
C124: Sběrač C KT DN250:851,5471*0,43*0,5 | E124: 183.0826 | M124: Sběrač C KT DN250:851,5471*0,43*0,5
C125: Stoka CA KT DN250:(495,6647-62,2966)*0,43*0,5 | E125: 93.1741 | M125: Stoka CA KT DN250:(495,6647-62,2966)*0,43*0,5
A126: 7 | B126: 132401211RRX | C126: Hloubení rýh šířky do 200 cm v hor.5, STROJNĚ | D126: m3 | E126: 2862.021 | G126: =E126*F126 -> 0 | H126: 0 | I126: =E126*H126 -> 0 | J126: 0 | K126: =E126*J126 -> 0 | O126: 2 | AA126: 1 | AB126: 1 | AC126: 1 | AZ126: 1 | BA126: =IF(AZ126=1,G126,0) -> 0 | BB126: =IF(AZ126=2,G126,0) -> 0 | BC126: =IF(AZ126=3,G126,0) -> 0 | BD126: =IF(AZ126=4,G126,0) -> 0 | BE126: =IF(AZ126=5,G126,0) -> 0 | CA126: 1 | CB126: 1
C127: Položka obsahuje hloubení rýh traktorbagrem, naložení výkopku na dopravní prostředek pro svislé, nebo vodorovné přemístění, popř. přemístění výkopku do 3 m (po povrchu území), případné zajištění rypadel polštáři, udržování pracoviště a ochranu výkopiště proti stékání srážkové vody z okolního terénu i s jejím odvodněním, nebo odvedením, přesekání a odstranění kořenů ve výkopišti, odstranění napadávek, urovnání dna výkopu. | L127: Položka obsahuje hloubení rýh traktorbagrem, naložení výkopku na dopravní prostředek pro svislé, nebo vodorovné přemístění, popř. přemístění výkopku do 3 m (po povrchu území), případné zajištění rypadel polštáři, udržování pracoviště a ochranu výkopiště proti stékání srážkové vody z okolního terénu i s jejím odvodněním, nebo odvedením, přesekání a odstranění kořenů ve výkopišti, odstranění napadávek, urovnání dna výkopu. | O127: 3
C128: Součástí položky je i pažení výkopů dle zvolené technologie zhotovitelem a v souladu s předpisy BOZP. | L128: Součástí položky je i pažení výkopů dle zvolené technologie zhotovitelem a v souladu s předpisy BOZP. | O128: 3
C129: Součástí položky je i případné dolamování horniny v prostoru rýhy. | L129: Součástí položky je i případné dolamování horniny v prostoru rýhy. | O129: 3
C130: V hornině tř. 5: | E130: 0 | M130: V hornině tř. 5:
C131: Kmenová stoka A KT DN250:843,2424*0,25 | E131: 210.8106 | M131: Kmenová stoka A KT DN250:843,2424*0,25
C132: Kmenová stoka A KT DN300:4649,5350*0,25 | E132: 1162.3837 | M132: Kmenová stoka A KT DN300:4649,5350*0,25
C133: Kmenová stoka A KT DN500:555,0277*0,25 | E133: 138.7569 | M133: Kmenová stoka A KT DN500:555,0277*0,25
C134: Stoka AA KT DN250:592,8530*0,35 | E134: 207.4985 | M134: Stoka AA KT DN250:592,8530*0,35
C135: Stoka AB KT DN250:111,7935*0,11 | E135: 12.2973 | M135: Stoka AB KT DN250:111,7935*0,11
C136: Stoka AC KT DN250:494,3531*0,25 | E136: 123.5883 | M136: Stoka AC KT DN250:494,3531*0,25
C137: Stoka AD KT DN250:(209,8512-52,4328)*0,19 | E137: 29.9095 | M137: Stoka AD KT DN250:(209,8512-52,4328)*0,19
C138: Stoka AE KT DN250:654,6992*0,14 | E138: 91.6579 | M138: Stoka AE KT DN250:654,6992*0,14
C139: Stoka AE-1 KT DN250:374,4468*0,14 | E139: 52.4226 | M139: Stoka AE-1 KT DN250:374,4468*0,14
C140: Stoka AF KT DN250:(485,7840-50,5440)*0,26 | E140: 113.1624 | M140: Stoka AF KT DN250:(485,7840-50,5440)*0,26
C141: Stoka AG KT DN250:191,7232*0,28 | E141: 53.6825 | M141: Stoka AG KT DN250:191,7232*0,28
C142: Stoka AH KT DN250:255,3525*0,09 | E142: 22.9817 | M142: Stoka AH KT DN250:255,3525*0,09
C143: Sběrač B KT DN250:2317,1148*0,19 | E143: 440.2518 | M143: Sběrač B KT DN250:2317,1148*0,19
C144: Stoka BA KT DN250:322,8498*0,15 | E144: 48.4275 | M144: Stoka BA KT DN250:322,8498*0,15
C145: Sběrač C KT DN250:851,5471*0,12 | E145: 102.1857 | M145: Sběrač C KT DN250:851,5471*0,12
C146: Stoka CA KT DN250:(495,6647-62,2966)*0,12 | E146: 52.0042 | M146: Stoka CA KT DN250:(495,6647-62,2966)*0,12
A147: 8 | B147: 132501211RRX | C147: Hloubení rýh šířky do 200 cm v hor.6, STROJNĚ | D147: m3 | E147: 433.017 | G147: =E147*F147 -> 0 | H147: 0 | I147: =E147*H147 -> 0 | J147: 0 | K147: =E147*J147 -> 0 | O147: 2 | AA147: 1 | AB147: 1 | AC147: 1 | AZ147: 1 | BA147: =IF(AZ147=1,G147,0) -> 0 | BB147: =IF(AZ147=2,G147,0) -> 0 | BC147: =IF(AZ147=3,G147,0) -> 0 | BD147: =IF(AZ147=4,G147,0) -> 0 | BE147: =IF(AZ147=5,G147,0) -> 0 | CA147: 1 | CB147: 1
C148: Položka obsahuje hloubení rýh traktorbagrem, naložení výkopku na dopravní prostředek pro svislé, nebo vodorovné přemístění, popř. přemístění výkopku do 3 m (po povrchu území), případné zajištění rypadel polštáři, udržování pracoviště a ochranu výkopiště proti stékání srážkové vody z okolního terénu i s jejím odvodněním, nebo odvedením, přesekání a odstranění kořenů ve výkopišti, odstranění napadávek, urovnání dna výkopu. | L148: Položka obsahuje hloubení rýh traktorbagrem, naložení výkopku na dopravní prostředek pro svislé, nebo vodorovné přemístění, popř. přemístění výkopku do 3 m (po povrchu území), případné zajištění rypadel polštáři, udržování pracoviště a ochranu výkopiště proti stékání srážkové vody z okolního terénu i s jejím odvodněním, nebo odvedením, přesekání a odstranění kořenů ve výkopišti, odstranění napadávek, urovnání dna výkopu. | O148: 3
C149: Součástí položky je i pažení výkopů dle zvolené technologie zhotovitelem a v souladu s předpisy BOZP. | L149: Součástí položky je i pažení výkopů dle zvolené technologie zhotovitelem a v souladu s předpisy BOZP. | O149: 3
C150: Součástí položky je i případné dolamování horniny v prostoru rýhy. | L150: Součástí položky je i případné dolamování horniny v prostoru rýhy. | O150: 3
C151: V hornině tř. 6: | E151: 0 | M151: V hornině tř. 6:
C152: Kmenová stoka A KT DN250:843,2424*0,04 | E152: 33.7297 | M152: Kmenová stoka A KT DN250:843,2424*0,04
C153: Kmenová stoka A KT DN300:4649,5350*0,04 | E153: 185.9814 | M153: Kmenová stoka A KT DN300:4649,5350*0,04
C154: Kmenová stoka A KT DN500:555,0277*0,04 | E154: 22.2011 | M154: Kmenová stoka A KT DN500:555,0277*0,04
C155: Stoka AA KT DN250:592,8530*0,0 | E155: 0 | M155: Stoka AA KT DN250:592,8530*0,0
C156: Stoka AB KT DN250:111,7935*0,0 | E156: 0 | M156: Stoka AB KT DN250:111,7935*0,0
C157: Stoka AC KT DN250:494,3531*0,06 | E157: 29.6612 | M157: Stoka AC KT DN250:494,3531*0,06
C158: Stoka AD KT DN250:(209,8512-52,4328)*0,0 | E158: 0 | M158: Stoka AD KT DN250:(209,8512-52,4328)*0,0
C159: Stoka AE KT DN250:654,6992*0,07 | E159: 45.8289 | M159: Stoka AE KT DN250:654,6992*0,07
C160: Stoka AE-1 KT DN250:374,4468*0,02 | E160: 7.4889 | M160: Stoka AE-1 KT DN250:374,4468*0,02
C161: Stoka AF KT DN250:(485,7840-50,5440)*0,0 | E161: 0 | M161: Stoka AF KT DN250:(485,7840-50,5440)*0,0
C162: Stoka AG KT DN250:191,7232*0,0 | E162: 0 | M162: Stoka AG KT DN250:191,7232*0,0
C163: Stoka AH KT DN250:255,3525*0,0 | E163: 0 | M163: Stoka AH KT DN250:255,3525*0,0
C164: Sběrač B KT DN250:2317,1148*0,03 | E164: 69.5134 | M164: Sběrač B KT DN250:2317,1148*0,03
C165: Stoka BA KT DN250:322,8498*0,04 | E165: 12.914 | M165: Stoka BA KT DN250:322,8498*0,04
C166: Sběrač C KT DN250:851,5471*0,02 | E166: 17.0309 | M166: Sběrač C KT DN250:851,5471*0,02
C167: Stoka CA KT DN250:(495,6647-62,2966)*0,02 | E167: 8.6674 | M167: Stoka CA KT DN250:(495,6647-62,2966)*0,02
A168: 9 | B168: 162601102RX0 | C168: Vodorovné přemístění výkopku z hor.1-7 na skládku zhotovitele | D168: m3 | E168: 10356.6457 | G168: =E168*F168 -> 0 | H168: 0 | I168: =E168*H168 -> 0 | J168: 0 | K168: =E168*J168 -> 0 | O168: 2 | AA168: 1 | AB168: 1 | AC168: 1 | AZ168: 1 | BA168: =IF(AZ168=1,G168,0) -> 0 | BB168: =IF(AZ168=2,G168,0) -> 0 | BC168: =IF(AZ168=3,G168,0) -> 0 | BD168: =IF(AZ168=4,G168,0) -> 0 | BE168: =IF(AZ168=5,G168,0) -> 0 | CA168: 1 | CB168: 1
C169: Výkopy: | E169: 0 | M169: Výkopy:
C170: Začátek provozního součtu | E170: 0 | M170: Začátek provozního součtu
C171: Kmenová stoka A KT DN250:843,2424 | E171: 843.2424 | M171: Kmenová stoka A KT DN250:843,2424
C172: Kmenová stoka A KT DN300:4649,5350 | E172: 4649.535 | M172: Kmenová stoka A KT DN300:4649,5350
C173: Kmenová stoka A KT DN500:555,0277 | E173: 555.0277 | M173: Kmenová stoka A KT DN500:555,0277
C174: Stoka AA KT DN250:592,8530 | E174: 592.853 | M174: Stoka AA KT DN250:592,8530
C175: Stoka AB KT DN250:111,7935 | E175: 111.7935 | M175: Stoka AB KT DN250:111,7935
C176: Stoka AC KT DN250:494,3531 | E176: 494.3531 | M176: Stoka AC KT DN250:494,3531
C177: Stoka AD KT DN250:209,8512-52,4628 | E177: 157.3884 | M177: Stoka AD KT DN250:209,8512-52,4628
C178: Stoka AE KT DN250:654,6992 | E178: 654.6992 | M178: Stoka AE KT DN250:654,6992
C179: Stoka AE-1 KT DN250:374,4468 | E179: 374.4468 | M179: Stoka AE-1 KT DN250:374,4468
C180: Stoka AF KT DN250:485,7840-50,5440 | E180: 435.24 | M180: Stoka AF KT DN250:485,7840-50,5440
C181: Stoka AG KT DN250:191,7232 | E181: 191.7232 | M181: Stoka AG KT DN250:191,7232
C182: Stoka AH KT DN250:255,3525 | E182: 255.3525 | M182: Stoka AH KT DN250:255,3525
C183: Sběrač B KT DN250:2317,1148 | E183: 2317.1148 | M183: Sběrač B KT DN250:2317,1148
C184: Stoka BA KT DN250:322,8498 | E184: 322.8498 | M184: Stoka BA KT DN250:322,8498
C185: Sběrač C KT DN250:851,5471 | E185: 851.5471 | M185: Sběrač C KT DN250:851,5471
C186: Stoka CA KT DN250:495,6647-62,2966 | E186: 433.3681 | M186: Stoka CA KT DN250:495,6647-62,2966
C187: Konec provozního součtu | E187: 13240.5346 | M187: Konec provozního součtu
C188: V hornině tř. 2 - 6:13240,5346 | E188: 13240.5346 | M188: V hornině tř. 2 - 6:13240,5346
C189: Odpočet zásypů zeminou:-2883,8889 | E189: -2883.8889 | M189: Odpočet zásypů zeminou:-2883,8889
A190: 10 | B190: 174100050RAB | C190: Zásyp jam,rýh a šachet štěrkodrtí fr. 0-63 mm včetně dodávky štěrkodrtě | D190: m3 | E190: 6128.2639 | G190: =E190*F190 -> 0 | H190: 0 | I190: =E190*H190 -> 0 | J190: 0 | K190: =E190*J190 -> 0 | O190: 2 | AA190: 1 | AB190: 1 | AC190: 1 | AZ190: 1 | BA190: =IF(AZ190=1,G190,0) -> 0 | BB190: =IF(AZ190=2,G190,0) -> 0 | BC190: =IF(AZ190=3,G190,0) -> 0 | BD190: =IF(AZ190=4,G190,0) -> 0 | BE190: =IF(AZ190=5,G190,0) -> 0 | CA190: 1 | CB190: 1
C191: Začátek provozního součtu | E191: 0 | M191: Začátek provozního součtu
C192: Výkopy v hornině tř. 2 - 5: | E192: 0 | M192: Výkopy v hornině tř. 2 - 5:
C193: Kmenová stoka A KT DN250:843,2424 | E193: 843.2424 | M193: Kmenová stoka A KT DN250:843,2424
C194: Kmenová stoka A KT DN300:4649,5350 | E194: 4649.535 | M194: Kmenová stoka A KT DN300:4649,5350
C195: Kmenová stoka A KT DN500:555,0277 | E195: 555.0277 | M195: Kmenová stoka A KT DN500:555,0277
C196: Stoka AA KT DN250:592,8530 | E196: 592.853 | M196: Stoka AA KT DN250:592,8530
C197: Stoka AB KT DN250:111,7935 | E197: 111.7935 | M197: Stoka AB KT DN250:111,7935
C198: Stoka AC KT DN250:494,3531 | E198: 494.3531 | M198: Stoka AC KT DN250:494,3531
C199: Stoka AD KT DN250:209,8512-52,4628 | E199: 157.3884 | M199: Stoka AD KT DN250:209,8512-52,4628
C200: Stoka AE KT DN250:654,6992 | E200: 654.6992 | M200: Stoka AE KT DN250:654,6992
C201: Stoka AE-1 KT DN250:374,4468 | E201: 374.4468 | M201: Stoka AE-1 KT DN250:374,4468
C202: Stoka AF KT DN250:485,7840-50,5440 | E202: 435.24 | M202: Stoka AF KT DN250:485,7840-50,5440
... 466 more rows

Sheet 301 301.2RD KL
A1: POLOŽKOVÝ ROZPOČET
A2: Rozpočet | C2: 301.2RD | D2: Splašková kanalizace - neuznatelné náklady | F2: JKSO | G2: 827.21.A5
A4: Objekt | F4: SKP
A5: 301 | C5: Splašková kanalizace | F5: Měrná jednotka | G5: m
A6: Stavba | F6: Počet jednotek | G6: 0
A7: 3232 | C7: Horní Slivno - Splašková kanalizace | F7: Náklady na m.j. | G7: =IF(G6=0,,ROUND((F30+F32)/G6,1)) -> 0
A8: Projektant | C8: Radek Hnát - VAK PROJEKT | F8: Typ rozpočtu
A9: Zpracovatel projektu
A10: Objednatel | C10: Obec Horní Slivno
A11: Dodavatel | C11: . | F11: Zakázkové číslo
A12: Rozpočtoval | F12: Počet listů
A13: ROZPOČTOVÉ NÁKLADY
A14: Základní rozpočtové náklady
B15: HSV celkem | C15: ='301 301.2RD Rek'!E12 -> 0
A16: Z | B16: PSV celkem | C16: ='301 301.2RD Rek'!F12 -> 0
A17: R | B17: M práce celkem | C17: ='301 301.2RD Rek'!H12 -> 0
A18: N | B18: M dodávky celkem | C18: ='301 301.2RD Rek'!G12 -> 0
A19: ZRN celkem | C19: =SUM(C15:C18) -> 0
A21: HZS | C21: ='301 301.2RD Rek'!I12 -> 0
A22: ZRN+HZS | C22: =C19+C21 -> 0
A23: ZRN+ost.náklady+HZS | C23: =C22+G23 -> 0
A24: Vypracoval | D24: Za zhotovitele | F24: Za objednatele
A25: Jméno : | D25: Jméno : | F25: Jméno :
A26: Datum : | D26: Datum : | F26: Datum :
A28: Podpis : | D28: Podpis: | F28: Podpis:
A30: Základ pro DPH | C30: 21 | D30: % | F30: =C23-F32 -> 0
A31: DPH | C31: =C30 -> 21 | D31: % | F31: =ROUND(PRODUCT(F30,C31/100),0) -> 0
A32: Základ pro DPH | C32: 0 | D32: % | F32: 0
A33: DPH | C33: =C32 -> 0 | D33: % | F33: =ROUND(PRODUCT(F32,C33/100),0) -> 0
A34: CENA ZA OBJEKT CELKEM | F34: =ROUND(SUM(F30:F33),0) -> 0
A36: Poznámka :

Sheet 301 301.2RD Rek
A1: Stavba : | C1: 3232 Horní Slivno - Splašková kanalizace | G1: Rozpočet : | H1: 301.2RD
A2: Objekt : | C2: 301 Splašková kanalizace | G2: Splašková kanalizace - neuznatelné náklady
A4: REKAPITULACE STAVEBNÍCH DÍLŮ
B6: Stavební díl | E6: HSV | F6: PSV | G6: Dodávka | H6: Montáž | I6: HZS
A7: ='301 301.2RD Pol'!B7 -> 1 | B7: ='301 301.2RD Pol'!C7 -> Zemní práce | E7: ='301 301.2RD Pol'!BA111 -> 0 | F7: ='301 301.2RD Pol'!BB111 -> 0 | G7: ='301 301.2RD Pol'!BC111 -> 0 | H7: ='301 301.2RD Pol'!BD111 -> 0 | I7: ='301 301.2RD Pol'!BE111 -> 0
A8: ='301 301.2RD Pol'!B112 -> 2 | B8: ='301 301.2RD Pol'!C112 -> Základy a zvláštní zakládání | E8: ='301 301.2RD Pol'!BA120 -> 0 | F8: ='301 301.2RD Pol'!BB120 -> 0 | G8: ='301 301.2RD Pol'!BC120 -> 0 | H8: ='301 301.2RD Pol'!BD120 -> 0 | I8: ='301 301.2RD Pol'!BE120 -> 0
A9: ='301 301.2RD Pol'!B121 -> 45 | B9: ='301 301.2RD Pol'!C121 -> Podkladní a vedlejší konstrukce | E9: ='301 301.2RD Pol'!BA133 -> 0 | F9: ='301 301.2RD Pol'!BB133 -> 0 | G9: ='301 301.2RD Pol'!BC133 -> 0 | H9: ='301 301.2RD Pol'!BD133 -> 0 | I9: ='301 301.2RD Pol'!BE133 -> 0
A10: ='301 301.2RD Pol'!B134 -> 8 | B10: ='301 301.2RD Pol'!C134 -> Trubní vedení | E10: ='301 301.2RD Pol'!BA213 -> 0 | F10: ='301 301.2RD Pol'!BB213 -> 0 | G10: ='301 301.2RD Pol'!BC213 -> 0 | H10: ='301 301.2RD Pol'!BD213 -> 0 | I10: ='301 301.2RD Pol'!BE213 -> 0
A11: ='301 301.2RD Pol'!B214 -> 99 | B11: ='301 301.2RD Pol'!C214 -> Staveništní přesun hmot | E11: ='301 301.2RD Pol'!BA216 -> 0 | F11: ='301 301.2RD Pol'!BB216 -> 0 | G11: ='301 301.2RD Pol'!BC216 -> 0 | H11: ='301 301.2RD Pol'!BD216 -> 0 | I11: ='301 301.2RD Pol'!BE216 -> 0
B12: CELKEM OBJEKT | E12: =SUM(E7:E11) -> 0 | F12: =SUM(F7:F11) -> 0 | G12: =SUM(G7:G11) -> 0 | H12: =SUM(H7:H11) -> 0 | I12: =SUM(I7:I11) -> 0

Sheet 301 301.2RD Pol
A1: Položkový rozpočet
A3: Stavba : | C3: 3232 Horní Slivno - Splašková kanalizace | E3: Rozpočet: | F3: ='301 301.2RD Rek'!H1 -> 301.2RD
A4: Objekt : | C4: 301 Splašková kanalizace | E4: ='301 301.2RD Rek'!G2 -> Splašková kanalizace - neuznatelné náklady
A6: P.č. | B6: Číslo položky | C6: Název položky | D6: MJ | E6: množství | F6: cena / MJ | G6: celkem (Kč) | H6: Jednotková hmotnost | I6: Celková hmotnost | J6: Jednotková dem.hmot. | K6: Celková dem.hmot.
A7: Díl: | B7: 1 | C7: Zemní práce | O7: 1
A8: 1 | B8: 130001101RRX | C8: Příplatek za ztížené hloubení v blízkosti vedení | D8: m3 | E8: 36.3667 | G8: =E8*F8 -> 0 | H8: 0 | I8: =E8*H8 -> 0 | J8: 0 | K8: =E8*J8 -> 0 | O8: 2 | AA8: 1 | AB8: 1 | AC8: 1 | AZ8: 1 | BA8: =IF(AZ8=1,G8,0) -> 0 | BB8: =IF(AZ8=2,G8,0) -> 0 | BC8: =IF(AZ8=3,G8,0) -> 0 | BD8: =IF(AZ8=4,G8,0) -> 0 | BE8: =IF(AZ8=5,G8,0) -> 0 | CA8: 1 | CB8: 1
C9: Včetně ruční dokopávky a ručního výkopu. | L9: Včetně ruční dokopávky a ručního výkopu. | O9: 3
C10: Součástí položky je i případná potřeba dočasnéhon zajištění potrubí a kabelových vedení ve výkopu. | L10: Součástí položky je i případná potřeba dočasnéhon zajištění potrubí a kabelových vedení ve výkopu. | O10: 3
C11: Začátek provozního součtu | E11: 0 | M11: Začátek provozního součtu
C12: Stoka AD KT DN250:52,4628 | E12: 52.4628 | M12: Stoka AD KT DN250:52,4628
C13: Stoka AF KT DN250:50,5440 | E13: 50.544 | M13: Stoka AF KT DN250:50,5440
C14: Stoka CA KT DN250:62,2966 | E14: 62.2966 | M14: Stoka CA KT DN250:62,2966
C15: Konec provozního součtu | E15: 165.3034 | M15: Konec provozního součtu
C16: V hornině tř. 2 - 6 - 22%:165,3034*0,22 | E16: 36.3667 | M16: V hornině tř. 2 - 6 - 22%:165,3034*0,22
A17: 2 | B17: 132101213RRX | C17: Hloubení rýh š.do 200 cm hor.2 do 10000 m3,STROJNĚ | D17: m3 | E17: 18.8255 | G17: =E17*F17 -> 0 | H17: 0 | I17: =E17*H17 -> 0 | J17: 0 | K17: =E17*J17 -> 0 | O17: 2 | AA17: 1 | AB17: 1 | AC17: 1 | AZ17: 1 | BA17: =IF(AZ17=1,G17,0) -> 0 | BB17: =IF(AZ17=2,G17,0) -> 0 | BC17: =IF(AZ17=3,G17,0) -> 0 | BD17: =IF(AZ17=4,G17,0) -> 0 | BE17: =IF(AZ17=5,G17,0) -> 0 | CA17: 1 | CB17: 1
C18: Položka obsahuje hloubení rýh traktorbagrem, naložení výkopku na dopravní prostředek pro svislé, nebo vodorovné přemístění, popř. přemístění výkopku do 3 m (po povrchu území), případné zajištění rypadel polštáři, udržování pracoviště a ochranu výkopiště proti stékání srážkové vody z okolního terénu i s jejím odvodněním, nebo odvedením, přesekání a odstranění kořenů ve výkopišti, odstranění napadávek, urovnání dna výkopu. | L18: Položka obsahuje hloubení rýh traktorbagrem, naložení výkopku na dopravní prostředek pro svislé, nebo vodorovné přemístění, popř. přemístění výkopku do 3 m (po povrchu území), případné zajištění rypadel polštáři, udržování pracoviště a ochranu výkopiště proti stékání srážkové vody z okolního terénu i s jejím odvodněním, nebo odvedením, přesekání a odstranění kořenů ve výkopišti, odstranění napadávek, urovnání dna výkopu. | O18: 3
C19: Součástí položky je i pažení výkopů dle zvolené technologie zhotovitelem a v souladu s předpisy BOZP. | L19: Součástí položky je i pažení výkopů dle zvolené technologie zhotovitelem a v souladu s předpisy BOZP. | O19: 3
C20: V hornině tř. 2: | E20: 0 | M20: V hornině tř. 2:
C21: Stoka AD KT DN250:52,4628*0,12 | E21: 6.2955 | M21: Stoka AD KT DN250:52,4628*0,12
C22: Stoka AF KT DN250:50,5440*0,10 | E22: 5.0544 | M22: Stoka AF KT DN250:50,5440*0,10
C23: Stoka CA KT DN250:62,2966*0,12 | E23: 7.4756 | M23: Stoka CA KT DN250:62,2966*0,12
A24: 3 | B24: 132201213RRX | C24: Hloubení rýh š.do 200 cm hor.3 do 10000 m3,STROJNĚ | D24: m3 | E24: 48.7169 | G24: =E24*F24 -> 0 | H24: 0 | I24: =E24*H24 -> 0 | J24: 0 | K24: =E24*J24 -> 0 | O24: 2 | AA24: 1 | AB24: 1 | AC24: 1 | AZ24: 1 | BA24: =IF(AZ24=1,G24,0) -> 0 | BB24: =IF(AZ24=2,G24,0) -> 0 | BC24: =IF(AZ24=3,G24,0) -> 0 | BD24: =IF(AZ24=4,G24,0) -> 0 | BE24: =IF(AZ24=5,G24,0) -> 0 | CA24: 1 | CB24: 1
C25: Položka obsahuje hloubení rýh traktorbagrem, naložení výkopku na dopravní prostředek pro svislé, nebo vodorovné přemístění, popř. přemístění výkopku do 3 m (po povrchu území), případné zajištění rypadel polštáři, udržování pracoviště a ochranu výkopiště proti stékání srážkové vody z okolního terénu i s jejím odvodněním, nebo odvedením, přesekání a odstranění kořenů ve výkopišti, odstranění napadávek, urovnání dna výkopu. | L25: Položka obsahuje hloubení rýh traktorbagrem, naložení výkopku na dopravní prostředek pro svislé, nebo vodorovné přemístění, popř. přemístění výkopku do 3 m (po povrchu území), případné zajištění rypadel polštáři, udržování pracoviště a ochranu výkopiště proti stékání srážkové vody z okolního terénu i s jejím odvodněním, nebo odvedením, přesekání a odstranění kořenů ve výkopišti, odstranění napadávek, urovnání dna výkopu. | O25: 3
C26: Součástí položky je i pažení výkopů dle zvolené technologie zhotovitelem a v souladu s předpisy BOZP. | L26: Součástí položky je i pažení výkopů dle zvolené technologie zhotovitelem a v souladu s předpisy BOZP. | O26: 3
C27: V hornině tř. 3: | E27: 0 | M27: V hornině tř. 3:
C28: Stoka AD KT DN250:52,4628*0,31 | E28: 16.2635 | M28: Stoka AD KT DN250:52,4628*0,31
C29: Stoka AF KT DN250:50,5440*0,26 | E29: 13.1414 | M29: Stoka AF KT DN250:50,5440*0,26
C30: Stoka CA KT DN250:62,2966*0,31 | E30: 19.3119 | M30: Stoka CA KT DN250:62,2966*0,31
A31: 4 | B31: 132201219R00 | C31: Přípl.za lepivost,hloubení rýh 200cm,hor.3,STROJNĚ | D31: m3 | E31: 24.3584 | G31: =E31*F31 -> 0 | H31: 0 | I31: =E31*H31 -> 0 | J31: 0 | K31: =E31*J31 -> 0 | O31: 2 | AA31: 1 | AB31: 1 | AC31: 1 | AZ31: 1 | BA31: =IF(AZ31=1,G31,0) -> 0 | BB31: =IF(AZ31=2,G31,0) -> 0 | BC31: =IF(AZ31=3,G31,0) -> 0 | BD31: =IF(AZ31=4,G31,0) -> 0 | BE31: =IF(AZ31=5,G31,0) -> 0 | CA31: 1 | CB31: 1
C32: V hornině tř. 3: | E32: 0 | M32: V hornině tř. 3:
C33: Stoka AD KT DN250:52,4628*0,31*0,5 | E33: 8.1317 | M33: Stoka AD KT DN250:52,4628*0,31*0,5
C34: Stoka AF KT DN250:50,5440*0,26*0,5 | E34: 6.5707 | M34: Stoka AF KT DN250:50,5440*0,26*0,5
C35: Stoka CA KT DN250:62,2966*0,31*0,5 | E35: 9.656 | M35: Stoka CA KT DN250:62,2966*0,31*0,5
A36: 5 | B36: 132301213RRX | C36: Hloubení rýh š.do 200 cm hor.4 do 10000 m3,STROJNĚ | D36: m3 | E36: 61.2085 | G36: =E36*F36 -> 0 | H36: 0 | I36: =E36*H36 -> 0 | J36: 0 | K36: =E36*J36 -> 0 | O36: 2 | AA36: 1 | AB36: 1 | AC36: 1 | AZ36: 1 | BA36: =IF(AZ36=1,G36,0) -> 0 | BB36: =IF(AZ36=2,G36,0) -> 0 | BC36: =IF(AZ36=3,G36,0) -> 0 | BD36: =IF(AZ36=4,G36,0) -> 0 | BE36: =IF(AZ36=5,G36,0) -> 0 | CA36: 1 | CB36: 1
C37: Položka obsahuje hloubení rýh traktorbagrem, naložení výkopku na dopravní prostředek pro svislé, nebo vodorovné přemístění, popř. přemístění výkopku do 3 m (po povrchu území), případné zajištění rypadel polštáři, udržování pracoviště a ochranu výkopiště proti stékání srážkové vody z okolního terénu i s jejím odvodněním, nebo odvedením, přesekání a odstranění kořenů ve výkopišti, odstranění napadávek, urovnání dna výkopu. | L37: Položka obsahuje hloubení rýh traktorbagrem, naložení výkopku na dopravní prostředek pro svislé, nebo vodorovné přemístění, popř. přemístění výkopku do 3 m (po povrchu území), případné zajištění rypadel polštáři, udržování pracoviště a ochranu výkopiště proti stékání srážkové vody z okolního terénu i s jejím odvodněním, nebo odvedením, přesekání a odstranění kořenů ve výkopišti, odstranění napadávek, urovnání dna výkopu. | O37: 3
C38: Součástí položky je i pažení výkopů dle zvolené technologie zhotovitelem a v souladu s předpisy BOZP. | L38: Součástí položky je i pažení výkopů dle zvolené technologie zhotovitelem a v souladu s předpisy BOZP. | O38: 3
C39: V hornině tř. 4: | E39: 0 | M39: V hornině tř. 4:
C40: Stoka AD KT DN250:52,4628*0,29 | E40: 15.2142 | M40: Stoka AD KT DN250:52,4628*0,29
C41: Stoka AF KT DN250:50,5440*0,38 | E41: 19.2067 | M41: Stoka AF KT DN250:50,5440*0,38
C42: Stoka CA KT DN250:62,2966*0,43 | E42: 26.7875 | M42: Stoka CA KT DN250:62,2966*0,43
A43: 6 | B43: 132301219R00 | C43: Přípl.za lepivost,hloubení rýh 200cm,hor.4,STROJNĚ | D43: m3 | E43: 30.6042 | G43: =E43*F43 -> 0 | H43: 0 | I43: =E43*H43 -> 0 | J43: 0 | K43: =E43*J43 -> 0 | O43: 2 | AA43: 1 | AB43: 1 | AC43: 1 | AZ43: 1 | BA43: =IF(AZ43=1,G43,0) -> 0 | BB43: =IF(AZ43=2,G43,0) -> 0 | BC43: =IF(AZ43=3,G43,0) -> 0 | BD43: =IF(AZ43=4,G43,0) -> 0 | BE43: =IF(AZ43=5,G43,0) -> 0 | CA43: 1 | CB43: 1
C44: V hornině tř. 4: | E44: 0 | M44: V hornině tř. 4:
C45: Stoka AD KT DN250:52,4628*0,29*0,5 | E45: 7.6071 | M45: Stoka AD KT DN250:52,4628*0,29*0,5
C46: Stoka AF KT DN250:50,5440*0,38*0,5 | E46: 9.6034 | M46: Stoka AF KT DN250:50,5440*0,38*0,5
C47: Stoka CA KT DN250:62,2966*0,43*0,5 | E47: 13.3938 | M47: Stoka CA KT DN250:62,2966*0,43*0,5
A48: 7 | B48: 132401211RRX | C48: Hloubení rýh šířky do 200 cm v hor.5, STROJNĚ | D48: m3 | E48: 30.585 | G48: =E48*F48 -> 0 | H48: 0 | I48: =E48*H48 -> 0 | J48: 0 | K48: =E48*J48 -> 0 | O48: 2 | AA48: 1 | AB48: 1 | AC48: 1 | AZ48: 1 | BA48: =IF(AZ48=1,G48,0) -> 0 | BB48: =IF(AZ48=2,G48,0) -> 0 | BC48: =IF(AZ48=3,G48,0) -> 0 | BD48: =IF(AZ48=4,G48,0) -> 0 | BE48: =IF(AZ48=5,G48,0) -> 0 | CA48: 1 | CB48: 1
C49: Položka obsahuje hloubení rýh traktorbagrem, naložení výkopku na dopravní prostředek pro svislé, nebo vodorovné přemístění, popř. přemístění výkopku do 3 m (po povrchu území), případné zajištění rypadel polštáři, udržování pracoviště a ochranu výkopiště proti stékání srážkové vody z okolního terénu i s jejím odvodněním, nebo odvedením, přesekání a odstranění kořenů ve výkopišti, odstranění napadávek, urovnání dna výkopu. | L49: Položka obsahuje hloubení rýh traktorbagrem, naložení výkopku na dopravní prostředek pro svislé, nebo vodorovné přemístění, popř. přemístění výkopku do 3 m (po povrchu území), případné zajištění rypadel polštáři, udržování pracoviště a ochranu výkopiště proti stékání srážkové vody z okolního terénu i s jejím odvodněním, nebo odvedením, přesekání a odstranění kořenů ve výkopišti, odstranění napadávek, urovnání dna výkopu. | O49: 3
C50: Součástí položky je i pažení výkopů dle zvolené technologie zhotovitelem a v souladu s předpisy BOZP. | L50: Součástí položky je i pažení výkopů dle zvolené technologie zhotovitelem a v souladu s předpisy BOZP. | O50: 3
C51: Součástí položky je i případné dolamování horniny v prostoru rýhy. | L51: Součástí položky je i případné dolamování horniny v prostoru rýhy. | O51: 3
C52: V hornině tř. 4: | E52: 0 | M52: V hornině tř. 4:
C53: Stoka AD KT DN250:52,4628*0,19 | E53: 9.9679 | M53: Stoka AD KT DN250:52,4628*0,19
C54: Stoka AF KT DN250:50,5440*0,26 | E54: 13.1414 | M54: Stoka AF KT DN250:50,5440*0,26
C55: Stoka CA KT DN250:62,2966*0,12 | E55: 7.4756 | M55: Stoka CA KT DN250:62,2966*0,12
A56: 8 | B56: 132501211RRX | C56: Hloubení rýh šířky do 200 cm v hor.6, STROJNĚ | D56: m3 | E56: 1.2459 | G56: =E56*F56 -> 0 | H56: 0 | I56: =E56*H56 -> 0 | J56: 0 | K56: =E56*J56 -> 0 | O56: 2 | AA56: 1 | AB56: 1 | AC56: 1 | AZ56: 1 | BA56: =IF(AZ56=1,G56,0) -> 0 | BB56: =IF(AZ56=2,G56,0) -> 0 | BC56: =IF(AZ56=3,G56,0) -> 0 | BD56: =IF(AZ56=4,G56,0) -> 0 | BE56: =IF(AZ56=5,G56,0) -> 0 | CA56: 1 | CB56: 1
C57: Položka obsahuje hloubení rýh traktorbagrem, naložení výkopku na dopravní prostředek pro svislé, nebo vodorovné přemístění, popř. přemístění výkopku do 3 m (po povrchu území), případné zajištění rypadel polštáři, udržování pracoviště a ochranu výkopiště proti stékání srážkové vody z okolního terénu i s jejím odvodněním, nebo odvedením, přesekání a odstranění kořenů ve výkopišti, odstranění napadávek, urovnání dna výkopu. | L57: Položka obsahuje hloubení rýh traktorbagrem, naložení výkopku na dopravní prostředek pro svislé, nebo vodorovné přemístění, popř. přemístění výkopku do 3 m (po povrchu území), případné zajištění rypadel polštáři, udržování pracoviště a ochranu výkopiště proti stékání srážkové vody z okolního terénu i s jejím odvodněním, nebo odvedením, přesekání a odstranění kořenů ve výkopišti, odstranění napadávek, urovnání dna výkopu. | O57: 3
C58: Součástí položky je i pažení výkopů dle zvolené technologie zhotovitelem a v souladu s předpisy BOZP. | L58: Součástí položky je i pažení výkopů dle zvolené technologie zhotovitelem a v souladu s předpisy BOZP. | O58: 3
C59: Součástí položky je i případné dolamování horniny v prostoru rýhy. | L59: Součástí položky je i případné dolamování horniny v prostoru rýhy. | O59: 3
C60: V hornině tř. 4: | E60: 0 | M60: V hornině tř. 4:
C61: Stoka AD KT DN250:52,4628*0,0 | E61: 0 | M61: Stoka AD KT DN250:52,4628*0,0
C62: Stoka AF KT DN250:50,5440*0,0 | E62: 0 | M62: Stoka AF KT DN250:50,5440*0,0
C63: Stoka CA KT DN250:62,2966*0,02 | E63: 1.2459 | M63: Stoka CA KT DN250:62,2966*0,02
A64: 9 | B64: 162601102RX0 | C64: Vodorovné přemístění výkopku z hor.1-7 na skládku zhotovitele | D64: m3 | E64: 131.1014 | G64: =E64*F64 -> 0 | H64: 0 | I64: =E64*H64 -> 0 | J64: 0 | K64: =E64*J64 -> 0 | O64: 2 | AA64: 1 | AB64: 1 | AC64: 1 | AZ64: 1 | BA64: =IF(AZ64=1,G64,0) -> 0 | BB64: =IF(AZ64=2,G64,0) -> 0 | BC64: =IF(AZ64=3,G64,0) -> 0 | BD64: =IF(AZ64=4,G64,0) -> 0 | BE64: =IF(AZ64=5,G64,0) -> 0 | CA64: 1 | CB64: 1
C65: Výkopy: | E65: 0 | M65: Výkopy:
C66: Začátek provozního součtu | E66: 0 | M66: Začátek provozního součtu
C67: Stoka AD KT DN250:52,4628 | E67: 52.4628 | M67: Stoka AD KT DN250:52,4628
C68: Stoka AF KT DN250:50,5440 | E68: 50.544 | M68: Stoka AF KT DN250:50,5440
C69: Stoka CA KT DN250:62,2966 | E69: 62.2966 | M69: Stoka CA KT DN250:62,2966
C70: Konec provozního součtu | E70: 165.3034 | M70: Konec provozního součtu
C71: V hornině tř. 2 - 6:165,3034 | E71: 165.3034 | M71: V hornině tř. 2 - 6:165,3034
C72: Odpočet zásypů zeminou:-34,2020 | E72: -34.202 | M72: Odpočet zásypů zeminou:-34,2020
A73: 10 | B73: 174100050RAB | C73: Zásyp jam,rýh a šachet štěrkodrtí fr. 0-63 mm včetně dodávky štěrkodrtě | D73: m3 | E73: 83.3675 | G73: =E73*F73 -> 0 | H73: 0 | I73: =E73*H73 -> 0 | J73: 0 | K73: =E73*J73 -> 0 | O73: 2 | AA73: 1 | AB73: 1 | AC73: 1 | AZ73: 1 | BA73: =IF(AZ73=1,G73,0) -> 0 | BB73: =IF(AZ73=2,G73,0) -> 0 | BC73: =IF(AZ73=3,G73,0) -> 0 | BD73: =IF(AZ73=4,G73,0) -> 0 | BE73: =IF(AZ73=5,G73,0) -> 0 | CA73: 1 | CB73: 1
C74: Začátek provozního součtu | E74: 0 | M74: Začátek provozního součtu
C75: Výkopy v hornině tř. 2 - 5: | E75: 0 | M75: Výkopy v hornině tř. 2 - 5:
C76: Stoka AD KT DN250:52,4628 | E76: 52.4628 | M76: Stoka AD KT DN250:52,4628
C77: Stoka AF KT DN250:50,5440 | E77: 50.544 | M77: Stoka AF KT DN250:50,5440
C78: Stoka CA KT DN250:62,2966 | E78: 62.2966 | M78: Stoka CA KT DN250:62,2966
C79: Odpočet lože, potrubí a obsypů: | E79: 0 | M79: Odpočet lože, potrubí a obsypů:
C80: Stoka AD KT DN250:-19,00*0,9737 | E80: -18.5003 | M80: Stoka AD KT DN250:-19,00*0,9737
C81: Stoka AF KT DN250:-18,00*0,9737 | E81: -17.5266 | M81: Stoka AF KT DN250:-18,00*0,9737
C82: Stoka CA KT DN250:-23,00*0,9737 | E82: -22.3951 | M82: Stoka CA KT DN250:-23,00*0,9737
C83: Konec provozního součtu | E83: 106.8814 | M83: Konec provozního součtu
C84: Zásyp ŠD z 68% objemu zásypů:106,8814*0,78 | E84: 83.3675 | M84: Zásyp ŠD z 68% objemu zásypů:106,8814*0,78
A85: 11 | B85: 174101101R00 | C85: Zásyp jam, rýh, šachet se zhutněním | D85: m3 | E85: 34.202 | G85: =E85*F85 -> 0 | H85: 0 | I85: =E85*H85 -> 0 | J85: 0 | K85: =E85*J85 -> 0 | O85: 2 | AA85: 1 | AB85: 1 | AC85: 1 | AZ85: 1 | BA85: =IF(AZ85=1,G85,0) -> 0 | BB85: =IF(AZ85=2,G85,0) -> 0 | BC85: =IF(AZ85=3,G85,0) -> 0 | BD85: =IF(AZ85=4,G85,0) -> 0 | BE85: =IF(AZ85=5,G85,0) -> 0 | CA85: 1 | CB85: 1
C86: Položka obsahuje strojní přemístění materiálu pro zásyp ze vzdálenosti do 10 m od okraje zásypu. | L86: Položka obsahuje strojní přemístění materiálu pro zásyp ze vzdálenosti do 10 m od okraje zásypu. | O86: 3
C87: Začátek provozního součtu | E87: 0 | M87: Začátek provozního součtu
C88: Výkopy v hornině tř. 2 - 5: | E88: 0 | M88: Výkopy v hornině tř. 2 - 5:
C89: Stoka AD KT DN250:52,4628 | E89: 52.4628 | M89: Stoka AD KT DN250:52,4628
C90: Stoka AF KT DN250:50,5440 | E90: 50.544 | M90: Stoka AF KT DN250:50,5440
C91: Stoka CA KT DN250:62,2966 | E91: 62.2966 | M91: Stoka CA KT DN250:62,2966
C92: Odpočet lože, potrubí a obsypů: | E92: 0 | M92: Odpočet lože, potrubí a obsypů:
C93: Stoka AD KT DN250:-19,00*0,9737 | E93: -18.5003 | M93: Stoka AD KT DN250:-19,00*0,9737
C94: Stoka AF KT DN250:-18,00*0,9737 | E94: -17.5266 | M94: Stoka AF KT DN250:-18,00*0,9737
C95: Stoka CA KT DN250:-23,00*0,9737 | E95: -22.3951 | M95: Stoka CA KT DN250:-23,00*0,9737
C96: Konec provozního součtu | E96: 106.8814 | M96: Konec provozního součtu
C97: Zásyp zeminou z 32% objemu zásypů:106,8814*0,32 | E97: 34.202 | M97: Zásyp zeminou z 32% objemu zásypů:106,8814*0,32
A98: 12 | B98: 175100020RAB | C98: Obsyp potrubí štěrkopískem včetně dodávka štěrkopísku | D98: m3 | E98: 37.023 | G98: =E98*F98 -> 0 | H98: 0 | I98: =E98*H98 -> 0 | J98: 0 | K98: =E98*J98 -> 0 | O98: 2 | AA98: 1 | AB98: 1 | AC98: 1 | AZ98: 1 | BA98: =IF(AZ98=1,G98,0) -> 0 | BB98: =IF(AZ98=2,G98,0) -> 0 | BC98: =IF(AZ98=3,G98,0) -> 0 | BD98: =IF(AZ98=4,G98,0) -> 0 | BE98: =IF(AZ98=5,G98,0) -> 0 | CA98: 1 | CB98: 1
C99: Stoka AD KT DN250:19,00*0,61705 | E99: 11.724 | M99: Stoka AD KT DN250:19,00*0,61705
C100: Stoka AF KT DN250:18,00*0,61705 | E100: 11.1069 | M100: Stoka AF KT DN250:18,00*0,61705
C101: Stoka CA KT DN250:23,00*0,61705 | E101: 14.1921 | M101: Stoka CA KT DN250:23,00*0,61705
A102: 13 | B102: 199000002RX0 | C102: Poplatek za skládku horniny 1- 7 | D102: m3 | E102: 131.1014 | G102: =E102*F102 -> 0 | H102: 0 | I102: =E102*H102 -> 0 | J102: 0 | K102: =E102*J102 -> 0 | O102: 2 | AA102: 1 | AB102: 1 | AC102: 1 | AZ102: 1 | BA102: =IF(AZ102=1,G102,0) -> 0 | BB102: =IF(AZ102=2,G102,0) -> 0 | BC102: =IF(AZ102=3,G102,0) -> 0 | BD102: =IF(AZ102=4,G102,0) -> 0 | BE102: =IF(AZ102=5,G102,0) -> 0 | CA102: 1 | CB102: 1
C103: Výkopy: | E103: 0 | M103: Výkopy:
C104: Začátek provozního součtu | E104: 0 | M104: Začátek provozního součtu
C105: Stoka AD KT DN250:52,4628 | E105: 52.4628 | M105: Stoka AD KT DN250:52,4628
C106: Stoka AF KT DN250:50,5440 | E106: 50.544 | M106: Stoka AF KT DN250:50,5440
C107: Stoka CA KT DN250:62,2966 | E107: 62.2966 | M107: Stoka CA KT DN250:62,2966
C108: Konec provozního součtu | E108: 165.3034 | M108: Konec provozního součtu
C109: V hornině tř. 2 - 6:165,3034 | E109: 165.3034 | M109: V hornině tř. 2 - 6:165,3034
C110: Odpočet zásypů zeminou:-34,2020 | E110: -34.202 | M110: Odpočet zásypů zeminou:-34,2020
B111: Celkem za | C111: 1 Zemní práce | G111: =SUM(G7:G110) -> 0 | I111: =SUM(I7:I110) -> 0 | K111: =SUM(K7:K110) -> 0 | O111: 4 | BA111: =SUM(BA7:BA110) -> 0 | BB111: =SUM(BB7:BB110) -> 0 | BC111: =SUM(BC7:BC110) -> 0 | BD111: =SUM(BD7:BD110) -> 0 | BE111: =SUM(BE7:BE110) -> 0
A112: Díl: | B112: 2 | C112: Základy a zvláštní zakládání | O112: 1
A113: 14 | B113: 212810010RAC | C113: Trativody z PVC drenážních flexibilních trubek lože štěrkopísek a obsyp kamenivo, trubky d 100 mm | D113: m | E113: 45 | G113: =E113*F113 -> 0 | H113: 0.43651 | I113: =E113*H113 -> 19.64295 | J113: 0 | K113: =E113*J113 -> 0 | O113: 2 | AA113: 2 | AB113: 1 | AC113: 1 | AZ113: 1 | BA113: =IF(AZ113=1,G113,0) -> 0 | BB113: =IF(AZ113=2,G113,0) -> 0 | BC113: =IF(AZ113=3,G113,0) -> 0 | BD113: =IF(AZ113=4,G113,0) -> 0 | BE113: =IF(AZ113=5,G113,0) -> 0 | CA113: 2 | CB113: 1
C114: Začátek provozního součtu | E114: 0 | M114: Začátek provozního součtu
C115: Stoka AD KT DN250:19,00 | E115: 19 | M115: Stoka AD KT DN250:19,00
C116: Stoka AF KT DN250:18,00 | E116: 18 | M116: Stoka AF KT DN250:18,00
C117: Stoka CA KT DN250:23,00 | E117: 23 | M117: Stoka CA KT DN250:23,00
C118: Konec provozního součtu | E118: 60 | M118: Konec provozního součtu
C119: Drenáž na 75% celkové délky rýh:60,00*0,75 | E119: 45 | M119: Drenáž na 75% celkové délky rýh:60,00*0,75
B120: Celkem za | C120: 2 Základy a zvláštní zakládání | G120: =SUM(G112:G119) -> 0 | I120: =SUM(I112:I119) -> 19.64295 | K120: =SUM(K112:K119) -> 0 | O120: 4 | BA120: =SUM(BA112:BA119) -> 0 | BB120: =SUM(BB112:BB119) -> 0 | BC120: =SUM(BC112:BC119) -> 0 | BD120: =SUM(BD112:BD119) -> 0 | BE120: =SUM(BE112:BE119) -> 0
A121: Díl: | B121: 45 | C121: Podkladní a vedlejší konstrukce | O121: 1
A122: 15 | B122: 452112111R00 | C122: Osazení beton. prstenců pod poklopy,výšky do100 mm | D122: kus | E122: 3 | G122: =E122*F122 -> 0 | H122: 0.0066 | I122: =E122*H122 -> 0.0198 | J122: 0 | K122: =E122*J122 -> 0 | O122: 2 | AA122: 1 | AB122: 1 | AC122: 1 | AZ122: 1 | BA122: =IF(AZ122=1,G122,0) -> 0 | BB122: =IF(AZ122=2,G122,0) -> 0 | BC122: =IF(AZ122=3,G122,0) -> 0 | BD122: =IF(AZ122=4,G122,0) -> 0 | BE122: =IF(AZ122=5,G122,0) -> 0 | CA122: 1 | CB122: 1
C123: Volba položky se řídí výškou prstence nebo rámu. V položkách nejsou zakalkulovány náklady na dodávku betonových výrobků; | L123: Volba položky se řídí výškou prstence nebo rámu. V položkách nejsou zakalkulovány náklady na dodávku betonových výrobků; | O123: 3
C124: Stoky: | E124: 0 | M124: Stoky:
C125: VP H4:3 | E125: 3 | M125: VP H4:3
A126: 16 | B126: 452312131R00 | C126: Sedlové lože pod potrubí z betonu C 12/15 | D126: m3 | E126: 17.16 | G126: =E126*F126 -> 0 | H126: 2.5 | I126: =E126*H126 -> 42.9 | J126: 0 | K126: =E126*J126 -> 0 | O126: 2 | AA126: 1 | AB126: 1 | AC126: 1 | AZ126: 1 | BA126: =IF(AZ126=1,G126,0) -> 0 | BB126: =IF(AZ126=2,G126,0) -> 0 | BC126: =IF(AZ126=3,G126,0) -> 0 | BD126: =IF(AZ126=4,G126,0) -> 0 | BE126: =IF(AZ126=5,G126,0) -> 0 | CA126: 1 | CB126: 1
C127: Stoka AD KT DN250:19,00*0,2860 | E127: 5.434 | M127: Stoka AD KT DN250:19,00*0,2860
C128: Stoka AF KT DN250:18,00*0,2860 | E128: 5.148 | M128: Stoka AF KT DN250:18,00*0,2860
C129: Stoka CA KT DN250:23,00*0,2860 | E129: 6.578 | M129: Stoka CA KT DN250:23,00*0,2860
A130: 17 | B130: 59224345.R | C130: Prstenec vyrovn šachetní TBW-Q 40/625/120 | D130: kus | E130: 3.03 | G130: =E130*F130 -> 0 | H130: 0.028 | I130: =E130*H130 -> 0.08484 | K130: =E130*J130 -> 0 | O130: 2 | AA130: 3 | AB130: 1 | AC130: 59224345.R | AZ130: 1 | BA130: =IF(AZ130=1,G130,0) -> 0 | BB130: =IF(AZ130=2,G130,0) -> 0 | BC130: =IF(AZ130=3,G130,0) -> 0 | BD130: =IF(AZ130=4,G130,0) -> 0 | BE130: =IF(AZ130=5,G130,0) -> 0 | CA130: 3 | CB130: 1
C131: Stoky: | E131: 0 | M131: Stoky:
C132: VP H4:3*1,01 | E132: 3.03 | M132: VP H4:3*1,01
B133: Celkem za | C133: 45 Podkladní a vedlejší konstrukce | G133: =SUM(G121:G132) -> 0 | I133: =SUM(I121:I132) -> 43.00464 | K133: =SUM(K121:K132) -> 0 | O133: 4 | BA133: =SUM(BA121:BA132) -> 0 | BB133: =SUM(BB121:BB132) -> 0 | BC133: =SUM(BC121:BC132) -> 0 | BD133: =SUM(BD121:BD132) -> 0 | BE133: =SUM(BE121:BE132) -> 0
A134: Díl: | B134: 8 | C134: Trubní vedení | O134: 1
A135: 18 | B135: 831362121RT3 | C135: Montáž trub kameninových, pryž. kroužek, DN 250 včetně dodávky trub kamenin. DN 250 dl. 2500 mm | D135: m | E135: 60 | G135: =E135*F135 -> 0 | H135: 0.05383 | I135: =E135*H135 -> 3.2298 | J135: 0 | K135: =E135*J135 -> 0 | O135: 2 | AA135: 1 | AB135: 1 | AC135: 1 | AZ135: 1 | BA135: =IF(AZ135=1,G135,0) -> 0 | BB135: =IF(AZ135=2,G135,0) -> 0 | BC135: =IF(AZ135=3,G135,0) -> 0 | BD135: =IF(AZ135=4,G135,0) -> 0 | BE135: =IF(AZ135=5,G135,0) -> 0 | CA135: 1 | CB135: 1
C136: Položka je určena pro montáž potrubí z trub kameninových těsněných pryžovým kroužkem v otevřeném výkopu ve sklonu do 20 %. | L136: Položka je určena pro montáž potrubí z trub kameninových těsněných pryžovým kroužkem v otevřeném výkopu ve sklonu do 20 %. | O136: 3
C137: V položce jsou zakalkulovány i náklady na dodání trub. | L137: V položce jsou zakalkulovány i náklady na dodání trub. | O137: 3
C138: Stoka AD KT DN250:19,00 | E138: 19 | M138: Stoka AD KT DN250:19,00
C139: Stoka AF KT DN250:18,00 | E139: 18 | M139: Stoka AF KT DN250:18,00
C140: Stoka CA KT DN250:23,00 | E140: 23 | M140: Stoka CA KT DN250:23,00
A141: 19 | B141: 837361221T00 | C141: Montáž tvarov. kamenin. odboč. pryž. krouž. DN 250 včetně dodávky šikmé odbočky DN 250/150 | D141: kus | E141: 2 | G141: =E141*F141 -> 0 | H141: 0.06097 | I141: =E141*H141 -> 0.12194 | J141: 0 | K141: =E141*J141 -> 0 | O141: 2 | AA141: 1 | AB141: 1 | AC141: 1 | AZ141: 1 | BA141: =IF(AZ141=1,G141,0) -> 0 | BB141: =IF(AZ141=2,G141,0) -> 0 | BC141: =IF(AZ141=3,G141,0) -> 0 | BD141: =IF(AZ141=4,G141,0) -> 0 | BE141: =IF(AZ141=5,G141,0) -> 0 | CA141: 1 | CB141: 1
C142: Položka je určena pro montáž odbočné tvarovky z trub kameninových těsněných pryžovým kroužkem v otevřeném výkopu ve sklonu do 20 %. | L142: Položka je určena pro montáž odbočné tvarovky z trub kameninových těsněných pryžovým kroužkem v otevřeném výkopu ve sklonu do 20 %. | O142: 3
C143: V položce jsou zakalkulovány i náklady na dodání tvarovky. | L143: V položce jsou zakalkulovány i náklady na dodání tvarovky. | O143: 3
C144: Stoka CA KT DN250:2 | E144: 2 | M144: Stoka CA KT DN250:2
A145: 20 | B145: 892581111R00 | C145: Zkouška těsnosti kanalizace DN do 300, vodou | D145: m | E145: 60 | G145: =E145*F145 -> 0 | H145: 0 | I145: =E145*H145 -> 0 | J145: 0 | K145: =E145*J145 -> 0 | O145: 2 | AA145: 1 | AB145: 1 | AC145: 1 | AZ145: 1 | BA145: =IF(AZ145=1,G145,0) -> 0 | BB145: =IF(AZ145=2,G145,0) -> 0 | BC145: =IF(AZ145=3,G145,0) -> 0 | BD145: =IF(AZ145=4,G145,0) -> 0 | BE145: =IF(AZ145=5,G145,0) -> 0 | CA145: 1 | CB145: 1
C146: V položce jsou zakalkulovány náklady na napuštění vodou a dodání vody pro zkoušku těsnosti včetně zavakování potrubí dle zvolené technologie zhotovitele. | L146: V položce jsou zakalkulovány náklady na napuštění vodou a dodání vody pro zkoušku těsnosti včetně zavakování potrubí dle zvolené technologie zhotovitele. | O146: 3
C147: Stoka AD KT DN250:19,00 | E147: 19 | M147: Stoka AD KT DN250:19,00
C148: Stoka AF KT DN250:18,00 | E148: 18 | M148: Stoka AF KT DN250:18,00
C149: Stoka CA KT DN250:23,00 | E149: 23 | M149: Stoka CA KT DN250:23,00
A150: 21 | B150: 892601154R00 | C150: Čištění kanalizační stoky do DN 500, nad 100 m | D150: m | E150: 60 | G150: =E150*F150 -> 0 | H150: 0 | I150: =E150*H150 -> 0 | J150: 0 | K150: =E150*J150 -> 0 | O150: 2 | AA150: 1 | AB150: 1 | AC150: 1 | AZ150: 1 | BA150: =IF(AZ150=1,G150,0) -> 0 | BB150: =IF(AZ150=2,G150,0) -> 0 | BC150: =IF(AZ150=3,G150,0) -> 0 | BD150: =IF(AZ150=4,G150,0) -> 0 | BE150: =IF(AZ150=5,G150,0) -> 0 | CA150: 1 | CB150: 1
C151: Stoka AD KT DN250:19,00 | E151: 19 | M151: Stoka AD KT DN250:19,00
C152: Stoka AF KT DN250:18,00 | E152: 18 | M152: Stoka AF KT DN250:18,00
C153: Stoka CA KT DN250:23,00 | E153: 23 | M153: Stoka CA KT DN250:23,00
A154: 22 | B154: 892855116R00 | C154: Kontrola kanalizace TV kamerou nad 500 m | D154: m | E154: 60 | G154: =E154*F154 -> 0 | H154: 0 | I154: =E154*H154 -> 0 | J154: 0 | K154: =E154*J154 -> 0 | O154: 2 | AA154: 1 | AB154: 1 | AC154: 1 | AZ154: 1 | BA154: =IF(AZ154=1,G154,0) -> 0 | BB154: =IF(AZ154=2,G154,0) -> 0 | BC154: =IF(AZ154=3,G154,0) -> 0 | BD154: =IF(AZ154=4,G154,0) -> 0 | BE154: =IF(AZ154=5,G154,0) -> 0 | CA154: 1 | CB154: 1
C155: Stoka AD KT DN250:19,00 | E155: 19 | M155: Stoka AD KT DN250:19,00
C156: Stoka AF KT DN250:18,00 | E156: 18 | M156: Stoka AF KT DN250:18,00
C157: Stoka CA KT DN250:23,00 | E157: 23 | M157: Stoka CA KT DN250:23,00
A158: 23 | B158: 894421111RT1 | C158: Osazení betonových dílců šachet skruže rovné, na kroužek, do 0,5 t | D158: kus | E158: 3 | G158: =E158*F158 -> 0 | H158: 0 | I158: =E158*H158 -> 0 | J158: 0 | K158: =E158*J158 -> 0 | O158: 2 | AA158: 1 | AB158: 1 | AC158: 1 | AZ158: 1 | BA158: =IF(AZ158=1,G158,0) -> 0 | BB158: =IF(AZ158=2,G158,0) -> 0 | BC158: =IF(AZ158=3,G158,0) -> 0 | BD158: =IF(AZ158=4,G158,0) -> 0 | BE158: =IF(AZ158=5,G158,0) -> 0 | CA158: 1 | CB158: 1
C159: Položka je určena pro osazení betonových dílců šachet dle DIN 4034, skruže rovné na kroužek, hmotnost do 0,5 t. | L159: Položka je určena pro osazení betonových dílců šachet dle DIN 4034, skruže rovné na kroužek, hmotnost do 0,5 t. | O159: 3
C160: V položce nejsou zakalkulovány náklady na dodání betonových dílců; dílce se oceňují ve specifikaci. | L160: V položce nejsou zakalkulovány náklady na dodání betonových dílců; dílce se oceňují ve specifikaci. | O160: 3
C161: Skruž H25: | E161: 0 | M161: Skruž H25:
C162: Stoka "AD":1 | E162: 1 | M162: Stoka "AD":1
C163: Stoka "AF":1 | E163: 1 | M163: Stoka "AF":1
C164: Stoka "CA":1 | E164: 1 | M164: Stoka "CA":1
A165: 24 | B165: 894421112RT1 | C165: Osazení betonových dílců šachet skruže rovné, na kroužek, do 1,4 t | D165: kus | E165: 3 | G165: =E165*F165 -> 0 | H165: 0 | I165: =E165*H165 -> 0 | J165: 0 | K165: =E165*J165 -> 0 | O165: 2 | AA165: 1 | AB165: 1 | AC165: 1 | AZ165: 1 | BA165: =IF(AZ165=1,G165,0) -> 0 | BB165: =IF(AZ165=2,G165,0) -> 0 | BC165: =IF(AZ165=3,G165,0) -> 0 | BD165: =IF(AZ165=4,G165,0) -> 0 | BE165: =IF(AZ165=5,G165,0) -> 0 | CA165: 1 | CB165: 1
C166: Položka je určena pro osazení betonových dílců šachet dle DIN 4034, skruže rovné na kroužek, hmotnost přes 0,5 do 1,4 t. | L166: Položka je určena pro osazení betonových dílců šachet dle DIN 4034, skruže rovné na kroužek, hmotnost přes 0,5 do 1,4 t. | O166: 3
C167: V položce nejsou zakalkulovány náklady na dodání betonových dílců; dílce se oceňují ve specifikaci. | L167: V položce nejsou zakalkulovány náklady na dodání betonových dílců; dílce se oceňují ve specifikaci. | O167: 3
C168: Skruž H50: | E168: 0 | M168: Skruž H50:
C169: Stoka "AD":1 | E169: 1 | M169: Stoka "AD":1
C170: Stoka "AF":1 | E170: 1 | M170: Stoka "AF":1
C171: Stoka "CA":1 | E171: 1 | M171: Stoka "CA":1
A172: 25 | B172: 894422111RT1 | C172: Osazení betonových dílců šachet skruže přechodové, na kroužek | D172: kus | E172: 3 | G172: =E172*F172 -> 0 | H172: 0 | I172: =E172*H172 -> 0 | J172: 0 | K172: =E172*J172 -> 0 | O172: 2 | AA172: 1 | AB172: 1 | AC172: 1 | AZ172: 1 | BA172: =IF(AZ172=1,G172,0) -> 0 | BB172: =IF(AZ172=2,G172,0) -> 0 | BC172: =IF(AZ172=3,G172,0) -> 0 | BD172: =IF(AZ172=4,G172,0) -> 0 | BE172: =IF(AZ172=5,G172,0) -> 0 | CA172: 1 | CB172: 1
C173: Položka je určena pro osazení betonových dílců šachet dle DIN 4034, skruže přechodové na kroužek. | L173: Položka je určena pro osazení betonových dílců šachet dle DIN 4034, skruže přechodové na kroužek. | O173: 3
C174: V položce nejsou zakalkulovány náklady na dodání betonových dílců | L174: V položce nejsou zakalkulovány náklady na dodání betonových dílců | O174: 3
C175: Kónus H60: | E175: 0 | M175: Kónus H60:
C176: Stoka "AD":1 | E176: 1 | M176: Stoka "AD":1
C177: Stoka "AF":1 | E177: 1 | M177: Stoka "AF":1
C178: Stoka "CA":1 | E178: 1 | M178: Stoka "CA":1
A179: 26 | B179: 894423111RT1 | C179: Osazení betonových dílců šachet šachtová dna, na kroužek, do 2,0 t | D179: kus | E179: 3 | G179: =E179*F179 -> 0 | H179: 0 | I179: =E179*H179 -> 0 | J179: 0 | K179: =E179*J179 -> 0 | O179: 2 | AA179: 1 | AB179: 1 | AC179: 1 | AZ179: 1 | BA179: =IF(AZ179=1,G179,0) -> 0 | BB179: =IF(AZ179=2,G179,0) -> 0 | BC179: =IF(AZ179=3,G179,0) -> 0 | BD179: =IF(AZ179=4,G179,0) -> 0 | BE179: =IF(AZ179=5,G179,0) -> 0 | CA179: 1 | CB179: 1
C180: Položka je určena pro osazení betonových dílců šachet dle DIN 4034, šachtová dna na kroužek, hmotnost do 2,0 t. | L180: Položka je určena pro osazení betonových dílců šachet dle DIN 4034, šachtová dna na kroužek, hmotnost do 2,0 t. | O180: 3
C181: V položce nejsou zakalkulovány náklady na dodání betonových dílců; | L181: V položce nejsou zakalkulovány náklady na dodání betonových dílců; | O181: 3
C182: ŠD 250-735: | E182: 0 | M182: ŠD 250-735:
C183: Stoka "AD":1 | E183: 1 | M183: Stoka "AD":1
C184: Stoka "AF":1 | E184: 1 | M184: Stoka "AF":1
C185: Stoka "CA":1 | E185: 1 | M185: Stoka "CA":1
A186: 27 | B186: 899103111RR1 | C186: Osazení poklopu s rámem do 150 kg s odvětráním včetně dodávky poklopu lit. kruhového D 400 dle PD | D186: kus | E186: 3 | G186: =E186*F186 -> 0 | H186: 0.13102 | I186: =E186*H186 -> 0.39306 | J186: 0 | K186: =E186*J186 -> 0 | O186: 2 | AA186: 1 | AB186: 1 | AC186: 1 | AZ186: 1 | BA186: =IF(AZ186=1,G186,0) -> 0 | BB186: =IF(AZ186=2,G186,0) -> 0 | BC186: =IF(AZ186=3,G186,0) -> 0 | BD186: =IF(AZ186=4,G186,0) -> 0 | BE186: =IF(AZ186=5,G186,0) -> 0 | CA186: 1 | CB186: 1
C187: Poklop se znakem a nápisem názvu obce. | L187: Poklop se znakem a nápisem názvu obce. | O187: 3
C188: Poznámka : | L188: Poznámka : | O188: 3
C189: Platí pro všechny objekty stavby. | L189: Platí pro všechny objekty stavby. | O189: 3
C190: Poklop s odvětráním: | E190: 0 | M190: Poklop s odvětráním:
C191: Stoka "AD":1 | E191: 1 | M191: Stoka "AD":1
C192: Stoka "AF":1 | E192: 1 | M192: Stoka "AF":1
C193: Stoka "CA":1 | E193: 1 | M193: Stoka "CA":1
A194: 28 | B194: 899721112R00 | C194: Fólie výstražná z PVC, šířka 30 cm | D194: m | E194: 60 | G194: =E194*F194 -> 0 | H194: 0 | I194: =E194*H194 -> 0 | J194: 0 | K194: =E194*J194 -> 0 | O194: 2 | AA194: 1 | AB194: 1 | AC194: 1 | AZ194: 1 | BA194: =IF(AZ194=1,G194,0) -> 0 | BB194: =IF(AZ194=2,G194,0) -> 0 | BC194: =IF(AZ194=3,G194,0) -> 0 | BD194: =IF(AZ194=4,G194,0) -> 0 | BE194: =IF(AZ194=5,G194,0) -> 0 | CA194: 1 | CB194: 1
C195: Stoka AD KT DN250:19,00 | E195: 19 | M195: Stoka AD KT DN250:19,00
C196: Stoka AF KT DN250:18,00 | E196: 18 | M196: Stoka AF KT DN250:18,00
C197: Stoka CA KT DN250:23,00 | E197: 23 | M197: Stoka CA KT DN250:23,00
A198: 29 | B198: 59224353.R | C198: Konus šachetní TBR-Q 600/1000x625/120 SPK | D198: kus | E198: 3.03 | G198: =E198*F198 -> 0 | H198: 0.595 | I198: =E198*H198 -> 1.80285 | K198: =E198*J198 -> 0 | O198: 2 | AA198: 3 | AB198: 1 | AC198: 59224353.R | AZ198: 1 | BA198: =IF(AZ198=1,G198,0) -> 0 | BB198: =IF(AZ198=2,G198,0) -> 0 | BC198: =IF(AZ198=3,G198,0) -> 0 | BD198: =IF(AZ198=4,G198,0) -> 0 | BE198: =IF(AZ198=5,G198,0) -> 0 | CA198: 3 | CB198: 1
C199: Stoky: | E199: 0 | M199: Stoky:
C200: Kónus H60:3*1,01 | E200: 3.03 | M200: Kónus H60:3*1,01
A201: 30 | B201: 592243554.R | C201: Skruž šachetní TBS-Q 1000/250/120 SP | D201: kus | E201: 3.03 | G201: =E201*F201 -> 0 | H201: 0.24 | I201: =E201*H201 -> 0.7272 | K201: =E201*J201 -> 0 | O201: 2 | AA201: 3 | AB201: 1 | AC201: 592243554.R | AZ201: 1 | BA201: =IF(AZ201=1,G201,0) -> 0 | BB201: =IF(AZ201=2,G201,0) -> 0 | BC201: =IF(AZ201=3,G201,0) -> 0 | BD201: =IF(AZ201=4,G201,0) -> 0 | BE201: =IF(AZ201=5,G201,0) -> 0 | CA201: 3 | CB201: 1
C202: Stoky: | E202: 0 | M202: Stoky:
... 14 more rows

Sheet 302 302.1RD KL
A1: POLOŽKOVÝ ROZPOČET
A2: Rozpočet | C2: 302.1RD | D2: Kanalizační výtlaky - km 0,000-1,618.79 | F2: JKSO | G2: 827.21.A1
A4: Objekt | F4: SKP
A5: 302 | C5: Kanalizační výtlaky | F5: Měrná jednotka | G5: m
A6: Stavba | F6: Počet jednotek | G6: 0
A7: 3232 | C7: Horní Slivno - Splašková kanalizace | F7: Náklady na m.j. | G7: =IF(G6=0,,ROUND((F30+F32)/G6,1)) -> 0
A8: Projektant | C8: Radek Hnát - VAK PROJEKT | F8: Typ rozpočtu
A9: Zpracovatel projektu
A10: Objednatel | C10: Obec Horní Slivno
A11: Dodavatel | C11: . | F11: Zakázkové číslo
A12: Rozpočtoval | F12: Počet listů
A13: ROZPOČTOVÉ NÁKLADY
A14: Základní rozpočtové náklady
B15: HSV celkem | C15: ='302 302.1RD Rek'!E11 -> 0
A16: Z | B16: PSV celkem | C16: ='302 302.1RD Rek'!F11 -> 0
A17: R | B17: M práce celkem | C17: ='302 302.1RD Rek'!H11 -> 0
A18: N | B18: M dodávky celkem | C18: ='302 302.1RD Rek'!G11 -> 0
A19: ZRN celkem | C19: =SUM(C15:C18) -> 0
A21: HZS | C21: ='302 302.1RD Rek'!I11 -> 0
A22: ZRN+HZS | C22: =C19+C21 -> 0
A23: ZRN+ost.náklady+HZS | C23: =C22+G23 -> 0
A24: Vypracoval | D24: Za zhotovitele | F24: Za objednatele
A25: Jméno : | D25: Jméno : | F25: Jméno :
A26: Datum : | D26: Datum : | F26: Datum :
A28: Podpis : | D28: Podpis: | F28: Podpis:
A30: Základ pro DPH | C30: 21 | D30: % | F30: =C23-F32 -> 0
A31: DPH | C31: =C30 -> 21 | D31: % | F31: =ROUND(PRODUCT(F30,C31/100),0) -> 0
A32: Základ pro DPH | C32: 0 | D32: % | F32: 0
A33: DPH | C33: =C32 -> 0 | D33: % | F33: =ROUND(PRODUCT(F32,C33/100),0) -> 0
A34: CENA ZA OBJEKT CELKEM | F34: =ROUND(SUM(F30:F33),0) -> 0
A36: Poznámka :

Sheet 302 302.1RD Rek
A1: Stavba : | C1: 3232 Horní Slivno - Splašková kanalizace | G1: Rozpočet : | H1: 302.1RD
A2: Objekt : | C2: 302 Kanalizační výtlaky | G2: Kanalizační výtlaky - km 0,000-1,618.79
A4: REKAPITULACE STAVEBNÍCH DÍLŮ
B6: Stavební díl | E6: HSV | F6: PSV | G6: Dodávka | H6: Montáž | I6: HZS
A7: ='302 302.1RD Pol'!B7 -> 1 | B7: ='302 302.1RD Pol'!C7 -> Zemní práce | E7: ='302 302.1RD Pol'!BA137 -> 0 | F7: ='302 302.1RD Pol'!BB137 -> 0 | G7: ='302 302.1RD Pol'!BC137 -> 0 | H7: ='302 302.1RD Pol'!BD137 -> 0 | I7: ='302 302.1RD Pol'!BE137 -> 0
A8: ='302 302.1RD Pol'!B138 -> 45 | B8: ='302 302.1RD Pol'!C138 -> Podkladní a vedlejší konstrukce | E8: ='302 302.1RD Pol'!BA145 -> 0 | F8: ='302 302.1RD Pol'!BB145 -> 0 | G8: ='302 302.1RD Pol'!BC145 -> 0 | H8: ='302 302.1RD Pol'!BD145 -> 0 | I8: ='302 302.1RD Pol'!BE145 -> 0
A9: ='302 302.1RD Pol'!B146 -> 8 | B9: ='302 302.1RD Pol'!C146 -> Trubní vedení | E9: ='302 302.1RD Pol'!BA395 -> 0 | F9: ='302 302.1RD Pol'!BB395 -> 0 | G9: ='302 302.1RD Pol'!BC395 -> 0 | H9: ='302 302.1RD Pol'!BD395 -> 0 | I9: ='302 302.1RD Pol'!BE395 -> 0
A10: ='302 302.1RD Pol'!B396 -> 99 | B10: ='302 302.1RD Pol'!C396 -> Staveništní přesun hmot | E10: ='302 302.1RD Pol'!BA398 -> 0 | F10: ='302 302.1RD Pol'!BB398 -> 0 | G10: ='302 302.1RD Pol'!BC398 -> 0 | H10: ='302 302.1RD Pol'!BD398 -> 0 | I10: ='302 302.1RD Pol'!BE398 -> 0
B11: CELKEM OBJEKT | E11: =SUM(E7:E10) -> 0 | F11: =SUM(F7:F10) -> 0 | G11: =SUM(G7:G10) -> 0 | H11: =SUM(H7:H10) -> 0 | I11: =SUM(I7:I10) -> 0

Sheet 302 302.1RD Pol
A1: Položkový rozpočet
A3: Stavba : | C3: 3232 Horní Slivno - Splašková kanalizace | E3: Rozpočet: | F3: ='302 302.1RD Rek'!H1 -> 302.1RD
A4: Objekt : | C4: 302 Kanalizační výtlaky | E4: ='302 302.1RD Rek'!G2 -> Kanalizační výtlaky - km 0,000-1,618.79
A6: P.č. | B6: Číslo položky | C6: Název položky | D6: MJ | E6: množství | F6: cena / MJ | G6: celkem (Kč) | H6: Jednotková hmotnost | I6: Celková hmotnost | J6: Jednotková dem.hmot. | K6: Celková dem.hmot.
A7: Díl: | B7: 1 | C7: Zemní práce | O7: 1
A8: 1 | B8: 130001101RRX | C8: Příplatek za ztížené hloubení v blízkosti vedení | D8: m3 | E8: 109.528 | G8: =E8*F8 -> 0 | H8: 0 | I8: =E8*H8 -> 0 | J8: 0 | K8: =E8*J8 -> 0 | O8: 2 | AA8: 1 | AB8: 1 | AC8: 1 | AZ8: 1 | BA8: =IF(AZ8=1,G8,0) -> 0 | BB8: =IF(AZ8=2,G8,0) -> 0 | BC8: =IF(AZ8=3,G8,0) -> 0 | BD8: =IF(AZ8=4,G8,0) -> 0 | BE8: =IF(AZ8=5,G8,0) -> 0 | CA8: 1 | CB8: 1
C9: Včetně ruční dokopávky a ručního výkopu. | L9: Včetně ruční dokopávky a ručního výkopu. | O9: 3
C10: Součástí položky je i případná potřeba dočasnéhon zajištění potrubí a kabelových vedení ve výkopu. | L10: Součástí položky je i případná potřeba dočasnéhon zajištění potrubí a kabelových vedení ve výkopu. | O10: 3
C11: Začátek provozního součtu | E11: 0 | M11: Začátek provozního součtu
C12: Výtlak VA PE D 110x10,0 mm - řízený protlak:62,70 | E12: 62.7 | M12: Výtlak VA PE D 110x10,0 mm - řízený protlak:62,70
C13: Výtlak VA PE D 110x10,0 mm - rýha - souběh s kanalizační stokou:944,80 | E13: 944.8 | M13: Výtlak VA PE D 110x10,0 mm - rýha - souběh s kanalizační stokou:944,80
C14: Výtlak VC PE D 90x8,2 mm - rýha:227,2000 | E14: 227.2 | M14: Výtlak VC PE D 90x8,2 mm - rýha:227,2000
C15: Výtlak V-AE PE D 90x8,2 mm - rýha:134,4000 | E15: 134.4 | M15: Výtlak V-AE PE D 90x8,2 mm - rýha:134,4000
C16: Konec provozního součtu | E16: 1369.1 | M16: Konec provozního součtu
C17: V hornině tř. 2 - 6 - 8%:1369,1000*0,08 | E17: 109.528 | M17: V hornině tř. 2 - 6 - 8%:1369,1000*0,08
A18: 2 | B18: 132101213RRX | C18: Hloubení rýh š.do 200 cm hor.2 do 10000 m3,STROJNĚ | D18: m3 | E18: 151.529 | G18: =E18*F18 -> 0 | H18: 0 | I18: =E18*H18 -> 0 | J18: 0 | K18: =E18*J18 -> 0 | O18: 2 | AA18: 1 | AB18: 1 | AC18: 1 | AZ18: 1 | BA18: =IF(AZ18=1,G18,0) -> 0 | BB18: =IF(AZ18=2,G18,0) -> 0 | BC18: =IF(AZ18=3,G18,0) -> 0 | BD18: =IF(AZ18=4,G18,0) -> 0 | BE18: =IF(AZ18=5,G18,0) -> 0 | CA18: 1 | CB18: 1
C19: Položka obsahuje hloubení rýh traktorbagrem, naložení výkopku na dopravní prostředek pro svislé, nebo vodorovné přemístění, popř. přemístění výkopku do 3 m (po povrchu území), případné zajištění rypadel polštáři, udržování pracoviště a ochranu výkopiště proti stékání srážkové vody z okolního terénu i s jejím odvodněním, nebo odvedením, přesekání a odstranění kořenů ve výkopišti, odstranění napadávek, urovnání dna výkopu. | L19: Položka obsahuje hloubení rýh traktorbagrem, naložení výkopku na dopravní prostředek pro svislé, nebo vodorovné přemístění, popř. přemístění výkopku do 3 m (po povrchu území), případné zajištění rypadel polštáři, udržování pracoviště a ochranu výkopiště proti stékání srážkové vody z okolního terénu i s jejím odvodněním, nebo odvedením, přesekání a odstranění kořenů ve výkopišti, odstranění napadávek, urovnání dna výkopu. | O19: 3
C20: Součástí položky je i pažení výkopů dle zvolené technologie zhotovitelem a v souladu s předpisy BOZP. | L20: Součástí položky je i pažení výkopů dle zvolené technologie zhotovitelem a v souladu s předpisy BOZP. | O20: 3
C21: V hornině tř. 2: | E21: 0 | M21: V hornině tř. 2:
C22: Výtlak VA PE D 110x10,0 mm - řízený protlak:62,700*0,11 | E22: 6.897 | M22: Výtlak VA PE D 110x10,0 mm - řízený protlak:62,700*0,11
C23: Výtlak VA PE D 110x10,0 mm - rýha - souběh s kanalizační stokou:944,80*0,11 | E23: 103.928 | M23: Výtlak VA PE D 110x10,0 mm - rýha - souběh s kanalizační stokou:944,80*0,11
C24: Výtlak VC PE D 90x8,2 mm - rýha:227,2000*0,12 | E24: 27.264 | M24: Výtlak VC PE D 90x8,2 mm - rýha:227,2000*0,12
C25: Výtlak V-AE PE D 90x8,2 mm - rýha:134,4000*0,10 | E25: 13.44 | M25: Výtlak V-AE PE D 90x8,2 mm - rýha:134,4000*0,10
A26: 3 | B26: 132201213RRX | C26: Hloubení rýh š.do 200 cm hor.3 do 10000 m3,STROJNĚ | D26: m3 | E26: 365.982 | G26: =E26*F26 -> 0 | H26: 0 | I26: =E26*H26 -> 0 | J26: 0 | K26: =E26*J26 -> 0 | O26: 2 | AA26: 1 | AB26: 1 | AC26: 1 | AZ26: 1 | BA26: =IF(AZ26=1,G26,0) -> 0 | BB26: =IF(AZ26=2,G26,0) -> 0 | BC26: =IF(AZ26=3,G26,0) -> 0 | BD26: =IF(AZ26=4,G26,0) -> 0 | BE26: =IF(AZ26=5,G26,0) -> 0 | CA26: 1 | CB26: 1
C27: Položka obsahuje hloubení rýh traktorbagrem, naložení výkopku na dopravní prostředek pro svislé, nebo vodorovné přemístění, popř. přemístění výkopku do 3 m (po povrchu území), případné zajištění rypadel polštáři, udržování pracoviště a ochranu výkopiště proti stékání srážkové vody z okolního terénu i s jejím odvodněním, nebo odvedením, přesekání a odstranění kořenů ve výkopišti, odstranění napadávek, urovnání dna výkopu. | L27: Položka obsahuje hloubení rýh traktorbagrem, naložení výkopku na dopravní prostředek pro svislé, nebo vodorovné přemístění, popř. přemístění výkopku do 3 m (po povrchu území), případné zajištění rypadel polštáři, udržování pracoviště a ochranu výkopiště proti stékání srážkové vody z okolního terénu i s jejím odvodněním, nebo odvedením, přesekání a odstranění kořenů ve výkopišti, odstranění napadávek, urovnání dna výkopu. | O27: 3
C28: Součástí položky je i pažení výkopů dle zvolené technologie zhotovitelem a v souladu s předpisy BOZP. | L28: Součástí položky je i pažení výkopů dle zvolené technologie zhotovitelem a v souladu s předpisy BOZP. | O28: 3
C29: V hornině tř. 3: | E29: 0 | M29: V hornině tř. 3:
C30: Výtlak VA PE D 110x10,0 mm - řízený protlak:62,700*0,26 | E30: 16.302 | M30: Výtlak VA PE D 110x10,0 mm - řízený protlak:62,700*0,26
C31: Výtlak VA PE D 110x10,0 mm - rýha - souběh s kanalizační stokou:944,80*0,26 | E31: 245.648 | M31: Výtlak VA PE D 110x10,0 mm - rýha - souběh s kanalizační stokou:944,80*0,26
C32: Výtlak VC PE D 90x8,2 mm - rýha:227,2000*0,31 | E32: 70.432 | M32: Výtlak VC PE D 90x8,2 mm - rýha:227,2000*0,31
C33: Výtlak V-AE PE D 90x8,2 mm - rýha:134,4000*0,25 | E33: 33.6 | M33: Výtlak V-AE PE D 90x8,2 mm - rýha:134,4000*0,25
A34: 4 | B34: 132201219R00 | C34: Přípl.za lepivost,hloubení rýh 200cm,hor.3,STROJNĚ | D34: m3 | E34: 182.991 | G34: =E34*F34 -> 0 | H34: 0 | I34: =E34*H34 -> 0 | J34: 0 | K34: =E34*J34 -> 0 | O34: 2 | AA34: 1 | AB34: 1 | AC34: 1 | AZ34: 1 | BA34: =IF(AZ34=1,G34,0) -> 0 | BB34: =IF(AZ34=2,G34,0) -> 0 | BC34: =IF(AZ34=3,G34,0) -> 0 | BD34: =IF(AZ34=4,G34,0) -> 0 | BE34: =IF(AZ34=5,G34,0) -> 0 | CA34: 1 | CB34: 1
C35: V hornině tř. 3: | E35: 0 | M35: V hornině tř. 3:
C36: Výtlak VA PE D 110x10,0 mm - řízený protlak:62,700*0,26*0,5 | E36: 8.151 | M36: Výtlak VA PE D 110x10,0 mm - řízený protlak:62,700*0,26*0,5
C37: Výtlak VA PE D 110x10,0 mm - rýha - souběh s kanalizační stokou:944,80*0,26*0,5 | E37: 122.824 | M37: Výtlak VA PE D 110x10,0 mm - rýha - souběh s kanalizační stokou:944,80*0,26*0,5
C38: Výtlak VC PE D 90x8,2 mm - rýha:227,2000*0,31*0,5 | E38: 35.216 | M38: Výtlak VC PE D 90x8,2 mm - rýha:227,2000*0,31*0,5
C39: Výtlak V-AE PE D 90x8,2 mm - rýha:134,4000*0,25*0,5 | E39: 16.8 | M39: Výtlak V-AE PE D 90x8,2 mm - rýha:134,4000*0,25*0,5
A40: 5 | B40: 132301213RRX | C40: Hloubení rýh š.do 200 cm hor.4 do 10000 m3,STROJNĚ | D40: m3 | E40: 460.758 | G40: =E40*F40 -> 0 | H40: 0 | I40: =E40*H40 -> 0 | J40: 0 | K40: =E40*J40 -> 0 | O40: 2 | AA40: 1 | AB40: 1 | AC40: 1 | AZ40: 1 | BA40: =IF(AZ40=1,G40,0) -> 0 | BB40: =IF(AZ40=2,G40,0) -> 0 | BC40: =IF(AZ40=3,G40,0) -> 0 | BD40: =IF(AZ40=4,G40,0) -> 0 | BE40: =IF(AZ40=5,G40,0) -> 0 | CA40: 1 | CB40: 1
C41: Položka obsahuje hloubení rýh traktorbagrem, naložení výkopku na dopravní prostředek pro svislé, nebo vodorovné přemístění, popř. přemístění výkopku do 3 m (po povrchu území), případné zajištění rypadel polštáři, udržování pracoviště a ochranu výkopiště proti stékání srážkové vody z okolního terénu i s jejím odvodněním, nebo odvedením, přesekání a odstranění kořenů ve výkopišti, odstranění napadávek, urovnání dna výkopu. | L41: Položka obsahuje hloubení rýh traktorbagrem, naložení výkopku na dopravní prostředek pro svislé, nebo vodorovné přemístění, popř. přemístění výkopku do 3 m (po povrchu území), případné zajištění rypadel polštáři, udržování pracoviště a ochranu výkopiště proti stékání srážkové vody z okolního terénu i s jejím odvodněním, nebo odvedením, přesekání a odstranění kořenů ve výkopišti, odstranění napadávek, urovnání dna výkopu. | O41: 3
C42: Součástí položky je i pažení výkopů dle zvolené technologie zhotovitelem a v souladu s předpisy BOZP. | L42: Součástí položky je i pažení výkopů dle zvolené technologie zhotovitelem a v souladu s předpisy BOZP. | O42: 3
C43: V hornině tř. 4: | E43: 0 | M43: V hornině tř. 4:
C44: Výtlak VA PE D 110x10,0 mm - řízený protlak:62,700*0,34 | E44: 21.318 | M44: Výtlak VA PE D 110x10,0 mm - řízený protlak:62,700*0,34
C45: Výtlak VA PE D 110x10,0 mm - rýha - souběh s kanalizační stokou:944,80*0,34 | E45: 321.232 | M45: Výtlak VA PE D 110x10,0 mm - rýha - souběh s kanalizační stokou:944,80*0,34
C46: Výtlak VC PE D 90x8,2 mm - rýha:227,2000*0,26 | E46: 59.072 | M46: Výtlak VC PE D 90x8,2 mm - rýha:227,2000*0,26
C47: Výtlak V-AE PE D 90x8,2 mm - rýha:134,4000*0,44 | E47: 59.136 | M47: Výtlak V-AE PE D 90x8,2 mm - rýha:134,4000*0,44
A48: 6 | B48: 132301219R00 | C48: Přípl.za lepivost,hloubení rýh 200cm,hor.4,STROJNĚ | D48: m3 | E48: 230.379 | G48: =E48*F48 -> 0 | H48: 0 | I48: =E48*H48 -> 0 | J48: 0 | K48: =E48*J48 -> 0 | O48: 2 | AA48: 1 | AB48: 1 | AC48: 1 | AZ48: 1 | BA48: =IF(AZ48=1,G48,0) -> 0 | BB48: =IF(AZ48=2,G48,0) -> 0 | BC48: =IF(AZ48=3,G48,0) -> 0 | BD48: =IF(AZ48=4,G48,0) -> 0 | BE48: =IF(AZ48=5,G48,0) -> 0 | CA48: 1 | CB48: 1
C49: V hornině tř. 4: | E49: 0 | M49: V hornině tř. 4:
C50: Výtlak VA PE D 110x10,0 mm - řízený protlak:62,700*0,34*0,5 | E50: 10.659 | M50: Výtlak VA PE D 110x10,0 mm - řízený protlak:62,700*0,34*0,5
C51: Výtlak VA PE D 110x10,0 mm - rýha - souběh s kanalizační stokou:944,80*0,34*0,5 | E51: 160.616 | M51: Výtlak VA PE D 110x10,0 mm - rýha - souběh s kanalizační stokou:944,80*0,34*0,5
C52: Výtlak VC PE D 90x8,2 mm - rýha:227,2000*0,26*0,5 | E52: 29.536 | M52: Výtlak VC PE D 90x8,2 mm - rýha:227,2000*0,26*0,5
C53: Výtlak V-AE PE D 90x8,2 mm - rýha:134,4000*0,44*0,5 | E53: 29.568 | M53: Výtlak V-AE PE D 90x8,2 mm - rýha:134,4000*0,44*0,5
A54: 7 | B54: 132401211RRX | C54: Hloubení rýh šířky do 200 cm v hor.5, STROJNĚ | D54: m3 | E54: 327.491 | G54: =E54*F54 -> 0 | H54: 0 | I54: =E54*H54 -> 0 | J54: 0 | K54: =E54*J54 -> 0 | O54: 2 | AA54: 1 | AB54: 1 | AC54: 1 | AZ54: 1 | BA54: =IF(AZ54=1,G54,0) -> 0 | BB54: =IF(AZ54=2,G54,0) -> 0 | BC54: =IF(AZ54=3,G54,0) -> 0 | BD54: =IF(AZ54=4,G54,0) -> 0 | BE54: =IF(AZ54=5,G54,0) -> 0 | CA54: 1 | CB54: 1
C55: Položka obsahuje hloubení rýh traktorbagrem, naložení výkopku na dopravní prostředek pro svislé, nebo vodorovné přemístění, popř. přemístění výkopku do 3 m (po povrchu území), případné zajištění rypadel polštáři, udržování pracoviště a ochranu výkopiště proti stékání srážkové vody z okolního terénu i s jejím odvodněním, nebo odvedením, přesekání a odstranění kořenů ve výkopišti, odstranění napadávek, urovnání dna výkopu. | L55: Položka obsahuje hloubení rýh traktorbagrem, naložení výkopku na dopravní prostředek pro svislé, nebo vodorovné přemístění, popř. přemístění výkopku do 3 m (po povrchu území), případné zajištění rypadel polštáři, udržování pracoviště a ochranu výkopiště proti stékání srážkové vody z okolního terénu i s jejím odvodněním, nebo odvedením, přesekání a odstranění kořenů ve výkopišti, odstranění napadávek, urovnání dna výkopu. | O55: 3
C56: Součástí položky je i pažení výkopů dle zvolené technologie zhotovitelem a v souladu s předpisy BOZP. | L56: Součástí položky je i pažení výkopů dle zvolené technologie zhotovitelem a v souladu s předpisy BOZP. | O56: 3
C57: Součástí položky je i případné dolamování horniny v prostoru rýhy. | L57: Součástí položky je i případné dolamování horniny v prostoru rýhy. | O57: 3
C58: V hornině tř. 5: | E58: 0 | M58: V hornině tř. 5:
C59: Výtlak VA PE D 110x10,0 mm - řízený protlak:62,700*0,25 | E59: 15.675 | M59: Výtlak VA PE D 110x10,0 mm - řízený protlak:62,700*0,25
C60: Výtlak VA PE D 110x10,0 mm - rýha - souběh s kanalizační stokou:944,80*0,25 | E60: 236.2 | M60: Výtlak VA PE D 110x10,0 mm - rýha - souběh s kanalizační stokou:944,80*0,25
C61: Výtlak VC PE D 90x8,2 mm - rýha:227,2000*0,25 | E61: 56.8 | M61: Výtlak VC PE D 90x8,2 mm - rýha:227,2000*0,25
C62: Výtlak V-AE PE D 90x8,2 mm - rýha:134,4000*0,14 | E62: 18.816 | M62: Výtlak V-AE PE D 90x8,2 mm - rýha:134,4000*0,14
A63: 8 | B63: 132501211RRX | C63: Hloubení rýh šířky do 200 cm v hor.6, STROJNĚ | D63: m3 | E63: 63.34 | G63: =E63*F63 -> 0 | H63: 0 | I63: =E63*H63 -> 0 | J63: 0 | K63: =E63*J63 -> 0 | O63: 2 | AA63: 1 | AB63: 1 | AC63: 1 | AZ63: 1 | BA63: =IF(AZ63=1,G63,0) -> 0 | BB63: =IF(AZ63=2,G63,0) -> 0 | BC63: =IF(AZ63=3,G63,0) -> 0 | BD63: =IF(AZ63=4,G63,0) -> 0 | BE63: =IF(AZ63=5,G63,0) -> 0 | CA63: 1 | CB63: 1
C64: Položka obsahuje hloubení rýh traktorbagrem, naložení výkopku na dopravní prostředek pro svislé, nebo vodorovné přemístění, popř. přemístění výkopku do 3 m (po povrchu území), případné zajištění rypadel polštáři, udržování pracoviště a ochranu výkopiště proti stékání srážkové vody z okolního terénu i s jejím odvodněním, nebo odvedením, přesekání a odstranění kořenů ve výkopišti, odstranění napadávek, urovnání dna výkopu. | L64: Položka obsahuje hloubení rýh traktorbagrem, naložení výkopku na dopravní prostředek pro svislé, nebo vodorovné přemístění, popř. přemístění výkopku do 3 m (po povrchu území), případné zajištění rypadel polštáři, udržování pracoviště a ochranu výkopiště proti stékání srážkové vody z okolního terénu i s jejím odvodněním, nebo odvedením, přesekání a odstranění kořenů ve výkopišti, odstranění napadávek, urovnání dna výkopu. | O64: 3
C65: Součástí položky je i pažení výkopů dle zvolené technologie zhotovitelem a v souladu s předpisy BOZP. | L65: Součástí položky je i pažení výkopů dle zvolené technologie zhotovitelem a v souladu s předpisy BOZP. | O65: 3
C66: Součástí položky je i případné dolamování horniny v prostoru rýhy. | L66: Součástí položky je i případné dolamování horniny v prostoru rýhy. | O66: 3
C67: V hornině tř. 6: | E67: 0 | M67: V hornině tř. 6:
C68: Výtlak VA PE D 110x10,0 mm - řízený protlak:62,700*0,04 | E68: 2.508 | M68: Výtlak VA PE D 110x10,0 mm - řízený protlak:62,700*0,04
C69: Výtlak VA PE D 110x10,0 mm - rýha - souběh s kanalizační stokou:944,80*0,04 | E69: 37.792 | M69: Výtlak VA PE D 110x10,0 mm - rýha - souběh s kanalizační stokou:944,80*0,04
C70: Výtlak VC PE D 90x8,2 mm - rýha:227,2000*0,06 | E70: 13.632 | M70: Výtlak VC PE D 90x8,2 mm - rýha:227,2000*0,06
C71: Výtlak V-AE PE D 90x8,2 mm - rýha:134,4000*0,07 | E71: 9.408 | M71: Výtlak V-AE PE D 90x8,2 mm - rýha:134,4000*0,07
A72: 9 | B72: 141700106RRX | C72: Protlak neřízený z trub D 200 mm v hor.1 - 6 | D72: m | E72: 9.6 | G72: =E72*F72 -> 0 | H72: 0.00726 | I72: =E72*H72 -> 0.069696 | J72: 0 | K72: =E72*J72 -> 0 | O72: 2 | AA72: 1 | AB72: 1 | AC72: 1 | AZ72: 1 | BA72: =IF(AZ72=1,G72,0) -> 0 | BB72: =IF(AZ72=2,G72,0) -> 0 | BC72: =IF(AZ72=3,G72,0) -> 0 | BD72: =IF(AZ72=4,G72,0) -> 0 | BE72: =IF(AZ72=5,G72,0) -> 0 | CA72: 1 | CB72: 1
C73: Položka obsahuje náklady na spojování protlačovaných trub, zřízení a odstranění podlahy a podpěrné konstrukce pro protlačovací zařízení, úpravu čela potrubí pro protlačení, případně vodorovné přemístění výkopku z protlačovaného potrubí a svislé přemístění výkopku z montážní jámy na přilehlé území. | L73: Položka obsahuje náklady na spojování protlačovaných trub, zřízení a odstranění podlahy a podpěrné konstrukce pro protlačovací zařízení, úpravu čela potrubí pro protlačení, případně vodorovné přemístění výkopku z protlačovaného potrubí a svislé přemístění výkopku z montážní jámy na přilehlé území. | O73: 3
C74: Výtlak VC PE D 90x8,2 mm: | E74: 0 | M74: Výtlak VC PE D 90x8,2 mm:
C75: Chránička OC D 194/10:9,60 | E75: 9.6 | M75: Chránička OC D 194/10:9,60
A76: 10 | B76: 141721101RRX | C76: Řízené protlačení (vrtání) a vtažení PE d 110 mm v hor.1 - 6 | D76: m | E76: 428.85 | G76: =E76*F76 -> 0 | H76: 0.00348 | I76: =E76*H76 -> 1.492398 | J76: 0 | K76: =E76*J76 -> 0 | O76: 2 | AA76: 1 | AB76: 1 | AC76: 1 | AZ76: 1 | BA76: =IF(AZ76=1,G76,0) -> 0 | BB76: =IF(AZ76=2,G76,0) -> 0 | BC76: =IF(AZ76=3,G76,0) -> 0 | BD76: =IF(AZ76=4,G76,0) -> 0 | BE76: =IF(AZ76=5,G76,0) -> 0 | CA76: 1 | CB76: 1
C77: Jedná se o bezvýkopovou technologii horizontálně řízeného vrtání a vtažení potrubí na principu rozplavování a rozrušování zeminy pomocí vysokotlaké směsi vody a bentonitu. | L77: Jedná se o bezvýkopovou technologii horizontálně řízeného vrtání a vtažení potrubí na principu rozplavování a rozrušování zeminy pomocí vysokotlaké směsi vody a bentonitu. | O77: 3
C78: V položce je započteno : - provedení pilotního vrtu, | L78: V položce je započteno : - provedení pilotního vrtu, | O78: 3
C79: - potřebné rozšíření vrtu, | L79: - potřebné rozšíření vrtu, | O79: 3
C80: - vtažení potrubí, | L80: - vtažení potrubí, | O80: 3
C81: - svařování vtahovaného potrubí. | L81: - svařování vtahovaného potrubí. | O81: 3
C82: V položce není započteno: - zemní práce nutné pro provedení prací, | L82: V položce není započteno: - zemní práce nutné pro provedení prací, | O82: 3
C83: - případné čerpání vody, | L83: - případné čerpání vody, | O83: 3
C84: - montáž vedení, slouží-li vtahovaná trubka jako ochranné potrubí, | L84: - montáž vedení, slouží-li vtahovaná trubka jako ochranné potrubí, | O84: 3
C85: - dodání vtahovaných trubek. | L85: - dodání vtahovaných trubek. | O85: 3
C86: Výtlak VA D 110x10,0 mm:428,85 | E86: 428.85 | M86: Výtlak VA D 110x10,0 mm:428,85
A87: 11 | B87: 162601102RX0 | C87: Vodorovné přemístění výkopku z hor.1-7 na skládku zhotovitele | D87: m3 | E87: 1332.35 | G87: =E87*F87 -> 0 | H87: 0 | I87: =E87*H87 -> 0 | J87: 0 | K87: =E87*J87 -> 0 | O87: 2 | AA87: 1 | AB87: 1 | AC87: 1 | AZ87: 1 | BA87: =IF(AZ87=1,G87,0) -> 0 | BB87: =IF(AZ87=2,G87,0) -> 0 | BC87: =IF(AZ87=3,G87,0) -> 0 | BD87: =IF(AZ87=4,G87,0) -> 0 | BE87: =IF(AZ87=5,G87,0) -> 0 | CA87: 1 | CB87: 1
C88: Výkopy: | E88: 0 | M88: Výkopy:
C89: Začátek provozního součtu | E89: 0 | M89: Začátek provozního součtu
C90: Výtlak VA PE D 110x10,0 mm - řízený protlak:62,70 | E90: 62.7 | M90: Výtlak VA PE D 110x10,0 mm - řízený protlak:62,70
C91: Výtlak VA PE D 110x10,0 mm - rýha - souběh s kanalizační stokou:944,80 | E91: 944.8 | M91: Výtlak VA PE D 110x10,0 mm - rýha - souběh s kanalizační stokou:944,80
C92: Výtlak VC PE D 90x8,2 mm - rýha:227,2000 | E92: 227.2 | M92: Výtlak VC PE D 90x8,2 mm - rýha:227,2000
C93: Výtlak VE PE D 90x8,2 mm - rýha:134,4000 | E93: 134.4 | M93: Výtlak VE PE D 90x8,2 mm - rýha:134,4000
C94: Konec provozního součtu | E94: 1369.1 | M94: Konec provozního součtu
C95: V hornině tř. 2 - 6:1369,1000 | E95: 1369.1 | M95: V hornině tř. 2 - 6:1369,1000
C96: Odpočet zásypů zeminou:-36,7500 | E96: -36.75 | M96: Odpočet zásypů zeminou:-36,7500
A97: 12 | B97: 174100050RAB | C97: Zásyp jam,rýh a šachet štěrkodrtí fr. 0-63 mm včetně dodávky štěrkodrtě | D97: m3 | E97: 728.0921 | G97: =E97*F97 -> 0 | H97: 0 | I97: =E97*H97 -> 0 | J97: 0 | K97: =E97*J97 -> 0 | O97: 2 | AA97: 1 | AB97: 1 | AC97: 1 | AZ97: 1 | BA97: =IF(AZ97=1,G97,0) -> 0 | BB97: =IF(AZ97=2,G97,0) -> 0 | BC97: =IF(AZ97=3,G97,0) -> 0 | BD97: =IF(AZ97=4,G97,0) -> 0 | BE97: =IF(AZ97=5,G97,0) -> 0 | CA97: 1 | CB97: 1
C98: Výkopy: | E98: 0 | M98: Výkopy:
C99: Začátek provozního součtu | E99: 0 | M99: Začátek provozního součtu
C100: Výtlak VA PE D 110x10,0 mm - rýha - souběh s kanalizační stokou:944,8000 | E100: 944.8 | M100: Výtlak VA PE D 110x10,0 mm - rýha - souběh s kanalizační stokou:944,8000
C101: Výtlak VC PE D 90x8,2 mm - rýha:227,2000 | E101: 227.2 | M101: Výtlak VC PE D 90x8,2 mm - rýha:227,2000
C102: Výtlak VE PE D 90x8,2 mm - rýha:134,4000 | E102: 134.4 | M102: Výtlak VE PE D 90x8,2 mm - rýha:134,4000
C103: Konec provozního součtu | E103: 1306.4 | M103: Konec provozního součtu
C104: V hornině tř. 2 - 6:1306,4000 | E104: 1306.4 | M104: V hornině tř. 2 - 6:1306,4000
C105: Odpočet lože, potrubí a obsypů:-125,6187 | E105: -125.6187 | M105: Odpočet lože, potrubí a obsypů:-125,6187
C106: Výtlak VA PE D 110x10,0 mm - rýha - souběh s kanalizační stokou:-1180,89*0,50*(0,15+0,11+0,30) | E106: -330.6492 | M106: Výtlak VA PE D 110x10,0 mm - rýha - souběh s kanalizační stokou:-1180,89*0,50*(0,15+0,11+0,30)
C107: Výtlak VC PE D 90x8,2 mm - rýha:-177,50*0,80*(0,15+0,09+0,30) | E107: -76.68 | M107: Výtlak VC PE D 90x8,2 mm - rýha:-177,50*0,80*(0,15+0,09+0,30)
C108: Výtlak VE PE D 90x8,2 mm - rýha:-105,00*0,80*(0,15+0,09+0,30) | E108: -45.36 | M108: Výtlak VE PE D 90x8,2 mm - rýha:-105,00*0,80*(0,15+0,09+0,30)
A109: 13 | B109: 174101101R00 | C109: Zásyp jam, rýh, šachet se zhutněním | D109: m3 | E109: 36.75 | G109: =E109*F109 -> 0 | H109: 0 | I109: =E109*H109 -> 0 | J109: 0 | K109: =E109*J109 -> 0 | O109: 2 | AA109: 1 | AB109: 1 | AC109: 1 | AZ109: 1 | BA109: =IF(AZ109=1,G109,0) -> 0 | BB109: =IF(AZ109=2,G109,0) -> 0 | BC109: =IF(AZ109=3,G109,0) -> 0 | BD109: =IF(AZ109=4,G109,0) -> 0 | BE109: =IF(AZ109=5,G109,0) -> 0 | CA109: 1 | CB109: 1
C110: Položka obsahuje strojní přemístění materiálu pro zásyp ze vzdálenosti do 10 m od okraje zásypu. | L110: Položka obsahuje strojní přemístění materiálu pro zásyp ze vzdálenosti do 10 m od okraje zásypu. | O110: 3
C111: Výtlak VA PE D 110x10,0 mm - řízený protlak:36,7500 | E111: 36.75 | M111: Výtlak VA PE D 110x10,0 mm - řízený protlak:36,7500
A112: 14 | B112: 175100020RAB | C112: Obsyp potrubí štěrkopískem včetně dodávka štěrkopísku | D112: m3 | E112: 330.5329 | G112: =E112*F112 -> 0 | H112: 0 | I112: =E112*H112 -> 0 | J112: 0 | K112: =E112*J112 -> 0 | O112: 2 | AA112: 1 | AB112: 1 | AC112: 1 | AZ112: 1 | BA112: =IF(AZ112=1,G112,0) -> 0 | BB112: =IF(AZ112=2,G112,0) -> 0 | BC112: =IF(AZ112=3,G112,0) -> 0 | BD112: =IF(AZ112=4,G112,0) -> 0 | BE112: =IF(AZ112=5,G112,0) -> 0 | CA112: 1 | CB112: 1
C113: Výtlak VA PE D 110x10,0 mm - řízený protlak:13,3300 | E113: 13.33 | M113: Výtlak VA PE D 110x10,0 mm - řízený protlak:13,3300
C114: Výtlak VA PE D 110x10,0 mm - rýha - souběh s kanalizační stokou:1180,89*(0,50*(0,11+0,30)-0,055^2*Pi) | E114: 230.8601 | M114: Výtlak VA PE D 110x10,0 mm - rýha - souběh s kanalizační stokou:1180,89*(0,50*(0,11+0,30)-0,055^2*Pi)
C115: Výtlak VC PE D 90x8,2 mm - rýha:177,50*(0,80*(0,09+0,30)-0,045^2*Pi) | E115: 54.2508 | M115: Výtlak VC PE D 90x8,2 mm - rýha:177,50*(0,80*(0,09+0,30)-0,045^2*Pi)
C116: Výtlak VE PE D 90x8,2 mm - rýha:105,00*(0,80*(0,09+0,30)-0,045^2*Pi) | E116: 32.092 | M116: Výtlak VE PE D 90x8,2 mm - rýha:105,00*(0,80*(0,09+0,30)-0,045^2*Pi)
A117: 15 | B117: 199000002RX0 | C117: Poplatek za skládku horniny 1- 7 | D117: m3 | E117: 1332.35 | G117: =E117*F117 -> 0 | H117: 0 | I117: =E117*H117 -> 0 | J117: 0 | K117: =E117*J117 -> 0 | O117: 2 | AA117: 1 | AB117: 1 | AC117: 1 | AZ117: 1 | BA117: =IF(AZ117=1,G117,0) -> 0 | BB117: =IF(AZ117=2,G117,0) -> 0 | BC117: =IF(AZ117=3,G117,0) -> 0 | BD117: =IF(AZ117=4,G117,0) -> 0 | BE117: =IF(AZ117=5,G117,0) -> 0 | CA117: 1 | CB117: 1
C118: Výkopy: | E118: 0 | M118: Výkopy:
C119: Začátek provozního součtu | E119: 0 | M119: Začátek provozního součtu
C120: Výtlak VA PE D 110x10,0 mm - řízený protlak:62,70 | E120: 62.7 | M120: Výtlak VA PE D 110x10,0 mm - řízený protlak:62,70
C121: Výtlak VA PE D 110x10,0 mm - rýha - souběh s kanalizační stokou:944,80 | E121: 944.8 | M121: Výtlak VA PE D 110x10,0 mm - rýha - souběh s kanalizační stokou:944,80
C122: Výtlak VC PE D 90x8,2 mm - rýha:227,2000 | E122: 227.2 | M122: Výtlak VC PE D 90x8,2 mm - rýha:227,2000
C123: Výtlak VE PE D 90x8,2 mm - rýha:134,4000 | E123: 134.4 | M123: Výtlak VE PE D 90x8,2 mm - rýha:134,4000
C124: Konec provozního součtu | E124: 1369.1 | M124: Konec provozního součtu
C125: V hornině tř. 2 - 6:1369,1000 | E125: 1369.1 | M125: V hornině tř. 2 - 6:1369,1000
C126: Odpočet zásypů zeminou:-36,7500 | E126: -36.75 | M126: Odpočet zásypů zeminou:-36,7500
A127: 16 | B127: 14221224.R | C127: Trubka bezešvá hladká 11353.1 D 194x10,0 mm | D127: m | E127: 10.56 | G127: =E127*F127 -> 0 | H127: 0.0454 | I127: =E127*H127 -> 0.479424 | K127: =E127*J127 -> 0 | O127: 2 | AA127: 3 | AB127: 1 | AC127: 14221224.R | AZ127: 1 | BA127: =IF(AZ127=1,G127,0) -> 0 | BB127: =IF(AZ127=2,G127,0) -> 0 | BC127: =IF(AZ127=3,G127,0) -> 0 | BD127: =IF(AZ127=4,G127,0) -> 0 | BE127: =IF(AZ127=5,G127,0) -> 0 | CA127: 3 | CB127: 1
C128: Součástí položky je dodávka a montář těsnících manžet a kluzných vymezovacích objímek RACI v počtu dle PD | L128: Součástí položky je dodávka a montář těsnících manžet a kluzných vymezovacích objímek RACI v počtu dle PD | O128: 3
C129: Výtlak VC PE D 90x8,2 mm: | E129: 0 | M129: Výtlak VC PE D 90x8,2 mm:
C130: Chránička OC D 194/10:9,60*1,1 | E130: 10.56 | M130: Chránička OC D 194/10:9,60*1,1
A131: 17 | B131: 286134456.R | C131: Trubka tlaková PE100RC D.SDR11 110x10 mm návin kanalizace | D131: m | E131: 435.2827 | G131: =E131*F131 -> 0 | H131: 0.00212 | I131: =E131*H131 -> 0.922799324 | K131: =E131*J131 -> 0 | O131: 2 | AA131: 3 | AB131: 1 | AC131: 286134456.R | AZ131: 1 | BA131: =IF(AZ131=1,G131,0) -> 0 | BB131: =IF(AZ131=2,G131,0) -> 0 | BC131: =IF(AZ131=3,G131,0) -> 0 | BD131: =IF(AZ131=4,G131,0) -> 0 | BE131: =IF(AZ131=5,G131,0) -> 0 | CA131: 3 | CB131: 1
C132: Trubky kanalizační z PE100 K podle ČSN EN 12201 s ochranným pláštěm | L132: Trubky kanalizační z PE100 K podle ČSN EN 12201 s ochranným pláštěm | O132: 3
C133: K vnitřní trubka černá s hnědými pruhy | L133: K vnitřní trubka černá s hnědými pruhy | O133: 3
C134: vnější ochranná vrstva z modifikovaného PE barvy hnědé s integrovaným vodičem. | L134: vnější ochranná vrstva z modifikovaného PE barvy hnědé s integrovaným vodičem. | O134: 3
O135: 3
C136: Výtlak VA D 110x10,0 mm:428,85*1,015 | E136: 435.2827 | M136: Výtlak VA D 110x10,0 mm:428,85*1,015
B137: Celkem za | C137: 1 Zemní práce | G137: =SUM(G7:G136) -> 0 | I137: =SUM(I7:I136) -> 2.964317324 | K137: =SUM(K7:K136) -> 0 | O137: 4 | BA137: =SUM(BA7:BA136) -> 0 | BB137: =SUM(BB7:BB136) -> 0 | BC137: =SUM(BC7:BC136) -> 0 | BD137: =SUM(BD7:BD136) -> 0 | BE137: =SUM(BE7:BE136) -> 0
A138: Díl: | B138: 45 | C138: Podkladní a vedlejší konstrukce | O138: 1
A139: 18 | B139: 451572111R00 | C139: Lože pod potrubí z kameniva těženého 0 - 4 mm | D139: m3 | E139: 127.4667 | G139: =E139*F139 -> 0 | H139: 1.873 | I139: =E139*H139 -> 238.7451291 | J139: 0 | K139: =E139*J139 -> 0 | O139: 2 | AA139: 1 | AB139: 1 | AC139: 1 | AZ139: 1 | BA139: =IF(AZ139=1,G139,0) -> 0 | BB139: =IF(AZ139=2,G139,0) -> 0 | BC139: =IF(AZ139=3,G139,0) -> 0 | BD139: =IF(AZ139=4,G139,0) -> 0 | BE139: =IF(AZ139=5,G139,0) -> 0 | CA139: 1 | CB139: 1
C140: Výtlak VA PE D 110x10,0 mm - řízený protlak:5,00 | E140: 5 | M140: Výtlak VA PE D 110x10,0 mm - řízený protlak:5,00
C141: Výtlak VA PE D 110x10,0 mm - rýha - souběh s kanalizační stokou:1180,89*0,50*0,15 | E141: 88.5667 | M141: Výtlak VA PE D 110x10,0 mm - rýha - souběh s kanalizační stokou:1180,89*0,50*0,15
C142: Výtlak VC PE D 90x8,2 mm - rýha:177,50*0,80*0,15 | E142: 21.3 | M142: Výtlak VC PE D 90x8,2 mm - rýha:177,50*0,80*0,15
C143: Výtlak V-AE PE D 90x8,2 mm - rýha:105,00*0,80*0,15 | E143: 12.6 | M143: Výtlak V-AE PE D 90x8,2 mm - rýha:105,00*0,80*0,15
A144: 19 | B144: 452313131RRX | C144: Bloky pro potrubí z betonu C 12/15 včetně nutného bednění | D144: m3 | E144: 1.668 | G144: =E144*F144 -> 0 | H144: 2.355 | I144: =E144*H144 -> 3.92814 | J144: 0 | K144: =E144*J144 -> 0 | O144: 2 | AA144: 1 | AB144: 1 | AC144: 1 | AZ144: 1 | BA144: =IF(AZ144=1,G144,0) -> 0 | BB144: =IF(AZ144=2,G144,0) -> 0 | BC144: =IF(AZ144=3,G144,0) -> 0 | BD144: =IF(AZ144=4,G144,0) -> 0 | BE144: =IF(AZ144=5,G144,0) -> 0 | CA144: 1 | CB144: 1
B145: Celkem za | C145: 45 Podkladní a vedlejší konstrukce | G145: =SUM(G138:G144) -> 0 | I145: =SUM(I138:I144) -> 242.6732691 | K145: =SUM(K138:K144) -> 0 | O145: 4 | BA145: =SUM(BA138:BA144) -> 0 | BB145: =SUM(BB138:BB144) -> 0 | BC145: =SUM(BC138:BC144) -> 0 | BD145: =SUM(BD138:BD144) -> 0 | BE145: =SUM(BE138:BE144) -> 0
A146: Díl: | B146: 8 | C146: Trubní vedení | O146: 1
A147: 20 | B147: 857242121R00 | C147: Montáž tvarovek litin. jednoos.přír. výkop DN 80 včetně nerezových spoj. prvků a obandážování spoje | D147: kus | E147: 7 | G147: =E147*F147 -> 0 | H147: 0.00022 | I147: =E147*H147 -> 0.00154 | J147: 0 | K147: =E147*J147 -> 0 | O147: 2 | AA147: 1 | AB147: 1 | AC147: 1 | AZ147: 1 | BA147: =IF(AZ147=1,G147,0) -> 0 | BB147: =IF(AZ147=2,G147,0) -> 0 | BC147: =IF(AZ147=3,G147,0) -> 0 | BD147: =IF(AZ147=4,G147,0) -> 0 | BE147: =IF(AZ147=5,G147,0) -> 0 | CA147: 1 | CB147: 1
C148: Položka je určena pro montáž litinových tvarovek na potrubí litinovém tlakovém přírubovém jednoosých v otevřeném výkopu, v otevřeném kanálu nebo v šachtě. | L148: Položka je určena pro montáž litinových tvarovek na potrubí litinovém tlakovém přírubovém jednoosých v otevřeném výkopu, v otevřeném kanálu nebo v šachtě. | O148: 3
C149: Výtlaky VA, VC a V-AE: | E149: 0 | M149: Výtlaky VA, VC a V-AE:
C150: Jištěná příruba DN80:3 | E150: 3 | M150: Jištěná příruba DN80:3
C151: FF DN80/250:2 | E151: 2 | M151: FF DN80/250:2
C152: FF DN80/600:1 | E152: 1 | M152: FF DN80/600:1
C153: N DN80:1 | E153: 1 | M153: N DN80:1
A154: 21 | B154: 857244121R00 | C154: Montáž tvarovek litin. odboč. přír. výkop DN 80 včetně nerezových spoj. prvků a obandážování spoje | D154: kus | E154: 1 | G154: =E154*F154 -> 0 | H154: 0.00032 | I154: =E154*H154 -> 0.00032 | J154: 0 | K154: =E154*J154 -> 0 | O154: 2 | AA154: 1 | AB154: 1 | AC154: 1 | AZ154: 1 | BA154: =IF(AZ154=1,G154,0) -> 0 | BB154: =IF(AZ154=2,G154,0) -> 0 | BC154: =IF(AZ154=3,G154,0) -> 0 | BD154: =IF(AZ154=4,G154,0) -> 0 | BE154: =IF(AZ154=5,G154,0) -> 0 | CA154: 1 | CB154: 1
C155: Položka je určena pro montáž litinových tvarovek na potrubí litinovém tlakovém přírubovém odbočných v otevřeném výkopu, v otevřeném kanálu nebo v šachtě. | L155: Položka je určena pro montáž litinových tvarovek na potrubí litinovém tlakovém přírubovém odbočných v otevřeném výkopu, v otevřeném kanálu nebo v šachtě. | O155: 3
C156: Výtlaky VA, VC a V-AE: | E156: 0 | M156: Výtlaky VA, VC a V-AE:
C157: T DN80/50:1 | E157: 1 | M157: T DN80/50:1
A158: 22 | B158: 857262121R00 | C158: Montáž tvarovek litin. jednoos. přír. výkop DN 100 včetně nerezových spoj. prvků a obandážování spoje | D158: kus | E158: 5 | G158: =E158*F158 -> 0 | H158: 0.00041 | I158: =E158*H158 -> 0.00205 | J158: 0 | K158: =E158*J158 -> 0 | O158: 2 | AA158: 1 | AB158: 1 | AC158: 1 | AZ158: 1 | BA158: =IF(AZ158=1,G158,0) -> 0 | BB158: =IF(AZ158=2,G158,0) -> 0 | BC158: =IF(AZ158=3,G158,0) -> 0 | BD158: =IF(AZ158=4,G158,0) -> 0 | BE158: =IF(AZ158=5,G158,0) -> 0 | CA158: 1 | CB158: 1
C159: Položka je určena pro montáž litinových tvarovek na potrubí litinovém tlakovém přírubovém jednoosých v otevřeném výkopu, v otevřeném kanálu nebo v šachtě. | L159: Položka je určena pro montáž litinových tvarovek na potrubí litinovém tlakovém přírubovém jednoosých v otevřeném výkopu, v otevřeném kanálu nebo v šachtě. | O159: 3
C160: Výtlaky VA, VC a V-AE: | E160: 0 | M160: Výtlaky VA, VC a V-AE:
C161: Jištěná příruba DN100:2 | E161: 2 | M161: Jištěná příruba DN100:2
C162: FF DN100/600:3 | E162: 3 | M162: FF DN100/600:3
A163: 23 | B163: 857264121R00 | C163: Montáž tvarovek litin. odboč. přír. výkop DN 100 včetně nerezových spoj. prvků a obandážování spoje | D163: kus | E163: 2 | G163: =E163*F163 -> 0 | H163: 0.00062 | I163: =E163*H163 -> 0.00124 | J163: 0 | K163: =E163*J163 -> 0 | O163: 2 | AA163: 1 | AB163: 1 | AC163: 1 | AZ163: 1 | BA163: =IF(AZ163=1,G163,0) -> 0 | BB163: =IF(AZ163=2,G163,0) -> 0 | BC163: =IF(AZ163=3,G163,0) -> 0 | BD163: =IF(AZ163=4,G163,0) -> 0 | BE163: =IF(AZ163=5,G163,0) -> 0 | CA163: 1 | CB163: 1
C164: Položka je určena pro montáž litinových tvarovek na potrubí litinovém tlakovém přírubovém odbočných v otevřeném výkopu, v otevřeném kanálu nebo v šachtě. | L164: Položka je určena pro montáž litinových tvarovek na potrubí litinovém tlakovém přírubovém odbočných v otevřeném výkopu, v otevřeném kanálu nebo v šachtě. | O164: 3
C165: Výtlaky VA, VC a V-AE: | E165: 0 | M165: Výtlaky VA, VC a V-AE:
C166: T DN100/50:1 | E166: 1 | M166: T DN100/50:1
C167: T DN100/80:1 | E167: 1 | M167: T DN100/80:1
A168: 24 | B168: 871241121R00 | C168: Montáž potrubí polyetylenového ve výkopu d 90 mm | D168: m | E168: 282.5 | G168: =E168*F168 -> 0 | H168: 0 | I168: =E168*H168 -> 0 | J168: 0 | K168: =E168*J168 -> 0 | O168: 2 | AA168: 1 | AB168: 1 | AC168: 1 | AZ168: 1 | BA168: =IF(AZ168=1,G168,0) -> 0 | BB168: =IF(AZ168=2,G168,0) -> 0 | BC168: =IF(AZ168=3,G168,0) -> 0 | BD168: =IF(AZ168=4,G168,0) -> 0 | BE168: =IF(AZ168=5,G168,0) -> 0 | CA168: 1 | CB168: 1
C169: V položce je uvažováno s jedním spojem na 6 m potrubí. | L169: V položce je uvažováno s jedním spojem na 6 m potrubí. | O169: 3
C170: Výtlak VC PE D 90x8,2 mm:177,50 | E170: 177.5 | M170: Výtlak VC PE D 90x8,2 mm:177,50
C171: Výtlak V-AE PE D 90x8,2 mm:105,00 | E171: 105 | M171: Výtlak V-AE PE D 90x8,2 mm:105,00
A172: 25 | B172: 871251121R00 | C172: Montáž trubek polyetylenových ve výkopu d 110 mm | D172: m | E172: 1180.89 | G172: =E172*F172 -> 0 | H172: 0 | I172: =E172*H172 -> 0 | J172: 0 | K172: =E172*J172 -> 0 | O172: 2 | AA172: 1 | AB172: 1 | AC172: 1 | AZ172: 1 | BA172: =IF(AZ172=1,G172,0) -> 0 | BB172: =IF(AZ172=2,G172,0) -> 0 | BC172: =IF(AZ172=3,G172,0) -> 0 | BD172: =IF(AZ172=4,G172,0) -> 0 | BE172: =IF(AZ172=5,G172,0) -> 0 | CA172: 1 | CB172: 1
C173: V položce je uvažováno s jedním spojem na 6 m potrubí včetně montáže elektrotvarovek. | L173: V položce je uvažováno s jedním spojem na 6 m potrubí včetně montáže elektrotvarovek. | O173: 3
C174: Výtlak VA PE D 110x10,0 mm:1180,89 | E174: 1180.89 | M174: Výtlak VA PE D 110x10,0 mm:1180,89
A175: 26 | B175: 871812111R00 | C175: Příplatek za zaměření GPS během pokládky | D175: m | E175: 428.85 | G175: =E175*F175 -> 0 | H175: 0 | I175: =E175*H175 -> 0 | J175: 0 | K175: =E175*J175 -> 0 | O175: 2 | AA175: 1 | AB175: 1 | AC175: 1 | AZ175: 1 | BA175: =IF(AZ175=1,G175,0) -> 0 | BB175: =IF(AZ175=2,G175,0) -> 0 | BC175: =IF(AZ175=3,G175,0) -> 0 | BD175: =IF(AZ175=4,G175,0) -> 0 | BE175: =IF(AZ175=5,G175,0) -> 0 | CA175: 1 | CB175: 1
C176: Výtlak VA PE D 110x10,0 mm - řízený protlak:428,85 | E176: 428.85 | M176: Výtlak VA PE D 110x10,0 mm - řízený protlak:428,85
A177: 27 | B177: 871812112R00 | C177: Příplatek za položení signalizačního vodiče | D177: m | E177: 428.85 | G177: =E177*F177 -> 0 | H177: 0 | I177: =E177*H177 -> 0 | J177: 0 | K177: =E177*J177 -> 0 | O177: 2 | AA177: 1 | AB177: 1 | AC177: 1 | AZ177: 1 | BA177: =IF(AZ177=1,G177,0) -> 0 | BB177: =IF(AZ177=2,G177,0) -> 0 | BC177: =IF(AZ177=3,G177,0) -> 0 | BD177: =IF(AZ177=4,G177,0) -> 0 | BE177: =IF(AZ177=5,G177,0) -> 0 | CA177: 1 | CB177: 1
C178: Výtlak VA PE D 110x10,0 mm - řízený protlak:428,85 | E178: 428.85 | M178: Výtlak VA PE D 110x10,0 mm - řízený protlak:428,85
A179: 28 | B179: 877242121R00 | C179: Přirážka za 1 spoj elektrotvarovky d 90 mm | D179: kus | E179: 16 | G179: =E179*F179 -> 0 | H179: 0 | I179: =E179*H179 -> 0 | J179: 0 | K179: =E179*J179 -> 0 | O179: 2 | AA179: 1 | AB179: 1 | AC179: 1 | AZ179: 1 | BA179: =IF(AZ179=1,G179,0) -> 0 | BB179: =IF(AZ179=2,G179,0) -> 0 | BC179: =IF(AZ179=3,G179,0) -> 0 | BD179: =IF(AZ179=4,G179,0) -> 0 | BE179: =IF(AZ179=5,G179,0) -> 0 | CA179: 1 | CB179: 1
C180: Výtlaky VA, VC a V-AE: | E180: 0 | M180: Výtlaky VA, VC a V-AE:
C181: Elektrospojka d 90:7 | E181: 7 | M181: Elektrospojka d 90:7
C182: Oblouk 11° d 90:3 | E182: 3 | M182: Oblouk 11° d 90:3
C183: Elektrokoleno 30° d 90:1 | E183: 1 | M183: Elektrokoleno 30° d 90:1
C184: Elektrokoleno 45° d 90:5 | E184: 5 | M184: Elektrokoleno 45° d 90:5
A185: 29 | B185: 877252121R00 | C185: Přirážka za 1 spoj elektrotvarovky d 110 mm | D185: kus | E185: 33 | G185: =E185*F185 -> 0 | H185: 0 | I185: =E185*H185 -> 0 | J185: 0 | K185: =E185*J185 -> 0 | O185: 2 | AA185: 1 | AB185: 1 | AC185: 1 | AZ185: 1 | BA185: =IF(AZ185=1,G185,0) -> 0 | BB185: =IF(AZ185=2,G185,0) -> 0 | BC185: =IF(AZ185=3,G185,0) -> 0 | BD185: =IF(AZ185=4,G185,0) -> 0 | BE185: =IF(AZ185=5,G185,0) -> 0 | CA185: 1 | CB185: 1
C186: Výtlaky VA, VC a V-AE: | E186: 0 | M186: Výtlaky VA, VC a V-AE:
C187: Elektrospojka d 110: | E187: 0 | M187: Elektrospojka d 110:
C188: Elektrokoleno 11° d 110:21 | E188: 21 | M188: Elektrokoleno 11° d 110:21
C189: Elektrokoleno 30° d 110:2 | E189: 2 | M189: Elektrokoleno 30° d 110:2
C190: Elektrokoleno 45° d 110:10 | E190: 10 | M190: Elektrokoleno 45° d 110:10
A191: 30 | B191: 891213321R00 | C191: Montáž ventilů odvzdušňovacích přírub. DN 50 | D191: kus | E191: 2 | G191: =E191*F191 -> 0 | H191: 0.00021 | I191: =E191*H191 -> 0.00042 | J191: 0 | K191: =E191*J191 -> 0 | O191: 2 | AA191: 1 | AB191: 1 | AC191: 1 | AZ191: 1 | BA191: =IF(AZ191=1,G191,0) -> 0 | BB191: =IF(AZ191=2,G191,0) -> 0 | BC191: =IF(AZ191=3,G191,0) -> 0 | BD191: =IF(AZ191=4,G191,0) -> 0 | BE191: =IF(AZ191=5,G191,0) -> 0 | CA191: 1 | CB191: 1
A192: 31 | B192: 891241111R00 | C192: Montáž vodovodních šoupátek ve výkopu DN 80 | D192: kus | E192: 1 | G192: =E192*F192 -> 0 | H192: 0.00022 | I192: =E192*H192 -> 0.00022 | J192: 0 | K192: =E192*J192 -> 0 | O192: 2 | AA192: 1 | AB192: 1 | AC192: 1 | AZ192: 1 | BA192: =IF(AZ192=1,G192,0) -> 0 | BB192: =IF(AZ192=2,G192,0) -> 0 | BC192: =IF(AZ192=3,G192,0) -> 0 | BD192: =IF(AZ192=4,G192,0) -> 0 | BE192: =IF(AZ192=5,G192,0) -> 0 | CA192: 1 | CB192: 1
C193: Výtlaky VA, VC a V-AE: | E193: 0 | M193: Výtlaky VA, VC a V-AE:
C194: Š DN80:1 | E194: 1 | M194: Š DN80:1
A195: 32 | B195: 891241221R00 | C195: Montáž vodovod. šoupátek šacht. kolečko DN 80 | D195: kus | E195: 1 | G195: =E195*F195 -> 0 | H195: 0.00022 | I195: =E195*H195 -> 0.00022 | J195: 0 | K195: =E195*J195 -> 0 | O195: 2 | AA195: 1 | AB195: 1 | AC195: 1 | AZ195: 1 | BA195: =IF(AZ195=1,G195,0) -> 0 | BB195: =IF(AZ195=2,G195,0) -> 0 | BC195: =IF(AZ195=3,G195,0) -> 0 | BD195: =IF(AZ195=4,G195,0) -> 0 | BE195: =IF(AZ195=5,G195,0) -> 0 | CA195: 1 | CB195: 1
C196: Položka je určena pro montáž vodovodních šoupátek v šachtách s ručním kolečkem. | L196: Položka je určena pro montáž vodovodních šoupátek v šachtách s ručním kolečkem. | O196: 3
C197: Výtlaky VA, VC a V-AE: | E197: 0 | M197: Výtlaky VA, VC a V-AE:
C198: Š DN80:1 | E198: 1 | M198: Š DN80:1
A199: 33 | B199: 891245321R00 | C199: Montáž zpětných klapek DN 80 | D199: kus | E199: 1 | G199: =E199*F199 -> 0 | H199: 0.00022 | I199: =E199*H199 -> 0.00022 | J199: 0 | K199: =E199*J199 -> 0 | O199: 2 | AA199: 1 | AB199: 1 | AC199: 1 | AZ199: 1 | BA199: =IF(AZ199=1,G199,0) -> 0 | BB199: =IF(AZ199=2,G199,0) -> 0 | BC199: =IF(AZ199=3,G199,0) -> 0 | BD199: =IF(AZ199=4,G199,0) -> 0 | BE199: =IF(AZ199=5,G199,0) -> 0 | CA199: 1 | CB199: 1
C200: Výtlaky VA, VC a V-AE: | E200: 0 | M200: Výtlaky VA, VC a V-AE:
C201: ZK DN80:1 | E201: 1 | M201: ZK DN80:1
A202: 34 | B202: 891247112RRX | C202: Montáž proplachovací soupravy DN80 | D202: kus | E202: 1 | G202: =E202*F202 -> 0 | H202: 0.00011 | I202: =E202*H202 -> 0.00011 | J202: 0 | K202: =E202*J202 -> 0 | O202: 2 | AA202: 1 | AB202: 1 | AC202: 1 | AZ202: 1 | BA202: =IF(AZ202=1,G202,0) -> 0 | BB202: =IF(AZ202=2,G202,0) -> 0 | BC202: =IF(AZ202=3,G202,0) -> 0 | BD202: =IF(AZ202=4,G202,0) -> 0 | BE202: =IF(AZ202=5,G202,0) -> 0 | CA202: 1 | CB202: 1
... 196 more rows

Sheet 302 302.2RD KL
A1: POLOŽKOVÝ ROZPOČET
A2: Rozpočet | C2: 302.2RD | D2: Kanalizační výtlaky - km 1,618.79 - 4,197.00 | F2: JKSO | G2: 827.21.A1
A4: Objekt | F4: SKP
A5: 302 | C5: Kanalizační výtlaky | F5: Měrná jednotka | G5: m
A6: Stavba | F6: Počet jednotek | G6: 0
A7: 3232 | C7: Horní Slivno - Splašková kanalizace | F7: Náklady na m.j. | G7: =IF(G6=0,,ROUND((F30+F32)/G6,1)) -> 0
A8: Projektant | C8: Radek Hnát - VAK PROJEKT | F8: Typ rozpočtu
A9: Zpracovatel projektu
A10: Objednatel | C10: Obec Horní Slivno
A11: Dodavatel | C11: . | F11: Zakázkové číslo
A12: Rozpočtoval | F12: Počet listů
A13: ROZPOČTOVÉ NÁKLADY
A14: Základní rozpočtové náklady
B15: HSV celkem | C15: ='302 302.2RD Rek'!E11 -> 0
A16: Z | B16: PSV celkem | C16: ='302 302.2RD Rek'!F11 -> 0
A17: R | B17: M práce celkem | C17: ='302 302.2RD Rek'!H11 -> 0
A18: N | B18: M dodávky celkem | C18: ='302 302.2RD Rek'!G11 -> 0
A19: ZRN celkem | C19: =SUM(C15:C18) -> 0
A21: HZS | C21: ='302 302.2RD Rek'!I11 -> 0
A22: ZRN+HZS | C22: =C19+C21 -> 0
A23: ZRN+ost.náklady+HZS | C23: =C22+G23 -> 0
A24: Vypracoval | D24: Za zhotovitele | F24: Za objednatele
A25: Jméno : | D25: Jméno : | F25: Jméno :
A26: Datum : | D26: Datum : | F26: Datum :
A28: Podpis : | D28: Podpis: | F28: Podpis:
A30: Základ pro DPH | C30: 21 | D30: % | F30: =C23-F32 -> 0
A31: DPH | C31: =C30 -> 21 | D31: % | F31: =ROUND(PRODUCT(F30,C31/100),0) -> 0
A32: Základ pro DPH | C32: 0 | D32: % | F32: 0
A33: DPH | C33: =C32 -> 0 | D33: % | F33: =ROUND(PRODUCT(F32,C33/100),0) -> 0
A34: CENA ZA OBJEKT CELKEM | F34: =ROUND(SUM(F30:F33),0) -> 0
A36: Poznámka :

Sheet 302 302.2RD Rek
A1: Stavba : | C1: 3232 Horní Slivno - Splašková kanalizace | G1: Rozpočet : | H1: 302.2RD
A2: Objekt : | C2: 302 Kanalizační výtlaky | G2: Kanalizační výtlaky - km 1,618.79 - 4,197.00
A4: REKAPITULACE STAVEBNÍCH DÍLŮ
B6: Stavební díl | E6: HSV | F6: PSV | G6: Dodávka | H6: Montáž | I6: HZS
A7: ='302 302.2RD Pol'!B7 -> 1 | B7: ='302 302.2RD Pol'!C7 -> Zemní práce | E7: ='302 302.2RD Pol'!BA122 -> 0 | F7: ='302 302.2RD Pol'!BB122 -> 0 | G7: ='302 302.2RD Pol'!BC122 -> 0 | H7: ='302 302.2RD Pol'!BD122 -> 0 | I7: ='302 302.2RD Pol'!BE122 -> 0
A8: ='302 302.2RD Pol'!B123 -> 45 | B8: ='302 302.2RD Pol'!C123 -> Podkladní a vedlejší konstrukce | E8: ='302 302.2RD Pol'!BA129 -> 0 | F8: ='302 302.2RD Pol'!BB129 -> 0 | G8: ='302 302.2RD Pol'!BC129 -> 0 | H8: ='302 302.2RD Pol'!BD129 -> 0 | I8: ='302 302.2RD Pol'!BE129 -> 0
A9: ='302 302.2RD Pol'!B130 -> 8 | B9: ='302 302.2RD Pol'!C130 -> Trubní vedení | E9: ='302 302.2RD Pol'!BA235 -> 0 | F9: ='302 302.2RD Pol'!BB235 -> 0 | G9: ='302 302.2RD Pol'!BC235 -> 0 | H9: ='302 302.2RD Pol'!BD235 -> 0 | I9: ='302 302.2RD Pol'!BE235 -> 0
A10: ='302 302.2RD Pol'!B236 -> 99 | B10: ='302 302.2RD Pol'!C236 -> Staveništní přesun hmot | E10: ='302 302.2RD Pol'!BA238 -> 0 | F10: ='302 302.2RD Pol'!BB238 -> 0 | G10: ='302 302.2RD Pol'!BC238 -> 0 | H10: ='302 302.2RD Pol'!BD238 -> 0 | I10: ='302 302.2RD Pol'!BE238 -> 0
B11: CELKEM OBJEKT | E11: =SUM(E7:E10) -> 0 | F11: =SUM(F7:F10) -> 0 | G11: =SUM(G7:G10) -> 0 | H11: =SUM(H7:H10) -> 0 | I11: =SUM(I7:I10) -> 0

Sheet 302 302.2RD Pol
A1: Položkový rozpočet
A3: Stavba : | C3: 3232 Horní Slivno - Splašková kanalizace | E3: Rozpočet: | F3: ='302 302.2RD Rek'!H1 -> 302.2RD
A4: Objekt : | C4: 302 Kanalizační výtlaky | E4: ='302 302.2RD Rek'!G2 -> Kanalizační výtlaky - km 1,618.79 - 4,197.00
A6: P.č. | B6: Číslo položky | C6: Název položky | D6: MJ | E6: množství | F6: cena / MJ | G6: celkem (Kč) | H6: Jednotková hmotnost | I6: Celková hmotnost | J6: Jednotková dem.hmot. | K6: Celková dem.hmot.
A7: Díl: | B7: 1 | C7: Zemní práce | O7: 1
A8: 1 | B8: 130001101RRX | C8: Příplatek za ztížené hloubení v blízkosti vedení | D8: m3 | E8: 22.0432 | G8: =E8*F8 -> 0 | H8: 0 | I8: =E8*H8 -> 0 | J8: 0 | K8: =E8*J8 -> 0 | O8: 2 | AA8: 1 | AB8: 1 | AC8: 1 | AZ8: 1 | BA8: =IF(AZ8=1,G8,0) -> 0 | BB8: =IF(AZ8=2,G8,0) -> 0 | BC8: =IF(AZ8=3,G8,0) -> 0 | BD8: =IF(AZ8=4,G8,0) -> 0 | BE8: =IF(AZ8=5,G8,0) -> 0 | CA8: 1 | CB8: 1
C9: Včetně ruční dokopávky a ručního výkopu. | L9: Včetně ruční dokopávky a ručního výkopu. | O9: 3
C10: Součástí položky je i případná potřeba dočasnéhon zajištění potrubí a kabelových vedení ve výkopu. | L10: Součástí položky je i případná potřeba dočasnéhon zajištění potrubí a kabelových vedení ve výkopu. | O10: 3
C11: Začátek provozního součtu | E11: 0 | M11: Začátek provozního součtu
C12: Výtlak VA PE D 110x10,0 mm - pluhování:125,40 | E12: 125.4 | M12: Výtlak VA PE D 110x10,0 mm - pluhování:125,40
C13: Výtlak VA PE D 110x10,0 mm - řízený protlak:62,70 | E13: 62.7 | M13: Výtlak VA PE D 110x10,0 mm - řízený protlak:62,70
C14: Výtlak VA PE D 110x10,0 mm - rýha - souběh s kanalizační stokou:87,44 | E14: 87.44 | M14: Výtlak VA PE D 110x10,0 mm - rýha - souběh s kanalizační stokou:87,44
C15: Konec provozního součtu | E15: 275.54 | M15: Konec provozního součtu
C16: V hornině tř. 2 - 6 - 8%:275,5400*0,08 | E16: 22.0432 | M16: V hornině tř. 2 - 6 - 8%:275,5400*0,08
A17: 2 | B17: 132101213RRX | C17: Hloubení rýh š.do 200 cm hor.2 do 10000 m3,STROJNĚ | D17: m3 | E17: 30.3094 | G17: =E17*F17 -> 0 | H17: 0 | I17: =E17*H17 -> 0 | J17: 0 | K17: =E17*J17 -> 0 | O17: 2 | AA17: 1 | AB17: 1 | AC17: 1 | AZ17: 1 | BA17: =IF(AZ17=1,G17,0) -> 0 | BB17: =IF(AZ17=2,G17,0) -> 0 | BC17: =IF(AZ17=3,G17,0) -> 0 | BD17: =IF(AZ17=4,G17,0) -> 0 | BE17: =IF(AZ17=5,G17,0) -> 0 | CA17: 1 | CB17: 1
C18: Položka obsahuje hloubení rýh traktorbagrem, naložení výkopku na dopravní prostředek pro svislé, nebo vodorovné přemístění, popř. přemístění výkopku do 3 m (po povrchu území), případné zajištění rypadel polštáři, udržování pracoviště a ochranu výkopiště proti stékání srážkové vody z okolního terénu i s jejím odvodněním, nebo odvedením, přesekání a odstranění kořenů ve výkopišti, odstranění napadávek, urovnání dna výkopu. | L18: Položka obsahuje hloubení rýh traktorbagrem, naložení výkopku na dopravní prostředek pro svislé, nebo vodorovné přemístění, popř. přemístění výkopku do 3 m (po povrchu území), případné zajištění rypadel polštáři, udržování pracoviště a ochranu výkopiště proti stékání srážkové vody z okolního terénu i s jejím odvodněním, nebo odvedením, přesekání a odstranění kořenů ve výkopišti, odstranění napadávek, urovnání dna výkopu. | O18: 3
C19: Součástí položky je i pažení výkopů dle zvolené technologie zhotovitelem a v souladu s předpisy BOZP. | L19: Součástí položky je i pažení výkopů dle zvolené technologie zhotovitelem a v souladu s předpisy BOZP. | O19: 3
C20: V hornině tř. 2: | E20: 0 | M20: V hornině tř. 2:
C21: Výtlak VA PE D 110x10,0 mm - pluhování:125,40*0,11 | E21: 13.794 | M21: Výtlak VA PE D 110x10,0 mm - pluhování:125,40*0,11
C22: Výtlak VA PE D 110x10,0 mm - řízený protlak:62,70*0,11 | E22: 6.897 | M22: Výtlak VA PE D 110x10,0 mm - řízený protlak:62,70*0,11
C23: Výtlak VA PE D 110x10,0 mm - rýha - souběh s kanalizační stokou:87,44*0,11 | E23: 9.6184 | M23: Výtlak VA PE D 110x10,0 mm - rýha - souběh s kanalizační stokou:87,44*0,11
A24: 3 | B24: 132201213RRX | C24: Hloubení rýh š.do 200 cm hor.3 do 10000 m3,STROJNĚ | D24: m3 | E24: 71.6404 | G24: =E24*F24 -> 0 | H24: 0 | I24: =E24*H24 -> 0 | J24: 0 | K24: =E24*J24 -> 0 | O24: 2 | AA24: 1 | AB24: 1 | AC24: 1 | AZ24: 1 | BA24: =IF(AZ24=1,G24,0) -> 0 | BB24: =IF(AZ24=2,G24,0) -> 0 | BC24: =IF(AZ24=3,G24,0) -> 0 | BD24: =IF(AZ24=4,G24,0) -> 0 | BE24: =IF(AZ24=5,G24,0) -> 0 | CA24: 1 | CB24: 1
C25: Položka obsahuje hloubení rýh traktorbagrem, naložení výkopku na dopravní prostředek pro svislé, nebo vodorovné přemístění, popř. přemístění výkopku do 3 m (po povrchu území), případné zajištění rypadel polštáři, udržování pracoviště a ochranu výkopiště proti stékání srážkové vody z okolního terénu i s jejím odvodněním, nebo odvedením, přesekání a odstranění kořenů ve výkopišti, odstranění napadávek, urovnání dna výkopu. | L25: Položka obsahuje hloubení rýh traktorbagrem, naložení výkopku na dopravní prostředek pro svislé, nebo vodorovné přemístění, popř. přemístění výkopku do 3 m (po povrchu území), případné zajištění rypadel polštáři, udržování pracoviště a ochranu výkopiště proti stékání srážkové vody z okolního terénu i s jejím odvodněním, nebo odvedením, přesekání a odstranění kořenů ve výkopišti, odstranění napadávek, urovnání dna výkopu. | O25: 3
C26: Součástí položky je i pažení výkopů dle zvolené technologie zhotovitelem a v souladu s předpisy BOZP. | L26: Součástí položky je i pažení výkopů dle zvolené technologie zhotovitelem a v souladu s předpisy BOZP. | O26: 3
C27: V hornině tř. 3: | E27: 0 | M27: V hornině tř. 3:
C28: Výtlak VA PE D 110x10,0 mm - pluhování:125,40*0,26 | E28: 32.604 | M28: Výtlak VA PE D 110x10,0 mm - pluhování:125,40*0,26
C29: Výtlak VA PE D 110x10,0 mm - řízený protlak:62,70*0,26 | E29: 16.302 | M29: Výtlak VA PE D 110x10,0 mm - řízený protlak:62,70*0,26
C30: Výtlak VA PE D 110x10,0 mm - rýha - souběh s kanalizační stokou:87,44*0,26 | E30: 22.7344 | M30: Výtlak VA PE D 110x10,0 mm - rýha - souběh s kanalizační stokou:87,44*0,26
A31: 4 | B31: 132201219R00 | C31: Přípl.za lepivost,hloubení rýh 200cm,hor.3,STROJNĚ | D31: m3 | E31: 35.8202 | G31: =E31*F31 -> 0 | H31: 0 | I31: =E31*H31 -> 0 | J31: 0 | K31: =E31*J31 -> 0 | O31: 2 | AA31: 1 | AB31: 1 | AC31: 1 | AZ31: 1 | BA31: =IF(AZ31=1,G31,0) -> 0 | BB31: =IF(AZ31=2,G31,0) -> 0 | BC31: =IF(AZ31=3,G31,0) -> 0 | BD31: =IF(AZ31=4,G31,0) -> 0 | BE31: =IF(AZ31=5,G31,0) -> 0 | CA31: 1 | CB31: 1
C32: V hornině tř. 3: | E32: 0 | M32: V hornině tř. 3:
C33: Výtlak VA PE D 110x10,0 mm - pluhování:125,40*0,26*0,5 | E33: 16.302 | M33: Výtlak VA PE D 110x10,0 mm - pluhování:125,40*0,26*0,5
C34: Výtlak VA PE D 110x10,0 mm - řízený protlak:62,70*0,26*0,5 | E34: 8.151 | M34: Výtlak VA PE D 110x10,0 mm - řízený protlak:62,70*0,26*0,5
C35: Výtlak VA PE D 110x10,0 mm - rýha - souběh s kanalizační stokou:87,44*0,26*0,5 | E35: 11.3672 | M35: Výtlak VA PE D 110x10,0 mm - rýha - souběh s kanalizační stokou:87,44*0,26*0,5
A36: 5 | B36: 132301213RRX | C36: Hloubení rýh š.do 200 cm hor.4 do 10000 m3,STROJNĚ | D36: m3 | E36: 93.6836 | G36: =E36*F36 -> 0 | H36: 0 | I36: =E36*H36 -> 0 | J36: 0 | K36: =E36*J36 -> 0 | O36: 2 | AA36: 1 | AB36: 1 | AC36: 1 | AZ36: 1 | BA36: =IF(AZ36=1,G36,0) -> 0 | BB36: =IF(AZ36=2,G36,0) -> 0 | BC36: =IF(AZ36=3,G36,0) -> 0 | BD36: =IF(AZ36=4,G36,0) -> 0 | BE36: =IF(AZ36=5,G36,0) -> 0 | CA36: 1 | CB36: 1
C37: Položka obsahuje hloubení rýh traktorbagrem, naložení výkopku na dopravní prostředek pro svislé, nebo vodorovné přemístění, popř. přemístění výkopku do 3 m (po povrchu území), případné zajištění rypadel polštáři, udržování pracoviště a ochranu výkopiště proti stékání srážkové vody z okolního terénu i s jejím odvodněním, nebo odvedením, přesekání a odstranění kořenů ve výkopišti, odstranění napadávek, urovnání dna výkopu. | L37: Položka obsahuje hloubení rýh traktorbagrem, naložení výkopku na dopravní prostředek pro svislé, nebo vodorovné přemístění, popř. přemístění výkopku do 3 m (po povrchu území), případné zajištění rypadel polštáři, udržování pracoviště a ochranu výkopiště proti stékání srážkové vody z okolního terénu i s jejím odvodněním, nebo odvedením, přesekání a odstranění kořenů ve výkopišti, odstranění napadávek, urovnání dna výkopu. | O37: 3
C38: Součástí položky je i pažení výkopů dle zvolené technologie zhotovitelem a v souladu s předpisy BOZP. | L38: Součástí položky je i pažení výkopů dle zvolené technologie zhotovitelem a v souladu s předpisy BOZP. | O38: 3
C39: V hornině tř. 4: | E39: 0 | M39: V hornině tř. 4:
C40: Výtlak VA PE D 110x10,0 mm - pluhování:125,40*0,34 | E40: 42.636 | M40: Výtlak VA PE D 110x10,0 mm - pluhování:125,40*0,34
C41: Výtlak VA PE D 110x10,0 mm - řízený protlak:62,70*0,34 | E41: 21.318 | M41: Výtlak VA PE D 110x10,0 mm - řízený protlak:62,70*0,34
C42: Výtlak VA PE D 110x10,0 mm - rýha - souběh s kanalizační stokou:87,44*0,34 | E42: 29.7296 | M42: Výtlak VA PE D 110x10,0 mm - rýha - souběh s kanalizační stokou:87,44*0,34
A43: 6 | B43: 132301219R00 | C43: Přípl.za lepivost,hloubení rýh 200cm,hor.4,STROJNĚ | D43: m3 | E43: 46.8418 | G43: =E43*F43 -> 0 | H43: 0 | I43: =E43*H43 -> 0 | J43: 0 | K43: =E43*J43 -> 0 | O43: 2 | AA43: 1 | AB43: 1 | AC43: 1 | AZ43: 1 | BA43: =IF(AZ43=1,G43,0) -> 0 | BB43: =IF(AZ43=2,G43,0) -> 0 | BC43: =IF(AZ43=3,G43,0) -> 0 | BD43: =IF(AZ43=4,G43,0) -> 0 | BE43: =IF(AZ43=5,G43,0) -> 0 | CA43: 1 | CB43: 1
C44: V hornině tř. 4: | E44: 0 | M44: V hornině tř. 4:
C45: Výtlak VA PE D 110x10,0 mm - pluhování:125,40*0,34*0,5 | E45: 21.318 | M45: Výtlak VA PE D 110x10,0 mm - pluhování:125,40*0,34*0,5
C46: Výtlak VA PE D 110x10,0 mm - řízený protlak:62,70*0,34*0,5 | E46: 10.659 | M46: Výtlak VA PE D 110x10,0 mm - řízený protlak:62,70*0,34*0,5
C47: Výtlak VA PE D 110x10,0 mm - rýha - souběh s kanalizační stokou:87,44*0,34*0,5 | E47: 14.8648 | M47: Výtlak VA PE D 110x10,0 mm - rýha - souběh s kanalizační stokou:87,44*0,34*0,5
A48: 7 | B48: 132401211RRX | C48: Hloubení rýh šířky do 200 cm v hor.5, STROJNĚ | D48: m3 | E48: 68.885 | G48: =E48*F48 -> 0 | H48: 0 | I48: =E48*H48 -> 0 | J48: 0 | K48: =E48*J48 -> 0 | O48: 2 | AA48: 1 | AB48: 1 | AC48: 1 | AZ48: 1 | BA48: =IF(AZ48=1,G48,0) -> 0 | BB48: =IF(AZ48=2,G48,0) -> 0 | BC48: =IF(AZ48=3,G48,0) -> 0 | BD48: =IF(AZ48=4,G48,0) -> 0 | BE48: =IF(AZ48=5,G48,0) -> 0 | CA48: 1 | CB48: 1
C49: Položka obsahuje hloubení rýh traktorbagrem, naložení výkopku na dopravní prostředek pro svislé, nebo vodorovné přemístění, popř. přemístění výkopku do 3 m (po povrchu území), případné zajištění rypadel polštáři, udržování pracoviště a ochranu výkopiště proti stékání srážkové vody z okolního terénu i s jejím odvodněním, nebo odvedením, přesekání a odstranění kořenů ve výkopišti, odstranění napadávek, urovnání dna výkopu. | L49: Položka obsahuje hloubení rýh traktorbagrem, naložení výkopku na dopravní prostředek pro svislé, nebo vodorovné přemístění, popř. přemístění výkopku do 3 m (po povrchu území), případné zajištění rypadel polštáři, udržování pracoviště a ochranu výkopiště proti stékání srážkové vody z okolního terénu i s jejím odvodněním, nebo odvedením, přesekání a odstranění kořenů ve výkopišti, odstranění napadávek, urovnání dna výkopu. | O49: 3
C50: Součástí položky je i pažení výkopů dle zvolené technologie zhotovitelem a v souladu s předpisy BOZP. | L50: Součástí položky je i pažení výkopů dle zvolené technologie zhotovitelem a v souladu s předpisy BOZP. | O50: 3
C51: Součástí položky je i případné dolamování horniny v prostoru rýhy. | L51: Součástí položky je i případné dolamování horniny v prostoru rýhy. | O51: 3
C52: V hornině tř. 5: | E52: 0 | M52: V hornině tř. 5:
C53: Výtlak VA PE D 110x10,0 mm - pluhování:125,40*0,25 | E53: 31.35 | M53: Výtlak VA PE D 110x10,0 mm - pluhování:125,40*0,25
C54: Výtlak VA PE D 110x10,0 mm - řízený protlak:62,70*0,25 | E54: 15.675 | M54: Výtlak VA PE D 110x10,0 mm - řízený protlak:62,70*0,25
C55: Výtlak VA PE D 110x10,0 mm - rýha - souběh s kanalizační stokou:87,44*0,25 | E55: 21.86 | M55: Výtlak VA PE D 110x10,0 mm - rýha - souběh s kanalizační stokou:87,44*0,25
A56: 8 | B56: 132501211RRX | C56: Hloubení rýh šířky do 200 cm v hor.6, STROJNĚ | D56: m3 | E56: 11.0216 | G56: =E56*F56 -> 0 | H56: 0 | I56: =E56*H56 -> 0 | J56: 0 | K56: =E56*J56 -> 0 | O56: 2 | AA56: 1 | AB56: 1 | AC56: 1 | AZ56: 1 | BA56: =IF(AZ56=1,G56,0) -> 0 | BB56: =IF(AZ56=2,G56,0) -> 0 | BC56: =IF(AZ56=3,G56,0) -> 0 | BD56: =IF(AZ56=4,G56,0) -> 0 | BE56: =IF(AZ56=5,G56,0) -> 0 | CA56: 1 | CB56: 1
C57: Položka obsahuje hloubení rýh traktorbagrem, naložení výkopku na dopravní prostředek pro svislé, nebo vodorovné přemístění, popř. přemístění výkopku do 3 m (po povrchu území), případné zajištění rypadel polštáři, udržování pracoviště a ochranu výkopiště proti stékání srážkové vody z okolního terénu i s jejím odvodněním, nebo odvedením, přesekání a odstranění kořenů ve výkopišti, odstranění napadávek, urovnání dna výkopu. | L57: Položka obsahuje hloubení rýh traktorbagrem, naložení výkopku na dopravní prostředek pro svislé, nebo vodorovné přemístění, popř. přemístění výkopku do 3 m (po povrchu území), případné zajištění rypadel polštáři, udržování pracoviště a ochranu výkopiště proti stékání srážkové vody z okolního terénu i s jejím odvodněním, nebo odvedením, přesekání a odstranění kořenů ve výkopišti, odstranění napadávek, urovnání dna výkopu. | O57: 3
C58: Součástí položky je i pažení výkopů dle zvolené technologie zhotovitelem a v souladu s předpisy BOZP. | L58: Součástí položky je i pažení výkopů dle zvolené technologie zhotovitelem a v souladu s předpisy BOZP. | O58: 3
C59: Součástí položky je i případné dolamování horniny v prostoru rýhy. | L59: Součástí položky je i případné dolamování horniny v prostoru rýhy. | O59: 3
C60: V hornině tř. 5: | E60: 0 | M60: V hornině tř. 5:
C61: Výtlak VA PE D 110x10,0 mm - pluhování:125,40*0,04 | E61: 5.016 | M61: Výtlak VA PE D 110x10,0 mm - pluhování:125,40*0,04
C62: Výtlak VA PE D 110x10,0 mm - řízený protlak:62,70*0,04 | E62: 2.508 | M62: Výtlak VA PE D 110x10,0 mm - řízený protlak:62,70*0,04
C63: Výtlak VA PE D 110x10,0 mm - rýha - souběh s kanalizační stokou:87,44*0,04 | E63: 3.4976 | M63: Výtlak VA PE D 110x10,0 mm - rýha - souběh s kanalizační stokou:87,44*0,04
A64: 9 | B64: 141700107RRX | C64: Protlak neřízený z trub D 270 mm v hor.1 - 6 | D64: m | E64: 17 | G64: =E64*F64 -> 0 | H64: 0.00726 | I64: =E64*H64 -> 0.12342 | J64: 0 | K64: =E64*J64 -> 0 | O64: 2 | AA64: 1 | AB64: 1 | AC64: 1 | AZ64: 1 | BA64: =IF(AZ64=1,G64,0) -> 0 | BB64: =IF(AZ64=2,G64,0) -> 0 | BC64: =IF(AZ64=3,G64,0) -> 0 | BD64: =IF(AZ64=4,G64,0) -> 0 | BE64: =IF(AZ64=5,G64,0) -> 0 | CA64: 1 | CB64: 1
C65: Položka obsahuje náklady na spojování protlačovaných trub, zřízení a odstranění podlahy a podpěrné konstrukce pro protlačovací zařízení, úpravu čela potrubí pro protlačení, případně vodorovné přemístění výkopku z protlačovaného potrubí a svislé přemístění výkopku z montážní jámy na přilehlé území. | L65: Položka obsahuje náklady na spojování protlačovaných trub, zřízení a odstranění podlahy a podpěrné konstrukce pro protlačovací zařízení, úpravu čela potrubí pro protlačení, případně vodorovné přemístění výkopku z protlačovaného potrubí a svislé přemístění výkopku z montážní jámy na přilehlé území. | O65: 3
C66: Výtlak VA PE D 110x10,0 mm: | E66: 0 | M66: Výtlak VA PE D 110x10,0 mm:
C67: Chránička OC D 219/10:17,00 | E67: 17 | M67: Chránička OC D 219/10:17,00
A68: 10 | B68: 141721101RRX | C68: Řízené protlačení (vrtání) a vtažení PE d 110 mm v hor.1 - 6 | D68: m | E68: 578.25 | G68: =E68*F68 -> 0 | H68: 0.00348 | I68: =E68*H68 -> 2.01231 | J68: 0 | K68: =E68*J68 -> 0 | O68: 2 | AA68: 1 | AB68: 1 | AC68: 1 | AZ68: 1 | BA68: =IF(AZ68=1,G68,0) -> 0 | BB68: =IF(AZ68=2,G68,0) -> 0 | BC68: =IF(AZ68=3,G68,0) -> 0 | BD68: =IF(AZ68=4,G68,0) -> 0 | BE68: =IF(AZ68=5,G68,0) -> 0 | CA68: 1 | CB68: 1
C69: Jedná se o bezvýkopovou technologii horizontálně řízeného vrtání a vtažení potrubí na principu rozplavování a rozrušování zeminy pomocí vysokotlaké směsi vody a bentonitu. | L69: Jedná se o bezvýkopovou technologii horizontálně řízeného vrtání a vtažení potrubí na principu rozplavování a rozrušování zeminy pomocí vysokotlaké směsi vody a bentonitu. | O69: 3
C70: V položce je započteno : - provedení pilotního vrtu, | L70: V položce je započteno : - provedení pilotního vrtu, | O70: 3
C71: - potřebné rozšíření vrtu, | L71: - potřebné rozšíření vrtu, | O71: 3
C72: - vtažení potrubí, | L72: - vtažení potrubí, | O72: 3
C73: - svařování vtahovaného potrubí. | L73: - svařování vtahovaného potrubí. | O73: 3
C74: V položce není započteno: - zemní práce nutné pro provedení prací, | L74: V položce není započteno: - zemní práce nutné pro provedení prací, | O74: 3
C75: - případné čerpání vody, | L75: - případné čerpání vody, | O75: 3
C76: - montáž vedení, slouží-li vtahovaná trubka jako ochranné potrubí, | L76: - montáž vedení, slouží-li vtahovaná trubka jako ochranné potrubí, | O76: 3
C77: - dodání vtahovaných trubek. | L77: - dodání vtahovaných trubek. | O77: 3
C78: Výtlak VA D 110x10,0 mm:578,25 | E78: 578.25 | M78: Výtlak VA D 110x10,0 mm:578,25
A79: 11 | B79: 162601102RX0 | C79: Vodorovné přemístění výkopku z hor.1-7 na skládku zhotovitele | D79: m3 | E79: 165.29 | G79: =E79*F79 -> 0 | H79: 0 | I79: =E79*H79 -> 0 | J79: 0 | K79: =E79*J79 -> 0 | O79: 2 | AA79: 1 | AB79: 1 | AC79: 1 | AZ79: 1 | BA79: =IF(AZ79=1,G79,0) -> 0 | BB79: =IF(AZ79=2,G79,0) -> 0 | BC79: =IF(AZ79=3,G79,0) -> 0 | BD79: =IF(AZ79=4,G79,0) -> 0 | BE79: =IF(AZ79=5,G79,0) -> 0 | CA79: 1 | CB79: 1
C80: Výkopy: | E80: 0 | M80: Výkopy:
C81: Začátek provozního součtu | E81: 0 | M81: Začátek provozního součtu
C82: Výtlak VA PE D 110x10,0 mm - pluhování:125,40 | E82: 125.4 | M82: Výtlak VA PE D 110x10,0 mm - pluhování:125,40
C83: Výtlak VA PE D 110x10,0 mm - řízený protlak:62,70 | E83: 62.7 | M83: Výtlak VA PE D 110x10,0 mm - řízený protlak:62,70
C84: Výtlak VA PE D 110x10,0 mm - rýha - souběh s kanalizační stokou:87,44 | E84: 87.44 | M84: Výtlak VA PE D 110x10,0 mm - rýha - souběh s kanalizační stokou:87,44
C85: Konec provozního součtu | E85: 275.54 | M85: Konec provozního součtu
C86: V hornině tř. 2 - 6:275,5400 | E86: 275.54 | M86: V hornině tř. 2 - 6:275,5400
C87: Odpočet zásypů zeminou:-110,2500 | E87: -110.25 | M87: Odpočet zásypů zeminou:-110,2500
A88: 12 | B88: 174100050RAB | C88: Zásyp jam,rýh a šachet štěrkodrtí fr. 0-63 mm včetně dodávky štěrkodrtě | D88: m3 | E88: 35.4239 | G88: =E88*F88 -> 0 | H88: 0 | I88: =E88*H88 -> 0 | J88: 0 | K88: =E88*J88 -> 0 | O88: 2 | AA88: 1 | AB88: 1 | AC88: 1 | AZ88: 1 | BA88: =IF(AZ88=1,G88,0) -> 0 | BB88: =IF(AZ88=2,G88,0) -> 0 | BC88: =IF(AZ88=3,G88,0) -> 0 | BD88: =IF(AZ88=4,G88,0) -> 0 | BE88: =IF(AZ88=5,G88,0) -> 0 | CA88: 1 | CB88: 1
C89: Výkopy: | E89: 0 | M89: Výkopy:
C90: Začátek provozního součtu | E90: 0 | M90: Začátek provozního součtu
C91: Výtlak VA PE D 110x10,0 mm - rýha - souběh s kanalizační stokou:87,4400 | E91: 87.44 | M91: Výtlak VA PE D 110x10,0 mm - rýha - souběh s kanalizační stokou:87,4400
C92: Konec provozního součtu | E92: 87.44 | M92: Konec provozního součtu
C93: V hornině tř. 2 - 6:87,4400 | E93: 87.44 | M93: V hornině tř. 2 - 6:87,4400
C94: Odpočet lože, potrubí a obsypů:-21,3813 | E94: -21.3813 | M94: Odpočet lože, potrubí a obsypů:-21,3813
C95: Výtlak VA PE D 110x10,0 mm - rýha:-109,41*0,50*(0,15+0,11+0,30) | E95: -30.6348 | M95: Výtlak VA PE D 110x10,0 mm - rýha:-109,41*0,50*(0,15+0,11+0,30)
A96: 13 | B96: 174101101R00 | C96: Zásyp jam, rýh, šachet se zhutněním | D96: m3 | E96: 110.25 | G96: =E96*F96 -> 0 | H96: 0 | I96: =E96*H96 -> 0 | J96: 0 | K96: =E96*J96 -> 0 | O96: 2 | AA96: 1 | AB96: 1 | AC96: 1 | AZ96: 1 | BA96: =IF(AZ96=1,G96,0) -> 0 | BB96: =IF(AZ96=2,G96,0) -> 0 | BC96: =IF(AZ96=3,G96,0) -> 0 | BD96: =IF(AZ96=4,G96,0) -> 0 | BE96: =IF(AZ96=5,G96,0) -> 0 | CA96: 1 | CB96: 1
C97: Položka obsahuje strojní přemístění materiálu pro zásyp ze vzdálenosti do 10 m od okraje zásypu. | L97: Položka obsahuje strojní přemístění materiálu pro zásyp ze vzdálenosti do 10 m od okraje zásypu. | O97: 3
C98: Výtlak VA PE D 110x10,0 mm - pluhování:73,5000 | E98: 73.5 | M98: Výtlak VA PE D 110x10,0 mm - pluhování:73,5000
C99: Výtlak VA PE D 110x10,0 mm - řízený protlak:36,7500 | E99: 36.75 | M99: Výtlak VA PE D 110x10,0 mm - řízený protlak:36,7500
A100: 14 | B100: 175100020RAB | C100: Obsyp potrubí štěrkopískem včetně dodávka štěrkopísku | D100: m3 | E100: 61.3793 | G100: =E100*F100 -> 0 | H100: 0 | I100: =E100*H100 -> 0 | J100: 0 | K100: =E100*J100 -> 0 | O100: 2 | AA100: 1 | AB100: 1 | AC100: 1 | AZ100: 1 | BA100: =IF(AZ100=1,G100,0) -> 0 | BB100: =IF(AZ100=2,G100,0) -> 0 | BC100: =IF(AZ100=3,G100,0) -> 0 | BD100: =IF(AZ100=4,G100,0) -> 0 | BE100: =IF(AZ100=5,G100,0) -> 0 | CA100: 1 | CB100: 1
C101: Výtlak VA PE D 110x10,0 mm - pluhování:26,6600 | E101: 26.66 | M101: Výtlak VA PE D 110x10,0 mm - pluhování:26,6600
C102: Výtlak VA PE D 110x10,0 mm - řízený protlak:13,3300 | E102: 13.33 | M102: Výtlak VA PE D 110x10,0 mm - řízený protlak:13,3300
C103: Výtlak VA PE D 110x10,0 mm - rýha - souběh s kanalizační stokou:109,41*(0,50*(0,11+0,30)-0,055^2*Pi) | E103: 21.3893 | M103: Výtlak VA PE D 110x10,0 mm - rýha - souběh s kanalizační stokou:109,41*(0,50*(0,11+0,30)-0,055^2*Pi)
A104: 15 | B104: 199000002RX0 | C104: Poplatek za skládku horniny 1- 7 | D104: m3 | E104: 165.29 | G104: =E104*F104 -> 0 | H104: 0 | I104: =E104*H104 -> 0 | J104: 0 | K104: =E104*J104 -> 0 | O104: 2 | AA104: 1 | AB104: 1 | AC104: 1 | AZ104: 1 | BA104: =IF(AZ104=1,G104,0) -> 0 | BB104: =IF(AZ104=2,G104,0) -> 0 | BC104: =IF(AZ104=3,G104,0) -> 0 | BD104: =IF(AZ104=4,G104,0) -> 0 | BE104: =IF(AZ104=5,G104,0) -> 0 | CA104: 1 | CB104: 1
C105: Výkopy: | E105: 0 | M105: Výkopy:
C106: Začátek provozního součtu | E106: 0 | M106: Začátek provozního součtu
C107: Výtlak VA PE D 110x10,0 mm - pluhování:125,40 | E107: 125.4 | M107: Výtlak VA PE D 110x10,0 mm - pluhování:125,40
C108: Výtlak VA PE D 110x10,0 mm - řízený protlak:62,70 | E108: 62.7 | M108: Výtlak VA PE D 110x10,0 mm - řízený protlak:62,70
C109: Výtlak VA PE D 110x10,0 mm - rýha - souběh s kanalizační stokou:87,44 | E109: 87.44 | M109: Výtlak VA PE D 110x10,0 mm - rýha - souběh s kanalizační stokou:87,44
C110: Konec provozního součtu | E110: 275.54 | M110: Konec provozního součtu
C111: V hornině tř. 2 - 6:275,5400 | E111: 275.54 | M111: V hornině tř. 2 - 6:275,5400
C112: Odpočet zásypů zeminou:-110,2500 | E112: -110.25 | M112: Odpočet zásypů zeminou:-110,2500
A113: 16 | B113: 14221304 | C113: Trubka bezešvá hladká 11353.1 D 219x10,0 mm | D113: m | E113: 18.7 | G113: =E113*F113 -> 0 | H113: 0.0515 | I113: =E113*H113 -> 0.96305 | K113: =E113*J113 -> 0 | O113: 2 | AA113: 3 | AB113: 1 | AC113: 14221304 | AZ113: 1 | BA113: =IF(AZ113=1,G113,0) -> 0 | BB113: =IF(AZ113=2,G113,0) -> 0 | BC113: =IF(AZ113=3,G113,0) -> 0 | BD113: =IF(AZ113=4,G113,0) -> 0 | BE113: =IF(AZ113=5,G113,0) -> 0 | CA113: 3 | CB113: 1
C114: Součástí položky je dodávka a montář těsnících manžet a kluzných vymezovacích objímek RACI v počtu dle PD | L114: Součástí položky je dodávka a montář těsnících manžet a kluzných vymezovacích objímek RACI v počtu dle PD | O114: 3
C115: Výtlak VA PE D 110x10,0 mm: | E115: 0 | M115: Výtlak VA PE D 110x10,0 mm:
C116: Chránička OC D 219/10:17,00*1,1 | E116: 18.7 | M116: Chránička OC D 219/10:17,00*1,1
A117: 17 | B117: 286134456.R | C117: Trubka tlaková PE100RC D SDR11 110x10,0 mm návin kanalizace | D117: m | E117: 586.9237 | G117: =E117*F117 -> 0 | H117: 0.00212 | I117: =E117*H117 -> 1.244278244 | K117: =E117*J117 -> 0 | O117: 2 | AA117: 3 | AB117: 1 | AC117: 286134456.R | AZ117: 1 | BA117: =IF(AZ117=1,G117,0) -> 0 | BB117: =IF(AZ117=2,G117,0) -> 0 | BC117: =IF(AZ117=3,G117,0) -> 0 | BD117: =IF(AZ117=4,G117,0) -> 0 | BE117: =IF(AZ117=5,G117,0) -> 0 | CA117: 3 | CB117: 1
C118: Trubky kanalizační z PE100 K podle ČSN EN 12201 s ochranným pláštěm | L118: Trubky kanalizační z PE100 K podle ČSN EN 12201 s ochranným pláštěm | O118: 3
C119: K vnitřní trubka černá s hnědými pruhy | L119: K vnitřní trubka černá s hnědými pruhy | O119: 3
C120: vnější ochranná vrstva z modifikovaného PE barvy hnědé s integrovaným vodičem. | L120: vnější ochranná vrstva z modifikovaného PE barvy hnědé s integrovaným vodičem. | O120: 3
C121: Výtlak VA D 110x10,0 mm:578,25*1,015 | E121: 586.9237 | M121: Výtlak VA D 110x10,0 mm:578,25*1,015
B122: Celkem za | C122: 1 Zemní práce | G122: =SUM(G7:G121) -> 0 | I122: =SUM(I7:I121) -> 4.343058244 | K122: =SUM(K7:K121) -> 0 | O122: 4 | BA122: =SUM(BA7:BA121) -> 0 | BB122: =SUM(BB7:BB121) -> 0 | BC122: =SUM(BC7:BC121) -> 0 | BD122: =SUM(BD7:BD121) -> 0 | BE122: =SUM(BE7:BE121) -> 0
A123: Díl: | B123: 45 | C123: Podkladní a vedlejší konstrukce | O123: 1
A124: 18 | B124: 451572111R00 | C124: Lože pod potrubí z kameniva těženého 0 - 4 mm | D124: m3 | E124: 23.2058 | G124: =E124*F124 -> 0 | H124: 1.873 | I124: =E124*H124 -> 43.4644634 | J124: 0 | K124: =E124*J124 -> 0 | O124: 2 | AA124: 1 | AB124: 1 | AC124: 1 | AZ124: 1 | BA124: =IF(AZ124=1,G124,0) -> 0 | BB124: =IF(AZ124=2,G124,0) -> 0 | BC124: =IF(AZ124=3,G124,0) -> 0 | BD124: =IF(AZ124=4,G124,0) -> 0 | BE124: =IF(AZ124=5,G124,0) -> 0 | CA124: 1 | CB124: 1
C125: Výtlak VA PE D 110x10,0 mm - pluhování:10,00 | E125: 10 | M125: Výtlak VA PE D 110x10,0 mm - pluhování:10,00
C126: Výtlak VA PE D 110x10,0 mm - řízený protlak:5,00 | E126: 5 | M126: Výtlak VA PE D 110x10,0 mm - řízený protlak:5,00
C127: Výtlak VA PE D 110x10,0 mm - rýha - souběh s kanalizační stokou:109,41*0,50*0,15 | E127: 8.2058 | M127: Výtlak VA PE D 110x10,0 mm - rýha - souběh s kanalizační stokou:109,41*0,50*0,15
A128: 19 | B128: 452313131RRX | C128: Bloky pro potrubí z betonu C 12/15 včetně nutného bednění | D128: m3 | E128: 0.48 | G128: =E128*F128 -> 0 | H128: 2.355 | I128: =E128*H128 -> 1.1304 | J128: 0 | K128: =E128*J128 -> 0 | O128: 2 | AA128: 1 | AB128: 1 | AC128: 1 | AZ128: 1 | BA128: =IF(AZ128=1,G128,0) -> 0 | BB128: =IF(AZ128=2,G128,0) -> 0 | BC128: =IF(AZ128=3,G128,0) -> 0 | BD128: =IF(AZ128=4,G128,0) -> 0 | BE128: =IF(AZ128=5,G128,0) -> 0 | CA128: 1 | CB128: 1
B129: Celkem za | C129: 45 Podkladní a vedlejší konstrukce | G129: =SUM(G123:G128) -> 0 | I129: =SUM(I123:I128) -> 44.5948634 | K129: =SUM(K123:K128) -> 0 | O129: 4 | BA129: =SUM(BA123:BA128) -> 0 | BB129: =SUM(BB123:BB128) -> 0 | BC129: =SUM(BC123:BC128) -> 0 | BD129: =SUM(BD123:BD128) -> 0 | BE129: =SUM(BE123:BE128) -> 0
A130: Díl: | B130: 8 | C130: Trubní vedení | O130: 1
A131: 20 | B131: 857262121R00 | C131: Montáž tvarovek litin. jednoos. přír. výkop DN 100 včetně nerezových spoj. prvků a obandážování spoje | D131: kus | E131: 9 | G131: =E131*F131 -> 0 | H131: 0.00041 | I131: =E131*H131 -> 0.00369 | J131: 0 | K131: =E131*J131 -> 0 | O131: 2 | AA131: 1 | AB131: 1 | AC131: 1 | AZ131: 1 | BA131: =IF(AZ131=1,G131,0) -> 0 | BB131: =IF(AZ131=2,G131,0) -> 0 | BC131: =IF(AZ131=3,G131,0) -> 0 | BD131: =IF(AZ131=4,G131,0) -> 0 | BE131: =IF(AZ131=5,G131,0) -> 0 | CA131: 1 | CB131: 1
C132: Položka je určena pro montáž litinových tvarovek na potrubí litinovém tlakovém přírubovém jednoosých v otevřeném výkopu, v otevřeném kanálu nebo v šachtě. | L132: Položka je určena pro montáž litinových tvarovek na potrubí litinovém tlakovém přírubovém jednoosých v otevřeném výkopu, v otevřeném kanálu nebo v šachtě. | O132: 3
C133: Výtlaky VA: | E133: 0 | M133: Výtlaky VA:
C134: Jištěná příruba DN100:4 | E134: 4 | M134: Jištěná příruba DN100:4
C135: FF DN100/150:1 | E135: 1 | M135: FF DN100/150:1
C136: FF DN100/600:3 | E136: 3 | M136: FF DN100/600:3
C137: FF DN100/1000:1 | E137: 1 | M137: FF DN100/1000:1
A138: 21 | B138: 857264121R00 | C138: Montáž tvarovek litin. odboč. přír. výkop DN 100 včetně nerezových spoj. prvků a obandážování spoje | D138: kus | E138: 1 | G138: =E138*F138 -> 0 | H138: 0.00062 | I138: =E138*H138 -> 0.00062 | J138: 0 | K138: =E138*J138 -> 0 | O138: 2 | AA138: 1 | AB138: 1 | AC138: 1 | AZ138: 1 | BA138: =IF(AZ138=1,G138,0) -> 0 | BB138: =IF(AZ138=2,G138,0) -> 0 | BC138: =IF(AZ138=3,G138,0) -> 0 | BD138: =IF(AZ138=4,G138,0) -> 0 | BE138: =IF(AZ138=5,G138,0) -> 0 | CA138: 1 | CB138: 1
C139: Položka je určena pro montáž litinových tvarovek na potrubí litinovém tlakovém přírubovém odbočných v otevřeném výkopu, v otevřeném kanálu nebo v šachtě. | L139: Položka je určena pro montáž litinových tvarovek na potrubí litinovém tlakovém přírubovém odbočných v otevřeném výkopu, v otevřeném kanálu nebo v šachtě. | O139: 3
C140: Výtlaky VA: | E140: 0 | M140: Výtlaky VA:
C141: T DN100/100:1 | E141: 1 | M141: T DN100/100:1
A142: 22 | B142: 871251121R00 | C142: Montáž trubek polyetylenových ve výkopu d 110 mm | D142: m | E142: 109.41 | G142: =E142*F142 -> 0 | H142: 0 | I142: =E142*H142 -> 0 | J142: 0 | K142: =E142*J142 -> 0 | O142: 2 | AA142: 1 | AB142: 1 | AC142: 1 | AZ142: 1 | BA142: =IF(AZ142=1,G142,0) -> 0 | BB142: =IF(AZ142=2,G142,0) -> 0 | BC142: =IF(AZ142=3,G142,0) -> 0 | BD142: =IF(AZ142=4,G142,0) -> 0 | BE142: =IF(AZ142=5,G142,0) -> 0 | CA142: 1 | CB142: 1
C143: V položce je uvažováno s jedním spojem na 6 m potrubí včetně montáže elektrotvarovek. | L143: V položce je uvažováno s jedním spojem na 6 m potrubí včetně montáže elektrotvarovek. | O143: 3
C144: Výtlak VA PE D 110x10,0 mm:109,41 | E144: 109.41 | M144: Výtlak VA PE D 110x10,0 mm:109,41
A145: 23 | B145: 871811121R00 | C145: Pluhování potr.,rozvoz po trase,na tupo,návi,110mm | D145: m | E145: 1890.6 | G145: =E145*F145 -> 0 | H145: 0 | I145: =E145*H145 -> 0 | J145: 0 | K145: =E145*J145 -> 0 | O145: 2 | AA145: 1 | AB145: 0 | AC145: 0 | AZ145: 1 | BA145: =IF(AZ145=1,G145,0) -> 0 | BB145: =IF(AZ145=2,G145,0) -> 0 | BC145: =IF(AZ145=3,G145,0) -> 0 | BD145: =IF(AZ145=4,G145,0) -> 0 | BE145: =IF(AZ145=5,G145,0) -> 0 | CA145: 1 | CB145: 0
C146: Metoda spočívá ve vtažení potrubí do dutiny v zemi vytvořené pluhovacím zařízením. | L146: Metoda spočívá ve vtažení potrubí do dutiny v zemi vytvořené pluhovacím zařízením. | O146: 3
C147: Pluhovací zařízení je soustava strojů - tažné vozidlo s navijákem a kotvou a stroj s pluhem a zařízením pro pokládku. | L147: Pluhovací zařízení je soustava strojů - tažné vozidlo s navijákem a kotvou a stroj s pluhem a zařízením pro pokládku. | O147: 3
C148: Na začátku trasy je radlice pluhu vsazena do startovací jámy do hloubky pokládky. Pluh je tažen pomocí lanového navijáku k tažnému vozidlu. Radlice pluhu vytlačuje zeminu a vytváří dutinu. Dutinou je protahováno zaváděcí zařízení, které ukládá do dutiny potrubí. Po přitažení pluhu k tažnému vozidlu se tažné vozidlo posune na délku lana (100-120 m), zakotví a navijákem opět přitahuje pluh a zaváděcí zařízení. | L148: Na začátku trasy je radlice pluhu vsazena do startovací jámy do hloubky pokládky. Pluh je tažen pomocí lanového navijáku k tažnému vozidlu. Radlice pluhu vytlačuje zeminu a vytváří dutinu. Dutinou je protahováno zaváděcí zařízení, které ukládá do dutiny potrubí. Po přitažení pluhu k tažnému vozidlu se tažné vozidlo posune na délku lana (100-120 m), zakotví a navijákem opět přitahuje pluh a zaváděcí zařízení. | O148: 3
C149: Položka obsahuje i svaření potrubí z trubek podél pokládkové trasy. | L149: Položka obsahuje i svaření potrubí z trubek podél pokládkové trasy. | O149: 3
C150: Výtlak VA PE D 110x10,0 mm:1890,60 | E150: 1890.6 | M150: Výtlak VA PE D 110x10,0 mm:1890,60
A151: 24 | B151: 871812111R00 | C151: Příplatek za zaměření GPS během pokládky | D151: m | E151: 2468.85 | G151: =E151*F151 -> 0 | H151: 0 | I151: =E151*H151 -> 0 | J151: 0 | K151: =E151*J151 -> 0 | O151: 2 | AA151: 1 | AB151: 1 | AC151: 1 | AZ151: 1 | BA151: =IF(AZ151=1,G151,0) -> 0 | BB151: =IF(AZ151=2,G151,0) -> 0 | BC151: =IF(AZ151=3,G151,0) -> 0 | BD151: =IF(AZ151=4,G151,0) -> 0 | BE151: =IF(AZ151=5,G151,0) -> 0 | CA151: 1 | CB151: 1
C152: Výtlak VA PE D 110x10,0 mm - pluhování:1890,60 | E152: 1890.6 | M152: Výtlak VA PE D 110x10,0 mm - pluhování:1890,60
C153: Výtlak VA PE D 110x10,0 mm - řízený protlak:578,25 | E153: 578.25 | M153: Výtlak VA PE D 110x10,0 mm - řízený protlak:578,25
A154: 25 | B154: 871812112R00 | C154: Příplatek za položení signalizačního vodiče | D154: m | E154: 2468.85 | G154: =E154*F154 -> 0 | H154: 0 | I154: =E154*H154 -> 0 | J154: 0 | K154: =E154*J154 -> 0 | O154: 2 | AA154: 1 | AB154: 1 | AC154: 1 | AZ154: 1 | BA154: =IF(AZ154=1,G154,0) -> 0 | BB154: =IF(AZ154=2,G154,0) -> 0 | BC154: =IF(AZ154=3,G154,0) -> 0 | BD154: =IF(AZ154=4,G154,0) -> 0 | BE154: =IF(AZ154=5,G154,0) -> 0 | CA154: 1 | CB154: 1
C155: Výtlak VA PE D 110x10,0 mm - pluhování:1890,60 | E155: 1890.6 | M155: Výtlak VA PE D 110x10,0 mm - pluhování:1890,60
C156: Výtlak VA PE D 110x10,0 mm - řízený protlak:578,25 | E156: 578.25 | M156: Výtlak VA PE D 110x10,0 mm - řízený protlak:578,25
A157: 26 | B157: 877252121R00 | C157: Přirážka za 1 spoj elektrotvarovky d 110 mm | D157: kus | E157: 60 | G157: =E157*F157 -> 0 | H157: 0 | I157: =E157*H157 -> 0 | J157: 0 | K157: =E157*J157 -> 0 | O157: 2 | AA157: 1 | AB157: 1 | AC157: 1 | AZ157: 1 | BA157: =IF(AZ157=1,G157,0) -> 0 | BB157: =IF(AZ157=2,G157,0) -> 0 | BC157: =IF(AZ157=3,G157,0) -> 0 | BD157: =IF(AZ157=4,G157,0) -> 0 | BE157: =IF(AZ157=5,G157,0) -> 0 | CA157: 1 | CB157: 1
C158: Výtlaky VA: | E158: 0 | M158: Výtlaky VA:
C159: Elektrospojka d 110:60 | E159: 60 | M159: Elektrospojka d 110:60
A160: 27 | B160: 891261221R00 | C160: Montáž vodovod. šoupátek šacht. kolečko DN 100 | D160: kus | E160: 2 | G160: =E160*F160 -> 0 | H160: 0.00041 | I160: =E160*H160 -> 0.00082 | J160: 0 | K160: =E160*J160 -> 0 | O160: 2 | AA160: 1 | AB160: 1 | AC160: 1 | AZ160: 1 | BA160: =IF(AZ160=1,G160,0) -> 0 | BB160: =IF(AZ160=2,G160,0) -> 0 | BC160: =IF(AZ160=3,G160,0) -> 0 | BD160: =IF(AZ160=4,G160,0) -> 0 | BE160: =IF(AZ160=5,G160,0) -> 0 | CA160: 1 | CB160: 1
C161: Položka je určena pro montáž vodovodních šoupátek v šachtách s ručním kolečkem. | L161: Položka je určena pro montáž vodovodních šoupátek v šachtách s ručním kolečkem. | O161: 3
C162: Výtlaky VA: | E162: 0 | M162: Výtlaky VA:
C163: Š DN100:2 | E163: 2 | M163: Š DN100:2
A164: 28 | B164: 891265321R00 | C164: Montáž zpětných klapek DN 100 | D164: kus | E164: 2 | G164: =E164*F164 -> 0 | H164: 0.00041 | I164: =E164*H164 -> 0.00082 | J164: 0 | K164: =E164*J164 -> 0 | O164: 2 | AA164: 1 | AB164: 1 | AC164: 1 | AZ164: 1 | BA164: =IF(AZ164=1,G164,0) -> 0 | BB164: =IF(AZ164=2,G164,0) -> 0 | BC164: =IF(AZ164=3,G164,0) -> 0 | BD164: =IF(AZ164=4,G164,0) -> 0 | BE164: =IF(AZ164=5,G164,0) -> 0 | CA164: 1 | CB164: 1
C165: Výtlaky VA: | E165: 0 | M165: Výtlaky VA:
C166: ZK DN100:2 | E166: 2 | M166: ZK DN100:2
A167: 29 | B167: 892230076RRX | C167: Čištění potrubí včetně zkoušky průchodnosti do DN100 | D167: m | E167: 2578.26 | G167: =E167*F167 -> 0 | H167: 0 | I167: =E167*H167 -> 0 | J167: 0 | K167: =E167*J167 -> 0 | O167: 2 | AA167: 1 | AB167: 9 | AC167: 9 | AZ167: 1 | BA167: =IF(AZ167=1,G167,0) -> 0 | BB167: =IF(AZ167=2,G167,0) -> 0 | BC167: =IF(AZ167=3,G167,0) -> 0 | BD167: =IF(AZ167=4,G167,0) -> 0 | BE167: =IF(AZ167=5,G167,0) -> 0 | CA167: 1 | CB167: 9
C168: Výtlak VA PE D 110x10,0 mm - pluhování:1890,60 | E168: 1890.6 | M168: Výtlak VA PE D 110x10,0 mm - pluhování:1890,60
C169: Výtlak VA PE D 110x10,0 mm - řízený protlak:578,25 | E169: 578.25 | M169: Výtlak VA PE D 110x10,0 mm - řízený protlak:578,25
C170: Výtlak VA PE D 110x10,0 mm - rýha:109,41 | E170: 109.41 | M170: Výtlak VA PE D 110x10,0 mm - rýha:109,41
A171: 30 | B171: 892271111R00 | C171: Tlaková zkouška potrubí kanalizačního výtlak DN125 | D171: m | E171: 2578.26 | G171: =E171*F171 -> 0 | H171: 0 | I171: =E171*H171 -> 0 | J171: 0 | K171: =E171*J171 -> 0 | O171: 2 | AA171: 1 | AB171: 1 | AC171: 1 | AZ171: 1 | BA171: =IF(AZ171=1,G171,0) -> 0 | BB171: =IF(AZ171=2,G171,0) -> 0 | BC171: =IF(AZ171=3,G171,0) -> 0 | BD171: =IF(AZ171=4,G171,0) -> 0 | BE171: =IF(AZ171=5,G171,0) -> 0 | CA171: 1 | CB171: 1
C172: V položce jsou započteny náklady na přísun, montáž, demontáž a odsun zkoušecího čerpadla, napuštění tlakovou vodou a dodání vody pro tlakovou zkoušku. | L172: V položce jsou započteny náklady na přísun, montáž, demontáž a odsun zkoušecího čerpadla, napuštění tlakovou vodou a dodání vody pro tlakovou zkoušku. | O172: 3
C173: Součástí položky je i zajištění konců zkoušeného potrubí. | L173: Součástí položky je i zajištění konců zkoušeného potrubí. | O173: 3
C174: Výtlak VA PE D 110x10,0 mm - pluhování:1890,60 | E174: 1890.6 | M174: Výtlak VA PE D 110x10,0 mm - pluhování:1890,60
C175: Výtlak VA PE D 110x10,0 mm - řízený protlak:578,25 | E175: 578.25 | M175: Výtlak VA PE D 110x10,0 mm - řízený protlak:578,25
C176: Výtlak VA PE D 110x10,0 mm - rýha:109,41 | E176: 109.41 | M176: Výtlak VA PE D 110x10,0 mm - rýha:109,41
A177: 31 | B177: 899000022R00 | C177: Armaturní ŽB šachta AŠ 2 dle PD | D177: m3 OP | E177: 14.96 | G177: =E177*F177 -> 0 | H177: 0 | I177: =E177*H177 -> 0 | J177: 0 | K177: =E177*J177 -> 0 | O177: 2 | AA177: 1 | AB177: 1 | AC177: 1 | AZ177: 1 | BA177: =IF(AZ177=1,G177,0) -> 0 | BB177: =IF(AZ177=2,G177,0) -> 0 | BC177: =IF(AZ177=3,G177,0) -> 0 | BD177: =IF(AZ177=4,G177,0) -> 0 | BE177: =IF(AZ177=5,G177,0) -> 0 | CA177: 1 | CB177: 1
C178: Kompletní provedení ŽB šachty dle výkresové dokumentace včetně zemních prací,podkladního betomu, štěrkopísku, izolací, poklopů a stupadel..Celková váha výztuže 526 kg. | L178: Kompletní provedení šachty dle výkresové dokumentace včetně zemních prací,podkladního betomu, štěrkopísku, izolací, poklopů a stupadel.. | O178: 3
C179: AŠ2:14,96 | E179: 14.96 | M179: AŠ2:14,96
A180: 32 | B180: 899721112R00 | C180: Fólie výstražná z PVC, šířka 30 cm | D180: m | E180: 578.25 | G180: =E180*F180 -> 0 | H180: 0 | I180: =E180*H180 -> 0 | J180: 0 | K180: =E180*J180 -> 0 | O180: 2 | AA180: 1 | AB180: 1 | AC180: 1 | AZ180: 1 | BA180: =IF(AZ180=1,G180,0) -> 0 | BB180: =IF(AZ180=2,G180,0) -> 0 | BC180: =IF(AZ180=3,G180,0) -> 0 | BD180: =IF(AZ180=4,G180,0) -> 0 | BE180: =IF(AZ180=5,G180,0) -> 0 | CA180: 1 | CB180: 1
C181: Výtlak VA PE D 110x10,0 mm - rýha:578,25 | E181: 578.25 | M181: Výtlak VA PE D 110x10,0 mm - rýha:578,25
A182: 33 | B182: 899731113R00 | C182: Vodič signalizační CYY 4 mm2 proměření včetně revize vodiče | D182: m | E182: 2578.26 | G182: =E182*F182 -> 0 | H182: 5e-05 | I182: =E182*H182 -> 0.128913 | J182: 0 | K182: =E182*J182 -> 0 | O182: 2 | AA182: 1 | AB182: 1 | AC182: 1 | AZ182: 1 | BA182: =IF(AZ182=1,G182,0) -> 0 | BB182: =IF(AZ182=2,G182,0) -> 0 | BC182: =IF(AZ182=3,G182,0) -> 0 | BD182: =IF(AZ182=4,G182,0) -> 0 | BE182: =IF(AZ182=5,G182,0) -> 0 | CA182: 1 | CB182: 1
C183: Výtlak VA PE D 110x10,0 mm - pluhování:1890,60 | E183: 1890.6 | M183: Výtlak VA PE D 110x10,0 mm - pluhování:1890,60
C184: Výtlak VA PE D 110x10,0 mm - řízený protlak:578,25 | E184: 578.25 | M184: Výtlak VA PE D 110x10,0 mm - řízený protlak:578,25
C185: Výtlak VA PE D 110x10,0 mm - rýha:109,41 | E185: 109.41 | M185: Výtlak VA PE D 110x10,0 mm - rýha:109,41
A186: 34 | B186: 899731114R00 | C186: Vodič signalizační CYY 6 mm2 proměření včetně revize vodiče | D186: m | E186: 2578.26 | G186: =E186*F186 -> 0 | H186: 8e-05 | I186: =E186*H186 -> 0.2062608 | J186: 0 | K186: =E186*J186 -> 0 | O186: 2 | AA186: 1 | AB186: 1 | AC186: 1 | AZ186: 1 | BA186: =IF(AZ186=1,G186,0) -> 0 | BB186: =IF(AZ186=2,G186,0) -> 0 | BC186: =IF(AZ186=3,G186,0) -> 0 | BD186: =IF(AZ186=4,G186,0) -> 0 | BE186: =IF(AZ186=5,G186,0) -> 0 | CA186: 1 | CB186: 1
C187: Výtlak VA PE D 110x10,0 mm - pluhování:1890,60 | E187: 1890.6 | M187: Výtlak VA PE D 110x10,0 mm - pluhování:1890,60
C188: Výtlak VA PE D 110x10,0 mm - řízený protlak:578,25 | E188: 578.25 | M188: Výtlak VA PE D 110x10,0 mm - řízený protlak:578,25
C189: Výtlak VA PE D 110x10,0 mm - rýha:109,41 | E189: 109.41 | M189: Výtlak VA PE D 110x10,0 mm - rýha:109,41
A190: 35 | B190: 28613010.M | C190: Elektrospojka d 110 mm PE100 SDR11 | D190: kus | E190: 60.9 | G190: =E190*F190 -> 0 | H190: 7e-05 | I190: =E190*H190 -> 0.004263 | K190: =E190*J190 -> 0 | O190: 2 | AA190: 3 | AB190: 1 | AC190: 28613010.M | AZ190: 1 | BA190: =IF(AZ190=1,G190,0) -> 0 | BB190: =IF(AZ190=2,G190,0) -> 0 | BC190: =IF(AZ190=3,G190,0) -> 0 | BD190: =IF(AZ190=4,G190,0) -> 0 | BE190: =IF(AZ190=5,G190,0) -> 0 | CA190: 3 | CB190: 1
C191: Výtlaky VA: | E191: 0 | M191: Výtlaky VA:
C192: Elektrospojka d 110:60*1,015 | E192: 60.9 | M192: Elektrospojka d 110:60*1,015
A193: 36 | B193: 286134455 | C193: Trubka tlaková PE100RC D SDR11 110x10,0 mm tyče kanalizace | D193: m | E193: 111.0511 | G193: =E193*F193 -> 0 | H193: 0.00212 | I193: =E193*H193 -> 0.235428332 | K193: =E193*J193 -> 0 | O193: 2 | AA193: 3 | AB193: 1 | AC193: 286134455 | AZ193: 1 | BA193: =IF(AZ193=1,G193,0) -> 0 | BB193: =IF(AZ193=2,G193,0) -> 0 | BC193: =IF(AZ193=3,G193,0) -> 0 | BD193: =IF(AZ193=4,G193,0) -> 0 | BE193: =IF(AZ193=5,G193,0) -> 0 | CA193: 3 | CB193: 1
C194: Trubky kanalizační z PE100RC podle ČSN EN 12201 s ochranným pláštěm | L194: Trubky kanalizační z PE100RC podle ČSN EN 12201 s ochranným pláštěm | O194: 3
C195: RC D vnitřní trubka černá s hnědými pruhy | L195: RC D vnitřní trubka černá s hnědými pruhy | O195: 3
C196: vnější ochranná vrstva z PP barvy hnědé | L196: vnější ochranná vrstva z PP barvy hnědé | O196: 3
C197: Výtlak VA PE D 110x10,0 mm - rýha:109,41*1,015 | E197: 111.0511 | M197: Výtlak VA PE D 110x10,0 mm - rýha:109,41*1,015
A198: 37 | B198: 286134456.R | C198: Trubka tlaková PE100RC D SDR11 110x10,0 mm návin kanalizace | D198: m | E198: 1918.959 | G198: =E198*F198 -> 0 | H198: 0.00212 | I198: =E198*H198 -> 4.06819308 | K198: =E198*J198 -> 0 | O198: 2 | AA198: 3 | AB198: 1 | AC198: 286134456.R | AZ198: 1 | BA198: =IF(AZ198=1,G198,0) -> 0 | BB198: =IF(AZ198=2,G198,0) -> 0 | BC198: =IF(AZ198=3,G198,0) -> 0 | BD198: =IF(AZ198=4,G198,0) -> 0 | BE198: =IF(AZ198=5,G198,0) -> 0 | CA198: 3 | CB198: 1
C199: Trubky kanalizační z PE100RC2 K podle ČSN EN 12201 s ochranným pláštěm | L199: Trubky kanalizační z PE100RC2 K podle ČSN EN 12201 s ochranným pláštěm | O199: 3
C200: RC2 K vnitřní trubka černá s hnědými pruhy | L200: RC2 K vnitřní trubka černá s hnědými pruhy | O200: 3
C201: vnější ochranná vrstva z modifikovaného PE barvy hnědé s integrovaným vodičem. | L201: vnější ochranná vrstva z modifikovaného PE barvy hnědé s integrovaným vodičem. | O201: 3
C202: Výtlak VA PE D 110x10,0 mm - pluhování:1890,60*1,015 | E202: 1918.959 | M202: Výtlak VA PE D 110x10,0 mm - pluhování:1890,60*1,015
... 36 more rows

Sheet 303 303.1RD KL
A1: POLOŽKOVÝ ROZPOČET
A2: Rozpočet | C2: 303.1RD | D2: Kanalizační přípojky | F2: JKSO | G2: 827.29.A2
A4: Objekt | F4: SKP
A5: 303 | C5: Kanalizační přípojky | F5: Měrná jednotka | G5: m
A6: Stavba | F6: Počet jednotek | G6: 0
A7: 3232 | C7: Horní Slivno - Splašková kanalizace | F7: Náklady na m.j. | G7: =IF(G6=0,,ROUND((F30+F32)/G6,1)) -> 0
A8: Projektant | C8: Radek Hnát - VAK PROJEKT | F8: Typ rozpočtu
A9: Zpracovatel projektu
A10: Objednatel | C10: Obec Horní Slivno
A11: Dodavatel | C11: . | F11: Zakázkové číslo
A12: Rozpočtoval | F12: Počet listů
A13: ROZPOČTOVÉ NÁKLADY
A14: Základní rozpočtové náklady
B15: HSV celkem | C15: ='303 303.1RD Rek'!E11 -> 0
A16: Z | B16: PSV celkem | C16: ='303 303.1RD Rek'!F11 -> 0
A17: R | B17: M práce celkem | C17: ='303 303.1RD Rek'!H11 -> 0
A18: N | B18: M dodávky celkem | C18: ='303 303.1RD Rek'!G11 -> 0
A19: ZRN celkem | C19: =SUM(C15:C18) -> 0
A21: HZS | C21: ='303 303.1RD Rek'!I11 -> 0
A22: ZRN+HZS | C22: =C19+C21 -> 0
A23: ZRN+ost.náklady+HZS | C23: =C22+G23 -> 0
A24: Vypracoval | D24: Za zhotovitele | F24: Za objednatele
A25: Jméno : | D25: Jméno : | F25: Jméno :
A26: Datum : | D26: Datum : | F26: Datum :
A28: Podpis : | D28: Podpis: | F28: Podpis:
A30: Základ pro DPH | C30: 21 | D30: % | F30: =C23-F32 -> 0
A31: DPH | C31: =C30 -> 21 | D31: % | F31: =ROUND(PRODUCT(F30,C31/100),0) -> 0
A32: Základ pro DPH | C32: 0 | D32: % | F32: 0
A33: DPH | C33: =C32 -> 0 | D33: % | F33: =ROUND(PRODUCT(F32,C33/100),0) -> 0
A34: CENA ZA OBJEKT CELKEM | F34: =ROUND(SUM(F30:F33),0) -> 0
A36: Poznámka :

Sheet 303 303.1RD Rek
A1: Stavba : | C1: 3232 Horní Slivno - Splašková kanalizace | G1: Rozpočet : | H1: 303.1RD
A2: Objekt : | C2: 303 Kanalizační přípojky | G2: Kanalizační přípojky
A4: REKAPITULACE STAVEBNÍCH DÍLŮ
B6: Stavební díl | E6: HSV | F6: PSV | G6: Dodávka | H6: Montáž | I6: HZS
A7: ='303 303.1RD Pol'!B7 -> 1 | B7: ='303 303.1RD Pol'!C7 -> Zemní práce | E7: ='303 303.1RD Pol'!BA333 -> 0 | F7: ='303 303.1RD Pol'!BB333 -> 0 | G7: ='303 303.1RD Pol'!BC333 -> 0 | H7: ='303 303.1RD Pol'!BD333 -> 0 | I7: ='303 303.1RD Pol'!BE333 -> 0
A8: ='303 303.1RD Pol'!B334 -> 45 | B8: ='303 303.1RD Pol'!C334 -> Podkladní a vedlejší konstrukce | E8: ='303 303.1RD Pol'!BA357 -> 0 | F8: ='303 303.1RD Pol'!BB357 -> 0 | G8: ='303 303.1RD Pol'!BC357 -> 0 | H8: ='303 303.1RD Pol'!BD357 -> 0 | I8: ='303 303.1RD Pol'!BE357 -> 0
A9: ='303 303.1RD Pol'!B358 -> 8 | B9: ='303 303.1RD Pol'!C358 -> Trubní vedení | E9: ='303 303.1RD Pol'!BA476 -> 0 | F9: ='303 303.1RD Pol'!BB476 -> 0 | G9: ='303 303.1RD Pol'!BC476 -> 0 | H9: ='303 303.1RD Pol'!BD476 -> 0 | I9: ='303 303.1RD Pol'!BE476 -> 0
A10: ='303 303.1RD Pol'!B477 -> 99 | B10: ='303 303.1RD Pol'!C477 -> Staveništní přesun hmot | E10: ='303 303.1RD Pol'!BA479 -> 0 | F10: ='303 303.1RD Pol'!BB479 -> 0 | G10: ='303 303.1RD Pol'!BC479 -> 0 | H10: ='303 303.1RD Pol'!BD479 -> 0 | I10: ='303 303.1RD Pol'!BE479 -> 0
B11: CELKEM OBJEKT | E11: =SUM(E7:E10) -> 0 | F11: =SUM(F7:F10) -> 0 | G11: =SUM(G7:G10) -> 0 | H11: =SUM(H7:H10) -> 0 | I11: =SUM(I7:I10) -> 0

Sheet 303 303.1RD Pol
A1: Položkový rozpočet
A3: Stavba : | C3: 3232 Horní Slivno - Splašková kanalizace | E3: Rozpočet: | F3: ='303 303.1RD Rek'!H1 -> 303.1RD
A4: Objekt : | C4: 303 Kanalizační přípojky | E4: ='303 303.1RD Rek'!G2 -> Kanalizační přípojky
A6: P.č. | B6: Číslo položky | C6: Název položky | D6: MJ | E6: množství | F6: cena / MJ | G6: celkem (Kč) | H6: Jednotková hmotnost | I6: Celková hmotnost | J6: Jednotková dem.hmot. | K6: Celková dem.hmot.
A7: Díl: | B7: 1 | C7: Zemní práce | O7: 1
A8: 1 | B8: 121100002RAB | C8: Sejmutí ornice a uložení na deponii zpětný přesun, rozprostření v tl. 30 cm, osetí | D8: m3 | E8: 196.875 | G8: =E8*F8 -> 0 | H8: 0 | I8: =E8*H8 -> 0 | J8: 0 | K8: =E8*J8 -> 0 | O8: 2 | AA8: 1 | AB8: 1 | AC8: 1 | AZ8: 1 | BA8: =IF(AZ8=1,G8,0) -> 0 | BB8: =IF(AZ8=2,G8,0) -> 0 | BC8: =IF(AZ8=3,G8,0) -> 0 | BD8: =IF(AZ8=4,G8,0) -> 0 | BE8: =IF(AZ8=5,G8,0) -> 0 | CA8: 1 | CB8: 1
C9: Výkopy: | E9: 0 | M9: Výkopy:
C10: Kanalizační přípojky KT DN150: | E10: 0 | M10: Kanalizační přípojky KT DN150:
C11: Začátek provozního součtu | E11: 0 | M11: Začátek provozního součtu
C12: Kmenová stoka A KT DN250-500 (52 kusů):364,50 | E12: 364.5 | M12: Kmenová stoka A KT DN250-500 (52 kusů):364,50
C13: Stoka AA KT DN250 (9 kusů):36,00 | E13: 36 | M13: Stoka AA KT DN250 (9 kusů):36,00
C14: Stoka AB KT DN250 (1 kus):3,00 | E14: 3 | M14: Stoka AB KT DN250 (1 kus):3,00
C15: Stoka AC KT DN250 (5 kusů):23,00 | E15: 23 | M15: Stoka AC KT DN250 (5 kusů):23,00
C16: Stoka AD KT DN250 (2 kusy):5,00 | E16: 5 | M16: Stoka AD KT DN250 (2 kusy):5,00
C17: Stoka AE KT DN250 (14 kusů):139,50 | E17: 139.5 | M17: Stoka AE KT DN250 (14 kusů):139,50
C18: Stoka AE-1 KT DN250 (7 kusů):27,00 | E18: 27 | M18: Stoka AE-1 KT DN250 (7 kusů):27,00
C19: Stoka AF KT DN250 (4 kusy):39,50 | E19: 39.5 | M19: Stoka AF KT DN250 (4 kusy):39,50
C20: Stoka AG KT DN250 (2 kusy):9,50 | E20: 9.5 | M20: Stoka AG KT DN250 (2 kusy):9,50
C21: Stoka AH KT DN250 (7 kusů):26,00 | E21: 26 | M21: Stoka AH KT DN250 (7 kusů):26,00
C22: Sběrač B KT DN250 (15 kusů):100,00 | E22: 100 | M22: Sběrač B KT DN250 (15 kusů):100,00
C23: Stoka BA KT DN250 (10 kusů):72,00 | E23: 72 | M23: Stoka BA KT DN250 (10 kusů):72,00
C24: Sběrač C KT DN250 (5 kusů):17,00 | E24: 17 | M24: Sběrač C KT DN250 (5 kusů):17,00
C25: Stoka CA KT DN250 (6 kusů):24,00 | E25: 24 | M25: Stoka CA KT DN250 (6 kusů):24,00
C26: Konec provozního součtu | E26: 886 | M26: Konec provozního součtu
C27: V hornině tř. 2 - 6 - 35% (průměrná hloubka 2,45 m):886,0000*2,00*0,30*0,35 | E27: 186.06 | M27: V hornině tř. 2 - 6 - 35% (průměrná hloubka 2,45 m):886,0000*2,00*0,30*0,35
C28: Kanalizační přípojky PE D 50: | E28: 0 | M28: Kanalizační přípojky PE D 50:
C29: Začátek provozního součtu | E29: 0 | M29: Začátek provozního součtu
C30: Výtlak VE (3 kusy):38,00*2,00*0,30+3,00*3,00*0,30*3 | E30: 30.9 | M30: Výtlak VE (3 kusy):38,00*2,00*0,30+3,00*3,00*0,30*3
C31: Konec provozního součtu | E31: 30.9 | M31: Konec provozního součtu
C32: V hornině tř. 2 - 6 - 35%:30,9000*0,35 | E32: 10.815 | M32: V hornině tř. 2 - 6 - 35%:30,9000*0,35
A33: 2 | B33: 130001101RRX | C33: Příplatek za ztížené hloubení v blízkosti vedení | D33: m3 | E33: 233.1797 | G33: =E33*F33 -> 0 | H33: 0 | I33: =E33*H33 -> 0 | J33: 0 | K33: =E33*J33 -> 0 | O33: 2 | AA33: 1 | AB33: 1 | AC33: 1 | AZ33: 1 | BA33: =IF(AZ33=1,G33,0) -> 0 | BB33: =IF(AZ33=2,G33,0) -> 0 | BC33: =IF(AZ33=3,G33,0) -> 0 | BD33: =IF(AZ33=4,G33,0) -> 0 | BE33: =IF(AZ33=5,G33,0) -> 0 | CA33: 1 | CB33: 1
C34: Včetně ruční dokopávky a ručního výkopu. | L34: Včetně ruční dokopávky a ručního výkopu. | O34: 3
C35: Součástí položky je i případná potřeba dočasnéhon zajištění potrubí a kabelových vedení ve výkopu. | L35: Součástí položky je i případná potřeba dočasnéhon zajištění potrubí a kabelových vedení ve výkopu. | O35: 3
C36: Výkopy: | E36: 0 | M36: Výkopy:
C37: Kanalizační přípojky KT DN150: | E37: 0 | M37: Kanalizační přípojky KT DN150:
C38: Začátek provozního součtu | E38: 0 | M38: Začátek provozního součtu
C39: Kmenová stoka A KT DN250-500 (52 kusů):364,50 | E39: 364.5 | M39: Kmenová stoka A KT DN250-500 (52 kusů):364,50
C40: Stoka AA KT DN250 (9 kusů):36,00 | E40: 36 | M40: Stoka AA KT DN250 (9 kusů):36,00
C41: Stoka AB KT DN250 (1 kus):3,00 | E41: 3 | M41: Stoka AB KT DN250 (1 kus):3,00
C42: Stoka AC KT DN250 (5 kusů):23,00 | E42: 23 | M42: Stoka AC KT DN250 (5 kusů):23,00
C43: Stoka AD KT DN250 (2 kusy):5,00 | E43: 5 | M43: Stoka AD KT DN250 (2 kusy):5,00
C44: Stoka AE KT DN250 (14 kusů):139,50 | E44: 139.5 | M44: Stoka AE KT DN250 (14 kusů):139,50
C45: Stoka AE-1 KT DN250 (7 kusů):27,00 | E45: 27 | M45: Stoka AE-1 KT DN250 (7 kusů):27,00
C46: Stoka AF KT DN250 (4 kusy):39,50 | E46: 39.5 | M46: Stoka AF KT DN250 (4 kusy):39,50
C47: Stoka AG KT DN250 (2 kusy):9,50 | E47: 9.5 | M47: Stoka AG KT DN250 (2 kusy):9,50
C48: Stoka AH KT DN250 (7 kusů):26,00 | E48: 26 | M48: Stoka AH KT DN250 (7 kusů):26,00
C49: Sběrač B KT DN250 (15 kusů):100,00 | E49: 100 | M49: Sběrač B KT DN250 (15 kusů):100,00
C50: Stoka BA KT DN250 (10 kusů):72,00 | E50: 72 | M50: Stoka BA KT DN250 (10 kusů):72,00
C51: Sběrač C KT DN250 (5 kusů):17,00 | E51: 17 | M51: Sběrač C KT DN250 (5 kusů):17,00
C52: Stoka CA KT DN250 (6 kusů):24,00 | E52: 24 | M52: Stoka CA KT DN250 (6 kusů):24,00
C53: Konec provozního součtu | E53: 886 | M53: Konec provozního součtu
C54: V hornině tř. 2 - 6 - 13% (průměrná hloubka 2,45 m):886,0000*0,90*(2,45-0,30)*0,13 | E54: 222.8733 | M54: V hornině tř. 2 - 6 - 13% (průměrná hloubka 2,45 m):886,0000*0,90*(2,45-0,30)*0,13
C55: Kanalizační přípojky PE D 50: | E55: 0 | M55: Kanalizační přípojky PE D 50:
C56: Začátek provozního součtu | E56: 0 | M56: Začátek provozního součtu
C57: Výtlak VE (3 kusy):38,00*0,80*(2,00-0,30)+2,00*2,00*(2,50-0,20)*3 | E57: 79.28 | M57: Výtlak VE (3 kusy):38,00*0,80*(2,00-0,30)+2,00*2,00*(2,50-0,20)*3
C58: Konec provozního součtu | E58: 79.28 | M58: Konec provozního součtu
C59: V hornině tř. 2 - 6 - 13%:79,2800*0,13 | E59: 10.3064 | M59: V hornině tř. 2 - 6 - 13%:79,2800*0,13
A60: 3 | B60: 132101213R00 | C60: Hloubení rýh š.do 200 cm hor.2 do 10000 m3,STROJNĚ | D60: m3 | E60: 203.7403 | G60: =E60*F60 -> 0 | H60: 0 | I60: =E60*H60 -> 0 | J60: 0 | K60: =E60*J60 -> 0 | O60: 2 | AA60: 1 | AB60: 1 | AC60: 1 | AZ60: 1 | BA60: =IF(AZ60=1,G60,0) -> 0 | BB60: =IF(AZ60=2,G60,0) -> 0 | BC60: =IF(AZ60=3,G60,0) -> 0 | BD60: =IF(AZ60=4,G60,0) -> 0 | BE60: =IF(AZ60=5,G60,0) -> 0 | CA60: 1 | CB60: 1
C61: Položka obsahuje hloubení rýh traktorbagrem, naložení výkopku na dopravní prostředek pro svislé, nebo vodorovné přemístění, popř. přemístění výkopku do 3 m (po povrchu území), případné zajištění rypadel polštáři, udržování pracoviště a ochranu výkopiště proti stékání srážkové vody z okolního terénu i s jejím odvodněním, nebo odvedením, přesekání a odstranění kořenů ve výkopišti, odstranění napadávek, urovnání dna výkopu. | L61: Položka obsahuje hloubení rýh traktorbagrem, naložení výkopku na dopravní prostředek pro svislé, nebo vodorovné přemístění, popř. přemístění výkopku do 3 m (po povrchu území), případné zajištění rypadel polštáři, udržování pracoviště a ochranu výkopiště proti stékání srážkové vody z okolního terénu i s jejím odvodněním, nebo odvedením, přesekání a odstranění kořenů ve výkopišti, odstranění napadávek, urovnání dna výkopu. | O61: 3
C62: Součástí položky je i pažení výkopů dle zvolené technologie zhotovitelem a v souladu s předpisy BOZP. | L62: Součástí položky je i pažení výkopů dle zvolené technologie zhotovitelem a v souladu s předpisy BOZP. | O62: 3
C63: V hornině tř. 2: | E63: 0 | M63: V hornině tř. 2:
C64: Kanalizační přípojky KT DN150 (průměrná hloubka 2,45 m): | E64: 0 | M64: Kanalizační přípojky KT DN150 (průměrná hloubka 2,45 m):
C65: Kmenová stoka A KT DN250-500 (52 kusů):364,50*0,90*(2,45-0,30)*0,11 | E65: 77.5838 | M65: Kmenová stoka A KT DN250-500 (52 kusů):364,50*0,90*(2,45-0,30)*0,11
C66: Stoka AA KT DN250 (9 kusů):36,00*0,90*(2,45-0,30)*0,11 | E66: 7.6626 | M66: Stoka AA KT DN250 (9 kusů):36,00*0,90*(2,45-0,30)*0,11
C67: Stoka AB KT DN250 (1 kus):3,00*0,90*(2,45-0,30)*0,15 | E67: 0.8708 | M67: Stoka AB KT DN250 (1 kus):3,00*0,90*(2,45-0,30)*0,15
C68: Stoka AC KT DN250 (5 kusů):23,00*0,90*(2,45-0,30)*0,12 | E68: 5.3406 | M68: Stoka AC KT DN250 (5 kusů):23,00*0,90*(2,45-0,30)*0,12
C69: Stoka AD KT DN250 (2 kusy):5,00*0,90*(2,45-0,30)*0,12 | E69: 1.161 | M69: Stoka AD KT DN250 (2 kusy):5,00*0,90*(2,45-0,30)*0,12
C70: Stoka AE KT DN250 (14 kusů):139,50*0,90*(2,45-0,30)*0,10 | E70: 26.9933 | M70: Stoka AE KT DN250 (14 kusů):139,50*0,90*(2,45-0,30)*0,10
C71: Stoka AE-1 KT DN250 (7 kusů):27,00*0,90*(2,45-0,30)*0,13 | E71: 6.7919 | M71: Stoka AE-1 KT DN250 (7 kusů):27,00*0,90*(2,45-0,30)*0,13
C72: Stoka AF KT DN250 (4 kusy):39,50*0,90*(2,45-0,30)*0,10 | E72: 7.6433 | M72: Stoka AF KT DN250 (4 kusy):39,50*0,90*(2,45-0,30)*0,10
C73: Stoka AG KT DN250 (2 kusy):9,50*0,90*(2,45-0,30)*0,12 | E73: 2.2059 | M73: Stoka AG KT DN250 (2 kusy):9,50*0,90*(2,45-0,30)*0,12
C74: Stoka AH KT DN250 (7 kusů):26,00*0,90*(2,45-0,30)*0,19 | E74: 9.5589 | M74: Stoka AH KT DN250 (7 kusů):26,00*0,90*(2,45-0,30)*0,19
C75: Sběrač B KT DN250 (15 kusů):100,00*0,90*(2,45-0,30)*0,13 | E75: 25.155 | M75: Sběrač B KT DN250 (15 kusů):100,00*0,90*(2,45-0,30)*0,13
C76: Stoka BA KT DN250 (10 kusů):72,00*0,90*(2,45-0,30)*0,11 | E76: 15.3252 | M76: Stoka BA KT DN250 (10 kusů):72,00*0,90*(2,45-0,30)*0,11
C77: Sběrač C KT DN250 (5 kusů):17,00*0,90*(2,45-0,30)*0,12 | E77: 3.9474 | M77: Sběrač C KT DN250 (5 kusů):17,00*0,90*(2,45-0,30)*0,12
C78: Stoka CA KT DN250 (6 kusů):24,00*0,90*(2,45-0,30)*0,12 | E78: 5.5728 | M78: Stoka CA KT DN250 (6 kusů):24,00*0,90*(2,45-0,30)*0,12
C79: Kanalizační přípojky PE D 50: | E79: 0 | M79: Kanalizační přípojky PE D 50:
C80: Výtlak VE (3 kusy):(38,00*0,80*(2,00-0,30)+2,00*2,00*(2,50-0,20)*3)*0,10 | E80: 7.928 | M80: Výtlak VE (3 kusy):(38,00*0,80*(2,00-0,30)+2,00*2,00*(2,50-0,20)*3)*0,10
A81: 4 | B81: 132201213R00 | C81: Hloubení rýh š.do 200 cm hor.3 do 10000 m3,STROJNĚ | D81: m3 | E81: 503.9377 | G81: =E81*F81 -> 0 | H81: 0 | I81: =E81*H81 -> 0 | J81: 0 | K81: =E81*J81 -> 0 | O81: 2 | AA81: 1 | AB81: 1 | AC81: 1 | AZ81: 1 | BA81: =IF(AZ81=1,G81,0) -> 0 | BB81: =IF(AZ81=2,G81,0) -> 0 | BC81: =IF(AZ81=3,G81,0) -> 0 | BD81: =IF(AZ81=4,G81,0) -> 0 | BE81: =IF(AZ81=5,G81,0) -> 0 | CA81: 1 | CB81: 1
C82: Položka obsahuje hloubení rýh traktorbagrem, naložení výkopku na dopravní prostředek pro svislé, nebo vodorovné přemístění, popř. přemístění výkopku do 3 m (po povrchu území), případné zajištění rypadel polštáři, udržování pracoviště a ochranu výkopiště proti stékání srážkové vody z okolního terénu i s jejím odvodněním, nebo odvedením, přesekání a odstranění kořenů ve výkopišti, odstranění napadávek, urovnání dna výkopu. | L82: Položka obsahuje hloubení rýh traktorbagrem, naložení výkopku na dopravní prostředek pro svislé, nebo vodorovné přemístění, popř. přemístění výkopku do 3 m (po povrchu území), případné zajištění rypadel polštáři, udržování pracoviště a ochranu výkopiště proti stékání srážkové vody z okolního terénu i s jejím odvodněním, nebo odvedením, přesekání a odstranění kořenů ve výkopišti, odstranění napadávek, urovnání dna výkopu. | O82: 3
C83: Součástí položky je i pažení výkopů dle zvolené technologie zhotovitelem a v souladu s předpisy BOZP. | L83: Součástí položky je i pažení výkopů dle zvolené technologie zhotovitelem a v souladu s předpisy BOZP. | O83: 3
C84: V hornině tř. 3: | E84: 0 | M84: V hornině tř. 3:
C85: Kanalizační přípojky KT DN150 (průměrná hloubka 2,45 m): | E85: 0 | M85: Kanalizační přípojky KT DN150 (průměrná hloubka 2,45 m):
C86: Kmenová stoka A KT DN250-500 (52 kusů):364,50*0,90*(2,45-0,30)*0,26 | E86: 183.38 | M86: Kmenová stoka A KT DN250-500 (52 kusů):364,50*0,90*(2,45-0,30)*0,26
C87: Stoka AA KT DN250 (9 kusů):36,00*0,90*(2,45-0,30)*0,28 | E87: 19.5048 | M87: Stoka AA KT DN250 (9 kusů):36,00*0,90*(2,45-0,30)*0,28
C88: Stoka AB KT DN250 (1 kus):3,00*0,90*(2,45-0,30)*0,37 | E88: 2.1479 | M88: Stoka AB KT DN250 (1 kus):3,00*0,90*(2,45-0,30)*0,37
C89: Stoka AC KT DN250 (5 kusů):23,00*0,90*(2,45-0,30)*0,31 | E89: 13.7966 | M89: Stoka AC KT DN250 (5 kusů):23,00*0,90*(2,45-0,30)*0,31
C90: Stoka AD KT DN250 (2 kusy):5,00*0,90*(2,45-0,30)*0,31 | E90: 2.9993 | M90: Stoka AD KT DN250 (2 kusy):5,00*0,90*(2,45-0,30)*0,31
C91: Stoka AE KT DN250 (14 kusů):139,50*0,90*(2,45-0,30)*0,25 | E91: 67.4831 | M91: Stoka AE KT DN250 (14 kusů):139,50*0,90*(2,45-0,30)*0,25
C92: Stoka AE-1 KT DN250 (7 kusů):27,00*0,90*(2,45-0,30)*0,33 | E92: 17.2409 | M92: Stoka AE-1 KT DN250 (7 kusů):27,00*0,90*(2,45-0,30)*0,33
C93: Stoka AF KT DN250 (4 kusy):39,50*0,90*(2,45-0,30)*0,26 | E93: 19.8725 | M93: Stoka AF KT DN250 (4 kusy):39,50*0,90*(2,45-0,30)*0,26
C94: Stoka AG KT DN250 (2 kusy):9,50*0,90*(2,45-0,30)*0,31 | E94: 5.6986 | M94: Stoka AG KT DN250 (2 kusy):9,50*0,90*(2,45-0,30)*0,31
C95: Stoka AH KT DN250 (7 kusů):26,00*0,90*(2,45-0,30)*0,46 | E95: 23.1426 | M95: Stoka AH KT DN250 (7 kusů):26,00*0,90*(2,45-0,30)*0,46
C96: Sběrač B KT DN250 (15 kusů):100,00*0,90*(2,45-0,30)*0,33 | E96: 63.855 | M96: Sběrač B KT DN250 (15 kusů):100,00*0,90*(2,45-0,30)*0,33
C97: Stoka BA KT DN250 (10 kusů):72,00*0,90*(2,45-0,30)*0,29 | E97: 40.4028 | M97: Stoka BA KT DN250 (10 kusů):72,00*0,90*(2,45-0,30)*0,29
C98: Sběrač C KT DN250 (5 kusů):17,00*0,90*(2,45-0,30)*0,31 | E98: 10.1975 | M98: Sběrač C KT DN250 (5 kusů):17,00*0,90*(2,45-0,30)*0,31
C99: Stoka CA KT DN250 (6 kusů):24,00*0,90*(2,45-0,30)*0,31 | E99: 14.3964 | M99: Stoka CA KT DN250 (6 kusů):24,00*0,90*(2,45-0,30)*0,31
C100: Kanalizační přípojky PE D 50: | E100: 0 | M100: Kanalizační přípojky PE D 50:
C101: Výtlak VE (3 kusy):(38,00*0,80*(2,00-0,30)+2,00*2,00*(2,50-0,20)*3)*0,25 | E101: 19.82 | M101: Výtlak VE (3 kusy):(38,00*0,80*(2,00-0,30)+2,00*2,00*(2,50-0,20)*3)*0,25
A102: 5 | B102: 132201219R00 | C102: Přípl.za lepivost,hloubení rýh 200cm,hor.3,STROJNĚ | D102: m3 | E102: 251.9688 | G102: =E102*F102 -> 0 | H102: 0 | I102: =E102*H102 -> 0 | J102: 0 | K102: =E102*J102 -> 0 | O102: 2 | AA102: 1 | AB102: 1 | AC102: 1 | AZ102: 1 | BA102: =IF(AZ102=1,G102,0) -> 0 | BB102: =IF(AZ102=2,G102,0) -> 0 | BC102: =IF(AZ102=3,G102,0) -> 0 | BD102: =IF(AZ102=4,G102,0) -> 0 | BE102: =IF(AZ102=5,G102,0) -> 0 | CA102: 1 | CB102: 1
C103: V hornině tř. 3: | E103: 0 | M103: V hornině tř. 3:
C104: Kanalizační přípojky KT DN150 (průměrná hloubka 2,45 m): | E104: 0 | M104: Kanalizační přípojky KT DN150 (průměrná hloubka 2,45 m):
C105: Kmenová stoka A KT DN250-500 (52 kusů):364,50*0,90*(2,45-0,30)*0,26*0,5 | E105: 91.69 | M105: Kmenová stoka A KT DN250-500 (52 kusů):364,50*0,90*(2,45-0,30)*0,26*0,5
C106: Stoka AA KT DN250 (9 kusů):36,00*0,90*(2,45-0,30)*0,28*0,5 | E106: 9.7524 | M106: Stoka AA KT DN250 (9 kusů):36,00*0,90*(2,45-0,30)*0,28*0,5
C107: Stoka AB KT DN250 (1 kus):3,00*0,90*(2,45-0,30)*0,37*0,5 | E107: 1.0739 | M107: Stoka AB KT DN250 (1 kus):3,00*0,90*(2,45-0,30)*0,37*0,5
C108: Stoka AC KT DN250 (5 kusů):23,00*0,90*(2,45-0,30)*0,31*0,5 | E108: 6.8983 | M108: Stoka AC KT DN250 (5 kusů):23,00*0,90*(2,45-0,30)*0,31*0,5
C109: Stoka AD KT DN250 (2 kusy):5,00*0,90*(2,45-0,30)*0,31*0,5 | E109: 1.4996 | M109: Stoka AD KT DN250 (2 kusy):5,00*0,90*(2,45-0,30)*0,31*0,5
C110: Stoka AE KT DN250 (14 kusů):139,50*0,90*(2,45-0,30)*0,25*0,5 | E110: 33.7416 | M110: Stoka AE KT DN250 (14 kusů):139,50*0,90*(2,45-0,30)*0,25*0,5
C111: Stoka AE-1 KT DN250 (7 kusů):27,00*0,90*(2,45-0,30)*0,33*0,5 | E111: 8.6204 | M111: Stoka AE-1 KT DN250 (7 kusů):27,00*0,90*(2,45-0,30)*0,33*0,5
C112: Stoka AF KT DN250 (4 kusy):39,50*0,90*(2,45-0,30)*0,26*0,5 | E112: 9.9362 | M112: Stoka AF KT DN250 (4 kusy):39,50*0,90*(2,45-0,30)*0,26*0,5
C113: Stoka AG KT DN250 (2 kusy):9,50*0,90*(2,45-0,30)*0,31*0,5 | E113: 2.8493 | M113: Stoka AG KT DN250 (2 kusy):9,50*0,90*(2,45-0,30)*0,31*0,5
C114: Stoka AH KT DN250 (7 kusů):26,00*0,90*(2,45-0,30)*0,46*0,5 | E114: 11.5713 | M114: Stoka AH KT DN250 (7 kusů):26,00*0,90*(2,45-0,30)*0,46*0,5
C115: Sběrač B KT DN250 (15 kusů):100,00*0,90*(2,45-0,30)*0,33*0,5 | E115: 31.9275 | M115: Sběrač B KT DN250 (15 kusů):100,00*0,90*(2,45-0,30)*0,33*0,5
C116: Stoka BA KT DN250 (10 kusů):72,00*0,90*(2,45-0,30)*0,29*0,5 | E116: 20.2014 | M116: Stoka BA KT DN250 (10 kusů):72,00*0,90*(2,45-0,30)*0,29*0,5
C117: Sběrač C KT DN250 (5 kusů):17,00*0,90*(2,45-0,30)*0,31*0,5 | E117: 5.0987 | M117: Sběrač C KT DN250 (5 kusů):17,00*0,90*(2,45-0,30)*0,31*0,5
C118: Stoka CA KT DN250 (6 kusů):24,00*0,90*(2,45-0,30)*0,31*0,5 | E118: 7.1982 | M118: Stoka CA KT DN250 (6 kusů):24,00*0,90*(2,45-0,30)*0,31*0,5
C119: Kanalizační přípojky PE D 50: | E119: 0 | M119: Kanalizační přípojky PE D 50:
C120: Výtlak VE (3 kusy):(38,00*0,80*(2,00-0,30)+2,00*2,00*(2,50-0,20)*3)*0,25*0,5 | E120: 9.91 | M120: Výtlak VE (3 kusy):(38,00*0,80*(2,00-0,30)+2,00*2,00*(2,50-0,20)*3)*0,25*0,5
A121: 6 | B121: 132301213R00 | C121: Hloubení rýh š.do 200 cm hor.4 do 10000 m3,STROJNĚ | D121: m3 | E121: 648.5588 | G121: =E121*F121 -> 0 | H121: 0 | I121: =E121*H121 -> 0 | J121: 0 | K121: =E121*J121 -> 0 | O121: 2 | AA121: 1 | AB121: 1 | AC121: 1 | AZ121: 1 | BA121: =IF(AZ121=1,G121,0) -> 0 | BB121: =IF(AZ121=2,G121,0) -> 0 | BC121: =IF(AZ121=3,G121,0) -> 0 | BD121: =IF(AZ121=4,G121,0) -> 0 | BE121: =IF(AZ121=5,G121,0) -> 0 | CA121: 1 | CB121: 1
C122: Položka obsahuje hloubení rýh traktorbagrem, naložení výkopku na dopravní prostředek pro svislé, nebo vodorovné přemístění, popř. přemístění výkopku do 3 m (po povrchu území), případné zajištění rypadel polštáři, udržování pracoviště a ochranu výkopiště proti stékání srážkové vody z okolního terénu i s jejím odvodněním, nebo odvedením, přesekání a odstranění kořenů ve výkopišti, odstranění napadávek, urovnání dna výkopu. | L122: Položka obsahuje hloubení rýh traktorbagrem, naložení výkopku na dopravní prostředek pro svislé, nebo vodorovné přemístění, popř. přemístění výkopku do 3 m (po povrchu území), případné zajištění rypadel polštáři, udržování pracoviště a ochranu výkopiště proti stékání srážkové vody z okolního terénu i s jejím odvodněním, nebo odvedením, přesekání a odstranění kořenů ve výkopišti, odstranění napadávek, urovnání dna výkopu. | O122: 3
C123: Součástí položky je i pažení výkopů dle zvolené technologie zhotovitelem a v souladu s předpisy BOZP. | L123: Součástí položky je i pažení výkopů dle zvolené technologie zhotovitelem a v souladu s předpisy BOZP. | O123: 3
C124: V hornině tř. 4: | E124: 0 | M124: V hornině tř. 4:
C125: Kanalizační přípojky KT DN150 (průměrná hloubka 2,45 m): | E125: 0 | M125: Kanalizační přípojky KT DN150 (průměrná hloubka 2,45 m):
C126: Kmenová stoka A KT DN250-500 (52 kusů):364,50*0,90*(2,45-0,30)*0,34 | E126: 239.8046 | M126: Kmenová stoka A KT DN250-500 (52 kusů):364,50*0,90*(2,45-0,30)*0,34
C127: Stoka AA KT DN250 (9 kusů):36,00*0,90*(2,45-0,30)*0,26 | E127: 18.1116 | M127: Stoka AA KT DN250 (9 kusů):36,00*0,90*(2,45-0,30)*0,26
C128: Stoka AB KT DN250 (1 kus):3,00*0,90*(2,45-0,30)*0,37 | E128: 2.1479 | M128: Stoka AB KT DN250 (1 kus):3,00*0,90*(2,45-0,30)*0,37
C129: Stoka AC KT DN250 (5 kusů):23,00*0,90*(2,45-0,30)*0,26 | E129: 11.5713 | M129: Stoka AC KT DN250 (5 kusů):23,00*0,90*(2,45-0,30)*0,26
C130: Stoka AD KT DN250 (2 kusy):5,00*0,90*(2,45-0,30)*0,29 | E130: 2.8058 | M130: Stoka AD KT DN250 (2 kusy):5,00*0,90*(2,45-0,30)*0,29
C131: Stoka AE KT DN250 (14 kusů):139,50*0,90*(2,45-0,30)*0,44 | E131: 118.7703 | M131: Stoka AE KT DN250 (14 kusů):139,50*0,90*(2,45-0,30)*0,44
C132: Stoka AE-1 KT DN250 (7 kusů):27,00*0,90*(2,45-0,30)*0,38 | E132: 19.8531 | M132: Stoka AE-1 KT DN250 (7 kusů):27,00*0,90*(2,45-0,30)*0,38
C133: Stoka AF KT DN250 (4 kusy):39,50*0,90*(2,45-0,30)*0,38 | E133: 29.0444 | M133: Stoka AF KT DN250 (4 kusy):39,50*0,90*(2,45-0,30)*0,38
C134: Stoka AG KT DN250 (2 kusy):9,50*0,90*(2,45-0,30)*0,29 | E134: 5.3309 | M134: Stoka AG KT DN250 (2 kusy):9,50*0,90*(2,45-0,30)*0,29
C135: Stoka AH KT DN250 (7 kusů):26,00*0,90*(2,45-0,30)*0,26 | E135: 13.0806 | M135: Stoka AH KT DN250 (7 kusů):26,00*0,90*(2,45-0,30)*0,26
C136: Sběrač B KT DN250 (15 kusů):100,00*0,90*(2,45-0,30)*0,32 | E136: 61.92 | M136: Sběrač B KT DN250 (15 kusů):100,00*0,90*(2,45-0,30)*0,32
C137: Stoka BA KT DN250 (10 kusů):72,00*0,90*(2,45-0,30)*0,41 | E137: 57.1212 | M137: Stoka BA KT DN250 (10 kusů):72,00*0,90*(2,45-0,30)*0,41
C138: Sběrač C KT DN250 (5 kusů):17,00*0,90*(2,45-0,30)*0,43 | E138: 14.1449 | M138: Sběrač C KT DN250 (5 kusů):17,00*0,90*(2,45-0,30)*0,43
C139: Stoka CA KT DN250 (6 kusů):24,00*0,90*(2,45-0,30)*0,43 | E139: 19.9692 | M139: Stoka CA KT DN250 (6 kusů):24,00*0,90*(2,45-0,30)*0,43
C140: Kanalizační přípojky PE D 50: | E140: 0 | M140: Kanalizační přípojky PE D 50:
C141: Výtlak VE (3 kusy):(38,00*0,80*(2,00-0,30)+2,00*2,00*(2,50-0,20)*3)*0,44 | E141: 34.8832 | M141: Výtlak VE (3 kusy):(38,00*0,80*(2,00-0,30)+2,00*2,00*(2,50-0,20)*3)*0,44
A142: 7 | B142: 132301219R00 | C142: Přípl.za lepivost,hloubení rýh 200cm,hor.4,STROJNĚ | D142: m3 | E142: 324.2794 | G142: =E142*F142 -> 0 | H142: 0 | I142: =E142*H142 -> 0 | J142: 0 | K142: =E142*J142 -> 0 | O142: 2 | AA142: 1 | AB142: 1 | AC142: 1 | AZ142: 1 | BA142: =IF(AZ142=1,G142,0) -> 0 | BB142: =IF(AZ142=2,G142,0) -> 0 | BC142: =IF(AZ142=3,G142,0) -> 0 | BD142: =IF(AZ142=4,G142,0) -> 0 | BE142: =IF(AZ142=5,G142,0) -> 0 | CA142: 1 | CB142: 1
C143: V hornině tř. 4: | E143: 0 | M143: V hornině tř. 4:
C144: Kanalizační přípojky KT DN150 (průměrná hloubka 2,45 m): | E144: 0 | M144: Kanalizační přípojky KT DN150 (průměrná hloubka 2,45 m):
C145: Kmenová stoka A KT DN250-500 (52 kusů):364,50*0,90*(2,45-0,30)*0,34*0,5 | E145: 119.9023 | M145: Kmenová stoka A KT DN250-500 (52 kusů):364,50*0,90*(2,45-0,30)*0,34*0,5
C146: Stoka AA KT DN250 (9 kusů):36,00*0,90*(2,45-0,30)*0,26*0,5 | E146: 9.0558 | M146: Stoka AA KT DN250 (9 kusů):36,00*0,90*(2,45-0,30)*0,26*0,5
C147: Stoka AB KT DN250 (1 kus):3,00*0,90*(2,45-0,30)*0,37*0,5 | E147: 1.0739 | M147: Stoka AB KT DN250 (1 kus):3,00*0,90*(2,45-0,30)*0,37*0,5
C148: Stoka AC KT DN250 (5 kusů):23,00*0,90*(2,45-0,30)*0,26*0,5 | E148: 5.7857 | M148: Stoka AC KT DN250 (5 kusů):23,00*0,90*(2,45-0,30)*0,26*0,5
C149: Stoka AD KT DN250 (2 kusy):5,00*0,90*(2,45-0,30)*0,29*0,5 | E149: 1.4029 | M149: Stoka AD KT DN250 (2 kusy):5,00*0,90*(2,45-0,30)*0,29*0,5
C150: Stoka AE KT DN250 (14 kusů):139,50*0,90*(2,45-0,30)*0,44*0,5 | E150: 59.3852 | M150: Stoka AE KT DN250 (14 kusů):139,50*0,90*(2,45-0,30)*0,44*0,5
C151: Stoka AE-1 KT DN250 (7 kusů):27,00*0,90*(2,45-0,30)*0,38*0,5 | E151: 9.9266 | M151: Stoka AE-1 KT DN250 (7 kusů):27,00*0,90*(2,45-0,30)*0,38*0,5
C152: Stoka AF KT DN250 (4 kusy):39,50*0,90*(2,45-0,30)*0,38*0,5 | E152: 14.5222 | M152: Stoka AF KT DN250 (4 kusy):39,50*0,90*(2,45-0,30)*0,38*0,5
C153: Stoka AG KT DN250 (2 kusy):9,50*0,90*(2,45-0,30)*0,29*0,5 | E153: 2.6655 | M153: Stoka AG KT DN250 (2 kusy):9,50*0,90*(2,45-0,30)*0,29*0,5
C154: Stoka AH KT DN250 (7 kusů):26,00*0,90*(2,45-0,30)*0,26*0,5 | E154: 6.5403 | M154: Stoka AH KT DN250 (7 kusů):26,00*0,90*(2,45-0,30)*0,26*0,5
C155: Sběrač B KT DN250 (15 kusů):100,00*0,90*(2,45-0,30)*0,32*0,5 | E155: 30.96 | M155: Sběrač B KT DN250 (15 kusů):100,00*0,90*(2,45-0,30)*0,32*0,5
C156: Stoka BA KT DN250 (10 kusů):72,00*0,90*(2,45-0,30)*0,41*0,5 | E156: 28.5606 | M156: Stoka BA KT DN250 (10 kusů):72,00*0,90*(2,45-0,30)*0,41*0,5
C157: Sběrač C KT DN250 (5 kusů):17,00*0,90*(2,45-0,30)*0,43*0,5 | E157: 7.0724 | M157: Sběrač C KT DN250 (5 kusů):17,00*0,90*(2,45-0,30)*0,43*0,5
C158: Stoka CA KT DN250 (6 kusů):24,00*0,90*(2,45-0,30)*0,43*0,5 | E158: 9.9846 | M158: Stoka CA KT DN250 (6 kusů):24,00*0,90*(2,45-0,30)*0,43*0,5
C159: Kanalizační přípojky PE D 50: | E159: 0 | M159: Kanalizační přípojky PE D 50:
C160: Výtlak VE (3 kusy):(38,00*0,80*(2,00-0,30)+2,00*2,00*(2,50-0,20)*3)*0,44*0,5 | E160: 17.4416 | M160: Výtlak VE (3 kusy):(38,00*0,80*(2,00-0,30)+2,00*2,00*(2,50-0,20)*3)*0,44*0,5
A161: 8 | B161: 132401211RRX | C161: Hloubení rýh šířky do 200 cm v hor.5, STROJNĚ | D161: m3 | E161: 367.2456 | G161: =E161*F161 -> 0 | H161: 0 | I161: =E161*H161 -> 0 | J161: 0 | K161: =E161*J161 -> 0 | O161: 2 | AA161: 1 | AB161: 1 | AC161: 1 | AZ161: 1 | BA161: =IF(AZ161=1,G161,0) -> 0 | BB161: =IF(AZ161=2,G161,0) -> 0 | BC161: =IF(AZ161=3,G161,0) -> 0 | BD161: =IF(AZ161=4,G161,0) -> 0 | BE161: =IF(AZ161=5,G161,0) -> 0 | CA161: 1 | CB161: 1
C162: Položka obsahuje hloubení rýh traktorbagrem, naložení výkopku na dopravní prostředek pro svislé, nebo vodorovné přemístění, popř. přemístění výkopku do 3 m (po povrchu území), případné zajištění rypadel polštáři, udržování pracoviště a ochranu výkopiště proti stékání srážkové vody z okolního terénu i s jejím odvodněním, nebo odvedením, přesekání a odstranění kořenů ve výkopišti, odstranění napadávek, urovnání dna výkopu. | L162: Položka obsahuje hloubení rýh traktorbagrem, naložení výkopku na dopravní prostředek pro svislé, nebo vodorovné přemístění, popř. přemístění výkopku do 3 m (po povrchu území), případné zajištění rypadel polštáři, udržování pracoviště a ochranu výkopiště proti stékání srážkové vody z okolního terénu i s jejím odvodněním, nebo odvedením, přesekání a odstranění kořenů ve výkopišti, odstranění napadávek, urovnání dna výkopu. | O162: 3
C163: Součástí položky je i pažení výkopů dle zvolené technologie zhotovitelem a v souladu s předpisy BOZP. | L163: Součástí položky je i pažení výkopů dle zvolené technologie zhotovitelem a v souladu s předpisy BOZP. | O163: 3
C164: Součástí položky je i případné dolamování horniny v prostoru rýhy. | L164: Součástí položky je i případné dolamování horniny v prostoru rýhy. | O164: 3
C165: V hornině tř. 5: | E165: 0 | M165: V hornině tř. 5:
C166: Kanalizační přípojky KT DN150 (průměrná hloubka 2,45 m): | E166: 0 | M166: Kanalizační přípojky KT DN150 (průměrná hloubka 2,45 m):
C167: Kmenová stoka A KT DN250-500 (52 kusů):364,50*0,90*(2,45-0,30)*0,25 | E167: 176.3269 | M167: Kmenová stoka A KT DN250-500 (52 kusů):364,50*0,90*(2,45-0,30)*0,25
C168: Stoka AA KT DN250 (9 kusů):36,00*0,90*(2,45-0,30)*0,35 | E168: 24.381 | M168: Stoka AA KT DN250 (9 kusů):36,00*0,90*(2,45-0,30)*0,35
C169: Stoka AB KT DN250 (1 kus):3,00*0,90*(2,45-0,30)*0,11 | E169: 0.6386 | M169: Stoka AB KT DN250 (1 kus):3,00*0,90*(2,45-0,30)*0,11
C170: Stoka AC KT DN250 (5 kusů):23,00*0,90*(2,45-0,30)*0,25 | E170: 11.1263 | M170: Stoka AC KT DN250 (5 kusů):23,00*0,90*(2,45-0,30)*0,25
C171: Stoka AD KT DN250 (2 kusy):5,00*0,90*(2,45-0,30)*0,19 | E171: 1.8383 | M171: Stoka AD KT DN250 (2 kusy):5,00*0,90*(2,45-0,30)*0,19
C172: Stoka AE KT DN250 (14 kusů):139,50*0,90*(2,45-0,30)*0,14 | E172: 37.7906 | M172: Stoka AE KT DN250 (14 kusů):139,50*0,90*(2,45-0,30)*0,14
C173: Stoka AE-1 KT DN250 (7 kusů):27,00*0,90*(2,45-0,30)*0,14 | E173: 7.3143 | M173: Stoka AE-1 KT DN250 (7 kusů):27,00*0,90*(2,45-0,30)*0,14
C174: Stoka AF KT DN250 (4 kusy):39,50*0,90*(2,45-0,30)*0,26 | E174: 19.8725 | M174: Stoka AF KT DN250 (4 kusy):39,50*0,90*(2,45-0,30)*0,26
C175: Stoka AG KT DN250 (2 kusy):9,50*0,90*(2,45-0,30)*0,28 | E175: 5.1471 | M175: Stoka AG KT DN250 (2 kusy):9,50*0,90*(2,45-0,30)*0,28
C176: Stoka AH KT DN250 (7 kusů):26,00*0,90*(2,45-0,30)*0,09 | E176: 4.5279 | M176: Stoka AH KT DN250 (7 kusů):26,00*0,90*(2,45-0,30)*0,09
C177: Sběrač B KT DN250 (15 kusů):100,00*0,90*(2,45-0,30)*0,19 | E177: 36.765 | M177: Sběrač B KT DN250 (15 kusů):100,00*0,90*(2,45-0,30)*0,19
C178: Stoka BA KT DN250 (10 kusů):72,00*0,90*(2,45-0,30)*0,15 | E178: 20.898 | M178: Stoka BA KT DN250 (10 kusů):72,00*0,90*(2,45-0,30)*0,15
C179: Sběrač C KT DN250 (5 kusů):17,00*0,90*(2,45-0,30)*0,12 | E179: 3.9474 | M179: Sběrač C KT DN250 (5 kusů):17,00*0,90*(2,45-0,30)*0,12
C180: Stoka CA KT DN250 (6 kusů):24,00*0,90*(2,45-0,30)*0,12 | E180: 5.5728 | M180: Stoka CA KT DN250 (6 kusů):24,00*0,90*(2,45-0,30)*0,12
C181: Kanalizační přípojky PE D 50: | E181: 0 | M181: Kanalizační přípojky PE D 50:
C182: Výtlak VE (3 kusy):(38,00*0,80*(2,00-0,30)+2,00*2,00*(2,50-0,20)*3)*0,14 | E182: 11.0992 | M182: Výtlak VE (3 kusy):(38,00*0,80*(2,00-0,30)+2,00*2,00*(2,50-0,20)*3)*0,14
A183: 9 | B183: 132501211RRX | C183: Hloubení rýh šířky do 200 cm v hor.6, STROJNĚ | D183: m3 | E183: 69.3369 | G183: =E183*F183 -> 0 | H183: 0 | I183: =E183*H183 -> 0 | J183: 0 | K183: =E183*J183 -> 0 | O183: 2 | AA183: 1 | AB183: 1 | AC183: 1 | AZ183: 1 | BA183: =IF(AZ183=1,G183,0) -> 0 | BB183: =IF(AZ183=2,G183,0) -> 0 | BC183: =IF(AZ183=3,G183,0) -> 0 | BD183: =IF(AZ183=4,G183,0) -> 0 | BE183: =IF(AZ183=5,G183,0) -> 0 | CA183: 1 | CB183: 1
C184: Položka obsahuje hloubení rýh traktorbagrem, naložení výkopku na dopravní prostředek pro svislé, nebo vodorovné přemístění, popř. přemístění výkopku do 3 m (po povrchu území), případné zajištění rypadel polštáři, udržování pracoviště a ochranu výkopiště proti stékání srážkové vody z okolního terénu i s jejím odvodněním, nebo odvedením, přesekání a odstranění kořenů ve výkopišti, odstranění napadávek, urovnání dna výkopu. | L184: Položka obsahuje hloubení rýh traktorbagrem, naložení výkopku na dopravní prostředek pro svislé, nebo vodorovné přemístění, popř. přemístění výkopku do 3 m (po povrchu území), případné zajištění rypadel polštáři, udržování pracoviště a ochranu výkopiště proti stékání srážkové vody z okolního terénu i s jejím odvodněním, nebo odvedením, přesekání a odstranění kořenů ve výkopišti, odstranění napadávek, urovnání dna výkopu. | O184: 3
C185: Součástí položky je i pažení výkopů dle zvolené technologie zhotovitelem a v souladu s předpisy BOZP. | L185: Součástí položky je i pažení výkopů dle zvolené technologie zhotovitelem a v souladu s předpisy BOZP. | O185: 3
C186: Součástí položky je i případné dolamování horniny v prostoru rýhy. | L186: Součástí položky je i případné dolamování horniny v prostoru rýhy. | O186: 3
C187: V hornině tř. 5: | E187: 0 | M187: V hornině tř. 5:
C188: Kanalizační přípojky KT DN150 (průměrná hloubka 2,45 m): | E188: 0 | M188: Kanalizační přípojky KT DN150 (průměrná hloubka 2,45 m):
C189: Kmenová stoka A KT DN250-500 (52 kusů):364,50*0,90*(2,45-0,30)*0,04 | E189: 28.2123 | M189: Kmenová stoka A KT DN250-500 (52 kusů):364,50*0,90*(2,45-0,30)*0,04
C190: Stoka AA KT DN250 (9 kusů):36,00*0,90*(2,45-0,30)*0,0 | E190: 0 | M190: Stoka AA KT DN250 (9 kusů):36,00*0,90*(2,45-0,30)*0,0
C191: Stoka AB KT DN250 (1 kus):3,00*0,90*(2,45-0,30)*0,0 | E191: 0 | M191: Stoka AB KT DN250 (1 kus):3,00*0,90*(2,45-0,30)*0,0
C192: Stoka AC KT DN250 (5 kusů):23,00*0,90*(2,45-0,30)*0,06 | E192: 2.6703 | M192: Stoka AC KT DN250 (5 kusů):23,00*0,90*(2,45-0,30)*0,06
C193: Stoka AD KT DN250 (2 kusy):5,00*0,90*(2,45-0,30)*0,0 | E193: 0 | M193: Stoka AD KT DN250 (2 kusy):5,00*0,90*(2,45-0,30)*0,0
C194: Stoka AE KT DN250 (14 kusů):139,50*0,90*(2,45-0,30)*0,07 | E194: 18.8953 | M194: Stoka AE KT DN250 (14 kusů):139,50*0,90*(2,45-0,30)*0,07
C195: Stoka AE-1 KT DN250 (7 kusů):27,00*0,90*(2,45-0,30)*0,02 | E195: 1.0449 | M195: Stoka AE-1 KT DN250 (7 kusů):27,00*0,90*(2,45-0,30)*0,02
C196: Stoka AF KT DN250 (4 kusy):39,50*0,90*(2,45-0,30)*0,0 | E196: 0 | M196: Stoka AF KT DN250 (4 kusy):39,50*0,90*(2,45-0,30)*0,0
C197: Stoka AG KT DN250 (2 kusy):9,50*0,90*(2,45-0,30)*0,0 | E197: 0 | M197: Stoka AG KT DN250 (2 kusy):9,50*0,90*(2,45-0,30)*0,0
C198: Stoka AH KT DN250 (7 kusů):26,00*0,90*(2,45-0,30)*0,0 | E198: 0 | M198: Stoka AH KT DN250 (7 kusů):26,00*0,90*(2,45-0,30)*0,0
C199: Sběrač B KT DN250 (15 kusů):100,00*0,90*(2,45-0,30)*0,03 | E199: 5.805 | M199: Sběrač B KT DN250 (15 kusů):100,00*0,90*(2,45-0,30)*0,03
C200: Stoka BA KT DN250 (10 kusů):72,00*0,90*(2,45-0,30)*0,04 | E200: 5.5728 | M200: Stoka BA KT DN250 (10 kusů):72,00*0,90*(2,45-0,30)*0,04
C201: Sběrač C KT DN250 (5 kusů):17,00*0,90*(2,45-0,30)*0,02 | E201: 0.6579 | M201: Sběrač C KT DN250 (5 kusů):17,00*0,90*(2,45-0,30)*0,02
C202: Stoka CA KT DN250 (6 kusů):24,00*0,90*(2,45-0,30)*0,02 | E202: 0.9288 | M202: Stoka CA KT DN250 (6 kusů):24,00*0,90*(2,45-0,30)*0,02
... 277 more rows

Sheet 303 303.2RD KL
A1: POLOŽKOVÝ ROZPOČET
A2: Rozpočet | C2: 303.2RD | D2: Kanalizační přípojky - neuznatelné náklady | F2: JKSO | G2: 827.29.A2
A4: Objekt | F4: SKP
A5: 303 | C5: Kanalizační přípojky | F5: Měrná jednotka | G5: m
A6: Stavba | F6: Počet jednotek | G6: 0
A7: 3232 | C7: Horní Slivno - Splašková kanalizace | F7: Náklady na m.j. | G7: =IF(G6=0,,ROUND((F30+F32)/G6,1)) -> 0
A8: Projektant | C8: Radek Hnát - VAK PROJEKT | F8: Typ rozpočtu
A9: Zpracovatel projektu
A10: Objednatel | C10: Obec Horní Slivno
A11: Dodavatel | C11: . | F11: Zakázkové číslo
A12: Rozpočtoval | F12: Počet listů
A13: ROZPOČTOVÉ NÁKLADY
A14: Základní rozpočtové náklady
B15: HSV celkem | C15: ='303 303.2RD Rek'!E11 -> 0
A16: Z | B16: PSV celkem | C16: ='303 303.2RD Rek'!F11 -> 0
A17: R | B17: M práce celkem | C17: ='303 303.2RD Rek'!H11 -> 0
A18: N | B18: M dodávky celkem | C18: ='303 303.2RD Rek'!G11 -> 0
A19: ZRN celkem | C19: =SUM(C15:C18) -> 0
A21: HZS | C21: ='303 303.2RD Rek'!I11 -> 0
A22: ZRN+HZS | C22: =C19+C21 -> 0
A23: ZRN+ost.náklady+HZS | C23: =C22+G23 -> 0
A24: Vypracoval | D24: Za zhotovitele | F24: Za objednatele
A25: Jméno : | D25: Jméno : | F25: Jméno :
A26: Datum : | D26: Datum : | F26: Datum :
A28: Podpis : | D28: Podpis: | F28: Podpis:
A30: Základ pro DPH | C30: 21 | D30: % | F30: =C23-F32 -> 0
A31: DPH | C31: =C30 -> 21 | D31: % | F31: =ROUND(PRODUCT(F30,C31/100),0) -> 0
A32: Základ pro DPH | C32: 0 | D32: % | F32: 0
A33: DPH | C33: =C32 -> 0 | D33: % | F33: =ROUND(PRODUCT(F32,C33/100),0) -> 0
A34: CENA ZA OBJEKT CELKEM | F34: =ROUND(SUM(F30:F33),0) -> 0
A36: Poznámka :

Sheet 303 303.2RD Rek
A1: Stavba : | C1: 3232 Horní Slivno - Splašková kanalizace | G1: Rozpočet : | H1: 303.2RD
A2: Objekt : | C2: 303 Kanalizační přípojky | G2: Kanalizační přípojky - neuznatelné náklady
A4: REKAPITULACE STAVEBNÍCH DÍLŮ
B6: Stavební díl | E6: HSV | F6: PSV | G6: Dodávka | H6: Montáž | I6: HZS
A7: ='303 303.2RD Pol'!B7 -> 1 | B7: ='303 303.2RD Pol'!C7 -> Zemní práce | E7: ='303 303.2RD Pol'!BA131 -> 0 | F7: ='303 303.2RD Pol'!BB131 -> 0 | G7: ='303 303.2RD Pol'!BC131 -> 0 | H7: ='303 303.2RD Pol'!BD131 -> 0 | I7: ='303 303.2RD Pol'!BE131 -> 0
A8: ='303 303.2RD Pol'!B132 -> 45 | B8: ='303 303.2RD Pol'!C132 -> Podkladní a vedlejší konstrukce | E8: ='303 303.2RD Pol'!BA141 -> 0 | F8: ='303 303.2RD Pol'!BB141 -> 0 | G8: ='303 303.2RD Pol'!BC141 -> 0 | H8: ='303 303.2RD Pol'!BD141 -> 0 | I8: ='303 303.2RD Pol'!BE141 -> 0
A9: ='303 303.2RD Pol'!B142 -> 8 | B9: ='303 303.2RD Pol'!C142 -> Trubní vedení | E9: ='303 303.2RD Pol'!BA175 -> 0 | F9: ='303 303.2RD Pol'!BB175 -> 0 | G9: ='303 303.2RD Pol'!BC175 -> 0 | H9: ='303 303.2RD Pol'!BD175 -> 0 | I9: ='303 303.2RD Pol'!BE175 -> 0
A10: ='303 303.2RD Pol'!B176 -> 99 | B10: ='303 303.2RD Pol'!C176 -> Staveništní přesun hmot | E10: ='303 303.2RD Pol'!BA178 -> 0 | F10: ='303 303.2RD Pol'!BB178 -> 0 | G10: ='303 303.2RD Pol'!BC178 -> 0 | H10: ='303 303.2RD Pol'!BD178 -> 0 | I10: ='303 303.2RD Pol'!BE178 -> 0
B11: CELKEM OBJEKT | E11: =SUM(E7:E10) -> 0 | F11: =SUM(F7:F10) -> 0 | G11: =SUM(G7:G10) -> 0 | H11: =SUM(H7:H10) -> 0 | I11: =SUM(I7:I10) -> 0

Sheet 303 303.2RD Pol
A1: Položkový rozpočet
A3: Stavba : | C3: 3232 Horní Slivno - Splašková kanalizace | E3: Rozpočet: | F3: ='303 303.2RD Rek'!H1 -> 303.2RD
A4: Objekt : | C4: 303 Kanalizační přípojky | E4: ='303 303.2RD Rek'!G2 -> Kanalizační přípojky - neuznatelné náklady
A6: P.č. | B6: Číslo položky | C6: Název položky | D6: MJ | E6: množství | F6: cena / MJ | G6: celkem (Kč) | H6: Jednotková hmotnost | I6: Celková hmotnost | J6: Jednotková dem.hmot. | K6: Celková dem.hmot.
A7: Díl: | B7: 1 | C7: Zemní práce | O7: 1
A8: 1 | B8: 121100002RAB | C8: Sejmutí ornice a uložení na deponii zpětný přesun, rozprostření v tl. 30 cm, osetí | D8: m3 | E8: 4.41 | G8: =E8*F8 -> 0 | H8: 0 | I8: =E8*H8 -> 0 | J8: 0 | K8: =E8*J8 -> 0 | O8: 2 | AA8: 1 | AB8: 1 | AC8: 1 | AZ8: 1 | BA8: =IF(AZ8=1,G8,0) -> 0 | BB8: =IF(AZ8=2,G8,0) -> 0 | BC8: =IF(AZ8=3,G8,0) -> 0 | BD8: =IF(AZ8=4,G8,0) -> 0 | BE8: =IF(AZ8=5,G8,0) -> 0 | CA8: 1 | CB8: 1
C9: Výkopy: | E9: 0 | M9: Výkopy:
C10: Kanalizační přípojky KT DN150: | E10: 0 | M10: Kanalizační přípojky KT DN150:
C11: Začátek provozního součtu | E11: 0 | M11: Začátek provozního součtu
C12: Kmenová stoka A KT DN250-500 (1 kuů):4,00 | E12: 4 | M12: Kmenová stoka A KT DN250-500 (1 kuů):4,00
C13: Stoka AF KT DN250 (1 kus):5,00 | E13: 5 | M13: Stoka AF KT DN250 (1 kus):5,00
C14: Stoka CA KT DN250 (3 kusy):12,00 | E14: 12 | M14: Stoka CA KT DN250 (3 kusy):12,00
C15: Konec provozního součtu | E15: 21 | M15: Konec provozního součtu
C16: V hornině tř. 2 - 6 - 35% (průměrná hloubka 2,45 m):21,0000*2,00*0,30*0,35 | E16: 4.41 | M16: V hornině tř. 2 - 6 - 35% (průměrná hloubka 2,45 m):21,0000*2,00*0,30*0,35
A17: 2 | B17: 130001101RRX | C17: Příplatek za ztížené hloubení v blízkosti vedení | D17: m3 | E17: 5.2826 | G17: =E17*F17 -> 0 | H17: 0 | I17: =E17*H17 -> 0 | J17: 0 | K17: =E17*J17 -> 0 | O17: 2 | AA17: 1 | AB17: 1 | AC17: 1 | AZ17: 1 | BA17: =IF(AZ17=1,G17,0) -> 0 | BB17: =IF(AZ17=2,G17,0) -> 0 | BC17: =IF(AZ17=3,G17,0) -> 0 | BD17: =IF(AZ17=4,G17,0) -> 0 | BE17: =IF(AZ17=5,G17,0) -> 0 | CA17: 1 | CB17: 1
C18: Včetně ruční dokopávky a ručního výkopu. | L18: Včetně ruční dokopávky a ručního výkopu. | O18: 3
C19: Součástí položky je i případná potřeba dočasnéhon zajištění potrubí a kabelových vedení ve výkopu. | L19: Součástí položky je i případná potřeba dočasnéhon zajištění potrubí a kabelových vedení ve výkopu. | O19: 3
C20: Výkopy: | E20: 0 | M20: Výkopy:
C21: Kanalizační přípojky KT DN150: | E21: 0 | M21: Kanalizační přípojky KT DN150:
C22: Začátek provozního součtu | E22: 0 | M22: Začátek provozního součtu
C23: Kmenová stoka A KT DN250-500 (1 kus):4,00 | E23: 4 | M23: Kmenová stoka A KT DN250-500 (1 kus):4,00
C24: Stoka AF KT DN250 (1 kus):5,00 | E24: 5 | M24: Stoka AF KT DN250 (1 kus):5,00
C25: Stoka CA KT DN250 (3 kusy):12,00 | E25: 12 | M25: Stoka CA KT DN250 (3 kusy):12,00
C26: Konec provozního součtu | E26: 21 | M26: Konec provozního součtu
C27: V hornině tř. 2 - 6 - 13% (průměrná hloubka 2,45 m):21,0000*0,90*(2,45-0,30)*0,13 | E27: 5.2826 | M27: V hornině tř. 2 - 6 - 13% (průměrná hloubka 2,45 m):21,0000*0,90*(2,45-0,30)*0,13
A28: 3 | B28: 132101213R00 | C28: Hloubení rýh š.do 200 cm hor.2 do 10000 m3,STROJNĚ | D28: m3 | E28: 4.6053 | G28: =E28*F28 -> 0 | H28: 0 | I28: =E28*H28 -> 0 | J28: 0 | K28: =E28*J28 -> 0 | O28: 2 | AA28: 1 | AB28: 1 | AC28: 1 | AZ28: 1 | BA28: =IF(AZ28=1,G28,0) -> 0 | BB28: =IF(AZ28=2,G28,0) -> 0 | BC28: =IF(AZ28=3,G28,0) -> 0 | BD28: =IF(AZ28=4,G28,0) -> 0 | BE28: =IF(AZ28=5,G28,0) -> 0 | CA28: 1 | CB28: 1
C29: Položka obsahuje hloubení rýh traktorbagrem, naložení výkopku na dopravní prostředek pro svislé, nebo vodorovné přemístění, popř. přemístění výkopku do 3 m (po povrchu území), případné zajištění rypadel polštáři, udržování pracoviště a ochranu výkopiště proti stékání srážkové vody z okolního terénu i s jejím odvodněním, nebo odvedením, přesekání a odstranění kořenů ve výkopišti, odstranění napadávek, urovnání dna výkopu. | L29: Položka obsahuje hloubení rýh traktorbagrem, naložení výkopku na dopravní prostředek pro svislé, nebo vodorovné přemístění, popř. přemístění výkopku do 3 m (po povrchu území), případné zajištění rypadel polštáři, udržování pracoviště a ochranu výkopiště proti stékání srážkové vody z okolního terénu i s jejím odvodněním, nebo odvedením, přesekání a odstranění kořenů ve výkopišti, odstranění napadávek, urovnání dna výkopu. | O29: 3
C30: Součástí položky je i pažení výkopů dle zvolené technologie zhotovitelem a v souladu s předpisy BOZP. | L30: Součástí položky je i pažení výkopů dle zvolené technologie zhotovitelem a v souladu s předpisy BOZP. | O30: 3
C31: V hornině tř. 2: | E31: 0 | M31: V hornině tř. 2:
C32: Kanalizační přípojky KT DN150 (průměrná hloubka 2,45 m): | E32: 0 | M32: Kanalizační přípojky KT DN150 (průměrná hloubka 2,45 m):
C33: Kmenová stoka A KT DN250-500 (1 kus):4,00*0,90*(2,45-0,30)*0,11 | E33: 0.8514 | M33: Kmenová stoka A KT DN250-500 (1 kus):4,00*0,90*(2,45-0,30)*0,11
C34: Stoka AF KT DN250 (1 kus):5,00*0,90*(2,45-0,30)*0,10 | E34: 0.9675 | M34: Stoka AF KT DN250 (1 kus):5,00*0,90*(2,45-0,30)*0,10
C35: Stoka CA KT DN250 (3 kusy):12,00*0,90*(2,45-0,30)*0,12 | E35: 2.7864 | M35: Stoka CA KT DN250 (3 kusy):12,00*0,90*(2,45-0,30)*0,12
A36: 4 | B36: 132201213R00 | C36: Hloubení rýh š.do 200 cm hor.3 do 10000 m3,STROJNĚ | D36: m3 | E36: 11.7261 | G36: =E36*F36 -> 0 | H36: 0 | I36: =E36*H36 -> 0 | J36: 0 | K36: =E36*J36 -> 0 | O36: 2 | AA36: 1 | AB36: 1 | AC36: 1 | AZ36: 1 | BA36: =IF(AZ36=1,G36,0) -> 0 | BB36: =IF(AZ36=2,G36,0) -> 0 | BC36: =IF(AZ36=3,G36,0) -> 0 | BD36: =IF(AZ36=4,G36,0) -> 0 | BE36: =IF(AZ36=5,G36,0) -> 0 | CA36: 1 | CB36: 1
C37: Položka obsahuje hloubení rýh traktorbagrem, naložení výkopku na dopravní prostředek pro svislé, nebo vodorovné přemístění, popř. přemístění výkopku do 3 m (po povrchu území), případné zajištění rypadel polštáři, udržování pracoviště a ochranu výkopiště proti stékání srážkové vody z okolního terénu i s jejím odvodněním, nebo odvedením, přesekání a odstranění kořenů ve výkopišti, odstranění napadávek, urovnání dna výkopu. | L37: Položka obsahuje hloubení rýh traktorbagrem, naložení výkopku na dopravní prostředek pro svislé, nebo vodorovné přemístění, popř. přemístění výkopku do 3 m (po povrchu území), případné zajištění rypadel polštáři, udržování pracoviště a ochranu výkopiště proti stékání srážkové vody z okolního terénu i s jejím odvodněním, nebo odvedením, přesekání a odstranění kořenů ve výkopišti, odstranění napadávek, urovnání dna výkopu. | O37: 3
C38: Součástí položky je i pažení výkopů dle zvolené technologie zhotovitelem a v souladu s předpisy BOZP. | L38: Součástí položky je i pažení výkopů dle zvolené technologie zhotovitelem a v souladu s předpisy BOZP. | O38: 3
C39: V hornině tř. 3: | E39: 0 | M39: V hornině tř. 3:
C40: Kanalizační přípojky KT DN150 (průměrná hloubka 2,45 m): | E40: 0 | M40: Kanalizační přípojky KT DN150 (průměrná hloubka 2,45 m):
C41: Kmenová stoka A KT DN250-500 (1 kus):4,00*0,90*(2,45-0,30)*0,26 | E41: 2.0124 | M41: Kmenová stoka A KT DN250-500 (1 kus):4,00*0,90*(2,45-0,30)*0,26
C42: Stoka AF KT DN250 (1 kus):5,00*0,90*(2,45-0,30)*0,26 | E42: 2.5155 | M42: Stoka AF KT DN250 (1 kus):5,00*0,90*(2,45-0,30)*0,26
C43: Stoka CA KT DN250 (3 kusy):12,00*0,90*(2,45-0,30)*0,31 | E43: 7.1982 | M43: Stoka CA KT DN250 (3 kusy):12,00*0,90*(2,45-0,30)*0,31
A44: 5 | B44: 132201219R00 | C44: Přípl.za lepivost,hloubení rýh 200cm,hor.3,STROJNĚ | D44: m3 | E44: 5.8631 | G44: =E44*F44 -> 0 | H44: 0 | I44: =E44*H44 -> 0 | J44: 0 | K44: =E44*J44 -> 0 | O44: 2 | AA44: 1 | AB44: 1 | AC44: 1 | AZ44: 1 | BA44: =IF(AZ44=1,G44,0) -> 0 | BB44: =IF(AZ44=2,G44,0) -> 0 | BC44: =IF(AZ44=3,G44,0) -> 0 | BD44: =IF(AZ44=4,G44,0) -> 0 | BE44: =IF(AZ44=5,G44,0) -> 0 | CA44: 1 | CB44: 1
C45: V hornině tř. 3: | E45: 0 | M45: V hornině tř. 3:
C46: Kanalizační přípojky KT DN150 (průměrná hloubka 2,45 m): | E46: 0 | M46: Kanalizační přípojky KT DN150 (průměrná hloubka 2,45 m):
C47: Kmenová stoka A KT DN250-500 (1 kus):4,00*0,90*(2,45-0,30)*0,26*0,5 | E47: 1.0062 | M47: Kmenová stoka A KT DN250-500 (1 kus):4,00*0,90*(2,45-0,30)*0,26*0,5
C48: Stoka AF KT DN250 (1 kus):5,00*0,90*(2,45-0,30)*0,26*0,5 | E48: 1.2578 | M48: Stoka AF KT DN250 (1 kus):5,00*0,90*(2,45-0,30)*0,26*0,5
C49: Stoka CA KT DN250 (3 kusy):12,00*0,90*(2,45-0,30)*0,31*0,5 | E49: 3.5991 | M49: Stoka CA KT DN250 (3 kusy):12,00*0,90*(2,45-0,30)*0,31*0,5
A50: 6 | B50: 132301213R00 | C50: Hloubení rýh š.do 200 cm hor.4 do 10000 m3,STROJNĚ | D50: m3 | E50: 15.6735 | G50: =E50*F50 -> 0 | H50: 0 | I50: =E50*H50 -> 0 | J50: 0 | K50: =E50*J50 -> 0 | O50: 2 | AA50: 1 | AB50: 1 | AC50: 1 | AZ50: 1 | BA50: =IF(AZ50=1,G50,0) -> 0 | BB50: =IF(AZ50=2,G50,0) -> 0 | BC50: =IF(AZ50=3,G50,0) -> 0 | BD50: =IF(AZ50=4,G50,0) -> 0 | BE50: =IF(AZ50=5,G50,0) -> 0 | CA50: 1 | CB50: 1
C51: Položka obsahuje hloubení rýh traktorbagrem, naložení výkopku na dopravní prostředek pro svislé, nebo vodorovné přemístění, popř. přemístění výkopku do 3 m (po povrchu území), případné zajištění rypadel polštáři, udržování pracoviště a ochranu výkopiště proti stékání srážkové vody z okolního terénu i s jejím odvodněním, nebo odvedením, přesekání a odstranění kořenů ve výkopišti, odstranění napadávek, urovnání dna výkopu. | L51: Položka obsahuje hloubení rýh traktorbagrem, naložení výkopku na dopravní prostředek pro svislé, nebo vodorovné přemístění, popř. přemístění výkopku do 3 m (po povrchu území), případné zajištění rypadel polštáři, udržování pracoviště a ochranu výkopiště proti stékání srážkové vody z okolního terénu i s jejím odvodněním, nebo odvedením, přesekání a odstranění kořenů ve výkopišti, odstranění napadávek, urovnání dna výkopu. | O51: 3
C52: Součástí položky je i pažení výkopů dle zvolené technologie zhotovitelem a v souladu s předpisy BOZP. | L52: Součástí položky je i pažení výkopů dle zvolené technologie zhotovitelem a v souladu s předpisy BOZP. | O52: 3
C53: V hornině tř. 4: | E53: 0 | M53: V hornině tř. 4:
C54: Kanalizační přípojky KT DN150 (průměrná hloubka 2,45 m): | E54: 0 | M54: Kanalizační přípojky KT DN150 (průměrná hloubka 2,45 m):
C55: Kmenová stoka A KT DN250-500 (1 kus):4,00*0,90*(2,45-0,30)*0,26 | E55: 2.0124 | M55: Kmenová stoka A KT DN250-500 (1 kus):4,00*0,90*(2,45-0,30)*0,26
C56: Stoka AF KT DN250 (1 kus):5,00*0,90*(2,45-0,30)*0,38 | E56: 3.6765 | M56: Stoka AF KT DN250 (1 kus):5,00*0,90*(2,45-0,30)*0,38
C57: Stoka CA KT DN250 (3 kusy):12,00*0,90*(2,45-0,30)*0,43 | E57: 9.9846 | M57: Stoka CA KT DN250 (3 kusy):12,00*0,90*(2,45-0,30)*0,43
A58: 7 | B58: 132301219R00 | C58: Přípl.za lepivost,hloubení rýh 200cm,hor.4,STROJNĚ | D58: m3 | E58: 7.8368 | G58: =E58*F58 -> 0 | H58: 0 | I58: =E58*H58 -> 0 | J58: 0 | K58: =E58*J58 -> 0 | O58: 2 | AA58: 1 | AB58: 1 | AC58: 1 | AZ58: 1 | BA58: =IF(AZ58=1,G58,0) -> 0 | BB58: =IF(AZ58=2,G58,0) -> 0 | BC58: =IF(AZ58=3,G58,0) -> 0 | BD58: =IF(AZ58=4,G58,0) -> 0 | BE58: =IF(AZ58=5,G58,0) -> 0 | CA58: 1 | CB58: 1
C59: V hornině tř. 4: | E59: 0 | M59: V hornině tř. 4:
C60: Kanalizační přípojky KT DN150 (průměrná hloubka 2,45 m): | E60: 0 | M60: Kanalizační přípojky KT DN150 (průměrná hloubka 2,45 m):
C61: Kmenová stoka A KT DN250-500 (1 kus):4,00*0,90*(2,45-0,30)*0,26*0,5 | E61: 1.0062 | M61: Kmenová stoka A KT DN250-500 (1 kus):4,00*0,90*(2,45-0,30)*0,26*0,5
C62: Stoka AF KT DN250 (1 kus):5,00*0,90*(2,45-0,30)*0,38*0,5 | E62: 1.8383 | M62: Stoka AF KT DN250 (1 kus):5,00*0,90*(2,45-0,30)*0,38*0,5
C63: Stoka CA KT DN250 (3 kusy):12,00*0,90*(2,45-0,30)*0,43*0,5 | E63: 4.9923 | M63: Stoka CA KT DN250 (3 kusy):12,00*0,90*(2,45-0,30)*0,43*0,5
A64: 8 | B64: 132401211RRX | C64: Hloubení rýh šířky do 200 cm v hor.5, STROJNĚ | D64: m3 | E64: 7.2369 | G64: =E64*F64 -> 0 | H64: 0 | I64: =E64*H64 -> 0 | J64: 0 | K64: =E64*J64 -> 0 | O64: 2 | AA64: 1 | AB64: 1 | AC64: 1 | AZ64: 1 | BA64: =IF(AZ64=1,G64,0) -> 0 | BB64: =IF(AZ64=2,G64,0) -> 0 | BC64: =IF(AZ64=3,G64,0) -> 0 | BD64: =IF(AZ64=4,G64,0) -> 0 | BE64: =IF(AZ64=5,G64,0) -> 0 | CA64: 1 | CB64: 1
C65: Položka obsahuje hloubení rýh traktorbagrem, naložení výkopku na dopravní prostředek pro svislé, nebo vodorovné přemístění, popř. přemístění výkopku do 3 m (po povrchu území), případné zajištění rypadel polštáři, udržování pracoviště a ochranu výkopiště proti stékání srážkové vody z okolního terénu i s jejím odvodněním, nebo odvedením, přesekání a odstranění kořenů ve výkopišti, odstranění napadávek, urovnání dna výkopu. | L65: Položka obsahuje hloubení rýh traktorbagrem, naložení výkopku na dopravní prostředek pro svislé, nebo vodorovné přemístění, popř. přemístění výkopku do 3 m (po povrchu území), případné zajištění rypadel polštáři, udržování pracoviště a ochranu výkopiště proti stékání srážkové vody z okolního terénu i s jejím odvodněním, nebo odvedením, přesekání a odstranění kořenů ve výkopišti, odstranění napadávek, urovnání dna výkopu. | O65: 3
C66: Součástí položky je i pažení výkopů dle zvolené technologie zhotovitelem a v souladu s předpisy BOZP. | L66: Součástí položky je i pažení výkopů dle zvolené technologie zhotovitelem a v souladu s předpisy BOZP. | O66: 3
C67: Součástí položky je i případné dolamování horniny v prostoru rýhy. | L67: Součástí položky je i případné dolamování horniny v prostoru rýhy. | O67: 3
C68: V hornině tř. 5: | E68: 0 | M68: V hornině tř. 5:
C69: Kanalizační přípojky KT DN150 (průměrná hloubka 2,45 m): | E69: 0 | M69: Kanalizační přípojky KT DN150 (průměrná hloubka 2,45 m):
C70: Kmenová stoka A KT DN250-500 (1 kus):4,00*0,90*(2,45-0,30)*0,25 | E70: 1.935 | M70: Kmenová stoka A KT DN250-500 (1 kus):4,00*0,90*(2,45-0,30)*0,25
C71: Stoka AF KT DN250 (1 kus):5,00*0,90*(2,45-0,30)*0,26 | E71: 2.5155 | M71: Stoka AF KT DN250 (1 kus):5,00*0,90*(2,45-0,30)*0,26
C72: Stoka CA KT DN250 (3 kusy):12,00*0,90*(2,45-0,30)*0,12 | E72: 2.7864 | M72: Stoka CA KT DN250 (3 kusy):12,00*0,90*(2,45-0,30)*0,12
A73: 9 | B73: 132501211RRX | C73: Hloubení rýh šířky do 200 cm v hor.6, STROJNĚ | D73: m3 | E73: 0.774 | G73: =E73*F73 -> 0 | H73: 0 | I73: =E73*H73 -> 0 | J73: 0 | K73: =E73*J73 -> 0 | O73: 2 | AA73: 1 | AB73: 1 | AC73: 1 | AZ73: 1 | BA73: =IF(AZ73=1,G73,0) -> 0 | BB73: =IF(AZ73=2,G73,0) -> 0 | BC73: =IF(AZ73=3,G73,0) -> 0 | BD73: =IF(AZ73=4,G73,0) -> 0 | BE73: =IF(AZ73=5,G73,0) -> 0 | CA73: 1 | CB73: 1
C74: Položka obsahuje hloubení rýh traktorbagrem, naložení výkopku na dopravní prostředek pro svislé, nebo vodorovné přemístění, popř. přemístění výkopku do 3 m (po povrchu území), případné zajištění rypadel polštáři, udržování pracoviště a ochranu výkopiště proti stékání srážkové vody z okolního terénu i s jejím odvodněním, nebo odvedením, přesekání a odstranění kořenů ve výkopišti, odstranění napadávek, urovnání dna výkopu. | L74: Položka obsahuje hloubení rýh traktorbagrem, naložení výkopku na dopravní prostředek pro svislé, nebo vodorovné přemístění, popř. přemístění výkopku do 3 m (po povrchu území), případné zajištění rypadel polštáři, udržování pracoviště a ochranu výkopiště proti stékání srážkové vody z okolního terénu i s jejím odvodněním, nebo odvedením, přesekání a odstranění kořenů ve výkopišti, odstranění napadávek, urovnání dna výkopu. | O74: 3
C75: Součástí položky je i pažení výkopů dle zvolené technologie zhotovitelem a v souladu s předpisy BOZP. | L75: Součástí položky je i pažení výkopů dle zvolené technologie zhotovitelem a v souladu s předpisy BOZP. | O75: 3
C76: Součástí položky je i případné dolamování horniny v prostoru rýhy. | L76: Součástí položky je i případné dolamování horniny v prostoru rýhy. | O76: 3
C77: V hornině tř. 6: | E77: 0 | M77: V hornině tř. 6:
C78: Kanalizační přípojky KT DN150 (průměrná hloubka 2,45 m): | E78: 0 | M78: Kanalizační přípojky KT DN150 (průměrná hloubka 2,45 m):
C79: Kmenová stoka A KT DN250-500 (1 kus):4,00*0,90*(2,45-0,30)*0,04 | E79: 0.3096 | M79: Kmenová stoka A KT DN250-500 (1 kus):4,00*0,90*(2,45-0,30)*0,04
C80: Stoka AF KT DN250 (1 kus):5,00*0,90*(2,45-0,30)*0,0 | E80: 0 | M80: Stoka AF KT DN250 (1 kus):5,00*0,90*(2,45-0,30)*0,0
C81: Stoka CA KT DN250 (3 kusy):12,00*0,90*(2,45-0,30)*0,02 | E81: 0.4644 | M81: Stoka CA KT DN250 (3 kusy):12,00*0,90*(2,45-0,30)*0,02
A82: 10 | B82: 162601102RX0 | C82: Vodorovné přemístění výkopku z hor.1-7 na skládku zhotovitele | D82: m3 | E82: 37.2576 | G82: =E82*F82 -> 0 | H82: 0 | I82: =E82*H82 -> 0 | J82: 0 | K82: =E82*J82 -> 0 | O82: 2 | AA82: 1 | AB82: 1 | AC82: 1 | AZ82: 1 | BA82: =IF(AZ82=1,G82,0) -> 0 | BB82: =IF(AZ82=2,G82,0) -> 0 | BC82: =IF(AZ82=3,G82,0) -> 0 | BD82: =IF(AZ82=4,G82,0) -> 0 | BE82: =IF(AZ82=5,G82,0) -> 0 | CA82: 1 | CB82: 1
C83: Výkopy: | E83: 0 | M83: Výkopy:
C84: Kanalizační přípojky KT DN150: | E84: 0 | M84: Kanalizační přípojky KT DN150:
C85: Začátek provozního součtu | E85: 0 | M85: Začátek provozního součtu
C86: Kmenová stoka A KT DN250-500 (1 kus):4,00 | E86: 4 | M86: Kmenová stoka A KT DN250-500 (1 kus):4,00
C87: Stoka AF KT DN250 (1 kus):5,00 | E87: 5 | M87: Stoka AF KT DN250 (1 kus):5,00
C88: Stoka CA KT DN250 (3 kusy):12,00 | E88: 12 | M88: Stoka CA KT DN250 (3 kusy):12,00
C89: Konec provozního součtu | E89: 21 | M89: Konec provozního součtu
C90: V hornině tř. 2 - 6 (průměrná hloubka 2,45 m):21,0000*0,90*(2,45-0,30) | E90: 40.635 | M90: V hornině tř. 2 - 6 (průměrná hloubka 2,45 m):21,0000*0,90*(2,45-0,30)
C91: Odpočet zásypů zeminou:-3,3774 | E91: -3.3774 | M91: Odpočet zásypů zeminou:-3,3774
A92: 11 | B92: 174100050RAB | C92: Zásyp jam,rýh a šachet štěrkodrtí fr. 0-63 mm včetně dodávky štěrkodrtě | D92: m3 | E92: 4.128 | G92: =E92*F92 -> 0 | H92: 0 | I92: =E92*H92 -> 0 | J92: 0 | K92: =E92*J92 -> 0 | O92: 2 | AA92: 1 | AB92: 1 | AC92: 1 | AZ92: 1 | BA92: =IF(AZ92=1,G92,0) -> 0 | BB92: =IF(AZ92=2,G92,0) -> 0 | BC92: =IF(AZ92=3,G92,0) -> 0 | BD92: =IF(AZ92=4,G92,0) -> 0 | BE92: =IF(AZ92=5,G92,0) -> 0 | CA92: 1 | CB92: 1
C93: Výkopy: | E93: 0 | M93: Výkopy:
C94: Kanalizační přípojky KT DN150: | E94: 0 | M94: Kanalizační přípojky KT DN150:
C95: Začátek provozního součtu | E95: 0 | M95: Začátek provozního součtu
C96: Kmenová stoka A KT DN250-500 (1 kus):4,00 | E96: 4 | M96: Kmenová stoka A KT DN250-500 (1 kus):4,00
C97: Stoka AF KT DN250 (1 kus):5,00 | E97: 5 | M97: Stoka AF KT DN250 (1 kus):5,00
C98: Stoka CA KT DN250 (3 kusy):12,00 | E98: 12 | M98: Stoka CA KT DN250 (3 kusy):12,00
C99: Konec provozního součtu | E99: 21 | M99: Konec provozního součtu
C100: V hornině tř. 2 - 6 (průměrná hloubka 2,45 m):21,0000*0,90*(2,45-0,30)*0,55 | E100: 22.3493 | M100: V hornině tř. 2 - 6 (průměrná hloubka 2,45 m):21,0000*0,90*(2,45-0,30)*0,55
C101: Odpočet lože, potrubí a obsypů z 55% zeminou:-21,000*(2,45-0,30-0,5724)*0,55 | E101: -18.2213 | M101: Odpočet lože, potrubí a obsypů z 55% zeminou:-21,000*(2,45-0,30-0,5724)*0,55
A102: 12 | B102: 174101101R00 | C102: Zásyp jam, rýh, šachet se zhutněním | D102: m3 | E102: 3.3774 | G102: =E102*F102 -> 0 | H102: 0 | I102: =E102*H102 -> 0 | J102: 0 | K102: =E102*J102 -> 0 | O102: 2 | AA102: 1 | AB102: 1 | AC102: 1 | AZ102: 1 | BA102: =IF(AZ102=1,G102,0) -> 0 | BB102: =IF(AZ102=2,G102,0) -> 0 | BC102: =IF(AZ102=3,G102,0) -> 0 | BD102: =IF(AZ102=4,G102,0) -> 0 | BE102: =IF(AZ102=5,G102,0) -> 0 | CA102: 1 | CB102: 1
C103: Položka obsahuje strojní přemístění materiálu pro zásyp ze vzdálenosti do 10 m od okraje zásypu. | L103: Položka obsahuje strojní přemístění materiálu pro zásyp ze vzdálenosti do 10 m od okraje zásypu. | O103: 3
C104: Výkopy: | E104: 0 | M104: Výkopy:
C105: Kanalizační přípojky KT DN150: | E105: 0 | M105: Kanalizační přípojky KT DN150:
C106: Začátek provozního součtu | E106: 0 | M106: Začátek provozního součtu
C107: Kmenová stoka A KT DN250-500 (1 kus):4,00 | E107: 4 | M107: Kmenová stoka A KT DN250-500 (1 kus):4,00
C108: Stoka AF KT DN250 (1 kus):5,00 | E108: 5 | M108: Stoka AF KT DN250 (1 kus):5,00
C109: Stoka CA KT DN250 (3 kusy):12,00 | E109: 12 | M109: Stoka CA KT DN250 (3 kusy):12,00
C110: Konec provozního součtu | E110: 21 | M110: Konec provozního součtu
C111: V hornině tř. 2 - 6 (průměrná hloubka 2,45 m):21,0000*0,90*(2,45-0,30)*0,45 | E111: 18.2858 | M111: V hornině tř. 2 - 6 (průměrná hloubka 2,45 m):21,0000*0,90*(2,45-0,30)*0,45
C112: Odpočet lože, potrubí a obsypů z 45% ŠD:-21,000*(2,45-0,30-0,5724)*0,45 | E112: -14.9083 | M112: Odpočet lože, potrubí a obsypů z 45% ŠD:-21,000*(2,45-0,30-0,5724)*0,45
A113: 13 | B113: 175100020RAB | C113: Obsyp potrubí štěrkopískem včetně dodávka štěrkopísku | D113: m3 | E113: 7.8582 | G113: =E113*F113 -> 0 | H113: 0 | I113: =E113*H113 -> 0 | J113: 0 | K113: =E113*J113 -> 0 | O113: 2 | AA113: 1 | AB113: 1 | AC113: 1 | AZ113: 1 | BA113: =IF(AZ113=1,G113,0) -> 0 | BB113: =IF(AZ113=2,G113,0) -> 0 | BC113: =IF(AZ113=3,G113,0) -> 0 | BD113: =IF(AZ113=4,G113,0) -> 0 | BE113: =IF(AZ113=5,G113,0) -> 0 | CA113: 1 | CB113: 1
C114: Kanalizační přípojky KT DN150: | E114: 0 | M114: Kanalizační přípojky KT DN150:
C115: Začátek provozního součtu | E115: 0 | M115: Začátek provozního součtu
C116: Kmenová stoka A KT DN250-500 (1 kus):4,00 | E116: 4 | M116: Kmenová stoka A KT DN250-500 (1 kus):4,00
C117: Stoka AF KT DN250 (1 kus):5,00 | E117: 5 | M117: Stoka AF KT DN250 (1 kus):5,00
C118: Stoka CA KT DN250 (3 kusy):12,00 | E118: 12 | M118: Stoka CA KT DN250 (3 kusy):12,00
C119: Konec provozního součtu | E119: 21 | M119: Konec provozního součtu
C120: 21,0000*0,3742 | E120: 7.8582 | M120: 21,0000*0,3742
A121: 14 | B121: 199000002RX0 | C121: Poplatek za skládku horniny 1- 7 | D121: m3 | E121: 37.2576 | G121: =E121*F121 -> 0 | H121: 0 | I121: =E121*H121 -> 0 | J121: 0 | K121: =E121*J121 -> 0 | O121: 2 | AA121: 1 | AB121: 1 | AC121: 1 | AZ121: 1 | BA121: =IF(AZ121=1,G121,0) -> 0 | BB121: =IF(AZ121=2,G121,0) -> 0 | BC121: =IF(AZ121=3,G121,0) -> 0 | BD121: =IF(AZ121=4,G121,0) -> 0 | BE121: =IF(AZ121=5,G121,0) -> 0 | CA121: 1 | CB121: 1
C122: Výkopy: | E122: 0 | M122: Výkopy:
C123: Kanalizační přípojky KT DN150: | E123: 0 | M123: Kanalizační přípojky KT DN150:
C124: Začátek provozního součtu | E124: 0 | M124: Začátek provozního součtu
C125: Kmenová stoka A KT DN250-500 (1 kus):4,00 | E125: 4 | M125: Kmenová stoka A KT DN250-500 (1 kus):4,00
C126: Stoka AF KT DN250 (1 kus):5,00 | E126: 5 | M126: Stoka AF KT DN250 (1 kus):5,00
C127: Stoka CA KT DN250 (3 kusy):12,00 | E127: 12 | M127: Stoka CA KT DN250 (3 kusy):12,00
C128: Konec provozního součtu | E128: 21 | M128: Konec provozního součtu
C129: V hornině tř. 2 - 6 (průměrná hloubka 2,45 m):21,0000*0,90*(2,45-0,30) | E129: 40.635 | M129: V hornině tř. 2 - 6 (průměrná hloubka 2,45 m):21,0000*0,90*(2,45-0,30)
C130: Odpočet zásypů zeminou:-3,3774 | E130: -3.3774 | M130: Odpočet zásypů zeminou:-3,3774
B131: Celkem za | C131: 1 Zemní práce | G131: =SUM(G7:G130) -> 0 | I131: =SUM(I7:I130) -> 0 | K131: =SUM(K7:K130) -> 0 | O131: 4 | BA131: =SUM(BA7:BA130) -> 0 | BB131: =SUM(BB7:BB130) -> 0 | BC131: =SUM(BC7:BC130) -> 0 | BD131: =SUM(BD7:BD130) -> 0 | BE131: =SUM(BE7:BE130) -> 0
A132: Díl: | B132: 45 | C132: Podkladní a vedlejší konstrukce | O132: 1
A133: 15 | B133: 452312131R00 | C133: Sedlové lože pod potrubí z betonu C 12/15 | D133: m3 | E133: 3.591 | G133: =E133*F133 -> 0 | H133: 2.5 | I133: =E133*H133 -> 8.9775 | J133: 0 | K133: =E133*J133 -> 0 | O133: 2 | AA133: 1 | AB133: 1 | AC133: 1 | AZ133: 1 | BA133: =IF(AZ133=1,G133,0) -> 0 | BB133: =IF(AZ133=2,G133,0) -> 0 | BC133: =IF(AZ133=3,G133,0) -> 0 | BD133: =IF(AZ133=4,G133,0) -> 0 | BE133: =IF(AZ133=5,G133,0) -> 0 | CA133: 1 | CB133: 1
C134: Kanalizační přípojky KT DN150: | E134: 0 | M134: Kanalizační přípojky KT DN150:
C135: Začátek provozního součtu | E135: 0 | M135: Začátek provozního součtu
C136: Kmenová stoka A KT DN250-500 (1 kus):4,00 | E136: 4 | M136: Kmenová stoka A KT DN250-500 (1 kus):4,00
C137: Stoka AF KT DN250 (1 kus):5,00 | E137: 5 | M137: Stoka AF KT DN250 (1 kus):5,00
C138: Stoka CA KT DN250 (3 kusy):12,00 | E138: 12 | M138: Stoka CA KT DN250 (3 kusy):12,00
C139: Konec provozního součtu | E139: 21 | M139: Konec provozního součtu
C140: 21,0000*0,1710 | E140: 3.591 | M140: 21,0000*0,1710
B141: Celkem za | C141: 45 Podkladní a vedlejší konstrukce | G141: =SUM(G132:G140) -> 0 | I141: =SUM(I132:I140) -> 8.9775 | K141: =SUM(K132:K140) -> 0 | O141: 4 | BA141: =SUM(BA132:BA140) -> 0 | BB141: =SUM(BB132:BB140) -> 0 | BC141: =SUM(BC132:BC140) -> 0 | BD141: =SUM(BD132:BD140) -> 0 | BE141: =SUM(BE132:BE140) -> 0
A142: Díl: | B142: 8 | C142: Trubní vedení | O142: 1
A143: 16 | B143: 831312121RT5 | C143: Montáž trub kameninových, pryž. kroužek, DN 150 včetně dodávky trub kamenin. DN 150 dl. 1500 mm | D143: m | E143: 21 | G143: =E143*F143 -> 0 | H143: 0.02337 | I143: =E143*H143 -> 0.49077 | J143: 0 | K143: =E143*J143 -> 0 | O143: 2 | AA143: 1 | AB143: 1 | AC143: 1 | AZ143: 1 | BA143: =IF(AZ143=1,G143,0) -> 0 | BB143: =IF(AZ143=2,G143,0) -> 0 | BC143: =IF(AZ143=3,G143,0) -> 0 | BD143: =IF(AZ143=4,G143,0) -> 0 | BE143: =IF(AZ143=5,G143,0) -> 0 | CA143: 1 | CB143: 1
C144: Položka je určena pro montáž potrubí z trub kameninových těsněných pryžovým kroužkem v otevřeném výkopu ve sklonu do 20 %. | L144: Položka je určena pro montáž potrubí z trub kameninových těsněných pryžovým kroužkem v otevřeném výkopu ve sklonu do 20 %. | O144: 3
C145: V položce jsou zakalkulovány i náklady na dodání trub. | L145: V položce jsou zakalkulovány i náklady na dodání trub. | O145: 3
C146: Kanalizační přípojky KT DN150: | E146: 0 | M146: Kanalizační přípojky KT DN150:
C147: Kmenová stoka A KT DN250-500 (1 kus):4,00 | E147: 4 | M147: Kmenová stoka A KT DN250-500 (1 kus):4,00
C148: Stoka AF KT DN250 (1 kus):5,00 | E148: 5 | M148: Stoka AF KT DN250 (1 kus):5,00
C149: Stoka CA KT DN250 (3 kusy):12,00 | E149: 12 | M149: Stoka CA KT DN250 (3 kusy):12,00
A150: 17 | B150: 837312221RT2 | C150: Montáž tvarov. kamenin. jednoos. pryž. kr. DN 150 včetně dodávky oblouku DN 150 - 15°,30°,45° | D150: kus | E150: 10 | G150: =E150*F150 -> 0 | H150: 0.01017 | I150: =E150*H150 -> 0.1017 | J150: 0 | K150: =E150*J150 -> 0 | O150: 2 | AA150: 1 | AB150: 1 | AC150: 1 | AZ150: 1 | BA150: =IF(AZ150=1,G150,0) -> 0 | BB150: =IF(AZ150=2,G150,0) -> 0 | BC150: =IF(AZ150=3,G150,0) -> 0 | BD150: =IF(AZ150=4,G150,0) -> 0 | BE150: =IF(AZ150=5,G150,0) -> 0 | CA150: 1 | CB150: 1
C151: Kanalizační přípojky KT DN150: | E151: 0 | M151: Kanalizační přípojky KT DN150:
C152: Kmenová stoka A KT DN250-500 (1 kus):1*2 | E152: 2 | M152: Kmenová stoka A KT DN250-500 (1 kus):1*2
C153: Stoka AF KT DN250 (1 kus):1*2 | E153: 2 | M153: Stoka AF KT DN250 (1 kus):1*2
C154: Stoka CA KT DN250 (3 kusy):3*2 | E154: 6 | M154: Stoka CA KT DN250 (3 kusy):3*2
A155: 18 | B155: 892571111R00 | C155: Zkouška těsnosti kanalizace DN do 200, vodou | D155: m | E155: 21 | G155: =E155*F155 -> 0 | H155: 0 | I155: =E155*H155 -> 0 | J155: 0 | K155: =E155*J155 -> 0 | O155: 2 | AA155: 1 | AB155: 1 | AC155: 1 | AZ155: 1 | BA155: =IF(AZ155=1,G155,0) -> 0 | BB155: =IF(AZ155=2,G155,0) -> 0 | BC155: =IF(AZ155=3,G155,0) -> 0 | BD155: =IF(AZ155=4,G155,0) -> 0 | BE155: =IF(AZ155=5,G155,0) -> 0 | CA155: 1 | CB155: 1
C156: V položce jsou zakalkulovány náklady na napuštění vodou a dodání vody pro zkoušku těsnosti včetně zavakování potrubí dle zvolené technologie zhotovitele. | L156: V položce jsou zakalkulovány náklady na napuštění vodou a dodání vody pro zkoušku těsnosti včetně zavakování potrubí dle zvolené technologie zhotovitele. | O156: 3
C157: Kanalizační přípojky KT DN150: | E157: 0 | M157: Kanalizační přípojky KT DN150:
C158: Kmenová stoka A KT DN250-500 (1 kus):4,00 | E158: 4 | M158: Kmenová stoka A KT DN250-500 (1 kus):4,00
C159: Stoka AF KT DN250 (1 kus):5,00 | E159: 5 | M159: Stoka AF KT DN250 (1 kus):5,00
C160: Stoka CA KT DN250 (3 kusy):12,00 | E160: 12 | M160: Stoka CA KT DN250 (3 kusy):12,00
A161: 19 | B161: 892601122R00 | C161: Čištění kanalizační stoky do DN 200, do 50 m | D161: m | E161: 21 | G161: =E161*F161 -> 0 | H161: 0 | I161: =E161*H161 -> 0 | J161: 0 | K161: =E161*J161 -> 0 | O161: 2 | AA161: 1 | AB161: 0 | AC161: 0 | AZ161: 1 | BA161: =IF(AZ161=1,G161,0) -> 0 | BB161: =IF(AZ161=2,G161,0) -> 0 | BC161: =IF(AZ161=3,G161,0) -> 0 | BD161: =IF(AZ161=4,G161,0) -> 0 | BE161: =IF(AZ161=5,G161,0) -> 0 | CA161: 1 | CB161: 0
C162: V položce je zakalkulováno: | L162: V položce je zakalkulováno: | O162: 3
C163: a) otevření a uzavření revizních šachet a čisticích kusů | L163: a) otevření a uzavření revizních šachet a čisticích kusů | O163: 3
C164: b) natažení vysokotlakých hadic k místu odkud se bude kanalizace čistit | L164: b) natažení vysokotlakých hadic k místu odkud se bude kanalizace čistit | O164: 3
C165: c) vyčištění potrubí tlakovou vodou nebo motorovým pérem. | L165: c) vyčištění potrubí tlakovou vodou nebo motorovým pérem. | O165: 3
C166: Kanalizační přípojky KT DN150: | E166: 0 | M166: Kanalizační přípojky KT DN150:
C167: Kmenová stoka A KT DN250-500 (1 kus):4,00 | E167: 4 | M167: Kmenová stoka A KT DN250-500 (1 kus):4,00
C168: Stoka AF KT DN250 (1 kus):5,00 | E168: 5 | M168: Stoka AF KT DN250 (1 kus):5,00
C169: Stoka CA KT DN250 (3 kusy):12,00 | E169: 12 | M169: Stoka CA KT DN250 (3 kusy):12,00
A170: 20 | B170: 899721112R00 | C170: Fólie výstražná z PVC, šířka 30 cm | D170: m | E170: 21 | G170: =E170*F170 -> 0 | H170: 0 | I170: =E170*H170 -> 0 | J170: 0 | K170: =E170*J170 -> 0 | O170: 2 | AA170: 1 | AB170: 1 | AC170: 1 | AZ170: 1 | BA170: =IF(AZ170=1,G170,0) -> 0 | BB170: =IF(AZ170=2,G170,0) -> 0 | BC170: =IF(AZ170=3,G170,0) -> 0 | BD170: =IF(AZ170=4,G170,0) -> 0 | BE170: =IF(AZ170=5,G170,0) -> 0 | CA170: 1 | CB170: 1
C171: Kanalizační přípojky KT DN150: | E171: 0 | M171: Kanalizační přípojky KT DN150:
C172: Kmenová stoka A KT DN250-500 (1 kus):4,00 | E172: 4 | M172: Kmenová stoka A KT DN250-500 (1 kus):4,00
C173: Stoka AF KT DN250 (1 kus):5,00 | E173: 5 | M173: Stoka AF KT DN250 (1 kus):5,00
C174: Stoka CA KT DN250 (3 kusy):12,00 | E174: 12 | M174: Stoka CA KT DN250 (3 kusy):12,00
B175: Celkem za | C175: 8 Trubní vedení | G175: =SUM(G142:G174) -> 0 | I175: =SUM(I142:I174) -> 0.59247 | K175: =SUM(K142:K174) -> 0 | O175: 4 | BA175: =SUM(BA142:BA174) -> 0 | BB175: =SUM(BB142:BB174) -> 0 | BC175: =SUM(BC142:BC174) -> 0 | BD175: =SUM(BD142:BD174) -> 0 | BE175: =SUM(BE142:BE174) -> 0
A176: Díl: | B176: 99 | C176: Staveništní přesun hmot | O176: 1
A177: 21 | B177: 998275101R00 | C177: Přesun hmot, kanalizace kameninové, otevřený výkop | D177: t | E177: 9.56997 | G177: =E177*F177 -> 0 | H177: 0 | I177: =E177*H177 -> 0 | K177: =E177*J177 -> 0 | O177: 2 | AA177: 7 | AB177: 1 | AC177: 2 | AZ177: 1 | BA177: =IF(AZ177=1,G177,0) -> 0 | BB177: =IF(AZ177=2,G177,0) -> 0 | BC177: =IF(AZ177=3,G177,0) -> 0 | BD177: =IF(AZ177=4,G177,0) -> 0 | BE177: =IF(AZ177=5,G177,0) -> 0 | CA177: 7 | CB177: 1
B178: Celkem za | C178: 99 Staveništní přesun hmot | G178: =SUM(G176:G177) -> 0 | I178: =SUM(I176:I177) -> 0 | K178: =SUM(K176:K177) -> 0 | O178: 4 | BA178: =SUM(BA176:BA177) -> 0 | BB178: =SUM(BB176:BB177) -> 0 | BC178: =SUM(BC176:BC177) -> 0 | BD178: =SUM(BD176:BD177) -> 0 | BE178: =SUM(BE176:BE177) -> 0

Sheet 304 304RD KL
A1: POLOŽKOVÝ ROZPOČET
A2: Rozpočet | C2: 304RD | D2: Čerpací stanice | F2: JKSO | G2: 814.18
A4: Objekt | F4: SKP
A5: 304 | C5: Čerpací stanice | F5: Měrná jednotka | G5: m3
A6: Stavba | F6: Počet jednotek | G6: 0
A7: 3232 | C7: Horní Slivno - Splašková kanalizace | F7: Náklady na m.j. | G7: =IF(G6=0,,ROUND((F30+F32)/G6,1)) -> 0
A8: Projektant | C8: Radek Hnát - VAK PROJEKT | F8: Typ rozpočtu
A9: Zpracovatel projektu
A10: Objednatel | C10: Obec Horní Slivno
A11: Dodavatel | C11: . | F11: Zakázkové číslo
A12: Rozpočtoval | F12: Počet listů
A13: ROZPOČTOVÉ NÁKLADY
A14: Základní rozpočtové náklady
B15: HSV celkem | C15: ='304 304RD Rek'!E15 -> 0
A16: Z | B16: PSV celkem | C16: ='304 304RD Rek'!F15 -> 0
A17: R | B17: M práce celkem | C17: ='304 304RD Rek'!H15 -> 0
A18: N | B18: M dodávky celkem | C18: ='304 304RD Rek'!G15 -> 0
A19: ZRN celkem | C19: =SUM(C15:C18) -> 0
A21: HZS | C21: ='304 304RD Rek'!I15 -> 0
A22: ZRN+HZS | C22: =C19+C21 -> 0
A23: ZRN+ost.náklady+HZS | C23: =C22+G23 -> 0
A24: Vypracoval | D24: Za zhotovitele | F24: Za objednatele
A25: Jméno : | D25: Jméno : | F25: Jméno :
A26: Datum : | D26: Datum : | F26: Datum :
A28: Podpis : | D28: Podpis: | F28: Podpis:
A30: Základ pro DPH | C30: 21 | D30: % | F30: =C23-F32 -> 0
A31: DPH | C31: =C30 -> 21 | D31: % | F31: =ROUND(PRODUCT(F30,C31/100),0) -> 0
A32: Základ pro DPH | C32: 0 | D32: % | F32: 0
A33: DPH | C33: =C32 -> 0 | D33: % | F33: =ROUND(PRODUCT(F32,C33/100),0) -> 0
A34: CENA ZA OBJEKT CELKEM | F34: =ROUND(SUM(F30:F33),0) -> 0
A36: Poznámka :

Sheet 304 304RD Rek
A1: Stavba : | C1: 3232 Horní Slivno - Splašková kanalizace | G1: Rozpočet : | H1: 304RD
A2: Objekt : | C2: 304 Čerpací stanice | G2: Čerpací stanice
A4: REKAPITULACE STAVEBNÍCH DÍLŮ
B6: Stavební díl | E6: HSV | F6: PSV | G6: Dodávka | H6: Montáž | I6: HZS
A7: ='304 304RD Pol'!B7 -> 1 | B7: ='304 304RD Pol'!C7 -> Zemní práce | E7: ='304 304RD Pol'!BA94 -> 0 | F7: ='304 304RD Pol'!BB94 -> 0 | G7: ='304 304RD Pol'!BC94 -> 0 | H7: ='304 304RD Pol'!BD94 -> 0 | I7: ='304 304RD Pol'!BE94 -> 0
A8: ='304 304RD Pol'!B95 -> 21 | B8: ='304 304RD Pol'!C95 -> Úprava podloží a základ.spáry | E8: ='304 304RD Pol'!BA99 -> 0 | F8: ='304 304RD Pol'!BB99 -> 0 | G8: ='304 304RD Pol'!BC99 -> 0 | H8: ='304 304RD Pol'!BD99 -> 0 | I8: ='304 304RD Pol'!BE99 -> 0
A9: ='304 304RD Pol'!B100 -> 38 | B9: ='304 304RD Pol'!C100 -> Kompletní konstrukce | E9: ='304 304RD Pol'!BA119 -> 0 | F9: ='304 304RD Pol'!BB119 -> 0 | G9: ='304 304RD Pol'!BC119 -> 0 | H9: ='304 304RD Pol'!BD119 -> 0 | I9: ='304 304RD Pol'!BE119 -> 0
A10: ='304 304RD Pol'!B120 -> 5 | B10: ='304 304RD Pol'!C120 -> Komunikace | E10: ='304 304RD Pol'!BA160 -> 0 | F10: ='304 304RD Pol'!BB160 -> 0 | G10: ='304 304RD Pol'!BC160 -> 0 | H10: ='304 304RD Pol'!BD160 -> 0 | I10: ='304 304RD Pol'!BE160 -> 0
A11: ='304 304RD Pol'!B161 -> 90 | B11: ='304 304RD Pol'!C161 -> Oploceni | E11: ='304 304RD Pol'!BA166 -> 0 | F11: ='304 304RD Pol'!BB166 -> 0 | G11: ='304 304RD Pol'!BC166 -> 0 | H11: ='304 304RD Pol'!BD166 -> 0 | I11: ='304 304RD Pol'!BE166 -> 0
A12: ='304 304RD Pol'!B167 -> 99 | B12: ='304 304RD Pol'!C167 -> Staveništní přesun hmot | E12: ='304 304RD Pol'!BA169 -> 0 | F12: ='304 304RD Pol'!BB169 -> 0 | G12: ='304 304RD Pol'!BC169 -> 0 | H12: ='304 304RD Pol'!BD169 -> 0 | I12: ='304 304RD Pol'!BE169 -> 0
A13: ='304 304RD Pol'!B170 -> M21.6 | B13: ='304 304RD Pol'!C170 -> Elektroinstalace a telemetrie | E13: ='304 304RD Pol'!BA173 -> 0 | F13: ='304 304RD Pol'!BB173 -> 0 | G13: ='304 304RD Pol'!BC173 -> 0 | H13: ='304 304RD Pol'!BD173 -> 0 | I13: ='304 304RD Pol'!BE173 -> 0
A14: ='304 304RD Pol'!B174 -> M35.5 | B14: ='304 304RD Pol'!C174 -> Montáže technologie čerpacích stanic a úpraven vod | E14: ='304 304RD Pol'!BA177 -> 0 | F14: ='304 304RD Pol'!BB177 -> 0 | G14: ='304 304RD Pol'!BC177 -> 0 | H14: ='304 304RD Pol'!BD177 -> 0 | I14: ='304 304RD Pol'!BE177 -> 0
B15: CELKEM OBJEKT | E15: =SUM(E7:E14) -> 0 | F15: =SUM(F7:F14) -> 0 | G15: =SUM(G7:G14) -> 0 | H15: =SUM(H7:H14) -> 0 | I15: =SUM(I7:I14) -> 0

Sheet 304 304RD Pol
A1: Položkový rozpočet
A3: Stavba : | C3: 3232 Horní Slivno - Splašková kanalizace | E3: Rozpočet: | F3: ='304 304RD Rek'!H1 -> 304RD
A4: Objekt : | C4: 304 Čerpací stanice | E4: ='304 304RD Rek'!G2 -> Čerpací stanice
A6: P.č. | B6: Číslo položky | C6: Název položky | D6: MJ | E6: množství | F6: cena / MJ | G6: celkem (Kč) | H6: Jednotková hmotnost | I6: Celková hmotnost | J6: Jednotková dem.hmot. | K6: Celková dem.hmot.
A7: Díl: | B7: 1 | C7: Zemní práce | O7: 1
A8: 1 | B8: 121100001RAA | C8: Sejmutí ornice, naložení, odvoz a uložení odvoz do 1 km | D8: m3 | E8: 118 | G8: =E8*F8 -> 0 | H8: 0 | I8: =E8*H8 -> 0 | J8: 0 | K8: =E8*J8 -> 0 | O8: 2 | AA8: 1 | AB8: 1 | AC8: 1 | AZ8: 1 | BA8: =IF(AZ8=1,G8,0) -> 0 | BB8: =IF(AZ8=2,G8,0) -> 0 | BC8: =IF(AZ8=3,G8,0) -> 0 | BD8: =IF(AZ8=4,G8,0) -> 0 | BE8: =IF(AZ8=5,G8,0) -> 0 | CA8: 1 | CB8: 1
C9: V položce není kalkulován poplatek za skládku zeminy. | L9: V položce není kalkulován poplatek za skládku zeminy. | O9: 3
C10: ČSOV - A + napojení na komunikaci:236,00*0,25 | E10: 59 | M10: ČSOV - A + napojení na komunikaci:236,00*0,25
C11: ČSOV - C + napojení na komunikaci:236,00*0,25 | E11: 59 | M11: ČSOV - C + napojení na komunikaci:236,00*0,25
A12: 2 | B12: 122101102R00 | C12: Odkopávky nezapažené v hor. 2 do 1000 m3 | D12: m3 | E12: 20 | G12: =E12*F12 -> 0 | H12: 0 | I12: =E12*H12 -> 0 | J12: 0 | K12: =E12*J12 -> 0 | O12: 2 | AA12: 1 | AB12: 1 | AC12: 1 | AZ12: 1 | BA12: =IF(AZ12=1,G12,0) -> 0 | BB12: =IF(AZ12=2,G12,0) -> 0 | BC12: =IF(AZ12=3,G12,0) -> 0 | BD12: =IF(AZ12=4,G12,0) -> 0 | BE12: =IF(AZ12=5,G12,0) -> 0 | CA12: 1 | CB12: 1
C13: ČSOV - A - napojení na komunikaci:9,10 | E13: 9.1 | M13: ČSOV - A - napojení na komunikaci:9,10
C14: ČSOV - C - napojení na komunikaci:10,90 | E14: 10.9 | M14: ČSOV - C - napojení na komunikaci:10,90
A15: 3 | B15: 131101202RRX | C15: Hloubení zapažených jam v hor.2 do 1000 m3,STROJNĚ | D15: m3 | E15: 22.0483 | G15: =E15*F15 -> 0 | H15: 0 | I15: =E15*H15 -> 0 | J15: 0 | K15: =E15*J15 -> 0 | O15: 2 | AA15: 1 | AB15: 1 | AC15: 1 | AZ15: 1 | BA15: =IF(AZ15=1,G15,0) -> 0 | BB15: =IF(AZ15=2,G15,0) -> 0 | BC15: =IF(AZ15=3,G15,0) -> 0 | BD15: =IF(AZ15=4,G15,0) -> 0 | BE15: =IF(AZ15=5,G15,0) -> 0 | CA15: 1 | CB15: 1
C16: Položka obsahuje hloubení jámy traktorbagrem, naložení výkopku na dopravní prostředek pro svislé, nebo vodorovné přemístění, popř. přemístění výkopku do 3 m (po povrchu území), případné zajištění rypadel polštáři, udržování pracoviště a ochranu výkopiště proti stékání srážkové vody z okolního terénu i s jejím odvodněním, nebo odvedením, přesekání a odstranění kořenů ve výkopišti, odstranění napadávek, urovnání dna výkopu. | L16: Položka obsahuje hloubení jámy traktorbagrem, naložení výkopku na dopravní prostředek pro svislé, nebo vodorovné přemístění, popř. přemístění výkopku do 3 m (po povrchu území), případné zajištění rypadel polštáři, udržování pracoviště a ochranu výkopiště proti stékání srážkové vody z okolního terénu i s jejím odvodněním, nebo odvedením, přesekání a odstranění kořenů ve výkopišti, odstranění napadávek, urovnání dna výkopu. | O16: 3
C17: V hornině tř. 2: | E17: 0 | M17: V hornině tř. 2:
C18: ČSOV - A :161,1785*0,07 | E18: 11.2825 | M18: ČSOV - A :161,1785*0,07
C19: ČSOV - C:179,4305*0,06 | E19: 10.7658 | M19: ČSOV - C:179,4305*0,06
A20: 4 | B20: 131201202RRX | C20: Hloubení zapažených jam v hor.3 do 1000 m3,STROJNĚ | D20: m3 | E20: 63.2864 | G20: =E20*F20 -> 0 | H20: 0 | I20: =E20*H20 -> 0 | J20: 0 | K20: =E20*J20 -> 0 | O20: 2 | AA20: 1 | AB20: 1 | AC20: 1 | AZ20: 1 | BA20: =IF(AZ20=1,G20,0) -> 0 | BB20: =IF(AZ20=2,G20,0) -> 0 | BC20: =IF(AZ20=3,G20,0) -> 0 | BD20: =IF(AZ20=4,G20,0) -> 0 | BE20: =IF(AZ20=5,G20,0) -> 0 | CA20: 1 | CB20: 1
C21: Položka obsahuje hloubení jámy traktorbagrem, naložení výkopku na dopravní prostředek pro svislé, nebo vodorovné přemístění, popř. přemístění výkopku do 3 m (po povrchu území), případné zajištění rypadel polštáři, udržování pracoviště a ochranu výkopiště proti stékání srážkové vody z okolního terénu i s jejím odvodněním, nebo odvedením, přesekání a odstranění kořenů ve výkopišti, odstranění napadávek, urovnání dna výkopu. | L21: Položka obsahuje hloubení jámy traktorbagrem, naložení výkopku na dopravní prostředek pro svislé, nebo vodorovné přemístění, popř. přemístění výkopku do 3 m (po povrchu území), případné zajištění rypadel polštáři, udržování pracoviště a ochranu výkopiště proti stékání srážkové vody z okolního terénu i s jejím odvodněním, nebo odvedením, přesekání a odstranění kořenů ve výkopišti, odstranění napadávek, urovnání dna výkopu. | O21: 3
C22: V hornině tř. 3: | E22: 0 | M22: V hornině tř. 3:
C23: ČSOV - A :161,1785*0,17 | E23: 27.4003 | M23: ČSOV - A :161,1785*0,17
C24: ČSOV - C:179,4305*0,20 | E24: 35.8861 | M24: ČSOV - C:179,4305*0,20
A25: 5 | B25: 131201209R00 | C25: Příplatek za lepivost - hloubení zapaž.jam v hor.3 | D25: m3 | E25: 31.6432 | G25: =E25*F25 -> 0 | H25: 0 | I25: =E25*H25 -> 0 | J25: 0 | K25: =E25*J25 -> 0 | O25: 2 | AA25: 1 | AB25: 1 | AC25: 1 | AZ25: 1 | BA25: =IF(AZ25=1,G25,0) -> 0 | BB25: =IF(AZ25=2,G25,0) -> 0 | BC25: =IF(AZ25=3,G25,0) -> 0 | BD25: =IF(AZ25=4,G25,0) -> 0 | BE25: =IF(AZ25=5,G25,0) -> 0 | CA25: 1 | CB25: 1
C26: V hornině tř. 3: | E26: 0 | M26: V hornině tř. 3:
C27: ČSOV - A :161,1785*0,17*0,5 | E27: 13.7002 | M27: ČSOV - A :161,1785*0,17*0,5
C28: ČSOV - C:179,4305*0,20*0,5 | E28: 17.943 | M28: ČSOV - C:179,4305*0,20*0,5
A29: 6 | B29: 131301202RRX | C29: Hloubení zapažených jam v hor.4 do 1000 m3,STROJNĚ | D29: m3 | E29: 19.3414 | G29: =E29*F29 -> 0 | H29: 0 | I29: =E29*H29 -> 0 | J29: 0 | K29: =E29*J29 -> 0 | O29: 2 | AA29: 1 | AB29: 1 | AC29: 1 | AZ29: 1 | BA29: =IF(AZ29=1,G29,0) -> 0 | BB29: =IF(AZ29=2,G29,0) -> 0 | BC29: =IF(AZ29=3,G29,0) -> 0 | BD29: =IF(AZ29=4,G29,0) -> 0 | BE29: =IF(AZ29=5,G29,0) -> 0 | CA29: 1 | CB29: 1
C30: Položka obsahuje hloubení jámy traktorbagrem, naložení výkopku na dopravní prostředek pro svislé, nebo vodorovné přemístění, popř. přemístění výkopku do 3 m (po povrchu území), případné zajištění rypadel polštáři, udržování pracoviště a ochranu výkopiště proti stékání srážkové vody z okolního terénu i s jejím odvodněním, nebo odvedením, přesekání a odstranění kořenů ve výkopišti, odstranění napadávek, urovnání dna výkopu. | L30: Položka obsahuje hloubení jámy traktorbagrem, naložení výkopku na dopravní prostředek pro svislé, nebo vodorovné přemístění, popř. přemístění výkopku do 3 m (po povrchu území), případné zajištění rypadel polštáři, udržování pracoviště a ochranu výkopiště proti stékání srážkové vody z okolního terénu i s jejím odvodněním, nebo odvedením, přesekání a odstranění kořenů ve výkopišti, odstranění napadávek, urovnání dna výkopu. | O30: 3
C31: V hornině tř. 4: | E31: 0 | M31: V hornině tř. 4:
C32: ČSOV - A :161,1785*0,12 | E32: 19.3414 | M32: ČSOV - A :161,1785*0,12
C33: ČSOV - C:179,4305*0,0 | E33: 0 | M33: ČSOV - C:179,4305*0,0
A34: 7 | B34: 131301209R00 | C34: Příplatek za lepivost - hloubení zapaž.jam v hor.4 | D34: m3 | E34: 9.6707 | G34: =E34*F34 -> 0 | H34: 0 | I34: =E34*H34 -> 0 | J34: 0 | K34: =E34*J34 -> 0 | O34: 2 | AA34: 1 | AB34: 1 | AC34: 1 | AZ34: 1 | BA34: =IF(AZ34=1,G34,0) -> 0 | BB34: =IF(AZ34=2,G34,0) -> 0 | BC34: =IF(AZ34=3,G34,0) -> 0 | BD34: =IF(AZ34=4,G34,0) -> 0 | BE34: =IF(AZ34=5,G34,0) -> 0 | CA34: 1 | CB34: 1
C35: V hornině tř. 4: | E35: 0 | M35: V hornině tř. 4:
C36: ČSOV - A :161,1785*0,12*0,5 | E36: 9.6707 | M36: ČSOV - A :161,1785*0,12*0,5
C37: ČSOV - C:179,4305*0,0*0,5 | E37: 0 | M37: ČSOV - C:179,4305*0,0*0,5
A38: 8 | B38: 131401202RRX | C38: Hloubení zapažených jam v hor.5 do 1000 m3,STROJNĚ | D38: m3 | E38: 199.53 | G38: =E38*F38 -> 0 | H38: 0.00829 | I38: =E38*H38 -> 1.6541037 | J38: 0 | K38: =E38*J38 -> 0 | O38: 2 | AA38: 1 | AB38: 1 | AC38: 1 | AZ38: 1 | BA38: =IF(AZ38=1,G38,0) -> 0 | BB38: =IF(AZ38=2,G38,0) -> 0 | BC38: =IF(AZ38=3,G38,0) -> 0 | BD38: =IF(AZ38=4,G38,0) -> 0 | BE38: =IF(AZ38=5,G38,0) -> 0 | CA38: 1 | CB38: 1
C39: Položka obsahuje strojní hloubení jámy , naložení výkopku na dopravní prostředek pro svislé, nebo vodorovné přemístění, popř. přemístění výkopku do 3 m (po povrchu území), případné zajištění rypadel polštáři, udržování pracoviště a ochranu výkopiště proti stékání srážkové vody z okolního terénu i s jejím odvodněním, nebo odvedením, přesekání a odstranění kořenů ve výkopišti, odstranění napadávek, urovnání dna výkopu. | L39: Položka obsahuje strojní hloubení jámy , naložení výkopku na dopravní prostředek pro svislé, nebo vodorovné přemístění, popř. přemístění výkopku do 3 m (po povrchu území), případné zajištění rypadel polštáři, udržování pracoviště a ochranu výkopiště proti stékání srážkové vody z okolního terénu i s jejím odvodněním, nebo odvedením, přesekání a odstranění kořenů ve výkopišti, odstranění napadávek, urovnání dna výkopu. | O39: 3
C40: Součástí položky je i případné dolamování horniny v prostoru zapažené jámy | L40: Součástí položky je i případné dolamování horniny v prostoru zapažené jámy | O40: 3
C41: V hornině tř. 5: | E41: 0 | M41: V hornině tř. 5:
C42: ČSOV - A :161,1785*0,57 | E42: 91.8717 | M42: ČSOV - A :161,1785*0,57
C43: ČSOV - C:179,4305*0,60 | E43: 107.6583 | M43: ČSOV - C:179,4305*0,60
A44: 9 | B44: 131501202RRX | C44: Hloubení zapažených jam v hor.6 do 1000 m3,STROJNĚ | D44: m3 | E44: 36.4028 | G44: =E44*F44 -> 0 | H44: 0.01538 | I44: =E44*H44 -> 0.559875064 | J44: 0 | K44: =E44*J44 -> 0 | O44: 2 | AA44: 1 | AB44: 1 | AC44: 1 | AZ44: 1 | BA44: =IF(AZ44=1,G44,0) -> 0 | BB44: =IF(AZ44=2,G44,0) -> 0 | BC44: =IF(AZ44=3,G44,0) -> 0 | BD44: =IF(AZ44=4,G44,0) -> 0 | BE44: =IF(AZ44=5,G44,0) -> 0 | CA44: 1 | CB44: 1
C45: Položka obsahuje strojní hloubení jámy , naložení výkopku na dopravní prostředek pro svislé, nebo vodorovné přemístění, popř. přemístění výkopku do 3 m (po povrchu území), případné zajištění rypadel polštáři, udržování pracoviště a ochranu výkopiště proti stékání srážkové vody z okolního terénu i s jejím odvodněním, nebo odvedením, přesekání a odstranění kořenů ve výkopišti, odstranění napadávek, urovnání dna výkopu. | L45: Položka obsahuje strojní hloubení jámy , naložení výkopku na dopravní prostředek pro svislé, nebo vodorovné přemístění, popř. přemístění výkopku do 3 m (po povrchu území), případné zajištění rypadel polštáři, udržování pracoviště a ochranu výkopiště proti stékání srážkové vody z okolního terénu i s jejím odvodněním, nebo odvedením, přesekání a odstranění kořenů ve výkopišti, odstranění napadávek, urovnání dna výkopu. | O45: 3
C46: Součástí položky je i případné dolamování horniny v prostoru zapažené jámy | L46: Součástí položky je i případné dolamování horniny v prostoru zapažené jámy | O46: 3
C47: V hornině tř. 6: | E47: 0 | M47: V hornině tř. 6:
C48: ČSOV - A :161,1785*0,07 | E48: 11.2825 | M48: ČSOV - A :161,1785*0,07
C49: ČSOV - C:179,4305*0,14 | E49: 25.1203 | M49: ČSOV - C:179,4305*0,14
A50: 10 | B50: 151811999RRX | C50: Pažení dle PD a zvolené technologie zhotovitelem | D50: m2 | E50: 63.68 | G50: =E50*F50 -> 0 | H50: 0 | I50: =E50*H50 -> 0 | J50: 0 | K50: =E50*J50 -> 0 | O50: 2 | AA50: 1 | AB50: 1 | AC50: 1 | AZ50: 1 | BA50: =IF(AZ50=1,G50,0) -> 0 | BB50: =IF(AZ50=2,G50,0) -> 0 | BC50: =IF(AZ50=3,G50,0) -> 0 | BD50: =IF(AZ50=4,G50,0) -> 0 | BE50: =IF(AZ50=5,G50,0) -> 0 | CA50: 1 | CB50: 1
C51: ČSOV - A :27,16 | E51: 27.16 | M51: ČSOV - A :27,16
C52: ČSOV - C:36,52 | E52: 36.52 | M52: ČSOV - C:36,52
A53: 11 | B53: 162601102RX0 | C53: Vodorovné přemístění výkopku z hor.1-7 na skládku zhotovitele | D53: m3 | E53: 90.9366 | G53: =E53*F53 -> 0 | H53: 0 | I53: =E53*H53 -> 0 | J53: 0 | K53: =E53*J53 -> 0 | O53: 2 | AA53: 1 | AB53: 1 | AC53: 1 | AZ53: 1 | BA53: =IF(AZ53=1,G53,0) -> 0 | BB53: =IF(AZ53=2,G53,0) -> 0 | BC53: =IF(AZ53=3,G53,0) -> 0 | BD53: =IF(AZ53=4,G53,0) -> 0 | BE53: =IF(AZ53=5,G53,0) -> 0 | CA53: 1 | CB53: 1
C54: Výkopy: | E54: 0 | M54: Výkopy:
C55: Začátek provozního součtu | E55: 0 | M55: Začátek provozního součtu
C56: ČSOV - A :161,1785 | E56: 161.1785 | M56: ČSOV - A :161,1785
C57: ČSOV - C:179,4305 | E57: 179.4305 | M57: ČSOV - C:179,4305
C58: Konec provozního součtu | E58: 340.609 | M58: Konec provozního součtu
C59: V hornině tř. 2 - 6:340,6090 | E59: 340.609 | M59: V hornině tř. 2 - 6:340,6090
C60: Odkopávky: | E60: 0 | M60: Odkopávky:
C61: ČSOV - A - napojení na komunikaci:9,10 | E61: 9.1 | M61: ČSOV - A - napojení na komunikaci:9,10
C62: ČSOV - C - napojení na komunikaci:10,90 | E62: 10.9 | M62: ČSOV - C - napojení na komunikaci:10,90
C63: Odpočet zásypů a obsypů zeminou:-269,6724 | E63: -269.6724 | M63: Odpočet zásypů a obsypů zeminou:-269,6724
A64: 12 | B64: 175200010RAA | C64: Obsyp objektu prohozenou zeminou dovoz zeminy ze vzdálenosti 50 m | D64: m3 | E64: 269.6724 | G64: =E64*F64 -> 0 | H64: 0 | I64: =E64*H64 -> 0 | J64: 0 | K64: =E64*J64 -> 0 | O64: 2 | AA64: 1 | AB64: 1 | AC64: 1 | AZ64: 1 | BA64: =IF(AZ64=1,G64,0) -> 0 | BB64: =IF(AZ64=2,G64,0) -> 0 | BC64: =IF(AZ64=3,G64,0) -> 0 | BD64: =IF(AZ64=4,G64,0) -> 0 | BE64: =IF(AZ64=5,G64,0) -> 0 | CA64: 1 | CB64: 1
C65: Včetně hutnění obsypů | L65: Včetně hutnění obsypů | O65: 3
C66: Výkopy: | E66: 0 | M66: Výkopy:
C67: Začátek provozního součtu | E67: 0 | M67: Začátek provozního součtu
C68: ČSOV - A :161,1785 | E68: 161.1785 | M68: ČSOV - A :161,1785
C69: ČSOV - C:179,4305 | E69: 179.4305 | M69: ČSOV - C:179,4305
C70: Konec provozního součtu | E70: 340.609 | M70: Konec provozního součtu
C71: V hornině tř. 2 - 6:340,6090 | E71: 340.609 | M71: V hornině tř. 2 - 6:340,6090
C72: Odpočet objemu konstrukcí: | E72: 0 | M72: Odpočet objemu konstrukcí:
C73: ČSOV - A :-32,2159 | E73: -32.2159 | M73: ČSOV - A :-32,2159
C74: ČSOV - C:-38,7207 | E74: -38.7207 | M74: ČSOV - C:-38,7207
A75: 13 | B75: 181101102R00 | C75: Úprava pláně v zářezech v hor. 1-4, se zhutněním | D75: m2 | E75: 320 | G75: =E75*F75 -> 0 | H75: 0 | I75: =E75*H75 -> 0 | J75: 0 | K75: =E75*J75 -> 0 | O75: 2 | AA75: 1 | AB75: 1 | AC75: 1 | AZ75: 1 | BA75: =IF(AZ75=1,G75,0) -> 0 | BB75: =IF(AZ75=2,G75,0) -> 0 | BC75: =IF(AZ75=3,G75,0) -> 0 | BD75: =IF(AZ75=4,G75,0) -> 0 | BE75: =IF(AZ75=5,G75,0) -> 0 | CA75: 1 | CB75: 1
C76: ČSOV - A:50,00 | E76: 50 | M76: ČSOV - A:50,00
C77: ČSOV - C:50,00 | E77: 50 | M77: ČSOV - C:50,00
C78: ČSOV - A - napojení na komunikaci:110,00 | E78: 110 | M78: ČSOV - A - napojení na komunikaci:110,00
C79: ČSOB - C - napojení na komunikaci:110,00 | E79: 110 | M79: ČSOB - C - napojení na komunikaci:110,00
A80: 14 | B80: 182300010RAB | C80: Rozprostření ornice ve svahu tloušťka 15 cm dovoz ornice ze vzdálenosti 1km, osetí trávou | D80: m2 | E80: 506.5 | G80: =E80*F80 -> 0 | H80: 3e-05 | I80: =E80*H80 -> 0.015195 | J80: 0 | K80: =E80*J80 -> 0 | O80: 2 | AA80: 1 | AB80: 1 | AC80: 1 | AZ80: 1 | BA80: =IF(AZ80=1,G80,0) -> 0 | BB80: =IF(AZ80=2,G80,0) -> 0 | BC80: =IF(AZ80=3,G80,0) -> 0 | BD80: =IF(AZ80=4,G80,0) -> 0 | BE80: =IF(AZ80=5,G80,0) -> 0 | CA80: 1 | CB80: 1
C81: ČSOV - A:284,00 | E81: 284 | M81: ČSOV - A:284,00
C82: ČSOV - C:222,50 | E82: 222.5 | M82: ČSOV - C:222,50
A83: 15 | B83: 199000002RX0 | C83: Poplatek za skládku horniny 1- 7 | D83: m3 | E83: 90.9366 | G83: =E83*F83 -> 0 | H83: 0 | I83: =E83*H83 -> 0 | J83: 0 | K83: =E83*J83 -> 0 | O83: 2 | AA83: 1 | AB83: 1 | AC83: 1 | AZ83: 1 | BA83: =IF(AZ83=1,G83,0) -> 0 | BB83: =IF(AZ83=2,G83,0) -> 0 | BC83: =IF(AZ83=3,G83,0) -> 0 | BD83: =IF(AZ83=4,G83,0) -> 0 | BE83: =IF(AZ83=5,G83,0) -> 0 | CA83: 1 | CB83: 1
C84: Výkopy: | E84: 0 | M84: Výkopy:
C85: Začátek provozního součtu | E85: 0 | M85: Začátek provozního součtu
C86: ČSOV - A :161,1785 | E86: 161.1785 | M86: ČSOV - A :161,1785
C87: ČSOV - C:179,4305 | E87: 179.4305 | M87: ČSOV - C:179,4305
C88: Konec provozního součtu | E88: 340.609 | M88: Konec provozního součtu
C89: V hornině tř. 2 - 6:340,6090 | E89: 340.609 | M89: V hornině tř. 2 - 6:340,6090
C90: Odkopávky: | E90: 0 | M90: Odkopávky:
C91: ČSOV - A - napojení na komunikaci:9,10 | E91: 9.1 | M91: ČSOV - A - napojení na komunikaci:9,10
C92: ČSOV - C - napojení na komunikaci:10,90 | E92: 10.9 | M92: ČSOV - C - napojení na komunikaci:10,90
C93: Odpočet zásypů a obsypů zeminou:-269,6724 | E93: -269.6724 | M93: Odpočet zásypů a obsypů zeminou:-269,6724
B94: Celkem za | C94: 1 Zemní práce | G94: =SUM(G7:G93) -> 0 | I94: =SUM(I7:I93) -> 2.229173764 | K94: =SUM(K7:K93) -> 0 | O94: 4 | BA94: =SUM(BA7:BA93) -> 0 | BB94: =SUM(BB7:BB93) -> 0 | BC94: =SUM(BC7:BC93) -> 0 | BD94: =SUM(BD7:BD93) -> 0 | BE94: =SUM(BE7:BE93) -> 0
A95: Díl: | B95: 21 | C95: Úprava podloží a základ.spáry | O95: 1
A96: 16 | B96: 271571111R00 | C96: Polštář základu ze štěrkopísku tříděného | D96: m3 | E96: 7.722 | G96: =E96*F96 -> 0 | H96: 1.9397 | I96: =E96*H96 -> 14.9783634 | J96: 0 | K96: =E96*J96 -> 0 | O96: 2 | AA96: 1 | AB96: 1 | AC96: 1 | AZ96: 1 | BA96: =IF(AZ96=1,G96,0) -> 0 | BB96: =IF(AZ96=2,G96,0) -> 0 | BC96: =IF(AZ96=3,G96,0) -> 0 | BD96: =IF(AZ96=4,G96,0) -> 0 | BE96: =IF(AZ96=5,G96,0) -> 0 | CA96: 1 | CB96: 1
C97: ČSOV - A:3,861 | E97: 3.861 | M97: ČSOV - A:3,861
C98: ČSOV - C:3,861 | E98: 3.861 | M98: ČSOV - C:3,861
B99: Celkem za | C99: 21 Úprava podloží a základ.spáry | G99: =SUM(G95:G98) -> 0 | I99: =SUM(I95:I98) -> 14.9783634 | K99: =SUM(K95:K98) -> 0 | O99: 4 | BA99: =SUM(BA95:BA98) -> 0 | BB99: =SUM(BB95:BB98) -> 0 | BC99: =SUM(BC95:BC98) -> 0 | BD99: =SUM(BD95:BD98) -> 0 | BE99: =SUM(BE95:BE98) -> 0
A100: Díl: | B100: 38 | C100: Kompletní konstrukce | O100: 1
A101: 17 | B101: 388 21-0001.SUB | C101: D+M zděného elektropilíře pro ČSOV - A dle PD | D101: soubor | E101: 1 | G101: =E101*F101 -> 0 | H101: 5.85 | I101: =E101*H101 -> 5.85 | K101: =E101*J101 -> 0 | O101: 2 | AA101: 11 | AB101: 3 | AC101: 1 | AZ101: 1 | BA101: =IF(AZ101=1,G101,0) -> 0 | BB101: =IF(AZ101=2,G101,0) -> 0 | BC101: =IF(AZ101=3,G101,0) -> 0 | BD101: =IF(AZ101=4,G101,0) -> 0 | BE101: =IF(AZ101=5,G101,0) -> 0 | CA101: 11 | CB101: 3
C102: Součástí položky je dodávka elektrochrániček dle PD | L102: Součástí položky je dodávka elektrochrániček dle PD | O102: 3
A103: 18 | B103: 388 21-0002.SUB | C103: D+M zděného elektropilíře pro ČSOV - C dle PD | D103: soubor | E103: 1 | G103: =E103*F103 -> 0 | H103: 5.85 | I103: =E103*H103 -> 5.85 | K103: =E103*J103 -> 0 | O103: 2 | AA103: 11 | AB103: 3 | AC103: 2 | AZ103: 1 | BA103: =IF(AZ103=1,G103,0) -> 0 | BB103: =IF(AZ103=2,G103,0) -> 0 | BC103: =IF(AZ103=3,G103,0) -> 0 | BD103: =IF(AZ103=4,G103,0) -> 0 | BE103: =IF(AZ103=5,G103,0) -> 0 | CA103: 11 | CB103: 3
C104: Součástí položky je dodávka elektrochrániček dle PD | L104: Součástí položky je dodávka elektrochrániček dle PD | O104: 3
A105: 19 | B105: 388 38-0001.SUB | C105: D+M Armaturní ŽB šachty ČSOV - A dle PD Průměr DN150, H 3,01m | D105: soubor | E105: 1 | G105: =E105*F105 -> 0 | H105: 7.81 | I105: =E105*H105 -> 7.81 | K105: =E105*J105 -> 0 | O105: 2 | AA105: 11 | AB105: 3 | AC105: 3 | AZ105: 1 | BA105: =IF(AZ105=1,G105,0) -> 0 | BB105: =IF(AZ105=2,G105,0) -> 0 | BC105: =IF(AZ105=3,G105,0) -> 0 | BD105: =IF(AZ105=4,G105,0) -> 0 | BE105: =IF(AZ105=5,G105,0) -> 0 | CA105: 11 | CB105: 3
C106: Součástí položky je dodávka a montáž ŽB nádrže včetně poklopu a doplňkových konstrukcí a prací (žebřík, poklopy, izolace , a pod.) dle TZ a výkresocé dokumentace. | L106: Součástí položky je dodávka a montáž ŽB nádrže včetně poklopu a doplňkových konstrukcí a prací (žebřík, poklopy, izolace , a pod.) dle TZ a výkresocé dokumentace. | O106: 3
A107: 20 | B107: 388 38-0002.SUB | C107: D+M Armaturní ŽB šachty ČSOV - C dle PD Průměr DN150, H 3,01 m | D107: soubor | E107: 1 | G107: =E107*F107 -> 0 | H107: 7.81 | I107: =E107*H107 -> 7.81 | K107: =E107*J107 -> 0 | O107: 2 | AA107: 11 | AB107: 3 | AC107: 4 | AZ107: 1 | BA107: =IF(AZ107=1,G107,0) -> 0 | BB107: =IF(AZ107=2,G107,0) -> 0 | BC107: =IF(AZ107=3,G107,0) -> 0 | BD107: =IF(AZ107=4,G107,0) -> 0 | BE107: =IF(AZ107=5,G107,0) -> 0 | CA107: 11 | CB107: 3
C108: Součástí položky je dodávka a montáž ŽB nádrže včetně poklopu a doplňkových konstrukcí a prací (žebřík, poklopy, izolace , a pod.) dle TZ a výkresocé dokumentace. | L108: Součástí položky je dodávka a montáž ŽB nádrže včetně poklopu a doplňkových konstrukcí a prací (žebřík, poklopy, izolace , a pod.) dle TZ a výkresocé dokumentace. | O108: 3
A109: 21 | B109: 388 38-0011.SUB | C109: D+M ŽB čerpací šachty ČSOV - A dle PD Průměr DN250, H 4,66 m | D109: soubor | E109: 1 | G109: =E109*F109 -> 0 | H109: 20.03 | I109: =E109*H109 -> 20.03 | K109: =E109*J109 -> 0 | O109: 2 | AA109: 11 | AB109: 3 | AC109: 5 | AZ109: 1 | BA109: =IF(AZ109=1,G109,0) -> 0 | BB109: =IF(AZ109=2,G109,0) -> 0 | BC109: =IF(AZ109=3,G109,0) -> 0 | BD109: =IF(AZ109=4,G109,0) -> 0 | BE109: =IF(AZ109=5,G109,0) -> 0 | CA109: 11 | CB109: 3
C110: Součástí položky je dodávka a montáž ŽB nádrže včetně poklopu a doplňkových konstrukcí a prací (žebřík, madla, poklopy, izolace , a pod.) dle TZ a výkresocé dokumentace. | L110: Součástí položky je dodávka a montáž ŽB nádrže včetně poklopu a doplňkových konstrukcí a prací (žebřík, madla, poklopy, izolace , a pod.) dle TZ a výkresocé dokumentace. | O110: 3
C111: Součástí položky je i propojovací potrubí mezi ČS a AŠ a ČS a SŠ | L111: Součástí položky je i propojovací potrubí mezi ČS a AŠ a ČS a SŠ | O111: 3
A112: 22 | B112: 388 38-0012.SUB | C112: D+M ŽB čerpací šachty ČSOV - C dle PD Průměr DN250, H 4,71 m | D112: soubor | E112: 1 | G112: =E112*F112 -> 0 | H112: 21.49 | I112: =E112*H112 -> 21.49 | K112: =E112*J112 -> 0 | O112: 2 | AA112: 11 | AB112: 3 | AC112: 6 | AZ112: 1 | BA112: =IF(AZ112=1,G112,0) -> 0 | BB112: =IF(AZ112=2,G112,0) -> 0 | BC112: =IF(AZ112=3,G112,0) -> 0 | BD112: =IF(AZ112=4,G112,0) -> 0 | BE112: =IF(AZ112=5,G112,0) -> 0 | CA112: 11 | CB112: 3
C113: Součástí položky je dodávka a montáž ŽB nádrže včetně poklopu a doplňkových konstrukcí a prací (žebřík, madla, poklopy, izolace , a pod.) dle TZ a výkresocé dokumentace. | L113: Součástí položky je dodávka a montáž ŽB nádrže včetně poklopu a doplňkových konstrukcí a prací (žebřík, madla, poklopy, izolace , a pod.) dle TZ a výkresocé dokumentace. | O113: 3
C114: Součástí položky je i propojovací potrubí mezi ČS a AŠ a ČS a SŠ | L114: Součástí položky je i propojovací potrubí mezi ČS a AŠ a ČS a SŠ | O114: 3
A115: 23 | B115: 388 38-0021.SUB | C115: D+M Sedimentační šachty ČSOV - A dle PD Průměr DN100, H 3,455 m | D115: soubor | E115: 1 | G115: =E115*F115 -> 0 | H115: 6.5 | I115: =E115*H115 -> 6.5 | K115: =E115*J115 -> 0 | O115: 2 | AA115: 11 | AB115: 3 | AC115: 7 | AZ115: 1 | BA115: =IF(AZ115=1,G115,0) -> 0 | BB115: =IF(AZ115=2,G115,0) -> 0 | BC115: =IF(AZ115=3,G115,0) -> 0 | BD115: =IF(AZ115=4,G115,0) -> 0 | BE115: =IF(AZ115=5,G115,0) -> 0 | CA115: 11 | CB115: 3
C116: Součástí položky je dodávka a montáž betonové šachty včetně poklopu a doplňkových konstrukcí a prací dle TZ a výkresocé dokumentace. | L116: Součástí položky je dodávka a montáž betonové šachty včetně poklopu a doplňkových konstrukcí a prací dle TZ a výkresocé dokumentace. | O116: 3
A117: 24 | B117: 388 38-0022.SUB | C117: D+M Sedimentační šachty ČSOV - C dle PD Průměr DN100, H 4,07 m | D117: soubor | E117: 1 | G117: =E117*F117 -> 0 | H117: 6.1 | I117: =E117*H117 -> 6.1 | K117: =E117*J117 -> 0 | O117: 2 | AA117: 11 | AB117: 3 | AC117: 8 | AZ117: 1 | BA117: =IF(AZ117=1,G117,0) -> 0 | BB117: =IF(AZ117=2,G117,0) -> 0 | BC117: =IF(AZ117=3,G117,0) -> 0 | BD117: =IF(AZ117=4,G117,0) -> 0 | BE117: =IF(AZ117=5,G117,0) -> 0 | CA117: 11 | CB117: 3
C118: Součástí položky je dodávka a montáž betonové šachty včetně poklopu a doplňkových konstrukcí a prací dle TZ a výkresocé dokumentace. | L118: Součástí položky je dodávka a montáž betonové šachty včetně poklopu a doplňkových konstrukcí a prací dle TZ a výkresocé dokumentace. | O118: 3
B119: Celkem za | C119: 38 Kompletní konstrukce | G119: =SUM(G100:G118) -> 0 | I119: =SUM(I100:I118) -> 81.44 | K119: =SUM(K100:K118) -> 0 | O119: 4 | BA119: =SUM(BA100:BA118) -> 0 | BB119: =SUM(BB100:BB118) -> 0 | BC119: =SUM(BC100:BC118) -> 0 | BD119: =SUM(BD100:BD118) -> 0 | BE119: =SUM(BE100:BE118) -> 0
A120: Díl: | B120: 5 | C120: Komunikace | O120: 1
A121: 25 | B121: 561471126RRX | C121: Podklad ze zeminy - stabilizace vápnem množství pojiva 3% | D121: m2 | E121: 220 | G121: =E121*F121 -> 0 | H121: 0.02058 | I121: =E121*H121 -> 4.5276 | J121: 0 | K121: =E121*J121 -> 0 | O121: 2 | AA121: 1 | AB121: 0 | AC121: 0 | AZ121: 1 | BA121: =IF(AZ121=1,G121,0) -> 0 | BB121: =IF(AZ121=2,G121,0) -> 0 | BC121: =IF(AZ121=3,G121,0) -> 0 | BD121: =IF(AZ121=4,G121,0) -> 0 | BE121: =IF(AZ121=5,G121,0) -> 0 | CA121: 1 | CB121: 0
C122: ČSOV - A - napojení na komunikaci:110,00 | E122: 110 | M122: ČSOV - A - napojení na komunikaci:110,00
C123: ČSOV - C - napojení na komunikaci:110,00 | E123: 110 | M123: ČSOV - C - napojení na komunikaci:110,00
A124: 26 | B124: 564113505R00 | C124: Podklad z asf.recyklátu fr. 0-32 po zhutn.tl.5 cm | D124: m2 | E124: 188 | G124: =E124*F124 -> 0 | H124: 0.105 | I124: =E124*H124 -> 19.74 | J124: 0 | K124: =E124*J124 -> 0 | O124: 2 | AA124: 1 | AB124: 1 | AC124: 1 | AZ124: 1 | BA124: =IF(AZ124=1,G124,0) -> 0 | BB124: =IF(AZ124=2,G124,0) -> 0 | BC124: =IF(AZ124=3,G124,0) -> 0 | BD124: =IF(AZ124=4,G124,0) -> 0 | BE124: =IF(AZ124=5,G124,0) -> 0 | CA124: 1 | CB124: 1
C125: ČSOV - A - napojení na komunikaci:93,00 | E125: 93 | M125: ČSOV - A - napojení na komunikaci:93,00
C126: ČSOV - C - napojení na komunikaci:95,00 | E126: 95 | M126: ČSOV - C - napojení na komunikaci:95,00
A127: 27 | B127: 564231111R00 | C127: Podklad ze štěrkopísku po zhutnění tloušťky 10 cm | D127: m2 | E127: 92 | G127: =E127*F127 -> 0 | H127: 0.2024 | I127: =E127*H127 -> 18.6208 | J127: 0 | K127: =E127*J127 -> 0 | O127: 2 | AA127: 1 | AB127: 1 | AC127: 1 | AZ127: 1 | BA127: =IF(AZ127=1,G127,0) -> 0 | BB127: =IF(AZ127=2,G127,0) -> 0 | BC127: =IF(AZ127=3,G127,0) -> 0 | BD127: =IF(AZ127=4,G127,0) -> 0 | BE127: =IF(AZ127=5,G127,0) -> 0 | CA127: 1 | CB127: 1
C128: ČSOV - A:46,00 | E128: 46 | M128: ČSOV - A:46,00
C129: ČSOV - C:46,00 | E129: 46 | M129: ČSOV - C:46,00
A130: 28 | B130: 564761111R00 | C130: Podklad z kameniva drceného vel.32-63 mm,tl. 20 cm | D130: m2 | E130: 92 | G130: =E130*F130 -> 0 | H130: 0.43 | I130: =E130*H130 -> 39.56 | J130: 0 | K130: =E130*J130 -> 0 | O130: 2 | AA130: 1 | AB130: 1 | AC130: 1 | AZ130: 1 | BA130: =IF(AZ130=1,G130,0) -> 0 | BB130: =IF(AZ130=2,G130,0) -> 0 | BC130: =IF(AZ130=3,G130,0) -> 0 | BD130: =IF(AZ130=4,G130,0) -> 0 | BE130: =IF(AZ130=5,G130,0) -> 0 | CA130: 1 | CB130: 1
C131: ČSOV - A:46,00 | E131: 46 | M131: ČSOV - A:46,00
C132: ČSOV - C:46,00 | E132: 46 | M132: ČSOV - C:46,00
A133: 29 | B133: 564772111R00 | C133: Podklad z kam.drceného 32-63 s výplň.kamen. 25 cm | D133: m2 | E133: 221 | G133: =E133*F133 -> 0 | H133: 0.60104 | I133: =E133*H133 -> 132.82984 | J133: 0 | K133: =E133*J133 -> 0 | O133: 2 | AA133: 1 | AB133: 1 | AC133: 1 | AZ133: 1 | BA133: =IF(AZ133=1,G133,0) -> 0 | BB133: =IF(AZ133=2,G133,0) -> 0 | BC133: =IF(AZ133=3,G133,0) -> 0 | BD133: =IF(AZ133=4,G133,0) -> 0 | BE133: =IF(AZ133=5,G133,0) -> 0 | CA133: 1 | CB133: 1
C134: ČSOV - A - napojení na komunikaci:110,00 | E134: 110 | M134: ČSOV - A - napojení na komunikaci:110,00
C135: ČSOV - C - napojení na komunikaci:111,00 | E135: 111 | M135: ČSOV - C - napojení na komunikaci:111,00
A136: 30 | B136: 564831111RT4 | C136: Podklad ze štěrkodrti po zhutnění tloušťky 10 cm štěrkodrť frakce 0-63 mm | D136: m2 | E136: 184 | G136: =E136*F136 -> 0 | H136: 0.288 | I136: =E136*H136 -> 52.992 | J136: 0 | K136: =E136*J136 -> 0 | O136: 2 | AA136: 1 | AB136: 1 | AC136: 1 | AZ136: 1 | BA136: =IF(AZ136=1,G136,0) -> 0 | BB136: =IF(AZ136=2,G136,0) -> 0 | BC136: =IF(AZ136=3,G136,0) -> 0 | BD136: =IF(AZ136=4,G136,0) -> 0 | BE136: =IF(AZ136=5,G136,0) -> 0 | CA136: 1 | CB136: 1
C137: ČSOV - A:46,00*2 | E137: 92 | M137: ČSOV - A:46,00*2
C138: ČSOV - C:46,00*2 | E138: 92 | M138: ČSOV - C:46,00*2
A139: 31 | B139: 564841111RT2 | C139: Podklad ze štěrkodrti po zhutnění tloušťky 12 cm štěrkodrť frakce 0-32 mm | D139: m2 | E139: 202 | G139: =E139*F139 -> 0 | H139: 0.3024 | I139: =E139*H139 -> 61.0848 | J139: 0 | K139: =E139*J139 -> 0 | O139: 2 | AA139: 1 | AB139: 1 | AC139: 1 | AZ139: 1 | BA139: =IF(AZ139=1,G139,0) -> 0 | BB139: =IF(AZ139=2,G139,0) -> 0 | BC139: =IF(AZ139=3,G139,0) -> 0 | BD139: =IF(AZ139=4,G139,0) -> 0 | BE139: =IF(AZ139=5,G139,0) -> 0 | CA139: 1 | CB139: 1
C140: ČSOV - A - napojení na komunikaci:100,00 | E140: 100 | M140: ČSOV - A - napojení na komunikaci:100,00
C141: ČSOV - C - napojení na komunikaci:102,00 | E141: 102 | M141: ČSOV - C - napojení na komunikaci:102,00
A142: 32 | B142: 569903311R00 | C142: Zřízení zemních krajnic se zhutněním | D142: m3 | E142: 8.1 | G142: =E142*F142 -> 0 | H142: 0 | I142: =E142*H142 -> 0 | J142: 0 | K142: =E142*J142 -> 0 | O142: 2 | AA142: 1 | AB142: 1 | AC142: 1 | AZ142: 1 | BA142: =IF(AZ142=1,G142,0) -> 0 | BB142: =IF(AZ142=2,G142,0) -> 0 | BC142: =IF(AZ142=3,G142,0) -> 0 | BD142: =IF(AZ142=4,G142,0) -> 0 | BE142: =IF(AZ142=5,G142,0) -> 0 | CA142: 1 | CB142: 1
C143: ČSOV - A - napojení na komunikaci:4,10 | E143: 4.1 | M143: ČSOV - A - napojení na komunikaci:4,10
C144: ČSOV - C - napojení na komunikaci:4,00 | E144: 4 | M144: ČSOV - C - napojení na komunikaci:4,00
A145: 33 | B145: 573411115R00 | C145: Nátěr živičný s posypem, asfaltem sil., 1,8 kg/m2 | D145: m2 | E145: 372 | G145: =E145*F145 -> 0 | H145: 0.02653 | I145: =E145*H145 -> 9.86916 | J145: 0 | K145: =E145*J145 -> 0 | O145: 2 | AA145: 1 | AB145: 1 | AC145: 1 | AZ145: 1 | BA145: =IF(AZ145=1,G145,0) -> 0 | BB145: =IF(AZ145=2,G145,0) -> 0 | BC145: =IF(AZ145=3,G145,0) -> 0 | BD145: =IF(AZ145=4,G145,0) -> 0 | BE145: =IF(AZ145=5,G145,0) -> 0 | CA145: 1 | CB145: 1
C146: ČSOV - A - napojení na komunikaci:92,00*2 | E146: 184 | M146: ČSOV - A - napojení na komunikaci:92,00*2
C147: ČSOV - C - napojení na komunikaci:94,00*2 | E147: 188 | M147: ČSOV - C - napojení na komunikaci:94,00*2
A148: 34 | B148: 596245041R00 | C148: Kladení zámkové dlažby tl. 8 cm do MC tl. 5 cm | D148: m2 | E148: 92 | G148: =E148*F148 -> 0 | H148: 0.14958 | I148: =E148*H148 -> 13.76136 | J148: 0 | K148: =E148*J148 -> 0 | O148: 2 | AA148: 1 | AB148: 1 | AC148: 1 | AZ148: 1 | BA148: =IF(AZ148=1,G148,0) -> 0 | BB148: =IF(AZ148=2,G148,0) -> 0 | BC148: =IF(AZ148=3,G148,0) -> 0 | BD148: =IF(AZ148=4,G148,0) -> 0 | BE148: =IF(AZ148=5,G148,0) -> 0 | CA148: 1 | CB148: 1
C149: ČSOV - A:46,00 | E149: 46 | M149: ČSOV - A:46,00
C150: ČSOV - C:46,00 | E150: 46 | M150: ČSOV - C:46,00
A151: 35 | B151: 596291113R00 | C151: Řezání zámkové dlažby tl. 80 mm | D151: m | E151: 73.6 | G151: =E151*F151 -> 0 | H151: 0.00036 | I151: =E151*H151 -> 0.026496 | J151: 0 | K151: =E151*J151 -> 0 | O151: 2 | AA151: 1 | AB151: 1 | AC151: 1 | AZ151: 1 | BA151: =IF(AZ151=1,G151,0) -> 0 | BB151: =IF(AZ151=2,G151,0) -> 0 | BC151: =IF(AZ151=3,G151,0) -> 0 | BD151: =IF(AZ151=4,G151,0) -> 0 | BE151: =IF(AZ151=5,G151,0) -> 0 | CA151: 1 | CB151: 1
C152: ČSOV - A:46,00*0,8 | E152: 36.8 | M152: ČSOV - A:46,00*0,8
C153: ČSOV - C:46,00*0,8 | E153: 36.8 | M153: ČSOV - C:46,00*0,8
A154: 36 | B154: 916561111RT4 | C154: Osazení záhon.obrubníků do lože z C 12/15 s opěrou včetně obrubníku ABO 4 - 5 50/5/25 | D154: m | E154: 54 | G154: =E154*F154 -> 0 | H154: 0.12501 | I154: =E154*H154 -> 6.75054 | J154: 0 | K154: =E154*J154 -> 0 | O154: 2 | AA154: 1 | AB154: 1 | AC154: 1 | AZ154: 1 | BA154: =IF(AZ154=1,G154,0) -> 0 | BB154: =IF(AZ154=2,G154,0) -> 0 | BC154: =IF(AZ154=3,G154,0) -> 0 | BD154: =IF(AZ154=4,G154,0) -> 0 | BE154: =IF(AZ154=5,G154,0) -> 0 | CA154: 1 | CB154: 1
C155: ČSOV - A:27,00 | E155: 27 | M155: ČSOV - A:27,00
C156: ČSOV - C:27,00 | E156: 27 | M156: ČSOV - C:27,00
A157: 37 | B157: 5924511910 | C157: Dlažba zámková 20x20x8 cm přírodní | D157: m2 | E157: 93.84 | G157: =E157*F157 -> 0 | H157: 0.175 | I157: =E157*H157 -> 16.422 | K157: =E157*J157 -> 0 | O157: 2 | AA157: 3 | AB157: 1 | AC157: 5924511910 | AZ157: 1 | BA157: =IF(AZ157=1,G157,0) -> 0 | BB157: =IF(AZ157=2,G157,0) -> 0 | BC157: =IF(AZ157=3,G157,0) -> 0 | BD157: =IF(AZ157=4,G157,0) -> 0 | BE157: =IF(AZ157=5,G157,0) -> 0 | CA157: 3 | CB157: 1
C158: ČSOV - A:46,00*1,02 | E158: 46.92 | M158: ČSOV - A:46,00*1,02
C159: ČSOV - C:46,00*1,02 | E159: 46.92 | M159: ČSOV - C:46,00*1,02
B160: Celkem za | C160: 5 Komunikace | G160: =SUM(G120:G159) -> 0 | I160: =SUM(I120:I159) -> 376.184596 | K160: =SUM(K120:K159) -> 0 | O160: 4 | BA160: =SUM(BA120:BA159) -> 0 | BB160: =SUM(BB120:BB159) -> 0 | BC160: =SUM(BC120:BC159) -> 0 | BD160: =SUM(BD120:BD159) -> 0 | BE160: =SUM(BE120:BE159) -> 0
A161: Díl: | B161: 90 | C161: Oploceni | O161: 1
A162: 38 | B162: 900100001RAA | C162: Oplocení z drátěného pletiva, betonové sloupky asymetrická vrata šířky 412 cm, výška 1,60 m | D162: m | E162: 60 | G162: =E162*F162 -> 0 | H162: 0 | I162: =E162*H162 -> 0 | J162: 0 | K162: =E162*J162 -> 0 | O162: 2 | AA162: 1 | AB162: 1 | AC162: 1 | AZ162: 1 | BA162: =IF(AZ162=1,G162,0) -> 0 | BB162: =IF(AZ162=2,G162,0) -> 0 | BC162: =IF(AZ162=3,G162,0) -> 0 | BD162: =IF(AZ162=4,G162,0) -> 0 | BE162: =IF(AZ162=5,G162,0) -> 0 | CA162: 1 | CB162: 1
C163: Včetně základů pro sklopky a základového prahu pro vrata | L163: Včetně základů pro sklopky a základového prahu pro vrata | O163: 3
C164: ČSOV - A:30,00 | E164: 30 | M164: ČSOV - A:30,00
C165: ČSOV - C:30,00 | E165: 30 | M165: ČSOV - C:30,00
B166: Celkem za | C166: 90 Oploceni | G166: =SUM(G161:G165) -> 0 | I166: =SUM(I161:I165) -> 0 | K166: =SUM(K161:K165) -> 0 | O166: 4 | BA166: =SUM(BA161:BA165) -> 0 | BB166: =SUM(BB161:BB165) -> 0 | BC166: =SUM(BC161:BC165) -> 0 | BD166: =SUM(BD161:BD165) -> 0 | BE166: =SUM(BE161:BE165) -> 0
A167: Díl: | B167: 99 | C167: Staveništní přesun hmot | O167: 1
A168: 39 | B168: 998142251R00 | C168: Přesun hmot, nádrže betonové | D168: t | E168: 474.8321332 | G168: =E168*F168 -> 0 | H168: 0 | I168: =E168*H168 -> 0 | K168: =E168*J168 -> 0 | O168: 2 | AA168: 7 | AB168: 1 | AC168: 2 | AZ168: 1 | BA168: =IF(AZ168=1,G168,0) -> 0 | BB168: =IF(AZ168=2,G168,0) -> 0 | BC168: =IF(AZ168=3,G168,0) -> 0 | BD168: =IF(AZ168=4,G168,0) -> 0 | BE168: =IF(AZ168=5,G168,0) -> 0 | CA168: 7 | CB168: 1
B169: Celkem za | C169: 99 Staveništní přesun hmot | G169: =SUM(G167:G168) -> 0 | I169: =SUM(I167:I168) -> 0 | K169: =SUM(K167:K168) -> 0 | O169: 4 | BA169: =SUM(BA167:BA168) -> 0 | BB169: =SUM(BB167:BB168) -> 0 | BC169: =SUM(BC167:BC168) -> 0 | BD169: =SUM(BD167:BD168) -> 0 | BE169: =SUM(BE167:BE168) -> 0
A170: Díl: | B170: M21.6 | C170: Elektroinstalace a telemetrie | O170: 1
A171: 40 | B171: M21 10-0001.SUB | C171: D+M elektroinstalace ČSOV - A dle PD | D171: soubor | E171: 1 | F171: =SUM('304RD M21.6 Elektro ČSOV A'!G32:H32) -> 0 | G171: =E171*F171 -> 0 | H171: 0 | I171: =E171*H171 -> 0 | K171: =E171*J171 -> 0 | O171: 2 | AA171: 11 | AB171: 1 | AC171: 9 | AZ171: 4 | BA171: =IF(AZ171=1,G171,0) -> 0 | BB171: =IF(AZ171=2,G171,0) -> 0 | BC171: =IF(AZ171=3,G171,0) -> 0 | BD171: =IF(AZ171=4,G171,0) -> 0 | BE171: =IF(AZ171=5,G171,0) -> 0 | CA171: 11 | CB171: 1
A172: 41 | B172: M21 10-0002.SUB | C172: D+M elektroinstalace ČSOV - C dle PD | D172: soubor | E172: 1 | F172: =SUM('304RD M21.6 Elektro ČSOV C'!G32:H32) -> 0 | G172: =E172*F172 -> 0 | H172: 0 | I172: =E172*H172 -> 0 | K172: =E172*J172 -> 0 | O172: 2 | AA172: 11 | AB172: 1 | AC172: 10 | AZ172: 4 | BA172: =IF(AZ172=1,G172,0) -> 0 | BB172: =IF(AZ172=2,G172,0) -> 0 | BC172: =IF(AZ172=3,G172,0) -> 0 | BD172: =IF(AZ172=4,G172,0) -> 0 | BE172: =IF(AZ172=5,G172,0) -> 0 | CA172: 11 | CB172: 1
B173: Celkem za | C173: M21.6 Elektroinstalace a telemetrie | G173: =SUM(G170:G172) -> 0 | I173: =SUM(I170:I172) -> 0 | K173: =SUM(K170:K172) -> 0 | O173: 4 | BA173: =SUM(BA170:BA172) -> 0 | BB173: =SUM(BB170:BB172) -> 0 | BC173: =SUM(BC170:BC172) -> 0 | BD173: =SUM(BD170:BD172) -> 0 | BE173: =SUM(BE170:BE172) -> 0
A174: Díl: | B174: M35.5 | C174: Montáže technologie čerpacích stanic a úpraven vod | O174: 1
A175: 42 | B175: M35 50-0001.SUB | C175: D+M technologie a čerpadel ČSOV - A dle PD | D175: soubor | E175: 1 | F175: =SUM('304RD M35.5 Technologie ČSOV A'!I43) -> 0 | G175: =E175*F175 -> 0 | H175: 0 | I175: =E175*H175 -> 0 | K175: =E175*J175 -> 0 | O175: 2 | AA175: 11 | AB175: 1 | AC175: 11 | AZ175: 4 | BA175: =IF(AZ175=1,G175,0) -> 0 | BB175: =IF(AZ175=2,G175,0) -> 0 | BC175: =IF(AZ175=3,G175,0) -> 0 | BD175: =IF(AZ175=4,G175,0) -> 0 | BE175: =IF(AZ175=5,G175,0) -> 0 | CA175: 11 | CB175: 1
A176: 43 | B176: M35 50-0002.SUB | C176: D+M technologie a čerpadel ČSOV - C dle PD | D176: soubor | E176: 1 | F176: =SUM('304RD M35.5 Technologie ČSOV C'!I43) -> 0 | G176: =E176*F176 -> 0 | H176: 0 | I176: =E176*H176 -> 0 | K176: =E176*J176 -> 0 | O176: 2 | AA176: 11 | AB176: 1 | AC176: 12 | AZ176: 4 | BA176: =IF(AZ176=1,G176,0) -> 0 | BB176: =IF(AZ176=2,G176,0) -> 0 | BC176: =IF(AZ176=3,G176,0) -> 0 | BD176: =IF(AZ176=4,G176,0) -> 0 | BE176: =IF(AZ176=5,G176,0) -> 0 | CA176: 11 | CB176: 1
B177: Celkem za | C177: M35.5 Montáže technologie čerpacích stanic a úpraven vod | G177: =SUM(G174:G176) -> 0 | I177: =SUM(I174:I176) -> 0 | K177: =SUM(K174:K176) -> 0 | O177: 4 | BA177: =SUM(BA174:BA176) -> 0 | BB177: =SUM(BB174:BB176) -> 0 | BC177: =SUM(BC174:BC176) -> 0 | BD177: =SUM(BD174:BD176) -> 0 | BE177: =SUM(BE174:BE176) -> 0

Sheet 304RD M21.6 Elektro ČSOV A
B1: 3232 Horní Slivno - Splašková kanalizace
B2: SO 304 ČERPACÍ STANICE
B3: SO 304 ČERPACÍ STANICE "A" - TECHNOLOGICKÁ ELEKTROINSTALACE
A5: Pol.č. | B5: Popis | C5: MJ | D5: počet MJ | E5: Cena za 1 MJ | G5: Celkem
E6: dodávka | F6: montáž | G6: dodávka | H6: montáž
A8: 1 | B8: Rozvaděč RM-A včetně vnitřního vybavení | C8: ks | D8: 1 | G8: =D8*E8 -> 0 | H8: =D8*F8 -> 0
A9: 2 | B9: Zásuvka kombinovaná 400VAC/32A/5p a 230VAC/16A nástěnná | C9: ks | D9: 1 | G9: =D9*E9 -> 0 | H9: =D9*F9 -> 0
A10: 3 | B10: Montáž převodníku magneticko - indukčního průtokoměru vedle rozvaděče RM-A, protažení kabelů mezi IP a převodníkem včetně připojeni | C10: ks | D10: 1 | G10: 0 | H10: 0
A11: 4 | B11: Ponorná tlaková sonda pro měření výšky hladiny včetně kabelu 10 m, plastové chráničky DN50 a nerezové konzole (např. LMP808, 411-6000-A-1-1-1-1-5-010-000, BD Sensors) | C11: ks | D11: 1 | G11: 0 | H11: 0
A12: 5 | B12: Plovákový spínač hladiny, výstup kontakt (např. MAC3 včetně 10 m kabelu a závaží, HYDROMETRICS) | C12: ks | D12: 1 | G12: 0 | H12: 0
A13: 6 | B13: Magnetický dveřní kontakt (např. SA200, JABLOTRON) | C13: ks | D13: 1 | G13: 0 | H13: 0
A14: 7 | B14: Magnetický dveřní kontakt průmyslový (např. SA204, JABLOTRON) | C14: ks | D14: 3 | G14: 0 | H14: 0
A15: 8 | B15: Svorkovnicková skříň malá pro dveřní kontakt včetně svorek a vývodek | C15: ks | D15: 2 | G15: 0 | H15: 0
A16: 9 | B16: Kabel CYKY J 4x10 | C16: m | D16: 5 | G16: 0 | H16: 0
A17: 10 | B17: Kabel CYKY J 5x4 | C17: m | D17: 5 | G17: 0 | H17: 0
A18: 10 | B18: Kabel CYKY J 5x2,5 | C18: m | D18: 15 | G18: 0 | H18: 0
A19: 11 | B19: Kabel JYTY 4x1,0 | C19: m | D19: 25 | G19: 0 | H19: 0
A20: 12 | B20: Korugovaná chránička 63/52 | C20: m | D20: 10 | G20: 0 | H20: 0
A21: 13 | B21: Protažení kabelů z čerpací jímky chráničkami, jejich ukončení a připojení | C21: sd | D21: 1 | G21: 0 | H21: 0
A22: 14 | B22: Utěsnění kabelových chrániček na straně jímek i na straně rozvaděče | C22: sd | D22: 1 | G22: 0 | H22: 0
A23: 15 | B23: Ochranné pospojení | C23: sd | D23: 1 | G23: 0 | H23: 0
A24: 16 | B24: Ostatní elektroinstalační a montážní materiál | C24: sd | D24: 1 | G24: 0 | H24: 0
A25: 17 | B25: Výchozí revizní zpráva | C25: sd | D25: 1 | G25: 0 | H25: 0
A26: 18 | B26: Dokumentace skutečného provedení | C26: sd | D26: 1 | G26: 0 | H26: 0
A27: 19 | B27: Zemnící soustava ČSOV-A (obvodový zemnič FeZn 30x4 včetně spojek a ostatního příslušenství) | C27: sd | D27: 1 | G27: 0 | H27: 0
A28: 20 | B28: Naprogramována a nastavení přenosu | C28: sd | D28: 1 | G28: 0 | H28: 0
A29: 21 | B29: Uvedení do provozu, zaškolení obsluhy | C29: sd | D29: 1 | G29: 0 | H29: 0
B31: Celkem | G31: =SUM(G7:G30) -> 0 | H31: =SUM(H7:H30) -> 0
B32: Celkem bez DPH | G32: =SUM(G31:H31) -> 0

Sheet 304RD M21.6 Elektro ČSOV C
B1: 3232 Horní Slivno - Splašková kanalizace
B2: SO 304 ČERPACÍ STANICE
B3: SO 304 ČERPACÍ STANICE "C" - TECHNOLOGICKÁ ELEKTROINSTALACE
A5: Pol.č. | B5: Popis | C5: MJ | D5: počet MJ | E5: Cena za 1 MJ | G5: Celkem
E6: dodávka | F6: montáž | G6: dodávka | H6: montáž
A8: 1 | B8: Rozvaděč RM-C včetně vnitřního vybavení | C8: ks | D8: 1 | G8: =D8*E8 -> 0 | H8: =D8*F8 -> 0
A9: 2 | B9: Zásuvka kombinovaná 400VAC/32A/5p a 230VAC/16A nástěnná | C9: ks | D9: 1 | G9: =D9*E9 -> 0 | H9: =D9*F9 -> 0
A10: 3 | B10: Montáž převodníku magneticko - indukčního průtokoměru vedle rozvaděče RM-C, protažení kabelů mezi IP a převodníkem včetně připojeni | C10: ks | D10: 1 | G10: 0 | H10: 0
A11: 4 | B11: Ponorná tlaková sonda pro měření výšky hladiny včetně kabelu 10 m, plastové chráničky DN50 a nerezové konzole (např. LMP808, 411-6000-A-1-1-1-1-5-010-000, BD Sensors) | C11: ks | D11: 1 | G11: 0 | H11: 0
A12: 5 | B12: Plovákový spínač hladiny, výstup kontakt (např. MAC3 včetně 10 m kabelu a závaží, HYDROMETRICS) | C12: ks | D12: 1 | G12: 0 | H12: 0
A13: 6 | B13: Magnetický dveřní kontakt (např. SA200, JABLOTRON) | C13: ks | D13: 1 | G13: 0 | H13: 0
A14: 7 | B14: Magnetický dveřní kontakt průmyslový (např. SA204, JABLOTRON) | C14: ks | D14: 3 | G14: 0 | H14: 0
A15: 8 | B15: Svorkovnicková skříň malá pro dveřní kontakt včetně svorek a vývodek | C15: ks | D15: 2 | G15: 0 | H15: 0
A16: 9 | B16: Kabel CYKY J 4x10 | C16: m | D16: 5 | G16: 0 | H16: 0
A17: 10 | B17: Kabel CYKY J 5x4 | C17: m | D17: 5 | G17: 0 | H17: 0
A18: 10 | B18: Kabel CYKY J 5x2,5 | C18: m | D18: 15 | G18: 0 | H18: 0
A19: 11 | B19: Kabel JYTY 4x1,0 | C19: m | D19: 25 | G19: 0 | H19: 0
A20: 12 | B20: Korugovaná chránička 63/52 | C20: m | D20: 10 | G20: 0 | H20: 0
A21: 13 | B21: Protažení kabelů z čerpací jímky chráničkami, jejich ukončení a připojení | C21: sd | D21: 1 | G21: 0 | H21: 0
A22: 14 | B22: Utěsnění kabelových chrániček na straně jímek i na straně rozvaděče | C22: sd | D22: 1 | G22: 0 | H22: 0
A23: 15 | B23: Ochranné pospojení | C23: sd | D23: 1 | G23: 0 | H23: 0
A24: 16 | B24: Ostatní elektroinstalační a montážní materiál | C24: sd | D24: 1 | G24: 0 | H24: 0
A25: 17 | B25: Výchozí revizní zpráva | C25: sd | D25: 1 | G25: 0 | H25: 0
A26: 18 | B26: Dokumentace skutečného provedení | C26: sd | D26: 1 | G26: 0 | H26: 0
A27: 19 | B27: Zemnící soustava ČSOV-C (obvodový zemnič FeZn 30x4 včetně spojek a ostatního příslušenství) | C27: sd | D27: 1 | G27: 0 | H27: 0
A28: 20 | B28: Naprogramována a nastavení přenosu | C28: sd | D28: 1 | G28: =D28*E28 -> 0 | H28: =D28*F28 -> 0
A29: 21 | B29: Uvedení do provozu, zaškolení obsluhy | C29: sd | D29: 1 | G29: 0 | H29: 0
B31: Celkem | G31: =SUM(G7:G30) -> 0 | H31: =SUM(H7:H30) -> 0
B32: Celkem bez DPH | G32: =SUM(G31:H31) -> 0

Sheet 304RD M35.5 Technologie ČSOV A
B1: 3232 Horní Slivno - Splašková kanalizace
B2: SO 304 ČERPACÍ STANICE
B3: SO 304 ČERPACÍ STANICE "A" - Technologie
A4: Položka | B4: Popis | C4: Měr. | D4: Množ. | E4: Jednotková cena (Kč) | G4: Cena dodávka | H4: Cena montáž | I4: Cena bez
B5: Podrobná technická specifikace zařízení a dodávek viz Technická zpráva a výkresová dokumentace | C5: jedn. | E5: dodávka | F5: montáž | G5: Kč | H5: Kč | I5: DPH v Kč
B6: Stroje
A7: =A6+1 -> 1 | B7: Záplavné čerpadlo D03U-SHH3+DEXQ2-GSEQ1AA+NC1B1NA-10-13,0kW | C7: Soubor | D7: 2 | G7: =E7*D7 -> 0 | H7: =F7*D7 -> 0 | I7: =E7*D7+F7*D7 -> 0
B8: Součástí dodávky sestavy dvou čerpadel je:
B9: Vodící brýle AS-03/03Q - 2 kusy
B10: Předrotační nádrž 1480 - PREROCLEAN Borna - 1 sada - pol. H
B11: Set PreroClean BORNA obsahuje:
B12: 1x Předrotaþní nádrž: sklolaminát
B13: 2x Patkové koleno DN 100
B14: 2x Horní držák vodících trubek
B15: Provedení: nerez
B16: Bez vodících trubek a kotevního materiálu
B17: Sací trychtýř ST DN100 (L=380mm) - 2 kusy
B18: Redukce patkového kolena z DN100 na DN80 pro PreroClean 1480 - 2 kusy
B19: Řetězy z korozivzdorné oceli V4A Řetěz ø 8 mm - 2 kusy nerezových řetězů v délce 6m, - celkem 12 m, včetně závěsu po 1m
B20: Nerezový šekl Šekl Ω ø 8 mm - 2 kusy
B21: Vyhodnocovací relé vlhkosti - 2 kusy
A22: 2 | B22: Spouštěcím zařízení pro čerpadla s vodícími trubkami z nerez. oceli dl. 4,00m | C22: soubor | D22: 2 | G22: =SUM(D22*E22) -> 0 | H22: =SUM(D22*F22) -> 0 | I22: =SUM(G22:H22) -> 0
A23: 3 | B23: Kompresor pro provzdušnění odpadní vody ve výtlaku za účelem eliminace sulfid. Stacionární nebo přenosný kompresor s kapacitou min. 220 l/min a tlakem 0,6 MPa. Vzduchovací hadice od kompresoru bude napojena na odbočku (návarek) TP kusu před výstupem výtlaku z armaturní šachty. | C23: soubor | D23: 1 | G23: =SUM(D23*E23) -> 0 | H23: =SUM(D23*F23) -> 0 | I23: =SUM(G23:H23) -> 0
B24: Tvarovky a armatury
B25: Tvárná litina
A26: 4 | B26: Příruba jištěná proti posunu pro PE potrubí, DN80/d90 PN16 | C26: kus | D26: 1 | G26: 0 | H26: 0 | I26: 0
A27: 5 | B27: Zpětná klapka pro kanalizace, DN80 PN16 | C27: kus | D27: 2 | G27: 0 | H27: 0 | I27: 0
B28: Nerez ocel 17 240
A29: 6 | B29: Česlicový koš, nerez ocel 17 240 + vodící tyče | C29: soubor | D29: 1 | G29: 0 | H29: 0 | I29: 0
A30: 7 | B30: Nerezové kanalizační hradítko DN300 | C30: soubor | D30: 1 | G30: 0 | H30: 0 | I30: 0
A31: 8 | B31: T Kus, DN80/2“ vnější závit dl.300x100mm PN16 | C31: soubor | D31: 2 | G31: 0 | H31: 0 | I31: 0
A32: 9 | B32: TP Kus, DN80 dl.230mm PN16 | C32: soubor | D32: 1 | G32: 0 | H32: 0 | I32: 0
A33: 10 | B33: TP Kus, DN80 dl.1312mm PN16 | C33: soubor | D33: 1 | G33: 0 | H33: 0 | I33: 0
A34: 11 | B34: Koleno 90° s patkou, DN80 PN16 | C34: kus | D34: 2 | G34: 0 | H34: 0 | I34: 0
A35: 12 | B35: Atyp. TP Kus (TP Kus + 2x Koleno 45°), DN80 dl.1312mm PN16 | C35: soubor | D35: 1 | G35: 0 | H35: 0 | I35: 0
A36: 13 | B36: Atyp. Tvarovka (T Kus + Koleno 90°), DN80 400x170x170mm PN16 | C36: soubor | D36: 1 | G36: 0 | H36: 0 | I36: 0
A37: 14 | B37: Atyp. Koleno 90°, DN80 dl.1584x158mm PN16 | C37: soubor | D37: 2 | G37: 0 | H37: 0 | I37: 0
A38: 15 | B38: Rychlospojka C, 2“ vnitřní závit | C38: kus | D38: 2 | G38: 0 | H38: 0 | I38: 0
A39: 16 | B39: Spojovací nerez materiál (šrouby, matky, podložky, těsnění,….) | C39: soubor | D39: 1 | G39: 0 | H39: 0 | I39: 0
A40: 17 | B40: Deskové šoupě pro odpadní vodu, DN80 PN16 + ruční kolo | C40: kus | D40: 3 | G40: 0 | H40: 0 | I40: 0
A41: 18 | B41: Kulový kohout, DN 2“ vnitřní závit PN16 | C41: kus | D41: 2 | G41: 0 | H41: 0 | I41: 0
A42: 19 | B42: Indukční průtokoměr, DN80 dl. 200mm PN16 s výstupem napojeným na GSM modul pro přenos dat. | C42: soubor | D42: 1 | G42: 0 | H42: 0 | I42: 0
B43: CE L K E M | G43: =SUM(G7:G42) -> 0 | H43: =SUM(H7:H42) -> 0 | I43: 0

Sheet 304RD M35.5 Technologie ČSOV C
B1: 3232 Horní Slivno - Splašková kanalizace
B2: SO 304 ČERPACÍ STANICE
B3: SO 304 ČERPACÍ STANICE "C" - Technologie
A4: Položka | B4: Popis | C4: Měr. | D4: Množ. | E4: Jednotková cena (Kč) | G4: Cena dodávka | H4: Cena montáž | I4: Cena bez
B5: Podrobná technická specifikace zařízení a dodávek viz Technická zpráva a výkresová dokumentace | C5: jedn. | E5: dodávka | F5: montáž | G5: Kč | H5: Kč | I5: DPH v Kč
B6: Stroje
A7: =A6+1 -> 1 | B7: Záplavné čerpadlo C03U-MHN3+CEYT2-GSEQ1AA+NA1B1OM-10-7kW | C7: Soubor | D7: 2 | G7: =E7*D7 -> 0 | H7: =F7*D7 -> 0 | I7: =E7*D7+F7*D7 -> 0
B8: Součástí dodávky sestavy dvou čerpadel je:
B9: Vodící brýle AS-03/03Q - 2 kusy
B10: Předrotační nádrž 1480 - PREROCLEAN Borna - 1 sada - pol. H
B11: Set PreroClean BORNA obsahuje:
B12: 1x Předrotaþní nádrž: sklolaminát
B13: 2x Patkové koleno DN 100
B14: 2x Horní držák vodících trubek
B15: Provedení: nerez
B16: Bez vodících trubek a kotevního materiálu
B17: Sací trychtýř ST DN100 (L=380mm) - 2 kusy
B18: Redukce patkového kolena z DN100 na DN80 pro PreroClean 1480 - 2 kusy
B19: Řetězy z korozivzdorné oceli V4A Řetěz ø 8 mm - 2 kusy nerezových řetězů v délce 6m, - celkem 12 m, včetně závěsu po 1m
B20: Nerezový šekl Šekl Ω ø 8 mm - 2 kusy
B21: Vyhodnocovací relé vlhkosti - 2 kusy
A22: 2 | B22: Spouštěcím zařízení pro čerpadla s vodícími trubkami z nerez. oceli dl. 6,00m | C22: soubor | D22: 2 | G22: =SUM(D22*E22) -> 0 | H22: =SUM(D22*F22) -> 0 | I22: =SUM(G22:H22) -> 0
A23: 3 | B23: Kompresor pro provzdušnění odpadní vody ve výtlaku za účelem eliminace sulfid. Stacionární nebo přenosný kompresor s kapacitou min. 220 l/min a tlakem 0,6 MPa. Vzduchovací hadice od kompresoru bude napojena na odbočku (návarek) TP kusu před výstupem výtlaku z armaturní šachty. | C23: soubor | D23: 1 | G23: =SUM(D23*E23) -> 0 | H23: =SUM(D23*F23) -> 0 | I23: =SUM(G23:H23) -> 0
B24: Tvarovky a armatury
B25: Tvárná litina
A26: 4 | B26: Příruba jištěná proti posunu pro PE potrubí, DN80/d90 PN16 | C26: kus | D26: 1 | G26: 0 | H26: 0 | I26: 0
A27: 5 | B27: Zpětná klapka pro kanalizace, DN80 PN16 | C27: kus | D27: 2 | G27: 0 | H27: 0 | I27: 0
B28: Nerez ocel 17 240
A29: 6 | B29: Česlicový koš, nerez ocel 17 240 + vodící tyče | C29: soubor | D29: 1 | G29: 0 | H29: 0 | I29: 0
A30: 7 | B30: Nerezové kanalizační hradítko DN300 | C30: soubor | D30: 1 | G30: 0 | H30: 0 | I30: 0
A31: 8 | B31: T Kus, DN80/2“ vnější závit dl.300x100mm PN16 | C31: soubor | D31: 2 | G31: 0 | H31: 0 | I31: 0
A32: 9 | B32: TP Kus, DN80 dl.230mm PN16 | C32: soubor | D32: 1 | G32: 0 | H32: 0 | I32: 0
A33: 10 | B33: TP Kus, DN80 dl.1312mm PN16 | C33: soubor | D33: 1 | G33: 0 | H33: 0 | I33: 0
A34: 11 | B34: Koleno 90° s patkou, DN80 PN16 | C34: kus | D34: 2 | G34: 0 | H34: 0 | I34: 0
A35: 12 | B35: Atyp. TP Kus (TP Kus + 2x Koleno 45°), DN80 dl.1312mm PN16 | C35: soubor | D35: 1 | G35: 0 | H35: 0 | I35: 0
A36: 13 | B36: Atyp. Tvarovka (T Kus + Koleno 90°), DN80 400x170x170mm PN16 | C36: soubor | D36: 1 | G36: 0 | H36: 0 | I36: 0
A37: 14 | B37: Atyp. Koleno 90°, DN80 dl.3884x158mm PN16 | C37: soubor | D37: 2 | G37: 0 | H37: 0 | I37: 0
A38: 15 | B38: Rychlospojka C, 2“ vnitřní závit | C38: kus | D38: 2 | G38: 0 | H38: 0 | I38: 0
A39: 16 | B39: Spojovací nerez materiál (šrouby, matky, podložky, těsnění,….) | C39: soubor | D39: 1 | G39: 0 | H39: 0 | I39: 0
A40: 17 | B40: Deskové šoupě pro odpadní vodu, DN80 PN16 + ruční kolo | C40: kus | D40: 3 | G40: 0 | H40: 0 | I40: 0
A41: 18 | B41: Kulový kohout, DN 2“ vnitřní závit PN16 | C41: kus | D41: 2 | G41: 0 | H41: 0 | I41: 0
A42: 19 | B42: Indukční průtokoměr, DN80 dl. 200mm PN16 s výstupem napojeným na GSM modul pro přenos dat. | C42: soubor | D42: 1 | G42: 0 | H42: 0 | I42: 0
B43: CE L K E M | G43: =SUM(G7:G42) -> 0 | H43: =SUM(H7:H42) -> 0 | I43: 0

Sheet 305 305RD KL
A1: POLOŽKOVÝ ROZPOČET
A2: Rozpočet | C2: 305RD | D2: Kabelové přípojky NN | F2: JKSO | G2: 828.13
A4: Objekt | F4: SKP
A5: 305 | C5: Kabelové přípojky NN | F5: Měrná jednotka | G5: m
A6: Stavba | F6: Počet jednotek | G6: 0
A7: 3232 | C7: Horní Slivno - Splašková kanalizace | F7: Náklady na m.j. | G7: =IF(G6=0,,ROUND((F30+F32)/G6,1)) -> 0
A8: Projektant | C8: Radek Hnát - VAK PROJEKT | F8: Typ rozpočtu
A9: Zpracovatel projektu
A10: Objednatel | C10: Obec Horní Slivno
A11: Dodavatel | C11: . | F11: Zakázkové číslo
A12: Rozpočtoval | F12: Počet listů
A13: ROZPOČTOVÉ NÁKLADY
A14: Základní rozpočtové náklady
B15: HSV celkem | C15: ='305 305RD Rek'!E8 -> 0
A16: Z | B16: PSV celkem | C16: ='305 305RD Rek'!F8 -> 0
A17: R | B17: M práce celkem | C17: ='305 305RD Rek'!H8 -> 0
A18: N | B18: M dodávky celkem | C18: ='305 305RD Rek'!G8 -> 0
A19: ZRN celkem | C19: =SUM(C15:C18) -> 0
A21: HZS | C21: ='305 305RD Rek'!I8 -> 0
A22: ZRN+HZS | C22: =C19+C21 -> 0
A23: ZRN+ost.náklady+HZS | C23: =C22+G23 -> 0
A24: Vypracoval | D24: Za zhotovitele | F24: Za objednatele
A25: Jméno : | D25: Jméno : | F25: Jméno :
A26: Datum : | D26: Datum : | F26: Datum :
A28: Podpis : | D28: Podpis: | F28: Podpis:
A30: Základ pro DPH | C30: 21 | D30: % | F30: =C23-F32 -> 0
A31: DPH | C31: =C30 -> 21 | D31: % | F31: =ROUND(PRODUCT(F30,C31/100),0) -> 0
A32: Základ pro DPH | C32: 0 | D32: % | F32: 0
A33: DPH | C33: =C32 -> 0 | D33: % | F33: =ROUND(PRODUCT(F32,C33/100),0) -> 0
A34: CENA ZA OBJEKT CELKEM | F34: =ROUND(SUM(F30:F33),0) -> 0
A36: Poznámka :

Sheet 305 305RD Rek
A1: Stavba : | C1: 3232 Horní Slivno - Splašková kanalizace | G1: Rozpočet : | H1: 305RD
A2: Objekt : | C2: 305 Kabelové přípojky NN | G2: Kabelové přípojky NN
A4: REKAPITULACE STAVEBNÍCH DÍLŮ
B6: Stavební díl | E6: HSV | F6: PSV | G6: Dodávka | H6: Montáž | I6: HZS
A7: ='305 305RD Pol'!B7 -> M21 | B7: ='305 305RD Pol'!C7 -> Elektromontáže | E7: ='305 305RD Pol'!BA10 -> 0 | F7: ='305 305RD Pol'!BB10 -> 0 | G7: ='305 305RD Pol'!BC10 -> 0 | H7: ='305 305RD Pol'!BD10 -> 0 | I7: ='305 305RD Pol'!BE10 -> 0
B8: CELKEM OBJEKT | E8: =SUM(E7:E7) -> 0 | F8: =SUM(F7:F7) -> 0 | G8: =SUM(G7:G7) -> 0 | H8: =SUM(H7:H7) -> 0 | I8: =SUM(I7:I7) -> 0

Sheet 305 305RD Pol
A1: Položkový rozpočet
A3: Stavba : | C3: 3232 Horní Slivno - Splašková kanalizace | E3: Rozpočet: | F3: ='305 305RD Rek'!H1 -> 305RD
A4: Objekt : | C4: 305 Kabelové přípojky NN | E4: ='305 305RD Rek'!G2 -> Kabelové přípojky NN
A6: P.č. | B6: Číslo položky | C6: Název položky | D6: MJ | E6: množství | F6: cena / MJ | G6: celkem (Kč) | H6: Jednotková hmotnost | I6: Celková hmotnost | J6: Jednotková dem.hmot. | K6: Celková dem.hmot.
A7: Díl: | B7: M21 | C7: Elektromontáže | O7: 1
A8: 1 | B8: 210100010RR1 | C8: Přípojka elektro v zemi (chránička) dle PD Pro ČSOV - A (samostatný výkaz) | D8: soubor | E8: 1 | F8: =SUM('305RD M21 Rek. elektro ČSOV A'!F25) -> 0 | G8: =E8*F8 -> 0 | H8: 0 | I8: =E8*H8 -> 0 | K8: =E8*J8 -> 0 | O8: 2 | AA8: 11 | AB8: 1 | AC8: 1 | AZ8: 4 | BA8: =IF(AZ8=1,G8,0) -> 0 | BB8: =IF(AZ8=2,G8,0) -> 0 | BC8: =IF(AZ8=3,G8,0) -> 0 | BD8: =IF(AZ8=4,G8,0) -> 0 | BE8: =IF(AZ8=5,G8,0) -> 0 | CA8: 11 | CB8: 1
A9: 2 | B9: 210100010RR2 | C9: Přípojka elektro v zemi (chránička) dle PD Pro ČSOV - C (samostatný výkaz) | D9: soubor | E9: 1 | F9: =SUM('305RS M21 Rek. elektro ČSOV C'!F25) -> 0 | G9: =E9*F9 -> 0 | H9: 0 | I9: =E9*H9 -> 0 | K9: =E9*J9 -> 0 | O9: 2 | AA9: 11 | AB9: 1 | AC9: 2 | AZ9: 4 | BA9: =IF(AZ9=1,G9,0) -> 0 | BB9: =IF(AZ9=2,G9,0) -> 0 | BC9: =IF(AZ9=3,G9,0) -> 0 | BD9: =IF(AZ9=4,G9,0) -> 0 | BE9: =IF(AZ9=5,G9,0) -> 0 | CA9: 11 | CB9: 1
B10: Celkem za | C10: M21 Elektromontáže | G10: =SUM(G7:G9) -> 0 | I10: =SUM(I7:I9) -> 0 | K10: =SUM(K7:K9) -> 0 | O10: 4 | BA10: =SUM(BA7:BA9) -> 0 | BB10: =SUM(BB7:BB9) -> 0 | BC10: =SUM(BC7:BC9) -> 0 | BD10: =SUM(BD7:BD9) -> 0 | BE10: =SUM(BE7:BE9) -> 0

Sheet 305RD M21 Rek. elektro ČSOV A
B1: 3232 Horní Slivno - Splašková kanalizace
B2: IO305 - Kabelové přípojky nn
B3: Přípojka k ČSOV - A
A5: Rekapitulace ceny
A6: p.č. | D6: % | E6: základ | F6: cena /Kč/
A7: 1 | B7: dodávky zařízení | F7: =SUM('305RD M21 elektro ČSOV A'!G9) -> 0 | H7: 9
A8: 2 | B8: doprava dodávek | D8: 3.6 | E8: =SUM(F7:F7) -> 0 | F8: =D8*E8/100 -> 0 | H8: 10
A9: 3 | B9: přesun dodávek | D9: 1 | E9: =SUM(F7:F7) -> 0 | F9: =D9*E9/100 -> 0 | H9: 12
A10: 4 | B10: materiál elektromontážní | F10: =SUM('305RD M21 elektro ČSOV A'!G18) -> 0 | H10: 13
A11: 5 | B11: prořez | D11: 5 | E11: =SUM('305RD M21 elektro ČSOV A'!G11:G13) -> 0 | F11: =D11*E11/100 -> 0 | H11: 14
A12: 6 | B12: materiál podružný | D12: 3 | E12: =SUM(F10:F10) -> 0 | F12: =D12*E12/100 -> 0 | H12: 15
A13: 7 | B13: materiál zemní+stavební | F13: =SUM('305RD M21 elektro ČSOV A'!G22) -> 0 | H13: 17
A14: 8 | B14: elektromontáže | F14: =SUM('305RD M21 elektro ČSOV A'!G36) -> 0 | G14: =SUM(F10:F12) -> 0 | H14: 18
A15: 9 | B15: zemní práce | F15: =SUM('305RD M21 elektro ČSOV A'!G46) -> 0 | G15: =SUM(F13:F13) -> 0 | H15: 21
A16: 10 | B16: PPV pro elektromontáže | D16: 1 | E16: =SUM(F14:G14) -> 0 | F16: =D16*E16/100 -> 0 | H16: 22
A17: 11 | B17: PPV pro zemní práce | D17: 1 | E17: =SUM(F15:G15) -> 0 | F17: =D17*E17/100 -> 0 | H17: 23
A18: 12 | B18: dodávky celkem | F18: =SUM(F7:F8) -> 0 | H18: 25
A19: 13 | B19: materiál+výkony celkem | F19: =SUM(F9:F17) -> 0 | H19: 26
A20: 14 | B20: ostatní náklady | F20: =SUM('305RD M21 elektro ČSOV A'!G50) -> 0 | H20: 27
A21: 15 | B21: MEZISOUČET 1 | F21: =SUM(F18:F20) -> 0 | G21: =SUM(F21:F21) -> 0 | H21: 28
A22: 16 | B22: revize | F22: 0 | H22: 36
A23: 17 | B23: komplexní zkoušky | F23: 0 | H23: 37
A24: 18 | B24: MEZISOUČET 2 | F24: =SUM(F22:F23) -> 0 | G24: =SUM(F24:F24) -> 0 | H24: 41
A25: 19 | B25: CELKEM BEZ DPH (Kč) | F25: =SUM(F21+F24) -> 0 | H25: 48

Sheet 305RD M21 elektro ČSOV A
B1: 3232 Horní Slivno - Splašková kanalizace
B2: IO305 - Kabelové přípojky nn
B3: Přípojka k ČSOV - A
A5: Soupis položek
A6: p.č. | B6: č.položky | C6: popis položky | D6: mj. | E6: množství | F6: cena/mj. | G6: cena celkem | H6: Nh/mj. | I6: Nh celkem | J6: DPH | K6: VKP | L6: TC | M6: kap. | N6: prořez
A7: Dodávky zařízení
A8: 1 | B8: 1 | C8: EL.ROZVADEC ER 112/3F/50A VESTAV. | D8: ks | E8: 1 | G8: =E8*F8 -> 0 | H8: 0 | I8: =E8*H8 -> 0 | J8: S | K8: * | M8: DE
C9: součet | G9: =SUM(G8:G8) -> 0 | I9: =SUM(I8:I8) -> 0 | M9: DE
A10: Materiál elektromontážní
A11: 2 | B11: 101210 | C11: kabel CYKY 4x16 | D11: m | E11: 225 | G11: =E11*F11 -> 0 | H11: 0 | I11: =E11*H11 -> 0 | J11: S | K11: * | M11: ME | N11: =E11*F11 -> 0
A12: 3 | B12: 321501 | C12: roura korugovaná KOPOFLEX KF09050 pr.50/41mm | D12: m | E12: 223 | G12: 0 | H12: 0 | I12: 0 | J12: S | K12: * | M12: ME | N12: =E12*F12 -> 0
A13: 4 | B13: 295001 | C13: vedení FeZn 30/4 (0,96kg/m) | D13: m | E13: 50 | G13: 0 | H13: 0 | I13: 0 | J13: S | K13: * | M13: ME | N13: =E13*F13 -> 0
A14: 5 | B14: 295072 | C14: svorka pásku zemnící SR2d 2šrouby FeZn | D14: ks | E14: 2 | G14: 0 | H14: 0 | I14: 0 | J14: S | K14: * | M14: ME
A15: 6 | B15: 312011 | C15: krabice KSK125/IP66 125 | D15: ks | E15: 1 | G15: 0 | H15: 0 | I15: 0 | J15: S | K15: * | M15: ME
A16: 7 | B16: 60071 | C16: OEZ POJISTKA NOŽOVÁ PNA1 63A GG | D16: ks | E16: 3 | G16: 0 | H16: 0 | I16: 0 | J16: S | K16: * | M16: ME
A17: 8 | B17: 435028 | C17: jistič LTN-50B-3 3pól/ch.B/ 50A/10kA | D17: ks | E17: 1 | G17: 0 | H17: 0 | I17: 0 | J17: S | K17: * | M17: ME
C18: součet | G18: =SUM(G11:G17) -> 0 | I18: =SUM(I11:I17) -> 0 | M18: ME | N18: =SUM(N4:N17) -> 0
A19: Materiál zemní+stavební
A20: 9 | B20: 46114 | C20: písek kopaný 0-2mm | D20: m3 | E20: 15.4 | G20: =E20*F20 -> 0 | H20: 0 | I20: =E20*H20 -> 0 | J20: S | M20: MZ
A21: 10 | B21: 46383 | C21: výstražná fólie šířka 0,34m | D21: m | E21: 220 | G21: =E21*F21 -> 0 | H21: 0 | I21: =E21*H21 -> 0 | J21: S | M21: MZ
C22: součet | G22: =SUM(G20:G21) -> 0 | I22: =SUM(I20:I21) -> 0 | M22: MZ
A23: Elektromontáže
A24: 11 | B24: 210810081 | C24: kabel Cu(-1kV CYKY) volně uložený do 3x35/4x25 | D24: m | E24: 225 | G24: =E24*F24 -> 0 | J24: S | M24: CE
A25: 12 | B25: 210100212 | C25: ukončení kabelu do 4x16 | D25: ks | E25: 2 | G25: 0 | J25: S | K25: * | M25: CE
A26: 13 | B26: 210010123 | C26: trubka plast volně uložená do pr.50mm | D26: m | E26: 223 | G26: 0 | J26: S | M26: CE
A27: 14 | B27: 210950202 | C27: příplatek na zatažení do prostupu kabel do 2kg | D27: m | E27: 223 | G27: 0 | J27: S | K27: * | M27: CE
A28: 15 | B28: 210220021 | C28: uzemňov.vedení v zemi úplná mtž FeZn do 120mm2 | D28: m | E28: 50 | G28: 0 | J28: S | M28: CE
A29: 16 | B29: 210220301 | C29: svorka hromosvodová do 2 šroubů | D29: ks | E29: 2 | G29: 0 | J29: S | K29: * | M29: CE
A30: 17 | B30: 210220441 | C30: ochrana zemní svorky asfaltovým nátěrem | D30: ks | E30: 2 | G30: 0 | J30: S | K30: * | M30: CE
A31: 18 | B31: 210010453 | C31: krabice plast pro P rozvod | D31: ks | E31: 1 | G31: 0 | J31: S | M31: CE
A32: 19 | B32: 210190001 | C32: rozvodnice do hmotnosti 20kg | D32: ks | E32: 1 | G32: 0 | J32: S | K32: * | M32: CE
A33: 20 | B33: 210292022 | C33: vypnutí hlavn vedení vč.zajištění+vyzkouš+označení | D33: ks | E33: 1 | G33: 0 | J33: Z | K33: * | M33: CE
A34: 21 | B34: 210290481 | C34: pojistkové patrony nožové do 600A | D34: ks | E34: 3 | G34: 0 | J34: Z | K34: * | M34: CE
A35: 22 | B35: 210120452 | C35: jistič vč.zapojení 3pól/63A | D35: ks | E35: 1 | G35: 0 | J35: S | M35: CE
C36: součet | G36: =SUM(G24:G35) -> 0 | M36: CE
A37: Zemní práce
A38: 23 | B38: 460010023 | C38: vytyčení trasy kabelu ve volném terénu vč.mater | D38: km | E38: 0.22 | G38: =E38*F38 -> 0 | J38: S | K38: * | M38: CZ
A39: 24 | B39: 460200163 | C39: výkop kabel.rýhy šířka 35/hloubka 80cm tz.3/ko1.5 | D39: m | E39: 220 | G39: 0 | J39: S | K39: * | M39: CZ
A40: 25 | B40: 460420022 | C40: kabelové lože 2x10cm kopaný písek šířka do 65cm | D40: m | E40: 220 | G40: 0 | J40: S | M40: CZ
A41: 26 | B41: 460490012 | C41: výstražná fólie šířka nad 30cm | D41: m | E41: 220 | G41: 0 | J41: S | M41: CZ
A42: 27 | B42: 460560163 | C42: zához kabelové rýhy šířka 35/hloubka 80cm tz.3 | D42: m | E42: 220 | G42: 0 | J42: S | M42: CZ
A43: 28 | B43: 460600001 | C43: odvoz zeminy do 10km vč.poplatku za skládku | D43: m3 | E43: 15.4 | G43: 0 | J43: S | M43: CZ
A44: 29 | B44: 460620013 | C44: provizorní úprava terénu třída zeminy 3 | D44: m2 | E44: 77 | G44: 0 | J44: S | M44: CZ
A45: 30 | B45: 460300006 | C45: hutnění zeminy po vrstvách při strojním záhrnu | D45: m3 | E45: 61.6 | G45: 0 | J45: S | K45: * | M45: CZ
C46: součet | G46: =SUM(G38:G45) -> 0 | M46: CZ
A47: Ostatní náklady
A48: 31 | B48: 460710001 | C48: geodetické zaměření skutečné polohy | D48: m | E48: 220 | G48: =E48*F48 -> 0 | J48: S | K48: * | M48: ON
A49: 32 | B49: 219000104 | C49: zajištění smlouvy k odběru el. energie | D49: kpl. | E49: 1 | G49: =E49*F49 -> 0 | J49: S | K49: * | M49: ON
C50: součet | G50: =SUM(G48:G49) -> 0 | M50: ON

Sheet 305RS M21 Rek. elektro ČSOV C
B1: 3232 Horní Slivno - Splašková kanalizace
B2: IO305 - Kabelové přípojky nn
B3: Přípojka k ČSOV - C
A5: Rekapitulace ceny
A6: p.č. | D6: % | E6: základ | F6: cena /Kč/
A7: 1 | B7: dodávky zařízení | F7: =SUM('305RD M21 elektro ČSOV C'!G9) -> 0 | H7: 9
A8: 2 | B8: doprava dodávek | D8: 3.6 | E8: =SUM(F7:F7) -> 0 | F8: =D8*E8/100 -> 0 | H8: 10
A9: 3 | B9: přesun dodávek | D9: 1 | E9: =SUM(F7:F7) -> 0 | F9: =D9*E9/100 -> 0 | H9: 12
A10: 4 | B10: materiál elektromontážní | F10: =SUM('305RD M21 elektro ČSOV C'!G18) -> 0 | H10: 13
A11: 5 | B11: prořez | D11: 5 | E11: =SUM('305RD M21 elektro ČSOV C'!G11:G13) -> 0 | F11: =D11*E11/100 -> 0 | H11: 14
A12: 6 | B12: materiál podružný | D12: 3 | E12: =SUM(F10:F10) -> 0 | F12: =D12*E12/100 -> 0 | H12: 15
A13: 7 | B13: materiál zemní+stavební | F13: =SUM('305RD M21 elektro ČSOV C'!G22) -> 0 | H13: 17
A14: 8 | B14: elektromontáže | F14: =SUM('305RD M21 elektro ČSOV C'!G36) -> 0 | G14: =SUM(F10:F12) -> 0 | H14: 18
A15: 9 | B15: zemní práce | F15: =SUM('305RD M21 elektro ČSOV C'!G46) -> 0 | G15: =SUM(F13:F13) -> 0 | H15: 21
A16: 10 | B16: PPV pro elektromontáže | D16: 1 | E16: =SUM(F14:G14) -> 0 | F16: =D16*E16/100 -> 0 | H16: 22
A17: 11 | B17: PPV pro zemní práce | D17: 1 | E17: =SUM(F15:G15) -> 0 | F17: =D17*E17/100 -> 0 | H17: 23
A18: 12 | B18: dodávky celkem | F18: =SUM(F7:F8) -> 0 | H18: 25
A19: 13 | B19: materiál+výkony celkem | F19: =SUM(F9:F17) -> 0 | H19: 26
A20: 14 | B20: ostatní náklady | F20: =SUM('305RD M21 elektro ČSOV C'!G50) -> 0 | H20: 27
A21: 15 | B21: MEZISOUČET 1 | F21: =SUM(F18:F20) -> 0 | G21: =SUM(F21:F21) -> 0 | H21: 28
A22: 16 | B22: revize | F22: 0 | H22: 36
A23: 17 | B23: komplexní zkoušky | F23: 0 | H23: 37
A24: 22 | B24: MEZISOUČET 2 | F24: =SUM(F22:F23) -> 0 | G24: =SUM(F24:F24) -> 0 | H24: 41
A25: 23 | B25: CELKEM BEZ DPH (Kč) | F25: =F21+F24 -> 0 | H25: 48

Sheet 305RD M21 elektro ČSOV C
B1: 3232 Horní Slivno - Splašková kanalizace
B2: IO305 - Kabelové přípojky nn
B3: Přípojka k ČSOV - C
A5: Soupis položek
A6: p.č. | B6: č.položky | C6: popis položky | D6: mj. | E6: množství | F6: cena/mj. | G6: cena celkem | H6: Nh/mj. | I6: Nh celkem | J6: DPH | K6: VKP | L6: TC | M6: kap. | N6: prořez
A7: Dodávky zařízení
A8: 1 | B8: 1 | C8: EL.ROZVADEC ER 112/3F/25A VESTAV. | D8: ks | E8: 1 | G8: =E8*F8 -> 0 | H8: 0 | I8: =E8*H8 -> 0 | J8: S | K8: * | M8: DE
C9: součet | G9: =SUM(G8:G8) -> 0 | I9: =SUM(I8:I8) -> 0 | M9: DE
A10: Materiál elektromontážní
A11: 2 | B11: 101210 | C11: kabel CYKY 4x16 | D11: m | E11: 45 | G11: =E11*F11 -> 0 | H11: 0 | I11: =E11*H11 -> 0 | J11: S | K11: * | M11: ME | N11: =E11*F11 -> 0
A12: 3 | B12: 321501 | C12: roura korugovaná KOPOFLEX KF09050 pr.50/41mm | D12: m | E12: 43 | G12: 0 | H12: 0 | I12: 0 | J12: S | K12: * | M12: ME | N12: =E12*F12 -> 0
A13: 4 | B13: 295001 | C13: vedení FeZn 30/4 (0,96kg/m) | D13: m | E13: 40 | G13: 0 | H13: 0 | I13: 0 | J13: S | K13: * | M13: ME | N13: =E13*F13 -> 0
A14: 5 | B14: 295072 | C14: svorka pásku zemnící SR2d 2šrouby FeZn | D14: ks | E14: 2 | G14: 0 | H14: 0 | I14: 0 | J14: S | K14: * | M14: ME
A15: 6 | B15: 312011 | C15: krabice KSK125/IP66 125 | D15: ks | E15: 1 | G15: 0 | H15: 0 | I15: 0 | J15: S | K15: * | M15: ME
A16: 7 | B16: 60071 | C16: OEZ POJISTKA NOŽOVÁ PNA1 63A GG | D16: ks | E16: 3 | G16: 0 | H16: 0 | I16: 0 | J16: S | K16: * | M16: ME
A17: 8 | B17: 435025 | C17: jistič LTN-25B-3 3pól/ch.B/ 25A/10kA | D17: ks | E17: 18 | G17: 0 | H17: 0 | I17: 0 | J17: S | K17: * | M17: ME
C18: součet | G18: =SUM(G11:G17) -> 0 | I18: =SUM(I11:I17) -> 0 | M18: ME | N18: =SUM(N3:N17) -> 0
A19: Materiál zemní+stavební
A20: 9 | B20: 46114 | C20: písek kopaný 0-2mm | D20: m3 | E20: 2.8 | G20: =E20*F20 -> 0 | H20: 0 | I20: =E20*H20 -> 0 | J20: S | M20: MZ
A21: 10 | B21: 46383 | C21: výstražná fólie šířka 0,34m | D21: m | E21: 40 | G21: =E21*F21 -> 0 | H21: 0 | I21: =E21*H21 -> 0 | J21: S | M21: MZ
C22: součet | G22: =SUM(G20:G21) -> 0 | I22: =SUM(I20:I21) -> 0 | M22: MZ
A23: Elektromontáže
A24: 11 | B24: 210810081 | C24: kabel Cu(-1kV CYKY) volně uložený do 3x35/4x25 | D24: m | E24: 45 | G24: =E24*F24 -> 0 | J24: S | M24: CE
A25: 12 | B25: 210100212 | C25: ukončení kabelu do 4x16 | D25: ks | E25: 2 | G25: 0 | J25: S | K25: * | M25: CE
A26: 13 | B26: 210010123 | C26: trubka plast volně uložená do pr.50mm | D26: m | E26: 43 | G26: 0 | J26: S | M26: CE
A27: 14 | B27: 210950202 | C27: příplatek na zatažení do prostupu kabel do 2kg | D27: m | E27: 43 | G27: 0 | J27: S | K27: * | M27: CE
A28: 15 | B28: 210220021 | C28: uzemňov.vedení v zemi úplná mtž FeZn do 120mm2 | D28: m | E28: 40 | G28: 0 | J28: S | M28: CE
A29: 16 | B29: 210220301 | C29: svorka hromosvodová do 2 šroubů | D29: ks | E29: 2 | G29: 0 | J29: S | K29: * | M29: CE
A30: 17 | B30: 210220441 | C30: ochrana zemní svorky asfaltovým nátěrem | D30: ks | E30: 2 | G30: 0 | J30: S | K30: * | M30: CE
A31: 18 | B31: 210010453 | C31: krabice plast pro P rozvod | D31: ks | E31: 1 | G31: 0 | J31: S | M31: CE
A32: 19 | B32: 210190001 | C32: rozvodnice do hmotnosti 20kg | D32: ks | E32: 1 | G32: 0 | J32: S | K32: * | M32: CE
A33: 20 | B33: 210292022 | C33: vypnutí hlavn vedení vč.zajištění+vyzkouš+označení | D33: ks | E33: 1 | G33: 0 | J33: Z | K33: * | M33: CE
A34: 21 | B34: 210290481 | C34: pojistkové patrony nožové do 600A | D34: ks | E34: 3 | G34: 0 | J34: Z | K34: * | M34: CE
A35: 22 | B35: 210120451 | C35: jistič vč.zapojení 3pól/25A | D35: ks | E35: 1 | G35: 0 | J35: S | M35: CE
C36: součet | G36: =SUM(G24:G35) -> 0 | M36: CE
A37: Zemní práce
